{"text_format":"1","workbook":"xlsx","n_sheets":59,"sheets":["UploadData","ProjectUpload","MeasureUpload","zzMeasureUploadTemplate","TempStaging","REFNOLogic","Welcome","user_Project","user_Customer","user_TradeAlly2","user_TradeAlly","user_Measures","user_NewConInputs","user_Space Types","user_Lighting Details","user_UtilityInformation","user_UtilityRates","user_PrintReady","user_PrintReadyTA","user_SaveAndClose","user_Links","user_RequiredProjectInfo","user_O&M","user_ProgramOffering","inp_UtilityInfo","inp_UtilityRates","inp_UtilityReview","inp_NewConstruction","inp_CustProposal","inp_NewConInputs","inp_Incentives","static_Tables","static_Lists","static_Parameters","Logo","Default Logo","Formats","BLANK WELCOME SCREEN","ScratchPad","MML","ArithmeticBaseline","Variable and Parameter Guide","Calculator Algorithms","prntrdy_Form1","prntrdy_Form2","prntrdy_Form3","prntrdy_Form4","prntrdy_Form5","prntrdy_Form6","prntrdy_Form7","prntrdy_Form8","Sheet2","ProjectLevelResults","IncentivesSummary","zzChange_LogOld","Holding","Change Log","ValidatorResults","Previous_Validator_Results"],"not_rendered":{"charts":1,"images":3,"macros":1,"external_links":0,"defined_names":236,"comments":8,"pivot_tables":0},"unopened":[],"bounds":{"document_bytes":16777216,"sheet_cells":100000,"rows_first":2000,"rows_last":500,"rows_between":2000,"halvings":0,"cell_chars":16384,"cell_head_chars":4096},"cells_cut":0,"cells_raw":0,"read":"whole","date_system":"1900"}

{"sheet":"UploadData","index":0,"n_rows":2,"n_cols":29,"rows_kept":2,"cut":false,"hidden":false,"merged":[]}
["Calculator Type","Sector","Version","ML","projcost","busbr sav","wattred","totcred","bc ratio","bldgtype","bldg","Unique Site ID","zip","Company Name","state","projname","street","city","Fedbldg","Serving Utility ","Completion Date","BPA Max WTP ","Funding Source","NS Measures Approved","Trade Ally Company","Trade Ally Individual","NWTAN Member","NEEA NXT Level 1","NEEA NXT Level 2"]
["Retrofit",null,"5.X2",12,null,0,0,0,0.252,"Assembly","[FIELD NOT USED]",null,98402,"Owner / Company Name","WA","Project Name","Project Address","Project Address","No",10370," , ",0,null,"YES",{"$f":"user_TradeAlly!L8","v":"Company"},{"$f":"user_TradeAlly!L5","v":"Person Submitting Project"},{"$f":"user_TradeAlly!L12","v":"No"},{"$f":"user_TradeAlly!L13","v":"No"},{"$f":"user_TradeAlly!L14","v":"No"}]

{"sheet":"ProjectUpload","index":1,"n_rows":2,"n_cols":29,"rows_kept":2,"cut":false,"hidden":false,"merged":[]}
["Calculator Type","Sector","Version","ML","projcost","busbr sav","wattred","totcred","bc ratio","bldgtype","bldg","Unique Site ID","zip","Company Name","state","projname","street","city","Fedbldg","Serving Utility ","Completion Date","BPA Max WTP ","Funding Source","NS Measures Approved","Trade Ally Company","Trade Ally Individual","NWTAN Member","NEEA NXT Level 1","NEEA NXT Level 2"]
[{"$f":"IF(ISBLANK(UploadData!A2),\"\",UploadData!A2)","v":"Retrofit"},{"$f":"IF(ISBLANK(UploadData!B2),\"\",UploadData!B2)","v":""},{"$f":"IF(ISBLANK(UploadData!C2),\"\",UploadData!C2)","v":"5.X2"},{"$f":"IF(ISBLANK(UploadData!D2),\"\",UploadData!D2)","v":12},{"$f":"IF(ISBLANK(UploadData!E2),\"\",UploadData!E2)","v":""},{"$f":"IF(ISBLANK(UploadData!F2),\"\",UploadData!F2)","v":0},{"$f":"IF(ISBLANK(UploadData!G2),\"\",UploadData!G2)","v":0},{"$f":"IF(ISBLANK(UploadData!H2),\"\",UploadData!H2)","v":0},{"$f":"IF(ISBLANK(UploadData!I2),\"\",UploadData!I2)","v":0.252},{"$f":"IF(ISBLANK(UploadData!J2),\"\",UploadData!J2)","v":"Assembly"},{"$f":"IF(ISBLANK(UploadData!K2),\"\",UploadData!K2)","v":"[FIELD NOT USED]"},{"$f":"IF(ISBLANK(UploadData!L2),\"\",UploadData!L2)","v":""},{"$f":"IF(ISBLANK(UploadData!M2),\"\",UploadData!M2)","v":98402},{"$f":"IF(ISBLANK(UploadData!N2),\"\",UploadData!N2)","v":"Owner / Company Name"},{"$f":"IF(ISBLANK(UploadData!O2),\"\",UploadData!O2)","v":"WA"},{"$f":"IF(ISBLANK(UploadData!P2),\"\",UploadData!P2)","v":"Project Name"},{"$f":"IF(ISBLANK(UploadData!Q2),\"\",UploadData!Q2)","v":"Project Address"},{"$f":"IF(ISBLANK(UploadData!R2),\"\",UploadData!R2)","v":"Project Address"},{"$f":"IF(ISBLANK(UploadData!S2),\"\",UploadData!S2)","v":"No"},{"$f":"IF(ISBLANK(UploadData!T2),\"\",UploadData!T2)","v":10370},{"$f":"IF(ISBLANK(UploadData!U2),\"\",UploadData!U2)","v":" , "},{"$f":"IF(ISBLANK(UploadData!V2),\"\",UploadData!V2)","v":0},{"$f":"IF(ISBLANK(UploadData!W2),\"\",UploadData!W2)","v":""},{"$f":"IF(ISBLANK(UploadData!X2),\"\",UploadData!X2)","v":"YES"},{"$f":"IF(ISBLANK(UploadData!Y2),\"\",UploadData!Y2)","v":"Company"},{"$f":"IF(ISBLANK(UploadData!Z2),\"\",UploadData!Z2)","v":"Person Submitting Project"},{"$f":"IF(ISBLANK(UploadData!AA2),\"\",UploadData!AA2)","v":"No"},{"$f":"IF(ISBLANK(UploadData!AB2),\"\",UploadData!AB2)","v":"No"},{"$f":"IF(ISBLANK(UploadData!AC2),\"\",UploadData!AC2)","v":"No"}]

{"sheet":"MeasureUpload","index":2,"n_rows":2,"n_cols":20,"rows_kept":2,"cut":false,"hidden":false,"merged":[]}
["Space Use Type","Annual Hours of Operation","Existing Equipment Classification","Efficient Equipment Category","Efficient Equipment Sub Category","Fixture Count","Efficient Lamp Count","Lamp Wattage","Controls Category","Controls Count","Equipment Savings Unadjusted","Equipment Savings Fully Adj","Controls  Savings","Total Measure Savings kWh","Equip_Incentive","Control_Incentive","Total Measure Incentive","REFNO","Measure Name"]
[{"$f":"'user_Lighting Details'!M22","v":0},{"$f":"'user_Lighting Details'!N22","v":0},{"$f":"'user_Lighting Details'!AB22","v":0},{"$f":"'user_Lighting Details'!AJ22","v":0},{"$f":"'user_Lighting Details'!AK22","v":0},{"$f":"'user_Lighting Details'!AH22","v":0},{"$f":"('user_Lighting Details'!AM22)*('user_Lighting Details'!AH22)","v":0},{"$f":"'user_Lighting Details'!AL22","v":0},{"$f":"'user_Lighting Details'!AR22","v":0},{"$f":"'user_Lighting Details'!AQ22","v":0},{"$f":"'user_Lighting Details'!BO22","v":0},{"$f":"'user_Lighting Details'!DE22","v":0},{"$f":"'user_Lighting Details'!DC22","v":0},{"$f":"'user_Lighting Details'!DG22","v":0},{"$f":"IF(OR(('user_Lighting Details'!AG22=\"Non-standard\"),('user_Lighting Details'!AJ22=\"Refrigerated Case\"),('user_Lighting Details'!AJ22=\"Linear Strip\"),('user_Lighting Details'!AI22=\"Signage\"),('user_Lighting Details'!AA22<>'user_Lighting Details'!AH22)),'user_Lighting Details'!EB22+'user_Lighting Details'!EE22,'user_Lighting Details'!EE22)","v":0},{"$f":"'user_Lighting Details'!DT22","v":0},{"$f":"'user_Lighting Details'!ER22","v":0},{"$f":"'user_Lighting Details'!FD22","v":0},{"$f":"'user_Lighting Details'!FF22","v":0},{"$f":"IF(LEN(TRIM('user_Lighting Details'!K22))>0,1,0)","v":1}]

{"sheet":"zzMeasureUploadTemplate","index":3,"n_rows":3,"n_cols":21,"rows_kept":3,"cut":false,"hidden":false,"merged":[]}
["Space Use Type","Annual Hours of Operation","Existing Equipment Classification","Efficient Equipment Category","Efficient Equipment Sub Category","Fixture Count","Efficient Lamp Count","Lamp Wattage","Controls Category","Controls Count","Equipment Savings Unadjusted","Equipment Savings Fully Adj","Controls  Savings","Total Measure Savings kWh","Equip_Incentive","Control_Incentive","Total Measure Incentive","REFNO","Measure Name","DataFlag","Utility Name"]
["zzTempzz'user_Lighting Details'!M22","zzTempzz'user_Lighting Details'!N22","zzTempzz'user_Lighting Details'!AB22","zzTempzz'user_Lighting Details'!AJ22","zzTempzz'user_Lighting Details'!AK22","zzTempzz'user_Lighting Details'!AH22","zzTempzz('user_Lighting Details'!AM22)*('user_Lighting Details'!AH22)","zzTempzz'user_Lighting Details'!AL22","zzTempzz'user_Lighting Details'!AR22","zzTempzz'user_Lighting Details'!AQ22","zzTempzz'user_Lighting Details'!BO22","zzTempzz'user_Lighting Details'!DE22","zzTempzz'user_Lighting Details'!DC22","zzTempzz'user_Lighting Details'!DG22","zzTempzzIF(OR(('user_Lighting Details'!AG22zzTempzz\"Non-standard\"),('user_Lighting Details'!AJ22zzTempzz\"Refrigerated Case\"),('user_Lighting Details'!AJ22zzTempzz\"Linear Strip\"),('user_Lighting Details'!AI22zzTempzz\"Signage\"),('user_Lighting Details'!AA22<>'user_Lighting Details'!AH22)),'user_Lighting Details'!EB22+'user_Lighting Details'!EE22,'user_Lighting Details'!EE22)","zzTempzz'user_Lighting Details'!DT22","zzTempzz'user_Lighting Details'!ER22","zzTempzz'user_Lighting Details'!FD22","zzTempzz'user_Lighting Details'!FF22","zzTempzzIF(LEN(TRIM('user_Lighting Details'!K22))>0,1,0)","zzTempzzitemized_Utility_Organization"]
["zzTempzz'user_Lighting Details'!M23","zzTempzz'user_Lighting Details'!N23","zzTempzz'user_Lighting Details'!AB23","zzTempzz'user_Lighting Details'!AJ23","zzTempzz'user_Lighting Details'!AK23","zzTempzz'user_Lighting Details'!AH23","zzTempzz('user_Lighting Details'!AM22)*('user_Lighting Details'!AH23)","zzTempzz'user_Lighting Details'!AL23","zzTempzz'user_Lighting Details'!AR23","zzTempzz'user_Lighting Details'!AQ23","zzTempzz'user_Lighting Details'!BO23","zzTempzz'user_Lighting Details'!DE23","zzTempzz'user_Lighting Details'!DC23","zzTempzz'user_Lighting Details'!DG23","zzTempzzIF(OR(('user_Lighting Details'!AG23zzTempzz\"Non-standard\"),('user_Lighting Details'!AJ23zzTempzz\"Refrigerated Case\"),('user_Lighting Details'!AJ23zzTempzz\"Linear Strip\"),('user_Lighting Details'!AI23zzTempzz\"Signage\"),('user_Lighting Details'!AA23<>'user_Lighting Details'!AH23)),'user_Lighting Details'!EB23+'user_Lighting Details'!EE23,'user_Lighting Details'!EE23)","zzTempzz'user_Lighting Details'!DT23","zzTempzz'user_Lighting Details'!ER23","zzTempzz'user_Lighting Details'!FD23","zzTempzz'user_Lighting Details'!FF23","zzTempzzIF(LEN(TRIM('user_Lighting Details'!K23))>0,1,0)","zzTempzzitemized_Utility_Organization"]

{"sheet":"TempStaging","index":4,"n_rows":36,"n_cols":1,"rows_kept":36,"cut":false,"hidden":false,"merged":[]}
[]
[]
[]
[]
[]
[]
[]
[]
[]
[]
[]
[]
[]
[]
[]
[]
[]
[]
[]
[]
[]
["Decommissioning : [none]\r\nEquipment   No matching equipment\r\nControls M1: 1 control(s) @ $30/control ($30)"]
["Decommissioning : [none]\r\nEquipment   H-90%: 10 fixture(s) at $40/fixture ($400)\r\nControls M2: 1 control(s) @ $15/control ($15)"]
["Decommissioning : [none]\r\nEquipment   No matching equipment\r\nControls M1: 1 control(s) @ $30/control ($30)"]
["Decommissioning : [none]\r\nEquipment   No matching equipment\r\nControls M2: 1 control(s) @ $40/control ($40)"]
["Decommissioning : [none]\r\nEquipment   E2-70%: 10 fixture(s) at $100/fixture ($1,000)\r\nControls M4: 2 control(s) @ $30/control ($60)"]
["Decommissioning : [none]\r\nEquipment   E2-70%: 10 fixture(s) at $100/fixture ($1,000)\r\nControls: [no controls specified]"]
["Decommissioning : [none]\r\nEquipment   E2-70%: 10 fixture(s) at $100/fixture ($1,000)\r\nControls: [no controls specified]"]
["Decommissioning : [none]\r\nEquipment   E2-70%: 10 fixture(s) at $100/fixture ($1,000)\r\nControls: [no controls specified]"]
["Decommissioning : [none]\r\nEquipment   E2-70%: 10 fixture(s) at $100/fixture ($1,000)\r\nControls: [no controls specified]"]
["Decommissioning : [none]\r\nEquipment   E2-70%: 10 fixture(s) at $100/fixture ($1,000)\r\nControls: [no controls specified]"]
["Decommissioning : [none]\r\nEquipment   E2-70%: 10 fixture(s) at $100/fixture ($1,000)\r\nControls: [no controls specified]"]
["Decommissioning : [none]\r\nEquipment   E2-70%: 10 fixture(s) at $100/fixture ($1,000)\r\nControls: [no controls specified]"]
["Decommissioning : [none]\r\nEquipment   E2-70%: 10 fixture(s) at $100/fixture ($1,000)\r\nControls: [no controls specified]"]
["Decommissioning : [none]\r\nEquipment   E2-70%: 10 fixture(s) at $100/fixture ($1,000)\r\nControls: [no controls specified]"]
["Decommissioning : [none]\r\nEquipment   E2-70%: 10 fixture(s) at $100/fixture ($1,000)\r\nControls: [no controls specified]"]

{"sheet":"REFNOLogic","index":5,"n_rows":2,"n_cols":1,"rows_kept":2,"cut":false,"hidden":false,"merged":[]}
["Current Record Row For REFNO"]
[27]

{"sheet":"Welcome","index":6,"n_rows":26,"n_cols":17,"rows_kept":26,"cut":false,"hidden":false,"merged":[]}
[]
[]
[null,null,null,null,null,null,null,null,null,null,null,"Welcome to the Lighting Calculator v5.X2",null,null,null,null,"Note:"]
[null,null,null,null,null,null,null,null,null,null,null,"For this lighting calclator to function properly, you must have macros enabled in Microsoft Excel.",null,null,null,null,"Once you have enabled macros (left) the "]
[null,null,null,null,null,null,null,null,null,null,null,"To enable macros, follow the instructions below based on your version of Excel.",null,null,null,null,"calculator should automatically launch."]
[]
[null,null,null,null,null,null,null,null,null,null,null,"Enabling Macros in Microsoft Excel 2003:",null,null,null,null,"To launch the calculator manually, click"]
[null,null,null,null,null,null,null,null,null,null,null,"1) Go to Tools > Options.",null,null,null,null,"the button below."]
[null,null,null,null,null,null,null,null,null,null,null,"2) Go to the Security tab and click on Macro Security…"]
[null,null,null,null,null,null,null,null,null,null,null,"3) Select Medium.."]
[null,null,null,null,null,null,null,null,null,null,null,"4) Close Excel and re-open the lighting calculator."]
[null,null,null,null,null,null,null,null,null,null,null,"5) When prompted whether to enable macros or not, click Enable Macros"]
[]
[null,null,null,null,null,null,null,null,null,null,null,"Enabling Macros in Microsoft Excel 2007:"]
[null,null,null,null,null,null,null,null,null,null,null,"1) Click the Office button in the upper left corner of the screen. At the bottom of the menu select Excel Options."]
[null,null,null,null,null,null,null,null,null,null,null,"2) Select the Trust Center tab on the left, followed by Trust Center Settings... in the bottom right corner."]
[null,null,null,null,null,null,null,null,null,null,null,"3) In the new window that appears, choose Macro Settings."]
[null,null,null,null,null,null,null,null,null,null,null,"4) You can select Enable all macros, in which case you will not have to enable macros every time you open the "]
[null,null,null,null,null,null,null,null,null,null,null,"calculator, or you can select Disable all macros with notification, in which case you will have to enable macros "]
[null,null,null,null,null,null,null,null,null,null,null,"every time the calculator is opened."]
[null,null,null,null,null,null,null,null,null,null,null,"5) Close the calculator and re-open it.  If a security warning appears the next time you open the calculator, select"]
[null,null,null,null,null,null,null,null,null,null,null,"Options… > Enable this content."]
[]
[null,null,null,null,null,null,null,null,null,null,null,"Enabling Macros in Microsoft Excel 2010 or 2013:"]
[null,null,null,null,null,null,null,null,null,null,null,"1) In the upper left corner, go to File > Options."]
[null,null,null,null,null,null,null,null,null,null,null,"2) Follow steps 2 through 5 above for \"Enabling Macros in Microsoft Excel 2007.\""]

{"sheet":"user_Project","index":7,"n_rows":22,"n_cols":38,"rows_kept":22,"cut":false,"hidden":false,"merged":[]}
[]
[null,null,null,null,null,null,null,null,null,null,null,null,null,"ContactLastName","ContactPhoneAreaCode","ContactPhoneFirstThree","ContactPhoneLastFour","ContactPhoneExtension","ContactEmail","CustomerCompany","CustomerStreet","CustomerCity","CustomerState","CustomerZip","ProjectName","UseCustomerAddress","ProjectStreet","ProjectCity","ProjectState","ProjectZip","ProjectBuildingType","ProjectType","UtilityRateClass","UtilityEnergyRate","UtilityDemandRate",null,null,"Show itemized table"]
[null,null,null,null,null,null,null,null,null,null,null,null,null,"Person Signing Contract","253","123","4567","","theiremail@email.com","Owner / Company Name","Company Address","Tacoma","WA","98402","Project Name",false,"Project Address","Project Address","WA",98402,"Assembly","Retrofit","(B) Small General",7.9799999999999996E-2,0,1,false,true]
[]
[null,null,null,null,null,null,null,null,null,null,null,"Person Signing Contract"]
[null,null,null,null,null,null,null,null,null,null,null,"(253) 123-4567"]
[null,null,null,null,null,null,null,null,null,null,null,"theiremail@email.com"]
[]
[null,null,null,null,null,null,null,null,null,null,null,"Owner / Company Name"]
[null,null,null,null,null,null,null,null,null,null,null,"Company Address"]
[null,null,null,null,null,null,null,null,null,null,null,"Tacoma, WA  98402"]
[]
[null,null,null,null,null,null,null,null,null,null,null,"Project Name"]
[null,null,null,null,null,null,null,null,null,null,null,"Project Address"]
[null,null,null,null,null,null,null,null,null,null,null,"Project Address, WA  98402"]
[]
[null,null,null,null,null,null,null,null,null,null,null,"Retrofit"]
[null,null,null,null,null,null,null,null,null,null,null,"Assembly"]
[]
[null,null,null,null,null,null,null,null,null,null,null,"(B) Small General"]
[null,null,null,null,null,null,null,null,null,null,null,7.9799999999999996E-2]
[null,null,null,null,null,null,null,null,null,null,null,0]

{"sheet":"user_Customer","index":8,"n_rows":29,"n_cols":11,"rows_kept":29,"cut":false,"hidden":false,"merged":[[28,10,28,14],[3,10,3,14],[7,10,7,14],[10,10,10,14],[13,10,13,14],[25,10,25,14],[16,10,16,14],[22,10,22,14],[5,10,5,14],[19,10,19,14]]}
[]
[null,null,null,null,null,null,null,null,null,null,"ENTER CUSTOMER AND PROJECT INFORMATION"]
[]
[null,null,null,null,null,null,null,null,null,null,"Welcome to the Trade Ally Portal.  This portal will allow users to define lighting projects as retrofit or new construction, review project incentives, and print project documents. Throughout the lighting calculator, data must be entered using the forms to the left.  On the right, additional information or tables are provided to enhance the usability of the calculator."]
[]
[null,null,null,null,null,null,null,null,null,null,"Users should work through the following tabs, starting with the \"Customer\" tab and moving through the rest in this order:"]
[null,null,null,null,null,null,null,null,null,null,"- Customer"]
[null,null,null,null,null,null,null,null,null,null,"On the ”Customer” tab, complete all of the required fields shown to the left, including: Customer Information, Utility Information, Basic Project and Building Information, and  Customer Contact Information. Once all of the required fields have been completed, click on the “Trade Ally” tab."]
[]
[null,null,null,null,null,null,null,null,null,null,"- Trade Ally"]
[null,null,null,null,null,null,null,null,null,null,"Trade Allies may enter their contact information by completing the optional “Trade Ally” tab.  This tab also includes contact information for the appropriate utility lighting calculator representative."]
[]
[null,null,null,null,null,null,null,null,null,null,"- Spaces (Retrofit Projects Only)"]
[null,null,null,null,null,null,null,null,null,null,"Once the “Customer” and “Trade Ally” tabs have been completed, move on to the “Spaces” tab. Here users can define operating schedules and HVAC configurations for each of the retrofit project's space types.  The defined spaces in this tab will be carried on to the \"Measures\" tab, where lighting measures can be assigned to each space."]
[]
[null,null,null,null,null,null,null,null,null,null,"- Measures (Retrofit Projects Only)"]
[null,null,null,null,null,null,null,null,null,null,"After defining the retrofit project's spaces, assign measure details to each space on the \"Measures\" tab.  Define the existing equipment in a space, followed by the proposed equipment and any controls (if applicable).  Proposed measures can be \"deemed\" or \"non-standard\" (which require BPA approval).  In addition, if the proposed fixture quantity is less than the existing quantity, and it results in net system savings, it may be eligible to receive a decommissioning credit."]
[]
[null,null,null,null,null,null,null,null,null,null,"- Project Input (New Construction Projects Only)"]
[null,null,null,null,null,null,null,null,null,null,"On the ”Project Input”  tab, the project’s kWh savings and incentive will be calculated by entering the Lighting Power Allowance and Proposed Lighting Power for the project.  Both the Lighting Power Allowance and Proposed Lighting Power should be obtained from COMcheck or the Washington Code Compliance Form."]
[]
[null,null,null,null,null,null,null,null,null,null,"- Project Reports"]
[null,null,null,null,null,null,null,null,null,null,"Here users can find documents that are formatted and ready to print, including the Customer Proposal and the Project Summary."]
[]
[null,null,null,null,null,null,null,null,null,null,"- Save and Close"]
[null,null,null,null,null,null,null,null,null,null,"The calculator MUST be saved and closed using the \"Save and Close\" tab.  Here users can save the calculator file and rename the file if desired."]
[]
[null,null,null,null,null,null,null,null,null,null,"- Links"]
[null,null,null,null,null,null,null,null,null,null,"Access calculator updates, help, and training videos using the provided links. "]

{"sheet":"user_TradeAlly2","index":9,"n_rows":8,"n_cols":11,"rows_kept":8,"cut":false,"hidden":false,"merged":[[16,10,16,14],[3,10,3,14],[5,10,5,14],[8,10,8,14],[11,10,11,14],[14,10,14,14],[7,10,7,14]]}
[]
[null,null,null,null,null,null,null,null,null,null,"ENTER TRADE ALLY INFORMATION"]
[]
[null,null,null,null,null,null,null,null,null,null,"Using the form to the left, continue on by completing the trade ally information fields shown.  Trade Ally contact name and company name are optional but strongly encouraged."]
[]
[null,null,null,null,null,null,null,null,null,null,"Retrofit Projects: When the trade ally information has been completed, move on to the \"Spaces\" and \"Measures\" tabs.  To the right of the Spaces and Measures input forms, tables are provided to show the overall progress.  The input forms can be minimized to view a full screen of the tables. "]
[]
[null,null,null,null,null,null,null,null,null,null,"New Construction Projects: When the trade ally information has been completed, move on to the \"Project Input\" tab."]

{"sheet":"user_TradeAlly","index":10,"n_rows":20,"n_cols":27,"rows_kept":20,"cut":false,"hidden":false,"merged":[]}
[]
[null,null,null,null,null,null,null,null,null,null,null,null,null,"TA Name","TA Area","TA PhoneFirstThree","TA PhoneLastFour","TA PhoneExtension","TA Email","TA CompanyName","TA StreetAddress","TA City","TA State","TA ZipCode","NW TAN Member?","NEAA NXT Level 1?","NEAA NXT Level 2?"]
[null,null,null,null,null,null,null,null,null,null,null,null,null,"Person Submitting Project","","","","",null,"Company",null,null,null,"",0,0,0]
[null,null,null,null,null,null,null,null,null,null,"Trade Ally Information"]
[null,null,null,null,null,null,null,null,null,null,"Contact Name","Person Submitting Project"]
[null,null,null,null,null,null,null,null,null,null,"Phone Number","() -"]
[null,null,null,null,null,null,null,null,null,null,"Email Address"]
[null,null,null,null,null,null,null,null,null,null,"Company Name","Company"]
[null,null,null,null,null,null,null,null,null,null,"Street Address"]
[null,null,null,null,null,null,null,null,null,null,"City, State  Zip",",   "]
[null,null,null,null,null,null,null,null,null,null,"NWTAN Membership & NXT Level Training Designation"]
[null,null,null,null,null,null,null,null,null,null,"NW TAN Member ","No"]
[null,null,null,null,null,null,null,null,null,null,"NEEA NXT Level 1 Training Completed?","No"]
[null,null,null,null,null,null,null,null,null,null,"NEEA NXT Level 2 Training Completed?","No"]
[null,null,null,null,null,null,null,null,null,null,"Utility Contact Information"]
[null,null,null,null,null,null,null,null,null,null,"Utility","Tacoma Power"]
[null,null,null,null,null,null,null,null,null,null,"Website","Save with Lighting - Tacoma Public Utilities (mytpu.org)"]
[null,null,null,null,null,null,null,null,null,null,"Contact Name"," Kerry Cameron "]
[null,null,null,null,null,null,null,null,null,null,"Phone Number","(253) 279-6181"]
[null,null,null,null,null,null,null,null,null,null,"Email Address","kcameron@cityoftacoma.org"]

{"sheet":"user_Measures","index":11,"n_rows":4,"n_cols":11,"rows_kept":4,"cut":false,"hidden":false,"merged":[]}
[]
[null,null,null,null,null,null,null,null,null,null,"ENTER LIGHTING MEASURE DETAILS"]
[]
[null,null,null,null,null,null,null,null,null,null,"Fill out the user-input form to the left to create new measure rows and select existing and proposed equipment. To show the ‘Itemized Project Summary’  form users must select the ‘Show Itemized Measures’ option on the user-form. (upper right hand corner)\n \nNote: Showing the ‘Itemized Project Summary’ may cause delays in loading the Measures Tab when users are navigating to it from another tab. This is particularly true for large projects. "]

{"sheet":"user_NewConInputs","index":12,"n_rows":7,"n_cols":11,"rows_kept":7,"cut":false,"hidden":false,"merged":[[16,10,16,14],[6,10,6,14],[3,10,3,14],[5,10,5,14],[8,10,8,14],[11,10,11,14],[14,10,14,14]]}
[]
[null,null,null,null,null,null,null,null,null,null,"ENTER NEW CONSTRUCTION PROJECT DETAILS"]
[]
[null,null,null,null,null,null,null,null,null,null,"Using the form to the left, continue on by completing all of the available fields."]
[]
[null,null,null,null,null,null,null,null,null,null,"For a project consisting of only exterior lighting, enter appropriate information in the \"Exterior Lighting\" section. In the \"Interior Lighting\" section, enter \"0\" into the fields for Lighting Power Allowance and Proposed Lighting Power."]
[null,null,null,null,null,null,null,null,null,null,"Also, ensure the project cost specified on the \"Customer\" tab is the incremental cost for more efficient equipment, not the total project cost. The incremental cost is the difference between what was installed versus what is required by code."]

{"sheet":"user_Space Types","index":13,"n_rows":8,"n_cols":28,"rows_kept":8,"cut":false,"hidden":false,"merged":[[3,13,3,20],[3,21,3,22]]}
[]
[]
[]
[null,null,null,null,null,null,null,null,null,null,null,null,null,"Daily Hours of Lighting Usage",null,null,null,null,null,null,null,"Space Conditioning"]
[null,null,null,null,null,null,null,null,null,null,"ID","Space Type","Space Name","Su","M","Tu","W","Th","F","Sa","Weeks Per Year","Cooling Type","Heating Type","Notes","Hours Per Year","Primary Schedule?","Primary HVAC?","Full Space Name"]
[null,null,null,null,null,null,null,null,null,null,0,"[PRIMARY]",null,null,null,null,null,null,null,null,null,null,null,"-",0,false,false,"[PRIMARY]"]
[null,null,null,null,null,null,null,null,null,null,1,"Exterior",null,12,12,12,12,12,12,12,52,"No cooling","No heating",null,4380,false,false,"Exterior"]
[null,null,null,null,null,null,null,null,null,null,2]

{"sheet":"user_Lighting Details","index":14,"n_rows":22,"n_cols":163,"rows_kept":22,"cut":false,"hidden":false,"merged":[[0,13,0,17],[0,18,0,22],[1,13,1,14],[1,15,1,17],[3,13,3,14],[3,20,3,22],[3,18,3,19],[2,15,2,17],[3,15,3,17],[4,13,4,14],[4,15,4,17],[4,18,4,19],[4,20,4,22],[7,13,7,20],[5,13,5,14],[5,15,5,17],[6,13,6,14],[6,15,6,17],[10,15,10,17],[10,18,10,20],[10,13,10,14],[18,14,18,15],[9,18,9,20],[12,15,12,17],[9,13,9,14],[9,15,9,17],[19,13,19,22],[14,14,14,15],[14,17,18,22],[15,14,15,15],[16,14,16,15],[12,18,12,20],[11,18,11,20],[17,14,17,15],[8,13,8,14],[8,15,8,17],[8,18,8,20],[11,13,11,14],[12,13,12,14],[13,13,13,22],[11,15,11,17]]}
["x",null,null,null,null,null,null,null,null,null,null,null,null,"CUSTOMER/MAILING INFORMATION ",null,null,null,null,"PROJECT/SITE INFORMATION ",null,null,null,null,null,null,null,null,null,null,"Standard"]
[null,null,null,null,null,null,null,null,null,null,null,null,null,"Project Name"]
[null,null,null,null,null,null,null,null,null,null,null,null,null,null,"Company Name"]
[null,null,null,null,null,null,null,null,null,null,null,null,null,"Mailing Address ",null,null,null,null,"Project/Site Address "]
[null,null,null,null,null,null,null,null,null,null,null,null,null,"City/State/Zip Code ",null,",   ",null,null,"City/State/Zip Code",null,",   "]
[null,null,null,null,null,null,null,null,null,null,null,null,null,"Contact Phone Number",null,"() -"]
[null,null,null,null,null,null,null,null,null,null,null,null,null,"Contact Email "]
[null,null,null,null,null,null,null,null,null,null,null,null,null,"UTILITY AND TRADE ALLY INFORMATION "]
[null,null,null,null,null,null,null,null,null,null,null,null,null,null,null,"Utility",null,null,"Trade Ally",null,null,"   Utility Rate Schedule"]
[null,null,null,null,null,null,null,null,null,null,null,null,null,"Organization ",null,"Tacoma Power",null,null,null,null,null,"   Class: "]
[null,null,null,null,null,null,null,null,null,null,null,null,null,"Contact Name",null,"Kerry Cameron",null,null,null,null,null,"   Energy Rate ($/kWh): $"]
[null,null,null,null,null,null,null,null,null,null,null,null,null,"Contact Phone Number",null,"(253) 279-6181",null,null,"() -",null,null,"   Energy Rate ($/kW): $"]
[null,null,null,null,null,null,null,null,null,null,null,null,null,"Contact email ",null,"kcameron@cityoftacoma.org"]
[null,null,null,null,null,null,null,null,null,null,null,null,null,"ESTIMATED PROJECT SUMMARY"]
[null,null,null,null,null,null,null,null,null,null,null,null,null,null,"Estimated Annual Energy Savings ",null,4540.0218399999985,"This project is pending utility approval. All figures should be considered estimates."]
[null,null,null,null,null,null,null,null,null,null,null,null,null,null,"Estimated Energy Savings (Percentage) ",null,0.85699999999999998]
[null,null,null,null,null,null,null,null,null,null,null,null,null,null,"Estimated Annual Utility Bill Savings",null,420.63082399999985]
[null,null,null,null,null,null,null,null,null,null,null,null,null,null,"Estimated Install Costs",null,15000]
[null,null,null,null,null,null,null,null,null,null,null,null,null,null,"Estimated Incentive ",null,56]
[null,null,null,null,null,null,null,null,null,null,null,null,null,"ITEMIZED PROJECT SUMMARY"]
[null,null,null,null,null,null,null,null,null,null,"Measure #","Status","Space","Annual Hours","Measure #\nSpace\nStatus","Existing","Proposed","Controls","Savings","kWh/year","Watts per Fixture","Incentives","Notes","BLANKCOLUMN","KWForTable","Space","ExistingQuantity","ExistingClass","ExistingType","ExistingSubtype","ExistingLampWattage","ExistingLampsPerFixture","ProposedMeasureType","ProposedQuantity","ProposedClass","ProposedType","ProposedSubtype","ProposedLampWattage","ProposedLampsPerFixture","ProposedLampModelNumber","ProposedBallastModelNumber","NoControls","ControlsQuantity","ControlsClass","ControlsPercentReduction","Notes","NumberOfErrors","ExistingMMLRow","ProposedMMLRow","ExistingBallastFactor","ProposedBallastFactor","ExistingFixtureWattage","ProposedFixtureWattage","ArithFixtureWattage","ElectricInteraction","GasInteraction","ExistingFixtureKWHBase","ArithExistingFixtureKWHBase","ProposedFixtureKWHBase","DecommissionedFixtures","PrecondDecomKWHSavings","ArithDecomKWHSavings","PrecondEquipKWHSavings","ArithEquipKWHSavings","PrecondControlsKWHSavings","ArithControlsKWHSavings","PrecondDecomAndEquipKWHSavings","ArithDecomAndEquipKWHSavings","PrecondTotalKWHSavings","ArithTotalKWHSavings","PrecondEquipAndControlsKWHSavings","ArithEquipAndControlsKWHSavings","PrecondEquipAndControlsPercentSavings","ArithEquipAndControlsPercentSavings","PrecondMeasurePercentSavings","ArithMeasurePercentSavings","PrecondMeasureKW","ArithMeasureKW","ProposedMeasureKW","PrecondKWSavings","ArithKWSavings","ExistingFixtureKWHwithHVAC","ArithExistingFixtureKWHwithHVAC","ProposedFixtureKWHwithHVAC","PrecondDecomKWHSavingswithHVAC","ArithDecomKWHSavingswithHVAC","PrecondEquipKWHSavingswithHVAC","ArithEquipKWHSavingswithHVAC","PrecondEquipAndControlsKWHSavingswithHVAC","ArithEquipAndControlsKWHSavingswithHVAC","PrecondControlsKWHSavingswithHVAC","ArithControlsKWHSavingswithHVAC","PrecondDecomAndEquipKWHSavingswithHVAC","ArithDecomAndEquipKWHSavingswithHVAC","PrecondTotalKWHSavingswithHVAC","ArithTotalKWHSavingswithHVAC","ExistingFixtureKWHwithHVAC_Busbar","ArithExistingFixtureKWHwithHVAC_Busbar","ProposedFixtureKWHwithHVAC_Busbar","PrecondDecomKWHSavingswithHVAC_Busbar","ArithDecomKWHSavingswithHVAC_Busbar","PrecondEquipKWHSavingswithHVAC_Busbar","ArithEquipKWHSavingswithHVAC_Busbar","PrecondEquipAndControlsKWHSavingswithHVAC_Busbar","ArithEquipAndControlsKWHSavingswithHVAC_Busbar","PrecondControlsKWHSavingswithHVAC_Busbar","ArithControlsKWHSavingswithHVAC_Busbar","PrecondDecomAndEquipKWHSavingswithHVAC_Busbar","ArithDecomAndEquipKWHSavingswithHVAC_Busbar","PrecondTotalKWHSavingswithHVAC_Busbar","ArithTotalKWHSavingswithHVAC_Busbar","PrecondTotalMeasureKWHwithHVAC_Busbar","ArithTotalMeasureKWHwithHVAC_Busbar","ProposedTotalMeasureKWHwithHVAC_Busbar","Therms_Increase_Precond","Therms_Increase_Arith","DecomIncentiveRates","UtilityDecomIncentiveRate","BPADecomIncentiveRate","NonstandardIncentiveRates","UtilityNonstandardIncentiveRate","BPANonstandardIncentiveRate","ControlsIncentiveQuantity","ControlsIncentiveUtility","ControlsIncentiveBPA","ControlsText","ControlsIncentiveVector","ControlsIncentive","BPAControlsIncentiveRate","UtilityControlsIncentiveRate","DecomIncentiveQuantity","DecomIncentiveUtility","DecomIncentiveBPA","EquipmentIncentiveQuantity","EquipmentIncentiveUtility","EquipmentIncentiveBPA","MeasureText","DecommissioningAndEquipmentResultsText","ControlsResultsText","PrecondTotalMeasureKWH","ArithTotalMeasureKWH","ProposedTotalMeasureKWH","PrecondTotalMeasureKWHwithHVAC","ArithTotalMeasureKWHwithHVAC","ProposedTotalMeasureKWHwithHVAC","PrecondKWPercentSavings","ArithKWPercentSavings","TotalUtilityIncentive","TotalBPAIncentive","NonStandardStatus","StatusNotes","ControlkWhSavings 'NOTE THAT THIS IS ACTUALLY A PERCENT SAVINGS (0 TO 100)\"","UtilityEquipmentIncentiveRate","DecomAndEquipmentIncentiveName","DecomAndEquipmentIncentiveDescription","ControlsIncentiveName","ControlsIncentiveDescription","ApprovedNonStandardUserFieldConcat","SpaceType","RefNo",null,"RetrofitMeasureDescription","NotificationMessage"]
[null,null,null,null,null,null,null,null,null,null,1]

{"sheet":"user_UtilityInformation","index":15,"n_rows":29,"n_cols":11,"rows_kept":29,"cut":false,"hidden":false,"merged":[[9,10,9,14],[26,10,26,14],[28,10,28,14],[3,10,3,14],[5,10,5,14],[15,10,15,14],[18,10,18,14],[21,10,21,14],[24,10,24,14],[12,10,12,14]]}
[]
[null,null,null,null,null,null,null,null,null,null,"ENTER UTILITY INFORMATION"]
[]
[null,null,null,null,null,null,null,null,null,null,"Welcome to the Utility Customization Portal.  Here, the lighting calculator can be customized for individual utilities. Throughout the lighting calculator, data must be entered using the forms to the left.  On the right, additional information or tables are provided to enhance the usability of the calculator. "]
[]
[null,null,null,null,null,null,null,null,null,null,"Using the form to the left, enter all utility information requested, including:"]
[null,null,null,null,null,null,null,null,null,null,"- Utility Name "]
[]
[null,null,null,null,null,null,null,null,null,null,"- Utility ID"]
[null,null,null,null,null,null,null,null,null,null,"This field will be auto-populated."]
[]
[null,null,null,null,null,null,null,null,null,null,"- Unique Utility Name "]
[null,null,null,null,null,null,null,null,null,null,"This name will appear as the utility name throughout the lighting calculator."]
[]
[null,null,null,null,null,null,null,null,null,null,"- Calculator Name"]
[null,null,null,null,null,null,null,null,null,null,"This name will appear as a title throughout the lighting calculator."]
[]
[null,null,null,null,null,null,null,null,null,null,"- Utility Logo"]
[null,null,null,null,null,null,null,null,null,null,"Here, users can browse for their utility logo and upload to the calculator. Files must be valid picture file types (i.e. jpg, gif, or bmp) to upload correctly. Make sure that your logo file size does not exceed 500KB in order to minimize the overall size of the lighting calculator file."]
[]
[null,null,null,null,null,null,null,null,null,null,"- Utility Website"]
[null,null,null,null,null,null,null,null,null,null,"This website will be provided to trade allies when they use the calculator."]
[]
[null,null,null,null,null,null,null,null,null,null,"- Utility Contact Information"]
[null,null,null,null,null,null,null,null,null,null,"Users should provide contact information for the lighting calculator point person at their utility who can be contacted by trade allies or BPA."]
[]
[null,null,null,null,null,null,null,null,null,null,"Once the \"Utility Information\" tab has been completed, move on to the \"Rates\" and \"Incentives\" tabs where users can customize utility rate schedules ($/kWh,$/kW) and utility incentives. After completing the first three tabs, you can view and print calculator documents (\"Project Reports\"), save and close the calculator (\"Save and Close\") or access calculator help links (\"Links\")."]
[]
[null,null,null,null,null,null,null,null,null,null,"Note that the calculator MUST be saved using the save buttons provided on the \"Save and Close\" tab."]

{"sheet":"user_UtilityRates","index":16,"n_rows":9,"n_cols":15,"rows_kept":9,"cut":false,"hidden":false,"merged":[[3,10,3,14]]}
[]
[null,null,null,null,null,null,null,null,null,null,"ENTER UTILITY RATES"]
[]
[null,null,null,null,null,null,null,null,null,null,"Using the form provided to the left, enter rate information for each rate class to be used in the lighting calculator.  Each rate must have an associated name, $/kWh and $/kW.  Add, delete, and navigate through rates using the buttons on the form.  The calculator comes pre-loaded with a \"Calculator default\" rate; however, this default can be changed."]
[]
[null,null,null,null,null,null,null,null,null,null,"Rate ID #","Rate Name","$ / kWh","$ / kW","Notes"]
[null,null,null,null,null,null,null,null,null,null,1,"(B) Small General",8.1019999999999995E-2,0,"Small General"]
[null,null,null,null,null,null,null,null,null,null,1,"(G) General",5.0707000000000002E-2,8.64,"General"]
[null,null,null,null,null,null,null,null,null,null,1,"(HVG) High Voltage",4.48E-2,5.1100000000000003,"High Voltage General"]

{"sheet":"user_PrintReady","index":17,"n_rows":18,"n_cols":11,"rows_kept":18,"cut":false,"hidden":false,"merged":[[3,10,3,14],[5,10,5,14],[31,10,31,14],[8,10,8,14],[17,10,17,14],[26,10,26,14],[11,10,11,14],[20,10,20,14],[23,10,23,14],[14,10,14,14],[29,10,29,14]]}
[]
[null,null,null,null,null,null,null,null,null,null,"SELECT FORMS TO VIEW AND PRINT"]
[]
[null,null,null,null,null,null,null,null,null,null,"Using the drop-down box in the form to the left, select from a list of documents that are formatted and ready to print."]
[]
[null,null,null,null,null,null,null,null,null,null,"Once you select \"Project Reports,\" the data input form to the left will resize for easier viewing. Project report documents include:"]
[]
[null,null,null,null,null,null,null,null,null,null,"- Utility Summary"]
[null,null,null,null,null,null,null,null,null,null,"The utility summary form provides a high-level summary of project details, including energy savings, estimated utility incentives, and estimated project payback. In addition, the form provides the project's completion date, funding source, and more."]
[]
[null,null,null,null,null,null,null,null,null,null,"- Customer Proposal"]
[null,null,null,null,null,null,null,null,null,null,"The customer proposal form provides a high-level summary of project details, including: energy savings, O&M savings (if applicable), estimated utility incentives, and estimated project payback. "]
[]
[null,null,null,null,null,null,null,null,null,null,"- Project Summary"]
[null,null,null,null,null,null,null,null,null,null,"The itemized project summary provides additional detail beyond what is available in the customer proposal, including measure savings and incentives for each line item."]
[]
[]
[null,null,null,null,null,null,null,null,null,null,"Once a document has been selected, click on \"Print this document\" to launch the printing properties window. (Note: if the Print Preview option is utilized, it may be necessary to press Esc to exit Print Preview mode.)"]

{"sheet":"user_PrintReadyTA","index":18,"n_rows":15,"n_cols":11,"rows_kept":15,"cut":false,"hidden":false,"merged":[[17,10,17,14],[20,10,20,14],[23,10,23,14],[28,10,28,14],[3,10,3,14],[5,10,5,14],[8,10,8,14],[11,10,11,14],[14,10,14,14],[26,10,26,14]]}
[]
[null,null,null,null,null,null,null,null,null,null,"SELECT FORMS TO VIEW AND PRINT"]
[]
[null,null,null,null,null,null,null,null,null,null,"Using the drop-down box in the form to the left, select from a list of documents that are formatted and ready to print. "]
[]
[null,null,null,null,null,null,null,null,null,null,"Once you select \"Project Reports,\" the data input form to the left will resize for easier viewing. Project report documents include:"]
[]
[null,null,null,null,null,null,null,null,null,null,"- Customer Proposal"]
[null,null,null,null,null,null,null,null,null,null,"The customer proposal form provides a high-level summary of project details, including energy savings, O&M savings (if applicable), estimated utility incentives, and estimated project payback. "]
[]
[null,null,null,null,null,null,null,null,null,null,"- Project Summary"]
[null,null,null,null,null,null,null,null,null,null,"The itemized project summary provides additional detail beyond what is available in the customer proposal, including measure savings and incentives for each line item."]
[]
[]
[null,null,null,null,null,null,null,null,null,null,"Once a document has been selected, click on \"Print this document\" to launch the printing properties window. (Note: if the Print Preview option is utilized, it may be necessary to press Esc to exit Print Preview mode.)"]

{"sheet":"user_SaveAndClose","index":19,"n_rows":17,"n_cols":11,"rows_kept":17,"cut":false,"hidden":false,"merged":[[13,10,13,14],[16,10,16,14],[3,10,3,14],[5,10,5,14],[7,10,7,14],[10,10,10,14]]}
[]
[null,null,null,null,null,null,null,null,null,null,"SAVE OR CLOSE THIS WORKBOOK"]
[]
[null,null,null,null,null,null,null,null,null,null,"Use the form to the left to save and/or close your current workbook session. Note that you MUST use the form to the left to save and close the calculator as the application ribbon and toolbar may not be accessible."]
[]
[null,null,null,null,null,null,null,null,null,null,"The \"Save and Close\" tab provides the following options:"]
[null,null,null,null,null,null,null,null,null,null,"- Save"]
[null,null,null,null,null,null,null,null,null,null,"This saves the workbook as it is currently named."]
[]
[null,null,null,null,null,null,null,null,null,null,"- Save As"]
[null,null,null,null,null,null,null,null,null,null,"This launches the \"Save As\" properties box, where the current file can be renamed and saved. Do NOT change the file type when saving.  The file must be saved as an \"Excel 97-2003 Workbook,\" which is set by default as the selected option."]
[]
[null,null,null,null,null,null,null,null,null,null,"- Save and Close"]
[null,null,null,null,null,null,null,null,null,null,"This saves the workbook as it is currently named and closes your workbook session."]
[]
[null,null,null,null,null,null,null,null,null,null,"- Close Without Saving"]
[null,null,null,null,null,null,null,null,null,null,"This closes the calculator without saving it."]

{"sheet":"user_Links","index":20,"n_rows":6,"n_cols":11,"rows_kept":6,"cut":false,"hidden":false,"merged":[[14,10,14,14],[16,10,16,14],[3,10,3,14],[5,10,5,14],[8,10,8,14],[11,10,11,14]]}
[]
[null,null,null,null,null,null,null,null,null,null,"SELECT LINK(S) TO ACCESS CALCULATOR HELP"]
[]
[null,null,null,null,null,null,null,null,null,null,"The form to the left provides one or more links which take users to the help and information pages for the BPA lighting calculator. The help page will include lighting calculator updates, latest versions of the calculator, and training videos."]
[]
[null,null,null,null,null,null,null,null,null,null,"Clicking the link(s) to the left should automatically open the default web browser and connect to the selected site. If the web browser does not open automatically, click near the web link until the flashing cursor appears.  Then use Shift+Arrow Key (left arrow or right arrow, depending) to copy the web link and paste into the browser."]

{"sheet":"user_RequiredProjectInfo","index":21,"n_rows":18,"n_cols":11,"rows_kept":18,"cut":false,"hidden":false,"merged":[[12,10,12,14],[14,10,14,14],[3,10,3,14],[5,10,5,14],[7,10,7,14],[10,10,10,14]]}
[]
[null,null,null,null,null,null,null,null,null,null,"REQUIRED PROJECT INFORMATION"]
[]
[null,null,null,null,null,null,null,null,null,null,"Welcome to the Utility Review Portal.  This portal allows users to review a lighting project that has been entered by a trade ally.  Here and throughout the lighting calculator, data must be entered using the forms to the left.  On the right, additional information or tables are provided to enhance the usability of the calculator. "]
[]
[null,null,null,null,null,null,null,null,null,null,"The first tab has two sections: \"General Project Information\" and the \"User Defined Fields.\""]
[null,null,null,null,null,null,null,null,null,null,"- General Project Information"]
[null,null,null,null,null,null,null,null,null,null,"All fields in the \"General Project Information\" section are REQUIRED and must be completed by the utility.  All projects must be assigned a: unique site ID, sector, completion date, funding source, and invoice amount.  Utilities have the option of invoicing BPA for either 1) the full BPA incentive amount or 2) the utility pass-through amount.  The utility pass-through amount can be adjusted on a measure-by-measure level in the “Incentives” tab in the utility customize section. After selecting the invoice amount, please indicate whether the project was completed at a federal site."]
[]
[null,null,null,null,null,null,null,null,null,null,"- User Defined Fields"]
[null,null,null,null,null,null,null,null,null,null,"Here, utilities are able to create two user-defined fields with custom content. This content is generated on the second page of the \"Utility Summary\" project report. Utilities are free to customize both the titles and content within the user defined fields."]
[]
[null,null,null,null,null,null,null,null,null,null,"Once this tab has been completed, move on to the \"Add O&M\" and \"Review Project\" tabs. The \"Add O&M\" tab allows users to add additional O&M savings to a project (note: this is OPTIONAL, not required).  The \"Review Project\" tab allows users to review lighting measure details line by line. Note: The “Review Project” tab is only available for retrofit projects."]
[]
[null,null,null,null,null,null,null,null,null,null,"Finally, use the form to the left to access formatted, print-ready documents (\"Project Reports\"), save and close the calculator (\"Save & Close\") and access help links (\"Links\") for more information on the lighting calculator."]
[]
[]
[null,null,null,null,null,null,null,null,null,null," "]

{"sheet":"user_O&M","index":22,"n_rows":31,"n_cols":14,"rows_kept":31,"cut":false,"hidden":false,"merged":[[20,11,20,12],[21,11,21,12],[22,11,22,12],[3,10,3,14],[15,11,15,12],[16,11,16,12],[17,11,17,12],[18,11,18,12],[19,11,19,12],[30,11,30,12],[23,11,23,12],[24,11,24,12],[26,11,26,12],[27,11,27,12],[28,11,28,12],[29,11,29,12],[25,11,25,12]]}
[]
[null,null,null,null,null,null,null,null,null,null,"ADD PROJECT-LEVEL O&M COSTS (OPTIONAL)"]
[]
[null,null,null,null,null,null,null,null,null,null,"Using the form to the left, additional savings due to reduced project-level operations and maintenance (O&M) costs can be added.  Note that this step is OPTIONAL; it is not required for project submittal. Enter periodic O&M costs (i.e. the total cost incurred each time O&M is performed) and the O&M period (i.e. how frequent O&M is performed) for the existing and proposed lighting systems.  Total costs include both material AND labor costs, as indicated in the form on the left.  To assist in O&M labor cost estimation, additional guidance is provided below."]
[]
[null,null,null,null,null,null,null,null,null,null,null,"Estimated Labor Costs"]
[null,null,null,null,null,null,null,null,null,null,null,"O&M Estimated Costs","Approximate Hourly Rate","Approximate Billing Rate"]
[null,null,null,null,null,null,null,null,null,null,null,"Custodial Engineer (CE)","$18 - $25","~$36 - $50"]
[null,null,null,null,null,null,null,null,null,null,null,"In-house Labor (electrician / technician)","$20 - $30","~$40 - $60"]
[null,null,null,null,null,null,null,null,null,null,null,"General Labor","$15 - $18","~$30 - $40"]
[null,null,null,null,null,null,null,null,null,null,null,"Maintenance Electrician","$20 - $30","~$40 - $60"]
[null,null,null,null,null,null,null,null,null,null,null,"Construction Electrician Apprentice","$20 - $30","~$40 - $60"]
[null,null,null,null,null,null,null,null,null,null,null,"Construction Electrician Journeyman","$35 - $40","~$50 - $100"]
[]
[null,null,null,null,null,null,null,null,null,null,null,"Estimated Project Completion Times"]
[null,null,null,null,null,null,null,null,null,null,null,"Projects",null,"Est.  Average Time"]
[null,null,null,null,null,null,null,null,null,null,null,"Time to change a lamp",null,"5 minutes"]
[null,null,null,null,null,null,null,null,null,null,null,"Time to change a lamp and ballast",null,"10  minutes"]
[null,null,null,null,null,null,null,null,null,null,null,"Time to change a lamp from a ladder",null,"10  minutes"]
[null,null,null,null,null,null,null,null,null,null,null,"Time to change a lamp and ballast from a ladder",null,"15  minutes"]
[null,null,null,null,null,null,null,null,null,null,null,"Time to change a lamp from a lift",null,"15  minutes"]
[null,null,null,null,null,null,null,null,null,null,null,"Time to change a lamp and ballast from a lift",null,"20  minutes"]
[null,null,null,null,null,null,null,null,null,null,null,"Time to change a retrofit kit",null,"15  minutes"]
[null,null,null,null,null,null,null,null,null,null,null,"Time to change a retrofit  kit from a ladder",null,"20  minutes"]
[null,null,null,null,null,null,null,null,null,null,null,"Time to change a retro fit kit from a lift",null,"25  minutes"]
[null,null,null,null,null,null,null,null,null,null,null,"Time to change a fixture",null,"15  minutes"]
[null,null,null,null,null,null,null,null,null,null,null,"Time to change a fixture from a ladder",null,"30  minutes"]
[null,null,null,null,null,null,null,null,null,null,null,"Time to change a fixture from a lift",null,"45  minutes"]
[null,null,null,null,null,null,null,null,null,null,null,"Time to clean a fixture",null,"5  minutes"]
[null,null,null,null,null,null,null,null,null,null,null,"Time to clean a fixture on a ladder",null,"10  minutes"]
[null,null,null,null,null,null,null,null,null,null,null,"Time to clean a fixture on a lift",null,"15  minutes"]

{"sheet":"user_ProgramOffering","index":23,"n_rows":229,"n_cols":19,"rows_kept":229,"cut":false,"hidden":false,"merged":[[221,10,221,18],[226,10,226,18],[3,10,3,18],[6,10,6,18],[10,10,10,18],[12,10,12,18],[35,10,35,18],[130,10,130,18],[70,10,70,18],[20,10,20,18],[132,10,132,18],[134,10,134,18],[14,10,14,18],[39,10,39,18],[72,10,72,18],[23,10,23,18],[103,10,103,18],[204,10,204,18],[218,10,218,18],[162,10,162,18],[164,10,164,18],[177,10,177,18],[179,10,179,18],[184,10,184,18],[196,10,196,18],[201,10,201,18],[188,10,188,18],[193,10,193,18],[145,10,145,18],[147,10,147,18],[143,10,143,18],[154,10,154,18],[157,10,157,18]]}
[]
[null,null,null,null,null,null,null,null,null,null,"ENTER UTILITY INCENTIVES"]
[]
[null,null,null,null,null,null,null,null,null,null,"Using the form to the left, users can customize utility incentives in three ways:\n\n1) Enter the Maximum % of Project Cost the utility is willing to rebate;\n2) Enter the Maximum $ / kWh / Project the utility is willing to pay; and\n3) Enter the rebate dollars per measure the utility is willing to pay for each lighting measure.\n\nUtilities may customize the B/C ratio required for each project. The dollars per measure incentives can be changed by adjusting the \"% Utility Pass-through\" of each measure incentive. A 100% pass-through is equal to the BPA incentive for the measure. Navigate through the measure incentives by using the \"Measure Series\" drop-down box and the navigation arrows (<<,<,>,>>).\n\nCalculated project incentives will consider all three of the above mechanisms.  The final calculated incentive will be equal to the lowest of the three incentive values."]
[]
[]
[null,null,null,null,null,null,null,null,null,null,"Program Offerings for Lighting Calculator v5.X2"]
[]
[null,null,null,null,null,null,null,null,null,null,"Measure Series A: LED Small Lamp / Fixture"]
[]
[null,null,null,null,null,null,null,null,null,null,"Measure Series A is intended for interior and exterior LED small lamps and fixtures. This measure series includes: reflectors, PAR, BR, A-lamps, MR-16s, CFLEDs, recessed cans (retrofit included), and other similar medium base LED screw-in and small fixture variations. "]
[]
[]
[]
[]
[]
[null,null,null,null,null,null,null,null,null,null,"Row ID","Measure ",null,"Watt Baseline","Required Wattage Reduction ",null,"BPA Incentive","% Utility Pass through","Utility Incentive"]
[null,null,null,null,null,null,null,null,null,null,1,"A1-40%",null,{"$f":"VLOOKUP(L18,inp_Incentives!$B$6:$E$164,3,FALSE)","v":"≤100"},{"$f":"CONCATENATE(\"≥ \",TEXT(VLOOKUP(L18,inp_Incentives!$B$6:$E$164,4,FALSE),\"0%\"))","v":"≥ 40%"},null,{"$f":"VLOOKUP(L18,inp_Incentives!$B$6:$G$486,6,FALSE)","v":2},{"$f":"VLOOKUP(L18,inp_Incentives!$B$6:$H$486,7,FALSE)/100","v":1},{"$f":"VLOOKUP(L18,inp_Incentives!$B$6:$I$486,8,FALSE)","v":0}]
[null,null,null,null,null,null,null,null,null,null,2,"A2-40%",null,{"$f":"VLOOKUP(L19,inp_Incentives!$B$6:$E$164,3,FALSE)","v":"≥101"},{"$f":"CONCATENATE(\"≥ \",TEXT(VLOOKUP(L19,inp_Incentives!$B$6:$E$164,4,FALSE),\"0%\"))","v":"≥ 40%"},null,{"$f":"VLOOKUP(L19,inp_Incentives!$B$6:$G$486,6,FALSE)","v":5},{"$f":"VLOOKUP(L19,inp_Incentives!$B$6:$H$486,7,FALSE)/100","v":1},{"$f":"VLOOKUP(L19,inp_Incentives!$B$6:$I$486,8,FALSE)","v":0}]
[]
[null,null,null,null,null,null,null,null,null,null,"Note:\n•  Please refer to Measure Series F for screw-in LEDs replacing HIDs. "]
[null,null,null,null,null,null,null,null,null,null,"Measure Series B: LED Tubes"]
[]
[null,null,null,null,null,null,null,null,null,null,"Measure Series B covers all sizes, shapes, and configurations (Types A, B, C) of LED Tubes (TLEDs), including, 4’, 8’, irregular lengths, and U-bend."]
[]
[]
[]
[null,null,null,null,null,null,null,null,null,null,"Row ID","Measure ",null,"Watt Baseline","Required Wattage Reduction ",null,"BPA Incentive","% Utility Pass through","Utility Incentive"]
[null,null,null,null,null,null,".",null,null,null,1,"B1-30%",null,{"$f":"\"≥ 1\"","v":"≥ 1"},{"$f":"CONCATENATE(\"≥ \",TEXT(VLOOKUP(L29,inp_Incentives!$B$6:$E$164,4,FALSE),\"0%\"))","v":"≥ 30%"},null,{"$f":"VLOOKUP(L29,inp_Incentives!$B$6:$G$486,6,FALSE)","v":2},{"$f":"VLOOKUP(L29,inp_Incentives!$B$6:$H$486,7,FALSE)/100","v":1},{"$f":"VLOOKUP(L29,inp_Incentives!$B$6:$I$486,8,FALSE)","v":2}]
[]
[]
[]
[]
[null,null,null,null,null,null,null,null,null,null,"Measure Series C: LED General Indoor / Outdoor"]
[]
[null,null,null,null,null,null,null,null,null,null,"The General Indoor / Outdoor category includes a variety of fixtures typically installed under 15’ including recessed troffers, surface mounted wraps, vapor tights, and a wide assortment of other general service lamps fixtures. "]
[]
[]
[]
[]
[]
[null,null,null,null,null,null,null,null,null,null,"Row ID","Measure ",null,"Watt Baseline","Required Wattage Reduction ",null,"BPA Incentive Standard","% Utility Passthru","Utility Incent."]
[null,null,null,null,null,null,null,null,null,null,1,"C1-40%",null,{"$f":"VLOOKUP(L43,inp_Incentives!$B$6:$E$164,3,FALSE)","v":"≤100"},{"$f":"CONCATENATE(\"≥ \",TEXT(VLOOKUP(L43,inp_Incentives!$B$6:$E$164,4,FALSE),\"0%\"))","v":"≥ 40%"},null,{"$f":"VLOOKUP(L43,inp_Incentives!$B$6:$G$486,6,FALSE)","v":20},{"$f":"VLOOKUP(L43,inp_Incentives!$B$6:$H$486,7,FALSE)/100","v":1},{"$f":"VLOOKUP(L43,inp_Incentives!$B$6:$I$486,8,FALSE)","v":20}]
[null,null,null,null,null,null,null,null,null,null,2,"C1-40% w/Networked Cont",null,{"$f":"VLOOKUP(L44,inp_Incentives!$B$6:$E$164,3,FALSE)","v":"≤100"},{"$f":"CONCATENATE(\"≥ \",TEXT(VLOOKUP(L44,inp_Incentives!$B$6:$E$164,4,FALSE),\"0%\"))","v":"≥ 40%"},null,{"$f":"VLOOKUP(L44,inp_Incentives!$B$6:$G$486,6,FALSE)","v":60},{"$f":"VLOOKUP(L44,inp_Incentives!$B$6:$H$486,7,FALSE)/100","v":1},{"$f":"VLOOKUP(L44,inp_Incentives!$B$6:$I$486,8,FALSE)","v":60}]
[null,null,null,null,null,null,null,null,null,null,3,"C1-50%",null,{"$f":"VLOOKUP(L45,inp_Incentives!$B$6:$E$164,3,FALSE)","v":"≤100"},{"$f":"CONCATENATE(\"≥ \",TEXT(VLOOKUP(L45,inp_Incentives!$B$6:$E$164,4,FALSE),\"0%\"))","v":"≥ 50%"},null,{"$f":"VLOOKUP(L45,inp_Incentives!$B$6:$G$486,6,FALSE)","v":30},{"$f":"VLOOKUP(L45,inp_Incentives!$B$6:$H$486,7,FALSE)/100","v":1},{"$f":"VLOOKUP(L45,inp_Incentives!$B$6:$I$486,8,FALSE)","v":30}]
[null,null,null,null,null,null,null,null,null,null,4,"C1-50% w/Networked Cont",null,{"$f":"VLOOKUP(L46,inp_Incentives!$B$6:$E$164,3,FALSE)","v":"≤100"},{"$f":"CONCATENATE(\"≥ \",TEXT(VLOOKUP(L46,inp_Incentives!$B$6:$E$164,4,FALSE),\"0%\"))","v":"≥ 50%"},null,{"$f":"VLOOKUP(L46,inp_Incentives!$B$6:$G$486,6,FALSE)","v":70},{"$f":"VLOOKUP(L46,inp_Incentives!$B$6:$H$486,7,FALSE)/100","v":1},{"$f":"VLOOKUP(L46,inp_Incentives!$B$6:$I$486,8,FALSE)","v":70}]
[null,null,null,null,null,null,null,null,null,null,5,"C1-60%",null,{"$f":"VLOOKUP(L47,inp_Incentives!$B$6:$E$164,3,FALSE)","v":"≤100"},{"$f":"CONCATENATE(\"≥ \",TEXT(VLOOKUP(L47,inp_Incentives!$B$6:$E$164,4,FALSE),\"0%\"))","v":"≥ 60%"},null,{"$f":"VLOOKUP(L47,inp_Incentives!$B$6:$G$486,6,FALSE)","v":40},{"$f":"VLOOKUP(L47,inp_Incentives!$B$6:$H$486,7,FALSE)/100","v":1},{"$f":"VLOOKUP(L47,inp_Incentives!$B$6:$I$486,8,FALSE)","v":40}]
[null,null,null,null,null,null,null,null,null,null,6,"C1-60% w/Networked Cont",null,{"$f":"VLOOKUP(L48,inp_Incentives!$B$6:$E$164,3,FALSE)","v":"≤100"},{"$f":"CONCATENATE(\"≥ \",TEXT(VLOOKUP(L48,inp_Incentives!$B$6:$E$164,4,FALSE),\"0%\"))","v":"≥ 60%"},null,{"$f":"VLOOKUP(L48,inp_Incentives!$B$6:$G$486,6,FALSE)","v":80},{"$f":"VLOOKUP(L48,inp_Incentives!$B$6:$H$486,7,FALSE)/100","v":1},{"$f":"VLOOKUP(L48,inp_Incentives!$B$6:$I$486,8,FALSE)","v":80}]
[null,null,null,null,null,null,null,null,null,null,7,"C1-70%",null,{"$f":"VLOOKUP(L49,inp_Incentives!$B$6:$E$164,3,FALSE)","v":"≤100"},{"$f":"CONCATENATE(\"≥ \",TEXT(VLOOKUP(L49,inp_Incentives!$B$6:$E$164,4,FALSE),\"0%\"))","v":"≥ 70%"},null,{"$f":"VLOOKUP(L49,inp_Incentives!$B$6:$G$486,6,FALSE)","v":50},{"$f":"VLOOKUP(L49,inp_Incentives!$B$6:$H$486,7,FALSE)/100","v":1},{"$f":"VLOOKUP(L49,inp_Incentives!$B$6:$I$486,8,FALSE)","v":50}]
[null,null,null,null,null,null,null,null,null,null,8,"C1-70% w/Networked Cont",null,{"$f":"VLOOKUP(L50,inp_Incentives!$B$6:$E$164,3,FALSE)","v":"≤100"},{"$f":"CONCATENATE(\"≥ \",TEXT(VLOOKUP(L50,inp_Incentives!$B$6:$E$164,4,FALSE),\"0%\"))","v":"≥ 70%"},null,{"$f":"VLOOKUP(L50,inp_Incentives!$B$6:$G$486,6,FALSE)","v":90},{"$f":"VLOOKUP(L50,inp_Incentives!$B$6:$H$486,7,FALSE)/100","v":1},{"$f":"VLOOKUP(L50,inp_Incentives!$B$6:$I$486,8,FALSE)","v":90}]
[null,null,null,null,null,null,null,null,null,null,9,"C2-40%",null,{"$f":"VLOOKUP(L51,inp_Incentives!$B$6:$E$164,3,FALSE)","v":"101-200"},{"$f":"CONCATENATE(\"≥ \",TEXT(VLOOKUP(L51,inp_Incentives!$B$6:$E$164,4,FALSE),\"0%\"))","v":"≥ 40%"},null,{"$f":"VLOOKUP(L51,inp_Incentives!$B$6:$G$486,6,FALSE)","v":40},{"$f":"VLOOKUP(L51,inp_Incentives!$B$6:$H$486,7,FALSE)/100","v":1},{"$f":"VLOOKUP(L51,inp_Incentives!$B$6:$I$486,8,FALSE)","v":40}]
[null,null,null,null,null,null,null,null,null,null,10,"C2-40% w/Networked Cont",null,{"$f":"VLOOKUP(L52,inp_Incentives!$B$6:$E$164,3,FALSE)","v":"101-200"},{"$f":"CONCATENATE(\"≥ \",TEXT(VLOOKUP(L52,inp_Incentives!$B$6:$E$164,4,FALSE),\"0%\"))","v":"≥ 40%"},null,{"$f":"VLOOKUP(L52,inp_Incentives!$B$6:$G$486,6,FALSE)","v":80},{"$f":"VLOOKUP(L52,inp_Incentives!$B$6:$H$486,7,FALSE)/100","v":1},{"$f":"VLOOKUP(L52,inp_Incentives!$B$6:$I$486,8,FALSE)","v":80}]
[null,null,null,null,null,null,null,null,null,null,11,"C2-50%",null,{"$f":"VLOOKUP(L53,inp_Incentives!$B$6:$E$164,3,FALSE)","v":"101-200"},{"$f":"CONCATENATE(\"≥ \",TEXT(VLOOKUP(L53,inp_Incentives!$B$6:$E$164,4,FALSE),\"0%\"))","v":"≥ 50%"},null,{"$f":"VLOOKUP(L53,inp_Incentives!$B$6:$G$486,6,FALSE)","v":60},{"$f":"VLOOKUP(L53,inp_Incentives!$B$6:$H$486,7,FALSE)/100","v":1},{"$f":"VLOOKUP(L53,inp_Incentives!$B$6:$I$486,8,FALSE)","v":60}]
[null,null,null,null,null,null,null,null,null,null,12,"C2-50% w/Networked Cont",null,{"$f":"VLOOKUP(L54,inp_Incentives!$B$6:$E$164,3,FALSE)","v":"101-200"},{"$f":"CONCATENATE(\"≥ \",TEXT(VLOOKUP(L54,inp_Incentives!$B$6:$E$164,4,FALSE),\"0%\"))","v":"≥ 50%"},null,{"$f":"VLOOKUP(L54,inp_Incentives!$B$6:$G$486,6,FALSE)","v":100},{"$f":"VLOOKUP(L54,inp_Incentives!$B$6:$H$486,7,FALSE)/100","v":1},{"$f":"VLOOKUP(L54,inp_Incentives!$B$6:$I$486,8,FALSE)","v":100}]
[null,null,null,null,null,null,null,null,null,null,13,"C2-60%",null,{"$f":"VLOOKUP(L55,inp_Incentives!$B$6:$E$164,3,FALSE)","v":"101-200"},{"$f":"CONCATENATE(\"≥ \",TEXT(VLOOKUP(L55,inp_Incentives!$B$6:$E$164,4,FALSE),\"0%\"))","v":"≥ 60%"},null,{"$f":"VLOOKUP(L55,inp_Incentives!$B$6:$G$486,6,FALSE)","v":80},{"$f":"VLOOKUP(L55,inp_Incentives!$B$6:$H$486,7,FALSE)/100","v":1},{"$f":"VLOOKUP(L55,inp_Incentives!$B$6:$I$486,8,FALSE)","v":80}]
[null,null,null,null,null,null,null,null,null,null,14,"C2-60% w/Networked Cont",null,{"$f":"VLOOKUP(L56,inp_Incentives!$B$6:$E$164,3,FALSE)","v":"101-200"},{"$f":"CONCATENATE(\"≥ \",TEXT(VLOOKUP(L56,inp_Incentives!$B$6:$E$164,4,FALSE),\"0%\"))","v":"≥ 60%"},null,{"$f":"VLOOKUP(L56,inp_Incentives!$B$6:$G$486,6,FALSE)","v":120},{"$f":"VLOOKUP(L56,inp_Incentives!$B$6:$H$486,7,FALSE)/100","v":1},{"$f":"VLOOKUP(L56,inp_Incentives!$B$6:$I$486,8,FALSE)","v":120}]
[null,null,null,null,null,null,null,null,null,null,15,"C2-70%",null,{"$f":"VLOOKUP(L57,inp_Incentives!$B$6:$E$164,3,FALSE)","v":"101-200"},{"$f":"CONCATENATE(\"≥ \",TEXT(VLOOKUP(L57,inp_Incentives!$B$6:$E$164,4,FALSE),\"0%\"))","v":"≥ 70%"},null,{"$f":"VLOOKUP(L57,inp_Incentives!$B$6:$G$486,6,FALSE)","v":100},{"$f":"VLOOKUP(L57,inp_Incentives!$B$6:$H$486,7,FALSE)/100","v":1},{"$f":"VLOOKUP(L57,inp_Incentives!$B$6:$I$486,8,FALSE)","v":100}]
[null,null,null,null,null,null,null,null,null,null,16,"C2-70% w/Networked Cont",null,{"$f":"VLOOKUP(L58,inp_Incentives!$B$6:$E$164,3,FALSE)","v":"101-200"},{"$f":"CONCATENATE(\"≥ \",TEXT(VLOOKUP(L58,inp_Incentives!$B$6:$E$164,4,FALSE),\"0%\"))","v":"≥ 70%"},null,{"$f":"VLOOKUP(L58,inp_Incentives!$B$6:$G$486,6,FALSE)","v":140},{"$f":"VLOOKUP(L58,inp_Incentives!$B$6:$H$486,7,FALSE)/100","v":1},{"$f":"VLOOKUP(L58,inp_Incentives!$B$6:$I$486,8,FALSE)","v":140}]
[null,null,null,null,null,null,null,null,null,null,17,"C3-40%",null,{"$f":"VLOOKUP(L59,inp_Incentives!$B$6:$E$164,3,FALSE)","v":"≥201"},{"$f":"CONCATENATE(\"≥ \",TEXT(VLOOKUP(L59,inp_Incentives!$B$6:$E$164,4,FALSE),\"0%\"))","v":"≥ 40%"},null,{"$f":"VLOOKUP(L59,inp_Incentives!$B$6:$G$486,6,FALSE)","v":70},{"$f":"VLOOKUP(L59,inp_Incentives!$B$6:$H$486,7,FALSE)/100","v":1},{"$f":"VLOOKUP(L59,inp_Incentives!$B$6:$I$486,8,FALSE)","v":70}]
[null,null,null,null,null,null,null,null,null,null,18,"C3-40% w/Networked Cont",null,{"$f":"VLOOKUP(L60,inp_Incentives!$B$6:$E$164,3,FALSE)","v":"≥201"},{"$f":"CONCATENATE(\"≥ \",TEXT(VLOOKUP(L60,inp_Incentives!$B$6:$E$164,4,FALSE),\"0%\"))","v":"≥ 40%"},null,{"$f":"VLOOKUP(L60,inp_Incentives!$B$6:$G$486,6,FALSE)","v":130},{"$f":"VLOOKUP(L60,inp_Incentives!$B$6:$H$486,7,FALSE)/100","v":1},{"$f":"VLOOKUP(L60,inp_Incentives!$B$6:$I$486,8,FALSE)","v":130}]
[null,null,null,null,null,null,null,null,null,null,19,"C3-50%",null,{"$f":"VLOOKUP(L61,inp_Incentives!$B$6:$E$164,3,FALSE)","v":"≥201"},{"$f":"CONCATENATE(\"≥ \",TEXT(VLOOKUP(L61,inp_Incentives!$B$6:$E$164,4,FALSE),\"0%\"))","v":"≥ 50%"},null,{"$f":"VLOOKUP(L61,inp_Incentives!$B$6:$G$486,6,FALSE)","v":100},{"$f":"VLOOKUP(L61,inp_Incentives!$B$6:$H$486,7,FALSE)/100","v":1},{"$f":"VLOOKUP(L61,inp_Incentives!$B$6:$I$486,8,FALSE)","v":100}]
[null,null,null,null,null,null,null,null,null,null,20,"C3-50% w/Networked Cont",null,{"$f":"VLOOKUP(L62,inp_Incentives!$B$6:$E$164,3,FALSE)","v":"≥201"},{"$f":"CONCATENATE(\"≥ \",TEXT(VLOOKUP(L62,inp_Incentives!$B$6:$E$164,4,FALSE),\"0%\"))","v":"≥ 50%"},null,{"$f":"VLOOKUP(L62,inp_Incentives!$B$6:$G$486,6,FALSE)","v":160},{"$f":"VLOOKUP(L62,inp_Incentives!$B$6:$H$486,7,FALSE)/100","v":1},{"$f":"VLOOKUP(L62,inp_Incentives!$B$6:$I$486,8,FALSE)","v":160}]
[null,null,null,null,null,null,null,null,null,null,21,"C3-60%",null,{"$f":"VLOOKUP(L63,inp_Incentives!$B$6:$E$164,3,FALSE)","v":"≥201"},{"$f":"CONCATENATE(\"≥ \",TEXT(VLOOKUP(L63,inp_Incentives!$B$6:$E$164,4,FALSE),\"0%\"))","v":"≥ 60%"},null,{"$f":"VLOOKUP(L63,inp_Incentives!$B$6:$G$486,6,FALSE)","v":120},{"$f":"VLOOKUP(L63,inp_Incentives!$B$6:$H$486,7,FALSE)/100","v":1},{"$f":"VLOOKUP(L63,inp_Incentives!$B$6:$I$486,8,FALSE)","v":120}]
[null,null,null,null,null,null,null,null,null,null,22,"C3-60% w/Networked Cont",null,{"$f":"VLOOKUP(L64,inp_Incentives!$B$6:$E$164,3,FALSE)","v":"≥201"},{"$f":"CONCATENATE(\"≥ \",TEXT(VLOOKUP(L64,inp_Incentives!$B$6:$E$164,4,FALSE),\"0%\"))","v":"≥ 60%"},null,{"$f":"VLOOKUP(L64,inp_Incentives!$B$6:$G$486,6,FALSE)","v":180},{"$f":"VLOOKUP(L64,inp_Incentives!$B$6:$H$486,7,FALSE)/100","v":1},{"$f":"VLOOKUP(L64,inp_Incentives!$B$6:$I$486,8,FALSE)","v":180}]
[null,null,null,null,null,null,null,null,null,null,23,"C3-70%",null,{"$f":"VLOOKUP(L65,inp_Incentives!$B$6:$E$164,3,FALSE)","v":"≥201"},{"$f":"CONCATENATE(\"≥ \",TEXT(VLOOKUP(L65,inp_Incentives!$B$6:$E$164,4,FALSE),\"0%\"))","v":"≥ 70%"},null,{"$f":"VLOOKUP(L65,inp_Incentives!$B$6:$G$486,6,FALSE)","v":140},{"$f":"VLOOKUP(L65,inp_Incentives!$B$6:$H$486,7,FALSE)/100","v":1},{"$f":"VLOOKUP(L65,inp_Incentives!$B$6:$I$486,8,FALSE)","v":140}]
[null,null,null,null,null,null,null,null,null,null,24,"C3-70% w/Networked Cont",null,{"$f":"VLOOKUP(L66,inp_Incentives!$B$6:$E$164,3,FALSE)","v":"≥201"},{"$f":"CONCATENATE(\"≥ \",TEXT(VLOOKUP(L66,inp_Incentives!$B$6:$E$164,4,FALSE),\"0%\"))","v":"≥ 70%"},null,{"$f":"VLOOKUP(L66,inp_Incentives!$B$6:$G$486,6,FALSE)","v":200},{"$f":"VLOOKUP(L66,inp_Incentives!$B$6:$H$486,7,FALSE)/100","v":1},{"$f":"VLOOKUP(L66,inp_Incentives!$B$6:$I$486,8,FALSE)","v":200}]
[]
[]
[null,null,null,null,null,null,null,null,null,null,"Measure Series D: LED High Bay "]
[]
[null,null,null,null,null,null,null,null,null,null,"Measure Series D is intended for interior LED High Bay fixtures"]
[]
[]
[]
[null,null,null,null,null,null,null,null,null,null,"Row ID","Measure ",null,"Watt Baseline","Required Wattage Reduction ",null,"BPA Incentive Standard","% Utility Pass through","Utility Incent."]
[null,null,null,null,null,null,null,null,null,null,1,"D1-40%",null,{"$f":"VLOOKUP(L76,inp_Incentives!$B$6:$E$164,3,FALSE)","v":"140-299"},{"$f":"CONCATENATE(\"≥ \",TEXT(VLOOKUP(L76,inp_Incentives!$B$6:$E$164,4,FALSE),\"0%\"))","v":"≥ 40%"},null,{"$f":"VLOOKUP(L76,inp_Incentives!$B$6:$G$486,6,FALSE)","v":80},{"$f":"VLOOKUP(L76,inp_Incentives!$B$6:$H$486,7,FALSE)/100","v":1},{"$f":"VLOOKUP(L76,inp_Incentives!$B$6:$I$486,8,FALSE)","v":80}]
[null,null,null,null,null,null,null,null,null,null,2,"D1-40% w/ Networked Cont",null,{"$f":"VLOOKUP(L77,inp_Incentives!$B$6:$E$164,3,FALSE)","v":"140-299"},{"$f":"CONCATENATE(\"≥ \",TEXT(VLOOKUP(L77,inp_Incentives!$B$6:$E$164,4,FALSE),\"0%\"))","v":"≥ 40%"},null,{"$f":"VLOOKUP(L77,inp_Incentives!$B$6:$G$486,6,FALSE)","v":140},{"$f":"VLOOKUP(L77,inp_Incentives!$B$6:$H$486,7,FALSE)/100","v":1},{"$f":"VLOOKUP(L77,inp_Incentives!$B$6:$I$486,8,FALSE)","v":140}]
[null,null,null,null,null,null,null,null,null,null,3,"D1-60%",null,{"$f":"VLOOKUP(L78,inp_Incentives!$B$6:$E$164,3,FALSE)","v":"140-299"},{"$f":"CONCATENATE(\"≥ \",TEXT(VLOOKUP(L78,inp_Incentives!$B$6:$E$164,4,FALSE),\"0%\"))","v":"≥ 60%"},null,{"$f":"VLOOKUP(L78,inp_Incentives!$B$6:$G$486,6,FALSE)","v":140},{"$f":"VLOOKUP(L78,inp_Incentives!$B$6:$H$486,7,FALSE)/100","v":1},{"$f":"VLOOKUP(L78,inp_Incentives!$B$6:$I$486,8,FALSE)","v":140}]
[null,null,null,null,null,null,null,null,null,null,4,"D1-60% w/ Networked Cont",null,{"$f":"VLOOKUP(L79,inp_Incentives!$B$6:$E$164,3,FALSE)","v":"140-299"},{"$f":"CONCATENATE(\"≥ \",TEXT(VLOOKUP(L79,inp_Incentives!$B$6:$E$164,4,FALSE),\"0%\"))","v":"≥ 60%"},null,{"$f":"VLOOKUP(L79,inp_Incentives!$B$6:$G$486,6,FALSE)","v":200},{"$f":"VLOOKUP(L79,inp_Incentives!$B$6:$H$486,7,FALSE)/100","v":1},{"$f":"VLOOKUP(L79,inp_Incentives!$B$6:$I$486,8,FALSE)","v":200}]
[null,null,null,null,null,null,null,null,null,null,5,"D1-70%",null,{"$f":"VLOOKUP(L80,inp_Incentives!$B$6:$E$164,3,FALSE)","v":"140-299"},{"$f":"CONCATENATE(\"≥ \",TEXT(VLOOKUP(L80,inp_Incentives!$B$6:$E$164,4,FALSE),\"0%\"))","v":"≥ 70%"},null,{"$f":"VLOOKUP(L80,inp_Incentives!$B$6:$G$486,6,FALSE)","v":200},{"$f":"VLOOKUP(L80,inp_Incentives!$B$6:$H$486,7,FALSE)/100","v":1},{"$f":"VLOOKUP(L80,inp_Incentives!$B$6:$I$486,8,FALSE)","v":200}]
[null,null,null,null,null,null,null,null,null,null,6,"D1-70% w/ Networked Cont",null,{"$f":"VLOOKUP(L81,inp_Incentives!$B$6:$E$164,3,FALSE)","v":"140-299"},{"$f":"CONCATENATE(\"≥ \",TEXT(VLOOKUP(L81,inp_Incentives!$B$6:$E$164,4,FALSE),\"0%\"))","v":"≥ 70%"},null,{"$f":"VLOOKUP(L81,inp_Incentives!$B$6:$G$486,6,FALSE)","v":260},{"$f":"VLOOKUP(L81,inp_Incentives!$B$6:$H$486,7,FALSE)/100","v":1},{"$f":"VLOOKUP(L81,inp_Incentives!$B$6:$I$486,8,FALSE)","v":260}]
[null,null,null,null,null,null,null,null,null,null,7,"D2-40%",null,{"$f":"VLOOKUP(L82,inp_Incentives!$B$6:$E$164,3,FALSE)","v":"300-399"},{"$f":"CONCATENATE(\"≥ \",TEXT(VLOOKUP(L82,inp_Incentives!$B$6:$E$164,4,FALSE),\"0%\"))","v":"≥ 40%"},null,{"$f":"VLOOKUP(L82,inp_Incentives!$B$6:$G$486,6,FALSE)","v":100},{"$f":"VLOOKUP(L82,inp_Incentives!$B$6:$H$486,7,FALSE)/100","v":1},{"$f":"VLOOKUP(L82,inp_Incentives!$B$6:$I$486,8,FALSE)","v":100}]
[null,null,null,null,null,null,null,null,null,null,8,"D2-40% w/ Networked Cont",null,{"$f":"VLOOKUP(L83,inp_Incentives!$B$6:$E$164,3,FALSE)","v":"300-399"},{"$f":"CONCATENATE(\"≥ \",TEXT(VLOOKUP(L83,inp_Incentives!$B$6:$E$164,4,FALSE),\"0%\"))","v":"≥ 40%"},null,{"$f":"VLOOKUP(L83,inp_Incentives!$B$6:$G$486,6,FALSE)","v":160},{"$f":"VLOOKUP(L83,inp_Incentives!$B$6:$H$486,7,FALSE)/100","v":1},{"$f":"VLOOKUP(L83,inp_Incentives!$B$6:$I$486,8,FALSE)","v":160}]
[null,null,null,null,null,null,null,null,null,null,9,"D2-60%",null,{"$f":"VLOOKUP(L84,inp_Incentives!$B$6:$E$164,3,FALSE)","v":"300-399"},{"$f":"CONCATENATE(\"≥ \",TEXT(VLOOKUP(L84,inp_Incentives!$B$6:$E$164,4,FALSE),\"0%\"))","v":"≥ 60%"},null,{"$f":"VLOOKUP(L84,inp_Incentives!$B$6:$G$486,6,FALSE)","v":180},{"$f":"VLOOKUP(L84,inp_Incentives!$B$6:$H$486,7,FALSE)/100","v":1},{"$f":"VLOOKUP(L84,inp_Incentives!$B$6:$I$486,8,FALSE)","v":180}]
[null,null,null,null,null,null,null,null,null,null,10,"D2-60% w/ Networked Cont",null,{"$f":"VLOOKUP(L85,inp_Incentives!$B$6:$E$164,3,FALSE)","v":"300-399"},{"$f":"CONCATENATE(\"≥ \",TEXT(VLOOKUP(L85,inp_Incentives!$B$6:$E$164,4,FALSE),\"0%\"))","v":"≥ 60%"},null,{"$f":"VLOOKUP(L85,inp_Incentives!$B$6:$G$486,6,FALSE)","v":240},{"$f":"VLOOKUP(L85,inp_Incentives!$B$6:$H$486,7,FALSE)/100","v":1},{"$f":"VLOOKUP(L85,inp_Incentives!$B$6:$I$486,8,FALSE)","v":240}]
[null,null,null,null,null,null,null,null,null,null,11,"D2-70%",null,{"$f":"VLOOKUP(L86,inp_Incentives!$B$6:$E$164,3,FALSE)","v":"300-399"},{"$f":"CONCATENATE(\"≥ \",TEXT(VLOOKUP(L86,inp_Incentives!$B$6:$E$164,4,FALSE),\"0%\"))","v":"≥ 70%"},null,{"$f":"VLOOKUP(L86,inp_Incentives!$B$6:$G$486,6,FALSE)","v":300},{"$f":"VLOOKUP(L86,inp_Incentives!$B$6:$H$486,7,FALSE)/100","v":1},{"$f":"VLOOKUP(L86,inp_Incentives!$B$6:$I$486,8,FALSE)","v":300}]
[null,null,null,null,null,null,null,null,null,null,12,"D2-70% w/ Networked Cont",null,{"$f":"VLOOKUP(L87,inp_Incentives!$B$6:$E$164,3,FALSE)","v":"300-399"},{"$f":"CONCATENATE(\"≥ \",TEXT(VLOOKUP(L87,inp_Incentives!$B$6:$E$164,4,FALSE),\"0%\"))","v":"≥ 70%"},null,{"$f":"VLOOKUP(L87,inp_Incentives!$B$6:$G$486,6,FALSE)","v":360},{"$f":"VLOOKUP(L87,inp_Incentives!$B$6:$H$486,7,FALSE)/100","v":1},{"$f":"VLOOKUP(L87,inp_Incentives!$B$6:$I$486,8,FALSE)","v":360}]
[null,null,null,null,null,null,null,null,null,null,13,"D3-40%",null,{"$f":"VLOOKUP(L88,inp_Incentives!$B$6:$E$164,3,FALSE)","v":"400-499"},{"$f":"CONCATENATE(\"≥ \",TEXT(VLOOKUP(L88,inp_Incentives!$B$6:$E$164,4,FALSE),\"0%\"))","v":"≥ 40%"},null,{"$f":"VLOOKUP(L88,inp_Incentives!$B$6:$G$486,6,FALSE)","v":140},{"$f":"VLOOKUP(L88,inp_Incentives!$B$6:$H$486,7,FALSE)/100","v":1},{"$f":"VLOOKUP(L88,inp_Incentives!$B$6:$I$486,8,FALSE)","v":140}]
[null,null,null,null,null,null,null,null,null,null,14,"D3-40% w/ Networked Cont",null,{"$f":"VLOOKUP(L89,inp_Incentives!$B$6:$E$164,3,FALSE)","v":"400-499"},{"$f":"CONCATENATE(\"≥ \",TEXT(VLOOKUP(L89,inp_Incentives!$B$6:$E$164,4,FALSE),\"0%\"))","v":"≥ 40%"},null,{"$f":"VLOOKUP(L89,inp_Incentives!$B$6:$G$486,6,FALSE)","v":200},{"$f":"VLOOKUP(L89,inp_Incentives!$B$6:$H$486,7,FALSE)/100","v":1},{"$f":"VLOOKUP(L89,inp_Incentives!$B$6:$I$486,8,FALSE)","v":200}]
[null,null,null,null,null,null,null,null,null,null,15,"D3-60%",null,{"$f":"VLOOKUP(L90,inp_Incentives!$B$6:$E$164,3,FALSE)","v":"400-499"},{"$f":"CONCATENATE(\"≥ \",TEXT(VLOOKUP(L90,inp_Incentives!$B$6:$E$164,4,FALSE),\"0%\"))","v":"≥ 60%"},null,{"$f":"VLOOKUP(L90,inp_Incentives!$B$6:$G$486,6,FALSE)","v":240},{"$f":"VLOOKUP(L90,inp_Incentives!$B$6:$H$486,7,FALSE)/100","v":1},{"$f":"VLOOKUP(L90,inp_Incentives!$B$6:$I$486,8,FALSE)","v":240}]
[null,null,null,null,null,null,null,null,null,null,16,"D3-60% w/ Networked Cont",null,{"$f":"VLOOKUP(L91,inp_Incentives!$B$6:$E$164,3,FALSE)","v":"400-499"},{"$f":"CONCATENATE(\"≥ \",TEXT(VLOOKUP(L91,inp_Incentives!$B$6:$E$164,4,FALSE),\"0%\"))","v":"≥ 60%"},null,{"$f":"VLOOKUP(L91,inp_Incentives!$B$6:$G$486,6,FALSE)","v":300},{"$f":"VLOOKUP(L91,inp_Incentives!$B$6:$H$486,7,FALSE)/100","v":1},{"$f":"VLOOKUP(L91,inp_Incentives!$B$6:$I$486,8,FALSE)","v":300}]
[null,null,null,null,null,null,null,null,null,null,17,"D3-70%",null,{"$f":"VLOOKUP(L92,inp_Incentives!$B$6:$E$164,3,FALSE)","v":"400-499"},{"$f":"CONCATENATE(\"≥ \",TEXT(VLOOKUP(L92,inp_Incentives!$B$6:$E$164,4,FALSE),\"0%\"))","v":"≥ 70%"},null,{"$f":"VLOOKUP(L92,inp_Incentives!$B$6:$G$486,6,FALSE)","v":360},{"$f":"VLOOKUP(L92,inp_Incentives!$B$6:$H$486,7,FALSE)/100","v":1},{"$f":"VLOOKUP(L92,inp_Incentives!$B$6:$I$486,8,FALSE)","v":360}]
[null,null,null,null,null,null,null,null,null,null,18,"D3-70% w/ Networked Cont",null,{"$f":"VLOOKUP(L93,inp_Incentives!$B$6:$E$164,3,FALSE)","v":"400-499"},{"$f":"CONCATENATE(\"≥ \",TEXT(VLOOKUP(L93,inp_Incentives!$B$6:$E$164,4,FALSE),\"0%\"))","v":"≥ 70%"},null,{"$f":"VLOOKUP(L93,inp_Incentives!$B$6:$G$486,6,FALSE)","v":420},{"$f":"VLOOKUP(L93,inp_Incentives!$B$6:$H$486,7,FALSE)/100","v":1},{"$f":"VLOOKUP(L93,inp_Incentives!$B$6:$I$486,8,FALSE)","v":420}]
[null,null,null,null,null,null,null,null,null,null,19,"D4-40%",null,{"$f":"VLOOKUP(L94,inp_Incentives!$B$6:$E$164,3,FALSE)","v":"≥500"},{"$f":"CONCATENATE(\"≥ \",TEXT(VLOOKUP(L94,inp_Incentives!$B$6:$E$164,4,FALSE),\"0%\"))","v":"≥ 40%"},null,{"$f":"VLOOKUP(L94,inp_Incentives!$B$6:$G$486,6,FALSE)","v":250},{"$f":"VLOOKUP(L94,inp_Incentives!$B$6:$H$486,7,FALSE)/100","v":1},{"$f":"VLOOKUP(L94,inp_Incentives!$B$6:$I$486,8,FALSE)","v":250}]
[null,null,null,null,null,null,null,null,null,null,20,"D4-40% w/ Networked Cont",null,{"$f":"VLOOKUP(L95,inp_Incentives!$B$6:$E$164,3,FALSE)","v":"≥500"},{"$f":"CONCATENATE(\"≥ \",TEXT(VLOOKUP(L95,inp_Incentives!$B$6:$E$164,4,FALSE),\"0%\"))","v":"≥ 40%"},null,{"$f":"VLOOKUP(L95,inp_Incentives!$B$6:$G$486,6,FALSE)","v":350},{"$f":"VLOOKUP(L95,inp_Incentives!$B$6:$H$486,7,FALSE)/100","v":1},{"$f":"VLOOKUP(L95,inp_Incentives!$B$6:$I$486,8,FALSE)","v":350}]
[null,null,null,null,null,null,null,null,null,null,21,"D4-60%",null,{"$f":"VLOOKUP(L96,inp_Incentives!$B$6:$E$164,3,FALSE)","v":"≥500"},{"$f":"CONCATENATE(\"≥ \",TEXT(VLOOKUP(L96,inp_Incentives!$B$6:$E$164,4,FALSE),\"0%\"))","v":"≥ 60%"},null,{"$f":"VLOOKUP(L96,inp_Incentives!$B$6:$G$486,6,FALSE)","v":400},{"$f":"VLOOKUP(L96,inp_Incentives!$B$6:$H$486,7,FALSE)/100","v":1},{"$f":"VLOOKUP(L96,inp_Incentives!$B$6:$I$486,8,FALSE)","v":400}]
[null,null,null,null,null,null,null,null,null,null,22,"D4-60% w/ Networked Cont",null,{"$f":"VLOOKUP(L97,inp_Incentives!$B$6:$E$164,3,FALSE)","v":"≥500"},{"$f":"CONCATENATE(\"≥ \",TEXT(VLOOKUP(L97,inp_Incentives!$B$6:$E$164,4,FALSE),\"0%\"))","v":"≥ 60%"},null,{"$f":"VLOOKUP(L97,inp_Incentives!$B$6:$G$486,6,FALSE)","v":500},{"$f":"VLOOKUP(L97,inp_Incentives!$B$6:$H$486,7,FALSE)/100","v":1},{"$f":"VLOOKUP(L97,inp_Incentives!$B$6:$I$486,8,FALSE)","v":500}]
[null,null,null,null,null,null,null,null,null,null,23,"D4-70%",null,{"$f":"VLOOKUP(L98,inp_Incentives!$B$6:$E$164,3,FALSE)","v":"≥500"},{"$f":"CONCATENATE(\"≥ \",TEXT(VLOOKUP(L98,inp_Incentives!$B$6:$E$164,4,FALSE),\"0%\"))","v":"≥ 70%"},null,{"$f":"VLOOKUP(L98,inp_Incentives!$B$6:$G$486,6,FALSE)","v":500},{"$f":"VLOOKUP(L98,inp_Incentives!$B$6:$H$486,7,FALSE)/100","v":1},{"$f":"VLOOKUP(L98,inp_Incentives!$B$6:$I$486,8,FALSE)","v":500}]
[null,null,null,null,null,null,null,null,null,null,24,"D4-70% w/ Networked Cont",null,{"$f":"VLOOKUP(L99,inp_Incentives!$B$6:$E$164,3,FALSE)","v":"≥500"},{"$f":"CONCATENATE(\"≥ \",TEXT(VLOOKUP(L99,inp_Incentives!$B$6:$E$164,4,FALSE),\"0%\"))","v":"≥ 70%"},null,{"$f":"VLOOKUP(L99,inp_Incentives!$B$6:$G$486,6,FALSE)","v":600},{"$f":"VLOOKUP(L99,inp_Incentives!$B$6:$H$486,7,FALSE)/100","v":1},{"$f":"VLOOKUP(L99,inp_Incentives!$B$6:$I$486,8,FALSE)","v":600}]
[]
[]
[null,null,null,null,null,null,null,null,null,null,"Measure Series E: LED Exterior"]
[]
[null,null,null,null,null,null,null,null,null,null,"Measure Series E covers exterior LED applications including: parking lot, parking garage, roadway, wall packs, bollards, floods, barn/yard, pole lamps, canopy, and high mast. Screw-in LED products replacing HID lamps must use Measure Series F."]
[]
[]
[]
[null,null,null,null,null,null,null,null,null,null,"Row ID","Measure ",null,"Watt Baseline","Required Wattage Reduction ",null,"BPA Incentive","% Utility Pass through","Utility Incentive"]
[null,null,null,null,null,null,null,null,null,null,1,"E1-40%",null,{"$f":"VLOOKUP(L109,inp_Incentives!$B$6:$E$164,3,FALSE)","v":"30-99"},{"$f":"CONCATENATE(\"≥ \",TEXT(VLOOKUP(L109,inp_Incentives!$B$6:$E$164,4,FALSE),\"0%\"))","v":"≥ 40%"},null,{"$f":"VLOOKUP(L109,inp_Incentives!$B$6:$G$486,6,FALSE)","v":30},{"$f":"VLOOKUP(L109,inp_Incentives!$B$6:$H$486,7,FALSE)/100","v":1},{"$f":"VLOOKUP(L109,inp_Incentives!$B$6:$I$486,8,FALSE)","v":30}]
[null,null,null,null,null,null,null,null,null,null,2,"E1-60%",null,{"$f":"VLOOKUP(L110,inp_Incentives!$B$6:$E$164,3,FALSE)","v":"30-99"},{"$f":"CONCATENATE(\"≥ \",TEXT(VLOOKUP(L110,inp_Incentives!$B$6:$E$164,4,FALSE),\"0%\"))","v":"≥ 60%"},null,{"$f":"VLOOKUP(L110,inp_Incentives!$B$6:$G$486,6,FALSE)","v":40},{"$f":"VLOOKUP(L110,inp_Incentives!$B$6:$H$486,7,FALSE)/100","v":1},{"$f":"VLOOKUP(L110,inp_Incentives!$B$6:$I$486,8,FALSE)","v":40}]
[null,null,null,null,null,null,null,null,null,null,3,"E1-70%",null,{"$f":"VLOOKUP(L111,inp_Incentives!$B$6:$E$164,3,FALSE)","v":"30-99"},{"$f":"CONCATENATE(\"≥ \",TEXT(VLOOKUP(L111,inp_Incentives!$B$6:$E$164,4,FALSE),\"0%\"))","v":"≥ 70%"},null,{"$f":"VLOOKUP(L111,inp_Incentives!$B$6:$G$486,6,FALSE)","v":50},{"$f":"VLOOKUP(L111,inp_Incentives!$B$6:$H$486,7,FALSE)/100","v":1},{"$f":"VLOOKUP(L111,inp_Incentives!$B$6:$I$486,8,FALSE)","v":50}]
[null,null,null,null,null,null,null,null,null,null,4,"E2-40%",null,{"$f":"VLOOKUP(L112,inp_Incentives!$B$6:$E$164,3,FALSE)","v":"100-199"},{"$f":"CONCATENATE(\"≥ \",TEXT(VLOOKUP(L112,inp_Incentives!$B$6:$E$164,4,FALSE),\"0%\"))","v":"≥ 40%"},null,{"$f":"VLOOKUP(L112,inp_Incentives!$B$6:$G$486,6,FALSE)","v":60},{"$f":"VLOOKUP(L112,inp_Incentives!$B$6:$H$486,7,FALSE)/100","v":1},{"$f":"VLOOKUP(L112,inp_Incentives!$B$6:$I$486,8,FALSE)","v":60}]
[null,null,null,null,null,null,null,null,null,null,5,"E2-60%",null,{"$f":"VLOOKUP(L113,inp_Incentives!$B$6:$E$164,3,FALSE)","v":"100-199"},{"$f":"CONCATENATE(\"≥ \",TEXT(VLOOKUP(L113,inp_Incentives!$B$6:$E$164,4,FALSE),\"0%\"))","v":"≥ 60%"},null,{"$f":"VLOOKUP(L113,inp_Incentives!$B$6:$G$486,6,FALSE)","v":80},{"$f":"VLOOKUP(L113,inp_Incentives!$B$6:$H$486,7,FALSE)/100","v":1},{"$f":"VLOOKUP(L113,inp_Incentives!$B$6:$I$486,8,FALSE)","v":80}]
[null,null,null,null,null,null,null,null,null,null,6,"E2-70%",null,{"$f":"VLOOKUP(L114,inp_Incentives!$B$6:$E$164,3,FALSE)","v":"100-199"},{"$f":"CONCATENATE(\"≥ \",TEXT(VLOOKUP(L114,inp_Incentives!$B$6:$E$164,4,FALSE),\"0%\"))","v":"≥ 70%"},null,{"$f":"VLOOKUP(L114,inp_Incentives!$B$6:$G$486,6,FALSE)","v":100},{"$f":"VLOOKUP(L114,inp_Incentives!$B$6:$H$486,7,FALSE)/100","v":1},{"$f":"VLOOKUP(L114,inp_Incentives!$B$6:$I$486,8,FALSE)","v":100}]
[null,null,null,null,null,null,null,null,null,null,7,"E3-40%",null,{"$f":"VLOOKUP(L115,inp_Incentives!$B$6:$E$164,3,FALSE)","v":"200-299"},{"$f":"CONCATENATE(\"≥ \",TEXT(VLOOKUP(L115,inp_Incentives!$B$6:$E$164,4,FALSE),\"0%\"))","v":"≥ 40%"},null,{"$f":"VLOOKUP(L115,inp_Incentives!$B$6:$G$486,6,FALSE)","v":80},{"$f":"VLOOKUP(L115,inp_Incentives!$B$6:$H$486,7,FALSE)/100","v":1},{"$f":"VLOOKUP(L115,inp_Incentives!$B$6:$I$486,8,FALSE)","v":80}]
[null,null,null,null,null,null,null,null,null,null,8,"E3-60%",null,{"$f":"VLOOKUP(L116,inp_Incentives!$B$6:$E$164,3,FALSE)","v":"200-299"},{"$f":"CONCATENATE(\"≥ \",TEXT(VLOOKUP(L116,inp_Incentives!$B$6:$E$164,4,FALSE),\"0%\"))","v":"≥ 60%"},null,{"$f":"VLOOKUP(L116,inp_Incentives!$B$6:$G$486,6,FALSE)","v":120},{"$f":"VLOOKUP(L116,inp_Incentives!$B$6:$H$486,7,FALSE)/100","v":1},{"$f":"VLOOKUP(L116,inp_Incentives!$B$6:$I$486,8,FALSE)","v":120}]
[null,null,null,null,null,null,null,null,null,null,9,"E3-70%",null,{"$f":"VLOOKUP(L117,inp_Incentives!$B$6:$E$164,3,FALSE)","v":"200-299"},{"$f":"CONCATENATE(\"≥ \",TEXT(VLOOKUP(L117,inp_Incentives!$B$6:$E$164,4,FALSE),\"0%\"))","v":"≥ 70%"},null,{"$f":"VLOOKUP(L117,inp_Incentives!$B$6:$G$486,6,FALSE)","v":140},{"$f":"VLOOKUP(L117,inp_Incentives!$B$6:$H$486,7,FALSE)/100","v":1},{"$f":"VLOOKUP(L117,inp_Incentives!$B$6:$I$486,8,FALSE)","v":140}]
[null,null,null,null,null,null,null,null,null,null,10,"E4-40%",null,{"$f":"VLOOKUP(L118,inp_Incentives!$B$6:$E$164,3,FALSE)","v":"300-399"},{"$f":"CONCATENATE(\"≥ \",TEXT(VLOOKUP(L118,inp_Incentives!$B$6:$E$164,4,FALSE),\"0%\"))","v":"≥ 40%"},null,{"$f":"VLOOKUP(L118,inp_Incentives!$B$6:$G$486,6,FALSE)","v":100},{"$f":"VLOOKUP(L118,inp_Incentives!$B$6:$H$486,7,FALSE)/100","v":1},{"$f":"VLOOKUP(L118,inp_Incentives!$B$6:$I$486,8,FALSE)","v":100}]
[null,null,null,null,null,null,null,null,null,null,11,"E4-60%",null,{"$f":"VLOOKUP(L119,inp_Incentives!$B$6:$E$164,3,FALSE)","v":"300-399"},{"$f":"CONCATENATE(\"≥ \",TEXT(VLOOKUP(L119,inp_Incentives!$B$6:$E$164,4,FALSE),\"0%\"))","v":"≥ 60%"},null,{"$f":"VLOOKUP(L119,inp_Incentives!$B$6:$G$486,6,FALSE)","v":180},{"$f":"VLOOKUP(L119,inp_Incentives!$B$6:$H$486,7,FALSE)/100","v":1},{"$f":"VLOOKUP(L119,inp_Incentives!$B$6:$I$486,8,FALSE)","v":180}]
[null,null,null,null,null,null,null,null,null,null,12,"E4-70%",null,{"$f":"VLOOKUP(L120,inp_Incentives!$B$6:$E$164,3,FALSE)","v":"300-399"},{"$f":"CONCATENATE(\"≥ \",TEXT(VLOOKUP(L120,inp_Incentives!$B$6:$E$164,4,FALSE),\"0%\"))","v":"≥ 70%"},null,{"$f":"VLOOKUP(L120,inp_Incentives!$B$6:$G$486,6,FALSE)","v":250},{"$f":"VLOOKUP(L120,inp_Incentives!$B$6:$H$486,7,FALSE)/100","v":1},{"$f":"VLOOKUP(L120,inp_Incentives!$B$6:$I$486,8,FALSE)","v":250}]
[null,null,null,null,null,null,null,null,null,null,13,"E5-40%",null,{"$f":"VLOOKUP(L121,inp_Incentives!$B$6:$E$164,3,FALSE)","v":"400-499"},{"$f":"CONCATENATE(\"≥ \",TEXT(VLOOKUP(L121,inp_Incentives!$B$6:$E$164,4,FALSE),\"0%\"))","v":"≥ 40%"},null,{"$f":"VLOOKUP(L121,inp_Incentives!$B$6:$G$486,6,FALSE)","v":120},{"$f":"VLOOKUP(L121,inp_Incentives!$B$6:$H$486,7,FALSE)/100","v":1},{"$f":"VLOOKUP(L121,inp_Incentives!$B$6:$I$486,8,FALSE)","v":120}]
[null,null,null,null,null,null,null,null,null,null,14,"E5-60%",null,{"$f":"VLOOKUP(L122,inp_Incentives!$B$6:$E$164,3,FALSE)","v":"400-499"},{"$f":"CONCATENATE(\"≥ \",TEXT(VLOOKUP(L122,inp_Incentives!$B$6:$E$164,4,FALSE),\"0%\"))","v":"≥ 60%"},null,{"$f":"VLOOKUP(L122,inp_Incentives!$B$6:$G$486,6,FALSE)","v":220},{"$f":"VLOOKUP(L122,inp_Incentives!$B$6:$H$486,7,FALSE)/100","v":1},{"$f":"VLOOKUP(L122,inp_Incentives!$B$6:$I$486,8,FALSE)","v":220}]
[null,null,null,null,null,null,null,null,null,null,15,"E5-70%",null,{"$f":"VLOOKUP(L123,inp_Incentives!$B$6:$E$164,3,FALSE)","v":"400-499"},{"$f":"CONCATENATE(\"≥ \",TEXT(VLOOKUP(L123,inp_Incentives!$B$6:$E$164,4,FALSE),\"0%\"))","v":"≥ 70%"},null,{"$f":"VLOOKUP(L123,inp_Incentives!$B$6:$G$486,6,FALSE)","v":300},{"$f":"VLOOKUP(L123,inp_Incentives!$B$6:$H$486,7,FALSE)/100","v":1},{"$f":"VLOOKUP(L123,inp_Incentives!$B$6:$I$486,8,FALSE)","v":300}]
[null,null,null,null,null,null,null,null,null,null,16,"E6-40%",null,{"$f":"VLOOKUP(L124,inp_Incentives!$B$6:$E$164,3,FALSE)","v":"≥500"},{"$f":"CONCATENATE(\"≥ \",TEXT(VLOOKUP(L124,inp_Incentives!$B$6:$E$164,4,FALSE),\"0%\"))","v":"≥ 40%"},null,{"$f":"VLOOKUP(L124,inp_Incentives!$B$6:$G$486,6,FALSE)","v":250},{"$f":"VLOOKUP(L124,inp_Incentives!$B$6:$H$486,7,FALSE)/100","v":1},{"$f":"VLOOKUP(L124,inp_Incentives!$B$6:$I$486,8,FALSE)","v":250}]
[null,null,null,null,null,null,null,null,null,null,17,"E6-60%",null,{"$f":"VLOOKUP(L125,inp_Incentives!$B$6:$E$164,3,FALSE)","v":"≥500"},{"$f":"CONCATENATE(\"≥ \",TEXT(VLOOKUP(L125,inp_Incentives!$B$6:$E$164,4,FALSE),\"0%\"))","v":"≥ 60%"},null,{"$f":"VLOOKUP(L125,inp_Incentives!$B$6:$G$486,6,FALSE)","v":400},{"$f":"VLOOKUP(L125,inp_Incentives!$B$6:$H$486,7,FALSE)/100","v":1},{"$f":"VLOOKUP(L125,inp_Incentives!$B$6:$I$486,8,FALSE)","v":400}]
[null,null,null,null,null,null,null,null,null,null,18,"E6-70%",null,{"$f":"VLOOKUP(L126,inp_Incentives!$B$6:$E$164,3,FALSE)","v":"≥500"},{"$f":"CONCATENATE(\"≥ \",TEXT(VLOOKUP(L126,inp_Incentives!$B$6:$E$164,4,FALSE),\"0%\"))","v":"≥ 70%"},null,{"$f":"VLOOKUP(L126,inp_Incentives!$B$6:$G$486,6,FALSE)","v":500},{"$f":"VLOOKUP(L126,inp_Incentives!$B$6:$H$486,7,FALSE)/100","v":1},{"$f":"VLOOKUP(L126,inp_Incentives!$B$6:$I$486,8,FALSE)","v":500}]
[]
[]
[null,null,null,null,null,null,null,null,null,null,"Measure Series F: HID Screw-in Replacements LEDs"]
[]
[]
[]
[null,null,null,null,null,null,null,null,null,null,"Measure Series F covers all mogul and medium base LED products replacing existing HID lamps in applications including: High Bay, Wall Pack, Parking Lot, Parking Garage, Roadway, Canopy, and Yard/Barn"]
[]
[]
[]
[null,null,null,null,null,null,null,null,null,null,"Row ID","Measure ",null,"Watt Baseline","Required Wattage Reduction ",null,"BPA Incentive","% Utility Pass through","Utility Incentive"]
[null,null,null,null,null,null,null,null,null,null,1,"F1-40%",null,{"$f":"VLOOKUP(L138,inp_Incentives!$B$6:$E$164,3,FALSE)","v":"40-200"},{"$f":"CONCATENATE(\"≥ \",TEXT(VLOOKUP(L138,inp_Incentives!$B$6:$E$164,4,FALSE),\"0%\"))","v":"≥ 40%"},null,{"$f":"VLOOKUP(L138,inp_Incentives!$B$6:$G$486,6,FALSE)","v":20},{"$f":"VLOOKUP(L138,inp_Incentives!$B$6:$H$486,7,FALSE)/100","v":1},{"$f":"VLOOKUP(L138,inp_Incentives!$B$6:$I$486,8,FALSE)","v":20}]
[null,null,null,null,null,null,null,null,null,null,2,"F2-40%",null,{"$f":"VLOOKUP(L139,inp_Incentives!$B$6:$E$164,3,FALSE)","v":"201-300"},{"$f":"CONCATENATE(\"≥ \",TEXT(VLOOKUP(L139,inp_Incentives!$B$6:$E$164,4,FALSE),\"0%\"))","v":"≥ 40%"},null,{"$f":"VLOOKUP(L139,inp_Incentives!$B$6:$G$486,6,FALSE)","v":40},{"$f":"VLOOKUP(L139,inp_Incentives!$B$6:$H$486,7,FALSE)/100","v":1},{"$f":"VLOOKUP(L139,inp_Incentives!$B$6:$I$486,8,FALSE)","v":40}]
[null,null,null,null,null,null,null,null,null,null,3,"F3-40%",null,{"$f":"VLOOKUP(L140,inp_Incentives!$B$6:$E$164,3,FALSE)","v":"301-400"},{"$f":"CONCATENATE(\"≥ \",TEXT(VLOOKUP(L140,inp_Incentives!$B$6:$E$164,4,FALSE),\"0%\"))","v":"≥ 40%"},null,{"$f":"VLOOKUP(L140,inp_Incentives!$B$6:$G$486,6,FALSE)","v":60},{"$f":"VLOOKUP(L140,inp_Incentives!$B$6:$H$486,7,FALSE)/100","v":1},{"$f":"VLOOKUP(L140,inp_Incentives!$B$6:$I$486,8,FALSE)","v":60}]
[null,null,null,null,null,null,null,null,null,null,4,"F4-40%",null,{"$f":"VLOOKUP(L141,inp_Incentives!$B$6:$E$164,3,FALSE)","v":"401-999"},{"$f":"CONCATENATE(\"≥ \",TEXT(VLOOKUP(L141,inp_Incentives!$B$6:$E$164,4,FALSE),\"0%\"))","v":"≥ 40%"},null,{"$f":"VLOOKUP(L141,inp_Incentives!$B$6:$G$486,6,FALSE)","v":80},{"$f":"VLOOKUP(L141,inp_Incentives!$B$6:$H$486,7,FALSE)/100","v":1},{"$f":"VLOOKUP(L141,inp_Incentives!$B$6:$I$486,8,FALSE)","v":80}]
[null,null,null,null,null,null,null,null,null,null,5,"F5-40%",null,{"$f":"VLOOKUP(L142,inp_Incentives!$B$6:$E$164,3,FALSE)","v":"≥1000"},{"$f":"CONCATENATE(\"≥ \",TEXT(VLOOKUP(L142,inp_Incentives!$B$6:$E$164,4,FALSE),\"0%\"))","v":"≥ 40%"},null,{"$f":"VLOOKUP(L142,inp_Incentives!$B$6:$G$486,6,FALSE)","v":150},{"$f":"VLOOKUP(L142,inp_Incentives!$B$6:$H$486,7,FALSE)/100","v":1},{"$f":"VLOOKUP(L142,inp_Incentives!$B$6:$I$486,8,FALSE)","v":150}]
[]
[]
[null,null,null,null,null,null,null,null,null,null,"Measure Series G: LED Linear"]
[]
[]
[null,null,null,null,null,null,null,null,null,null,"Measure Series G covers interior and exterior linear LED applications and includes: refrigerator case lights and accent/cove lighting applications. "]
[]
[]
[]
[null,null,null,null,null,null,null,null,null,null,"Row ID","Measure ",null,"Watt Baseline","Required Wattage Reduction ",null,"BPA Incentive","% Utility Pass through","Utility Incentive"]
[null,null,null,null,null,null,null,null,null,null,1,"G1",null,{"$f":"VLOOKUP(L153,inp_Incentives!$B$6:$E$164,3,FALSE)","v":"N/A"},{"$f":"CONCATENATE(\"\",TEXT(VLOOKUP(L153,inp_Incentives!$B$6:$E$164,4,FALSE),\"0%\"))","v":"N/A"},null,{"$f":"VLOOKUP(L153,inp_Incentives!$B$6:$G$486,6,FALSE)","v":0.17},{"$f":"VLOOKUP(L153,inp_Incentives!$B$6:$H$486,7,FALSE)/100","v":1},{"$f":"VLOOKUP(L153,inp_Incentives!$B$6:$I$486,8,FALSE)","v":0.17}]
[]
[null,null,null,null,null,null,null,null,null,null,"Notes:\n• Measure Series G applies a calculated incentive and does not require review or pre approval  \n• Please refer to Measure Series J for signage measures. "]
[]
[null,null,null,null,null,null,null,null,null,null,"Measure Series H: LED Exit Signs"]
[null,null,null,null,null,null,null,null,null,null,"Measure Series H covers LED exit signs."]
[]
[null,null,null,null,null,null,null,null,null,null,"Row ID","Measure ",null,"Watt Baseline","Required Wattage Reduction ",null,"BPA Incentive","% Utility Pass through","Utility Incentive"]
[null,null,null,null,null,null,null,null,null,null,1,"H-90%",null,{"$f":"VLOOKUP(L161,inp_Incentives!$B$6:$E$164,3,FALSE)","v":"10-100"},{"$f":"CONCATENATE(\"≥ \",TEXT(VLOOKUP(L161,inp_Incentives!$B$6:$E$164,4,FALSE),\"0%\"))","v":"≥ 90%"},null,{"$f":"VLOOKUP(L161,inp_Incentives!$B$6:$G$486,6,FALSE)","v":20},{"$f":"VLOOKUP(L161,inp_Incentives!$B$6:$H$486,7,FALSE)/100","v":1},{"$f":"VLOOKUP(L161,inp_Incentives!$B$6:$I$486,8,FALSE)","v":20}]
[]
[]
[null,null,null,null,null,null,null,null,null,null,"Measure Series I: Linear Fluorescent "]
[null,null,null,null,null,null,null,null,null,null,"Measure Series I covers  all types and lengths of linear fluorescent high bay and low bay fixtures.  "]
[]
[null,null,null,null,null,null,null,null,null,null,"Row ID","Measure ",null,"Watt Baseline","Required Wattage Reduction ",null,"BPA Incentive","% Utility Pass through","Utility Incentive"]
[null,null,null,null,null,null,null,null,null,null,1,"I1-30%",null,{"$f":"VLOOKUP(L168,inp_Incentives!$B$6:$E$164,3,FALSE)","v":{"$error":"#N/A"}},{"$f":"CONCATENATE(\"≥ \",TEXT(VLOOKUP(L168,inp_Incentives!$B$6:$E$164,4,FALSE),\"0%\"))","v":{"$error":"#N/A"}},null,{"$f":"VLOOKUP(L168,inp_Incentives!$B$6:$G$486,6,FALSE)","v":{"$error":"#N/A"}},{"$f":"VLOOKUP(L168,inp_Incentives!$B$6:$H$486,7,FALSE)/100","v":{"$error":"#N/A"}},{"$f":"VLOOKUP(L168,inp_Incentives!$B$6:$I$486,8,FALSE)","v":{"$error":"#N/A"}}]
[null,null,null,null,null,null,null,null,null,null,2,"I1-40%",null,{"$f":"VLOOKUP(L169,inp_Incentives!$B$6:$E$164,3,FALSE)","v":{"$error":"#N/A"}},{"$f":"CONCATENATE(\"≥ \",TEXT(VLOOKUP(L169,inp_Incentives!$B$6:$E$164,4,FALSE),\"0%\"))","v":{"$error":"#N/A"}},null,{"$f":"VLOOKUP(L169,inp_Incentives!$B$6:$G$486,6,FALSE)","v":{"$error":"#N/A"}},{"$f":"VLOOKUP(L169,inp_Incentives!$B$6:$H$486,7,FALSE)/100","v":{"$error":"#N/A"}},{"$f":"VLOOKUP(L169,inp_Incentives!$B$6:$I$486,8,FALSE)","v":{"$error":"#N/A"}}]
[null,null,null,null,null,null,null,null,null,null,3,"I2-30%",null,{"$f":"VLOOKUP(L170,inp_Incentives!$B$6:$E$164,3,FALSE)","v":{"$error":"#N/A"}},{"$f":"CONCATENATE(\"≥ \",TEXT(VLOOKUP(L170,inp_Incentives!$B$6:$E$164,4,FALSE),\"0%\"))","v":{"$error":"#N/A"}},null,{"$f":"VLOOKUP(L170,inp_Incentives!$B$6:$G$486,6,FALSE)","v":{"$error":"#N/A"}},{"$f":"VLOOKUP(L170,inp_Incentives!$B$6:$H$486,7,FALSE)/100","v":{"$error":"#N/A"}},{"$f":"VLOOKUP(L170,inp_Incentives!$B$6:$I$486,8,FALSE)","v":{"$error":"#N/A"}}]
[null,null,null,null,null,null,null,null,null,null,4,"I2-40%",null,{"$f":"VLOOKUP(L171,inp_Incentives!$B$6:$E$164,3,FALSE)","v":{"$error":"#N/A"}},{"$f":"CONCATENATE(\"≥ \",TEXT(VLOOKUP(L171,inp_Incentives!$B$6:$E$164,4,FALSE),\"0%\"))","v":{"$error":"#N/A"}},null,{"$f":"VLOOKUP(L171,inp_Incentives!$B$6:$G$486,6,FALSE)","v":{"$error":"#N/A"}},{"$f":"VLOOKUP(L171,inp_Incentives!$B$6:$H$486,7,FALSE)/100","v":{"$error":"#N/A"}},{"$f":"VLOOKUP(L171,inp_Incentives!$B$6:$I$486,8,FALSE)","v":{"$error":"#N/A"}}]
[null,null,null,null,null,null,null,null,null,null,5,"I3-30%",null,{"$f":"VLOOKUP(L172,inp_Incentives!$B$6:$E$164,3,FALSE)","v":{"$error":"#N/A"}},{"$f":"CONCATENATE(\"≥ \",TEXT(VLOOKUP(L172,inp_Incentives!$B$6:$E$164,4,FALSE),\"0%\"))","v":{"$error":"#N/A"}},null,{"$f":"VLOOKUP(L172,inp_Incentives!$B$6:$G$486,6,FALSE)","v":{"$error":"#N/A"}},{"$f":"VLOOKUP(L172,inp_Incentives!$B$6:$H$486,7,FALSE)/100","v":{"$error":"#N/A"}},{"$f":"VLOOKUP(L172,inp_Incentives!$B$6:$I$486,8,FALSE)","v":{"$error":"#N/A"}}]
[null,null,null,null,null,null,null,null,null,null,6,"I3-40%",null,{"$f":"VLOOKUP(L173,inp_Incentives!$B$6:$E$164,3,FALSE)","v":{"$error":"#N/A"}},{"$f":"CONCATENATE(\"≥ \",TEXT(VLOOKUP(L173,inp_Incentives!$B$6:$E$164,4,FALSE),\"0%\"))","v":{"$error":"#N/A"}},null,{"$f":"VLOOKUP(L173,inp_Incentives!$B$6:$G$486,6,FALSE)","v":{"$error":"#N/A"}},{"$f":"VLOOKUP(L173,inp_Incentives!$B$6:$H$486,7,FALSE)/100","v":{"$error":"#N/A"}},{"$f":"VLOOKUP(L173,inp_Incentives!$B$6:$I$486,8,FALSE)","v":{"$error":"#N/A"}}]
[null,null,null,null,null,null,null,null,null,null,7,"I4-40%",null,{"$f":"VLOOKUP(L174,inp_Incentives!$B$6:$E$164,3,FALSE)","v":{"$error":"#N/A"}},{"$f":"CONCATENATE(\"≥ \",TEXT(VLOOKUP(L174,inp_Incentives!$B$6:$E$164,4,FALSE),\"0%\"))","v":{"$error":"#N/A"}},null,{"$f":"VLOOKUP(L174,inp_Incentives!$B$6:$G$486,6,FALSE)","v":{"$error":"#N/A"}},{"$f":"VLOOKUP(L174,inp_Incentives!$B$6:$H$486,7,FALSE)/100","v":{"$error":"#N/A"}},{"$f":"VLOOKUP(L174,inp_Incentives!$B$6:$I$486,8,FALSE)","v":{"$error":"#N/A"}}]
[null,null,null,null,null,null,null,null,null,null,8,"I5-40%",null,{"$f":"VLOOKUP(L175,inp_Incentives!$B$6:$E$164,3,FALSE)","v":{"$error":"#N/A"}},{"$f":"CONCATENATE(\"≥ \",TEXT(VLOOKUP(L175,inp_Incentives!$B$6:$E$164,4,FALSE),\"0%\"))","v":{"$error":"#N/A"}},null,{"$f":"VLOOKUP(L175,inp_Incentives!$B$6:$G$486,6,FALSE)","v":{"$error":"#N/A"}},{"$f":"VLOOKUP(L175,inp_Incentives!$B$6:$H$486,7,FALSE)/100","v":{"$error":"#N/A"}},{"$f":"VLOOKUP(L175,inp_Incentives!$B$6:$I$486,8,FALSE)","v":{"$error":"#N/A"}}]
[null,null,null,null,null,null,null,null,null,null,9,"I6-40%",null,{"$f":"VLOOKUP(L176,inp_Incentives!$B$6:$E$164,3,FALSE)","v":{"$error":"#N/A"}},{"$f":"CONCATENATE(\"≥ \",TEXT(VLOOKUP(L176,inp_Incentives!$B$6:$E$164,4,FALSE),\"0%\"))","v":{"$error":"#N/A"}},null,{"$f":"VLOOKUP(L176,inp_Incentives!$B$6:$G$486,6,FALSE)","v":{"$error":"#N/A"}},{"$f":"VLOOKUP(L176,inp_Incentives!$B$6:$H$486,7,FALSE)/100","v":{"$error":"#N/A"}},{"$f":"VLOOKUP(L176,inp_Incentives!$B$6:$I$486,8,FALSE)","v":{"$error":"#N/A"}}]
[]
[null,null,null,null,null,null,null,null,null,null,"Note:\n• This measure series excludes CFLs."]
[null,null,null,null,null,null,null,null,null,null,"Measure Series I: Signage"]
[null,null,null,null,null,null,null,null,null,null,"\nMeasure Series I covers sign lighting applications. "]
[]
[null,null,null,null,null,null,null,null,null,null,"Row ID","Measure ",null,"Watt Baseline","Required Wattage Reduction ",null,"BPA Incentive (/kWh)","% Utility Pass through","Utility Incentive (/kWh)"]
[null,null,null,null,null,null,null,null,null,null,1,"I1",null,{"$f":"VLOOKUP(L183,inp_Incentives!$B$6:$E$164,3,FALSE)","v":"N/A"},{"$f":"CONCATENATE(\"\",TEXT(VLOOKUP(L183,inp_Incentives!$B$6:$E$164,4,FALSE),\"0%\"))","v":"N/A"},null,{"$f":"VLOOKUP(L183,inp_Incentives!$B$6:$G$486,6,FALSE)","v":0.17},{"$f":"VLOOKUP(L183,inp_Incentives!$B$6:$H$486,7,FALSE)/100","v":1},{"$f":"VLOOKUP(L183,inp_Incentives!$B$6:$I$486,8,FALSE)","v":0.17}]
[]
[null,null,null,null,null,null,null,null,null,null,"Notes:\n• Measure Series I applies a calculated incentive and does not require review or pre approval"]
[]
[null,null,null,null,null,null,null,null,null,null,"Measure Series J: Decommissioning"]
[]
[null,null,null,null,null,null,null,null,null,null,"The lighting calculator automatically recognizes decommissioning and applies a calculated incentive when there is a reduction in fixtures. Decommissioning measures must achieve a net energy savings of at least 10% and merit an incentive of at least $5.00 to be eligible for an incentive payout. To qualify for decommissioning, a fixture must be completely removed, not just disconnected. BPA will not require conduit leading up to the fixture to be removed."]
[]
[null,null,null,null,null,null,null,null,null,null,"Row ID","Measure ",null,"Watt Baseline","Required Wattage Reduction ",null,"BPA Incentive (/kWh)","% Utility Pass through","Utility Incentive (/kWh)"]
[null,null,null,null,null,null,null,null,null,null,1,"J1",null,{"$f":"VLOOKUP(L192,inp_Incentives!$B$6:$E$164,3,FALSE)","v":"N/A"},{"$f":"CONCATENATE(\"\",TEXT(VLOOKUP(L192,inp_Incentives!$B$6:$E$164,4,FALSE),\"0%\"))","v":"N/A"},null,{"$f":"VLOOKUP(L192,inp_Incentives!$B$6:$G$486,6,FALSE)","v":0.17},{"$f":"VLOOKUP(L192,inp_Incentives!$B$6:$H$486,7,FALSE)/100","v":1},{"$f":"VLOOKUP(L192,inp_Incentives!$B$6:$I$486,8,FALSE)","v":0.17}]
[]
[null,null,null,null,null,null,null,null,null,null,"Note:\n• Measure Series J applies a calculated incentive and does not require review or pre approval "]
[]
[null,null,null,null,null,null,null,null,null,null,"Measure Series K: Non-Standard Measures"]
[null,null,null,null,null,null,null,null,null,null,"When lighting calculator users are not able to select the desired existing or proposed equipment from the available drop down options, or when otherwise prompted by the lighting calculator, users may enter the information as a non-standard measure to receive a calculated incentive.  Non-standard measures must achieve a net energy savings of at least 10% and merit an incentive of at least $5.00 to be eligible for an incentive payout. "]
[]
[null,null,null,null,null,null,null,null,null,null,"Row ID","Measure ",null,"Watt Baseline","Required Wattage Reduction ",null,"BPA Incentive (/kWh)","% Utility Pass through","Utility Incentive (/kWh)"]
[null,null,null,null,null,null,null,null,null,null,1,"K1",null,{"$f":"VLOOKUP(L200,inp_Incentives!$B$6:$E$164,3,FALSE)","v":"N/A"},{"$f":"CONCATENATE(\"\",TEXT(VLOOKUP(L200,inp_Incentives!$B$6:$E$164,4,FALSE),\"0%\"))","v":"N/A"},null,{"$f":"VLOOKUP(L200,inp_Incentives!$B$6:$G$486,6,FALSE)","v":0.17},{"$f":"VLOOKUP(L200,inp_Incentives!$B$6:$H$486,7,FALSE)/100","v":1},{"$f":"VLOOKUP(L200,inp_Incentives!$B$6:$I$486,8,FALSE)","v":0.17}]
[]
[null,null,null,null,null,null,null,null,null,null,"Required:\n• Non-standard measures apply a calculated incentive and must be submitted to the utility for approval"]
[]
[null,null,null,null,null,null,null,null,null,null,"Measure Series L: Controls"]
[null,null,null,null,null,null,null,null,null,null,"Measure series L covers occupancy sensors and multi-functional controls. "]
[]
[null,null,null,null,null,null,null,null,null,null,"Row ID","Measure ",null,"Wattage Range","Default Controls Savings Fraction",null,"BPA Incentive","% Utility Pass through","Utility Incentive"]
[null,null,null,null,null,null,null,null,null,null,1,"L1- Occ. Sensor",null,{"$f":"INDEX(inp_Incentives!$B$6:$E$164,MATCH(K208&LEFT(L208,2),inp_Incentives!$A$6:$A$164 & inp_Incentives!$B$6:$B$164,0),3)","v":"15-44"},{"$f":"CONCATENATE(\"≥ \",TEXT(INDEX(inp_Incentives!$B$6:$E$164,MATCH(K208&LEFT(L208,2),inp_Incentives!$A$6:$A$164 & inp_Incentives!$B$6:$B$164,0),4),\"0%\"))","v":"≥ 25%"},null,{"$f":"inp_Incentives!G110","v":10},{"$f":"inp_Incentives!H110/100","v":1},{"$f":"inp_Incentives!I110","v":10}]
[null,null,null,null,null,null,null,null,null,null,2,"L1- Occ. Sensor",null,{"$f":"INDEX(inp_Incentives!$B$6:$E$164,MATCH(K209&LEFT(L209,2),inp_Incentives!$A$6:$A$164 & inp_Incentives!$B$6:$B$164,0),3)","v":"45-200"},{"$f":"CONCATENATE(\"≥ \",TEXT(INDEX(inp_Incentives!$B$6:$E$164,MATCH(K209&LEFT(L209,2),inp_Incentives!$A$6:$A$164 & inp_Incentives!$B$6:$B$164,0),4),\"0%\"))","v":"≥ 25%"},null,{"$f":"inp_Incentives!G111","v":30},{"$f":"inp_Incentives!H111/100","v":1},{"$f":"inp_Incentives!I111","v":30}]
[null,null,null,null,null,null,null,null,null,null,3,"L1- Occ. Sensor",null,{"$f":"INDEX(inp_Incentives!$B$6:$E$164,MATCH(K210&LEFT(L210,2),inp_Incentives!$A$6:$A$164 & inp_Incentives!$B$6:$B$164,0),3)","v":"≥201"},{"$f":"CONCATENATE(\"≥ \",TEXT(INDEX(inp_Incentives!$B$6:$E$164,MATCH(K210&LEFT(L210,2),inp_Incentives!$A$6:$A$164 & inp_Incentives!$B$6:$B$164,0),4),\"0%\"))","v":"≥ 25%"},null,{"$f":"inp_Incentives!G112","v":50},{"$f":"inp_Incentives!H112/100","v":1},{"$f":"inp_Incentives!I112","v":50}]
[null,null,null,null,null,null,null,null,null,null,4,"L2- Dual TechControls",null,{"$f":"INDEX(inp_Incentives!$B$6:$E$164,MATCH(K211&LEFT(L211,2),inp_Incentives!$A$6:$A$164 & inp_Incentives!$B$6:$B$164,0),3)","v":"15-44"},{"$f":"CONCATENATE(\"≥ \",TEXT(INDEX(inp_Incentives!$B$6:$E$164,MATCH(K211&LEFT(L211,2),inp_Incentives!$A$6:$A$164 & inp_Incentives!$B$6:$B$164,0),4),\"0%\"))","v":"≥ 25%"},null,{"$f":"inp_Incentives!G113","v":15},{"$f":"inp_Incentives!H113/100","v":1},{"$f":"inp_Incentives!I113","v":15}]
[null,null,null,null,null,null,null,null,null,null,5,"L2- Dual TechControls",null,{"$f":"INDEX(inp_Incentives!$B$6:$E$164,MATCH(K212&LEFT(L212,2),inp_Incentives!$A$6:$A$164 & inp_Incentives!$B$6:$B$164,0),3)","v":"45-200"},{"$f":"CONCATENATE(\"≥ \",TEXT(INDEX(inp_Incentives!$B$6:$E$164,MATCH(K212&LEFT(L212,2),inp_Incentives!$A$6:$A$164 & inp_Incentives!$B$6:$B$164,0),4),\"0%\"))","v":"≥ 25%"},null,{"$f":"inp_Incentives!G114","v":40},{"$f":"inp_Incentives!H114/100","v":1},{"$f":"inp_Incentives!I114","v":40}]
[null,null,null,null,null,null,null,null,null,null,6,"L2- Dual TechControls",null,{"$f":"INDEX(inp_Incentives!$B$6:$E$164,MATCH(K213&LEFT(L213,2),inp_Incentives!$A$6:$A$164 & inp_Incentives!$B$6:$B$164,0),3)","v":"≥201"},{"$f":"CONCATENATE(\"≥ \",TEXT(INDEX(inp_Incentives!$B$6:$E$164,MATCH(K213&LEFT(L213,2),inp_Incentives!$A$6:$A$164 & inp_Incentives!$B$6:$B$164,0),4),\"0%\"))","v":"≥ 25%"},null,{"$f":"inp_Incentives!G115","v":50},{"$f":"inp_Incentives!H115/100","v":1},{"$f":"inp_Incentives!I115","v":50}]
[null,null,null,null,null,null,null,null,null,null,7,"L3- Timer",null,{"$f":"INDEX(inp_Incentives!$B$6:$E$164,MATCH(K214&LEFT(L214,2),inp_Incentives!$A$6:$A$164 & inp_Incentives!$B$6:$B$164,0),3)","v":"15-44"},{"$f":"CONCATENATE(\"≥ \",TEXT(INDEX(inp_Incentives!$B$6:$E$164,MATCH(K214&LEFT(L214,2),inp_Incentives!$A$6:$A$164 & inp_Incentives!$B$6:$B$164,0),4),\"0%\"))","v":"≥ 25%"},null,{"$f":"inp_Incentives!G116","v":10},{"$f":"inp_Incentives!H116/100","v":1},{"$f":"inp_Incentives!I116","v":10}]
[null,null,null,null,null,null,null,null,null,null,8,"L3- Timer",null,{"$f":"INDEX(inp_Incentives!$B$6:$E$164,MATCH(K215&LEFT(L215,2),inp_Incentives!$A$6:$A$164 & inp_Incentives!$B$6:$B$164,0),3)","v":"45-200"},{"$f":"CONCATENATE(\"≥ \",TEXT(INDEX(inp_Incentives!$B$6:$E$164,MATCH(K215&LEFT(L215,2),inp_Incentives!$A$6:$A$164 & inp_Incentives!$B$6:$B$164,0),4),\"0%\"))","v":"≥ 25%"},null,{"$f":"inp_Incentives!G117","v":30},{"$f":"inp_Incentives!H117/100","v":1},{"$f":"inp_Incentives!I117","v":30}]
[null,null,null,null,null,null,null,null,null,null,9,"L3- Timer",null,{"$f":"INDEX(inp_Incentives!$B$6:$E$164,MATCH(K216&LEFT(L216,2),inp_Incentives!$A$6:$A$164 & inp_Incentives!$B$6:$B$164,0),3)","v":"≥201"},{"$f":"CONCATENATE(\"≥ \",TEXT(INDEX(inp_Incentives!$B$6:$E$164,MATCH(K216&LEFT(L216,2),inp_Incentives!$A$6:$A$164 & inp_Incentives!$B$6:$B$164,0),4),\"0%\"))","v":"≥ 25%"},null,{"$f":"inp_Incentives!G118","v":40},{"$f":"inp_Incentives!H118/100","v":1},{"$f":"inp_Incentives!I118","v":40}]
[]
[]
[null,null,null,null,null,null,null,null,null,null,"\n"]
[]
[null,null,null,null,null,null,null,null,null,null,"New Construction"]
[]
[]
[null,null,null,null,null,null,null,null,null,null,"Row ID","Measure ",null,"Watt Baseline","Required Wattage Reduction ",null,"BPA Incentive (/kWh)","% Utility Pass through","Utility Incentive (/kWh)"]
[null,null,null,null,null,null,null,null,null,null,1,"NC",null,{"$f":"VLOOKUP(L225,inp_Incentives!$B$6:$E$164,3,FALSE)","v":"N/A"},{"$f":"CONCATENATE(\"\",TEXT(VLOOKUP(L225,inp_Incentives!$B$6:$E$164,4,FALSE),\"0%\"))","v":"N/A"},null,{"$f":"VLOOKUP(L225,inp_Incentives!$B$6:$G$486,6,FALSE)","v":0.13},{"$f":"VLOOKUP(L225,inp_Incentives!$B$6:$H$486,7,FALSE)/100","v":1},{"$f":"VLOOKUP(L225,inp_Incentives!$B$6:$I$486,8,FALSE)","v":0.13}]
[]
[]
[]
[null,null,null,null,null,null,null,null,null," "]

{"sheet":"inp_UtilityInfo","index":24,"n_rows":3,"n_cols":16,"rows_kept":3,"cut":false,"hidden":false,"merged":[]}
[]
["Utility Official Name","Utility Name","Calculator Name","Utility Website","Unique Customer ID","[Blank]","Name","[Blank]","Phone1","Phone2","Phone3","Phone4","Email","UseDefaultLogo?","PromoMode - Standard","PromoMode - Promotional"]
["Tacoma Power","Tacoma Power","Bright Rebates Calculator","Save with Lighting - Tacoma Public Utilities (mytpu.org)",10370,null,"Kerry Cameron",null,253,279,6181,null,"kcameron@cityoftacoma.org",0,true,false]

{"sheet":"inp_UtilityRates","index":25,"n_rows":5,"n_cols":5,"rows_kept":5,"cut":false,"hidden":false,"merged":[]}
[]
["RecordNumber","RateName","kWhRate","kWRate","Notes"]
[1,"(B) Small General",8.1019999999999995E-2,0,"Small General Service"]
[2,"(G) General",5.0707000000000002E-2,8.64,"General Service"]
[3,"(HVG) High Voltage",4.4830000000000002E-2,5.1100000000000003,"High Voltage General Service"]

{"sheet":"inp_UtilityReview","index":26,"n_rows":15,"n_cols":15,"rows_kept":15,"cut":false,"hidden":false,"merged":[]}
[0,1,2,3,4,5,6,7,8,9,10,11,12,13,14]
["SiteID","Sector","Month","Day","Year","FundSource","InvoiceFullAmount?","FullAmount","PassthruAmount","Federal?","NC1?","NC2?","NC3?","NC4?","ActualProjCost"]
[null,null,null,null,null,null,null,null,null,null,0,0,0,0]
[]
[0,1,2,3,4,5]
["ExistingCost","ProposedCost","ExistingPeriod","ProposedPeriod","TotalOM","OMSpecificationOption","OMSpecificationOptionIndex"]
["N/A","N/A","N/A","N/A",0.03,"Default: Set to 3% of project costs",0]
[]
["IsCalcInDevelopment?"]
[0]
[]
["Current Project Approval Status"]
[0]
[]
["Field1Title","Field1Content","Field2Title","Field2Content"]

{"sheet":"inp_NewConstruction","index":27,"n_rows":3,"n_cols":6,"rows_kept":3,"cut":false,"hidden":false,"merged":[]}
[]
["Q1","Q2","Q3","Q4","Allow?","NC?"]
[0,0,0,0,1,0]

{"sheet":"inp_CustProposal","index":28,"n_rows":133,"n_cols":7,"rows_kept":133,"cut":false,"hidden":false,"merged":[]}
[]
[]
[]
[]
[]
[]
[]
[]
[null,"Payback Period",{"$f":"prntrdy_Form1!N16/(prntrdy_Form1!S14+prntrdy_Form1!S15)","v":17.164565724128327},"yrs"]
[null,"Payback Period",{"$f":"C9*12","v":205.97478868953993},"months"]
[null,"Annual savings",{"$f":"(prntrdy_Form1!S14+prntrdy_Form1!S15)","v":870.63082399999985},"dollars"]
[]
[null,"Year","Month","Month (if within payback period)","Incremental Monthly Savings","Cumulative Monthly Savings","Cumulative Monthly Savings (if within payback period)"]
[null,1,1,{"$f":"IF(C14<=($C$10+1),C14,\"\")","v":1},{"$f":"$C$11/12","v":72.552568666666659},{"$f":"E14","v":72.552568666666659},{"$f":"IF(D14<=($C$10+1),F14,\"\")","v":72.552568666666659}]
[null,1,2,{"$f":"IF(C15<=($C$10+1),C15,\"\")","v":2},{"$f":"$C$11/12","v":72.552568666666659},{"$f":"E15+F14","v":145.10513733333332},{"$f":"IF(D15<=($C$10+1),F15,\"\")","v":145.10513733333332}]
[null,1,3,3,72.552568666666659,{"$f":"E16+F15","v":217.65770599999996},217.65770599999996]
[null,1,4,4,72.552568666666659,290.21027466666663,290.21027466666663]
[null,1,5,5,72.552568666666659,362.76284333333331,362.76284333333331]
[null,1,6,6,72.552568666666659,435.31541199999998,435.31541199999998]
[null,1,7,7,72.552568666666659,507.86798066666665,507.86798066666665]
[null,1,8,8,72.552568666666659,580.42054933333327,580.42054933333327]
[null,1,9,9,72.552568666666659,652.97311799999989,652.97311799999989]
[null,1,10,10,72.552568666666659,725.5256866666665,725.5256866666665]
[null,1,11,11,72.552568666666659,798.07825533333312,798.07825533333312]
[null,1,12,12,72.552568666666659,870.63082399999973,870.63082399999973]
[null,2,13,13,72.552568666666659,943.18339266666635,943.18339266666635]
[null,2,14,14,72.552568666666659,1015.735961333333,1015.735961333333]
[null,2,15,15,72.552568666666659,1088.2885299999996,1088.2885299999996]
[null,2,16,16,72.552568666666659,1160.8410986666663,1160.8410986666663]
[null,2,17,17,72.552568666666659,1233.393667333333,1233.393667333333]
[null,2,18,18,72.552568666666659,1305.9462359999998,1305.9462359999998]
[null,2,19,19,72.552568666666659,1378.4988046666665,1378.4988046666665]
[null,2,20,20,72.552568666666659,1451.0513733333332,1451.0513733333332]
[null,2,21,21,72.552568666666659,1523.603942,1523.603942]
[null,2,22,22,72.552568666666659,1596.1565106666667,1596.1565106666667]
[null,2,23,23,72.552568666666659,1668.7090793333334,1668.7090793333334]
[null,2,24,24,72.552568666666659,1741.2616480000002,1741.2616480000002]
[null,3,25,25,72.552568666666659,1813.8142166666669,1813.8142166666669]
[null,3,26,26,72.552568666666659,1886.3667853333336,1886.3667853333336]
[null,3,27,27,72.552568666666659,1958.9193540000003,1958.9193540000003]
[null,3,28,28,72.552568666666659,2031.4719226666671,2031.4719226666671]
[null,3,29,29,72.552568666666659,2104.0244913333336,2104.0244913333336]
[null,3,30,30,72.552568666666659,2176.5770600000001,2176.5770600000001]
[null,3,31,31,72.552568666666659,2249.1296286666666,2249.1296286666666]
[null,3,32,32,72.552568666666659,2321.6821973333331,2321.6821973333331]
[null,3,33,33,72.552568666666659,2394.2347659999996,2394.2347659999996]
[null,3,34,34,72.552568666666659,2466.7873346666661,2466.7873346666661]
[null,3,35,35,72.552568666666659,2539.3399033333326,2539.3399033333326]
[null,3,36,36,72.552568666666659,2611.8924719999991,2611.8924719999991]
[null,4,37,37,72.552568666666659,2684.4450406666656,2684.4450406666656]
[null,4,38,38,72.552568666666659,2756.9976093333321,2756.9976093333321]
[null,4,39,39,72.552568666666659,2829.5501779999986,2829.5501779999986]
[null,4,40,40,72.552568666666659,2902.1027466666651,2902.1027466666651]
[null,4,41,41,72.552568666666659,2974.6553153333316,2974.6553153333316]
[null,4,42,42,72.552568666666659,3047.2078839999981,3047.2078839999981]
[null,4,43,43,72.552568666666659,3119.7604526666646,3119.7604526666646]
[null,4,44,44,72.552568666666659,3192.3130213333311,3192.3130213333311]
[null,4,45,45,72.552568666666659,3264.8655899999976,3264.8655899999976]
[null,4,46,46,72.552568666666659,3337.4181586666641,3337.4181586666641]
[null,4,47,47,72.552568666666659,3409.9707273333306,3409.9707273333306]
[null,4,48,48,72.552568666666659,3482.5232959999971,3482.5232959999971]
[null,5,49,49,72.552568666666659,3555.0758646666636,3555.0758646666636]
[null,5,50,50,72.552568666666659,3627.6284333333301,3627.6284333333301]
[null,5,51,51,72.552568666666659,3700.1810019999966,3700.1810019999966]
[null,5,52,52,72.552568666666659,3772.7335706666631,3772.7335706666631]
[null,5,53,53,72.552568666666659,3845.2861393333296,3845.2861393333296]
[null,5,54,54,72.552568666666659,3917.8387079999961,3917.8387079999961]
[null,5,55,55,72.552568666666659,3990.3912766666626,3990.3912766666626]
[null,5,56,56,72.552568666666659,4062.9438453333291,4062.9438453333291]
[null,5,57,57,72.552568666666659,4135.4964139999956,4135.4964139999956]
[null,5,58,58,72.552568666666659,4208.0489826666626,4208.0489826666626]
[null,5,59,59,72.552568666666659,4280.6015513333296,4280.6015513333296]
[null,5,60,60,72.552568666666659,4353.1541199999965,4353.1541199999965]
[null,6,61,61,72.552568666666659,4425.7066886666635,4425.7066886666635]
[null,6,62,62,72.552568666666659,4498.2592573333304,4498.2592573333304]
[null,6,63,63,72.552568666666659,4570.8118259999974,4570.8118259999974]
[null,6,64,64,72.552568666666659,4643.3643946666643,4643.3643946666643]
[null,6,65,65,72.552568666666659,4715.9169633333313,4715.9169633333313]
[null,6,66,{"$f":"IF(C79<=($C$10+1),C79,\"\")","v":66},{"$f":"$C$11/12","v":72.552568666666659},4788.4695319999983,{"$f":"IF(D79<=($C$10+1),F79,\"\")","v":4788.4695319999983}]
[null,6,67,67,72.552568666666659,{"$f":"E80+F79","v":4861.0221006666652},4861.0221006666652]
[null,6,68,68,72.552568666666659,4933.5746693333322,4933.5746693333322]
[null,6,69,69,72.552568666666659,5006.1272379999991,5006.1272379999991]
[null,6,70,70,72.552568666666659,5078.6798066666661,5078.6798066666661]
[null,6,71,71,72.552568666666659,5151.232375333333,5151.232375333333]
[null,6,72,72,72.552568666666659,5223.784944,5223.784944]
[null,7,73,73,72.552568666666659,5296.337512666667,5296.337512666667]
[null,7,74,74,72.552568666666659,5368.8900813333339,5368.8900813333339]
[null,7,75,75,72.552568666666659,5441.4426500000009,5441.4426500000009]
[null,7,76,76,72.552568666666659,5513.9952186666678,5513.9952186666678]
[null,7,77,77,72.552568666666659,5586.5477873333348,5586.5477873333348]
[null,7,78,78,72.552568666666659,5659.1003560000017,5659.1003560000017]
[null,7,79,79,72.552568666666659,5731.6529246666687,5731.6529246666687]
[null,7,80,80,72.552568666666659,5804.2054933333357,5804.2054933333357]
[null,7,81,81,72.552568666666659,5876.7580620000026,5876.7580620000026]
[null,7,82,82,72.552568666666659,5949.3106306666696,5949.3106306666696]
[null,7,83,83,72.552568666666659,6021.8631993333365,6021.8631993333365]
[null,7,84,84,72.552568666666659,6094.4157680000035,6094.4157680000035]
[null,8,85,85,72.552568666666659,6166.9683366666704,6166.9683366666704]
[null,8,86,86,72.552568666666659,6239.5209053333374,6239.5209053333374]
[null,8,87,87,72.552568666666659,6312.0734740000044,6312.0734740000044]
[null,8,88,88,72.552568666666659,6384.6260426666713,6384.6260426666713]
[null,8,89,89,72.552568666666659,6457.1786113333383,6457.1786113333383]
[null,8,90,90,72.552568666666659,6529.7311800000052,6529.7311800000052]
[null,8,91,91,72.552568666666659,6602.2837486666722,6602.2837486666722]
[null,8,92,92,72.552568666666659,6674.8363173333391,6674.8363173333391]
[null,8,93,93,72.552568666666659,6747.3888860000061,6747.3888860000061]
[null,8,94,94,72.552568666666659,6819.9414546666731,6819.9414546666731]
[null,8,95,95,72.552568666666659,6892.49402333334,6892.49402333334]
[null,8,96,96,72.552568666666659,6965.046592000007,6965.046592000007]
[null,9,97,97,72.552568666666659,7037.5991606666739,7037.5991606666739]
[null,9,98,98,72.552568666666659,7110.1517293333409,7110.1517293333409]
[null,9,99,99,72.552568666666659,7182.7042980000078,7182.7042980000078]
[null,9,100,100,72.552568666666659,7255.2568666666748,7255.2568666666748]
[null,9,101,101,72.552568666666659,7327.8094353333418,7327.8094353333418]
[null,9,102,102,72.552568666666659,7400.3620040000087,7400.3620040000087]
[null,9,103,103,72.552568666666659,7472.9145726666757,7472.9145726666757]
[null,9,104,104,72.552568666666659,7545.4671413333426,7545.4671413333426]
[null,9,105,105,72.552568666666659,7618.0197100000096,7618.0197100000096]
[null,9,106,106,72.552568666666659,7690.5722786666765,7690.5722786666765]
[null,9,107,107,72.552568666666659,7763.1248473333435,7763.1248473333435]
[null,9,108,108,72.552568666666659,7835.6774160000105,7835.6774160000105]
[null,10,109,109,72.552568666666659,7908.2299846666774,7908.2299846666774]
[null,10,110,110,72.552568666666659,7980.7825533333444,7980.7825533333444]
[null,10,111,111,72.552568666666659,8053.3351220000113,8053.3351220000113]
[null,10,112,112,72.552568666666659,8125.8876906666783,8125.8876906666783]
[null,10,113,113,72.552568666666659,8198.4402593333452,8198.4402593333452]
[null,10,114,114,72.552568666666659,8270.9928280000113,8270.9928280000113]
[null,10,115,115,72.552568666666659,8343.5453966666773,8343.5453966666773]
[null,10,116,116,72.552568666666659,8416.0979653333434,8416.0979653333434]
[null,10,117,117,72.552568666666659,8488.6505340000094,8488.6505340000094]
[null,10,118,118,72.552568666666659,8561.2031026666755,8561.2031026666755]
[null,10,119,119,72.552568666666659,8633.7556713333415,8633.7556713333415]
[null,10,120,120,72.552568666666659,8706.3082400000076,8706.3082400000076]

{"sheet":"inp_NewConInputs","index":29,"n_rows":2,"n_cols":75,"rows_kept":2,"cut":false,"hidden":false,"merged":[]}
["HoursOfOperation_Interior","LightingPowerAllowance_Interior","KWH_CodeBaseline_Interior","ProposedLightingPower_Interior","KWH_Proposed_Interior","KWH_BPABaseline_Interior","KWH_Savings_Interior","KWH_Savings_Interior_HVAC","KWH_Savings_Interior_Adjusted","PercentSavings_Interior","Incentive_Utility_Interior","NewConNotes","NewConHeatType","NewConCoolType","NewConElectricInteraction","NewConGasInteraction","Incentive_BPA_Interior","HoursOfOperation_Exterior","LightingPowerAllowance_Exterior","KWH_CodeBaseline_Exterior","ProposedLightingPower_Exterior","KWH_Proposed_Exterior","KWH_BPABaseline_Exterior","KWH_Savings_Exterior","KWH_Savings_Exterior_Adjusted","PercentSavings_Exterior","Incentive_Utility_Exterior","Incentive_BPA_Exterior","KWH_Savings_Total","KWH_Savings_Total_Busbar","Watts_BPABaseline_Total","Watts_Proposed_Total","KW_Savings_Total","KWH_PercentSavings_Total","ProjectCost_Estimated","Flag_MissingActualCost","Flag_MissingActualAndEstimatedCost","ProjectCost","IncrementalCost","AnnualValue_OandM_Customer","kWhRate","kWRate","MeasureLife","Benefit","BCRatio","CostPercentageCap_BPA","CostPercentageCap_Utility","Incentive_Total_Uncapped_Utility","Incentive_Total_Uncapped_BPA","Uncapped_PercentOfProject_Utility","Uncapped_PercentOfProject_BPA","Flag_UtilityIncentiveCapAlert","Capped_PercentOfProject_Utility","Flag_BPAIncentiveCapAlert","Capped_PercentOfProject_BPA","Incentive_Total_Capped_Utility","Incentive_Total_Capped_BPA","MinimumBCRatio","BCTooLowAlert","AlertText","TRC_BCRatio","SIZE",null,{"$error":"#N/A"},{"$error":"#N/A"},{"$error":"#N/A"},{"$error":"#N/A"},{"$error":"#N/A"},{"$error":"#N/A"},{"$error":"#N/A"},{"$error":"#N/A"},{"$error":"#N/A"},{"$error":"#N/A"},{"$error":"#N/A"},{"$error":"#N/A"}]
[2200,null,null,null,null,null,null,null,null,null,null,null,null,null,null,null,null,4380,null,null,null,null,null,null,null,null,null,null,null,null,null,null,null,null,null,null,null,null,null,null,null,null,null,null,null,null,null,null,null,null,null,null,null,null,null,null,null,null,null,null,null,null,null,{"$error":"#N/A"},{"$error":"#N/A"},{"$error":"#N/A"},{"$error":"#N/A"},{"$error":"#N/A"},{"$error":"#N/A"},{"$error":"#N/A"},{"$error":"#N/A"},{"$error":"#N/A"},{"$error":"#N/A"},{"$error":"#N/A"},{"$error":"#N/A"}]

{"sheet":"inp_Incentives","index":30,"n_rows":135,"n_cols":17,"rows_kept":135,"cut":false,"hidden":false,"merged":[]}
[]
["% of project cost","$ / kWh / project","Utility min B/C","Default Incentive Mode","100% Nonstandard Mode"]
[{"$f":"IF(user_Project!$AG$3=\"(B) Small General\",100,60)","v":100},{"$f":"IF(user_Project!$AG$3=\"(B) Small General\",0.19,0.17)","v":0.19},0.5,true,false]
[null,null,null,"THIS COLUMN IS A FORMULA"]
["Row ID","Measure ","Description ","Watt Baseline","Min Wattage Reduction",null,"BPA Incentive","% Utility Passthrough","Utility Incentive","Min Wattage","Max Wattage","Additional Criteria","Description ","User Lookup Description"]
[1,"A1-40%","LED Small Lamp / Fixture",{"$f":"IF(J6=0,IF(K6=999999,\"any wattage\",\"≤\"&K6),IF(K6<>999999,J6&\"-\"&K6,\"≥\"&J6))","v":"≤100"},0.4,null,2,100,0,0,100,null,"LED Small Lamp / Fixture","LED Small Lamp / Fixture"]
[2,"A2-40%","LED Small Lamp / Fixture",{"$f":"IF(J7=0,IF(K7=999999,\"any wattage\",\"≤\"&K7),IF(K7<>999999,J7&\"-\"&K7,\"≥\"&J7))","v":"≥101"},0.4,null,5,100,0,101,999999,null,"LED Small Lamp / Fixture","LED Small Lamp / Fixture"]
[]
["Row ID","Measure ","Description ","Watt Baseline","Min Wattage Reduction",null,"BPA Incentive","% Utility Passthrough","Utility Incentive","Min Wattage","Max Wattage","Additional Criteria","Description ","User Lookup Description"]
[1,"B1-30%","LED Tubes",">1",0.3,null,2,100,2,0,1000,null,"LED Tubes","LED Tubes"]
[]
[]
[]
["Row ID","Measure ","Description ","Watt Baseline","Min Wattage Reduction",null,"BPA Incentive Standard","% Utility Passthrough","Utility Incentive Standard","Min Wattage","Max Wattage","Additional Criteria","Description ","User Lookup Description","BPA Incentive w/ Networked Controls","% Utility Passthrough","Utility Incentive w/ Networked Controls"]
[1,"C1-40%","Gen. Indoor / Outdoor Standard",{"$f":"IF(J15=0,IF(K15=999999,\"any wattage\",\"≤\"&K15),IF(K15<>999999,J15&\"-\"&K15,\"≥\"&J15))","v":"≤100"},0.4,null,20,100,20,0,100,null,"Gen. Indoor / Outdoor Standard","Gen. Indoor / Outdoor Standard",60,100,60]
[2,"C1-40% w/Networked Cont","Gen. Indoor / Outdoor w/Networked Controls",{"$f":"IF(J16=0,IF(K16=999999,\"any wattage\",\"≤\"&K16),IF(K16<>999999,J16&\"-\"&K16,\"≥\"&J16))","v":"≤100"},0.4,null,60,100,60,0,100,null,"Gen. Indoor / Outdoor w/Networked Controls","Gen. Indoor / Outdoor w/Networked Controls",60,100,60]
[3,"C1-50%","Gen. Indoor / Outdoor Standard","≤100",0.5,null,30,100,30,0,100,null,"Gen. Indoor / Outdoor Standard","Gen. Indoor / Outdoor Standard",70,100,70]
[4,"C1-50% w/Networked Cont","Gen. Indoor / Outdoor w/Networked Controls",{"$f":"IF(J18=0,IF(K18=999999,\"any wattage\",\"≤\"&K18),IF(K18<>999999,J18&\"-\"&K18,\"≥\"&J18))","v":"≤100"},0.5,null,70,100,70,0,100,null,"Gen. Indoor / Outdoor w/Networked Controls","Gen. Indoor / Outdoor w/Networked Controls",70,100,70]
[5,"C1-60%","Gen. Indoor / Outdoor Standard","≤100",0.6,null,40,100,40,0,100,null,"Gen. Indoor / Outdoor Standard","Gen. Indoor / Outdoor Standard",80,100,80]
[6,"C1-60% w/Networked Cont","Gen. Indoor / Outdoor w/Networked Controls","≤100",0.6,null,80,100,80,0,100,null,"Gen. Indoor / Outdoor w/Networked Controls","Gen. Indoor / Outdoor w/Networked Controls",80,100,80]
[7,"C1-70%","Gen. Indoor / Outdoor Standard","≤100",0.7,null,50,100,50,0,100,null,"Gen. Indoor / Outdoor Standard","Gen. Indoor / Outdoor Standard",90,100,90]
[8,"C1-70% w/Networked Cont","Gen. Indoor / Outdoor w/Networked Controls","≤100",0.7,null,90,100,90,0,100,null,"Gen. Indoor / Outdoor w/Networked Controls","Gen. Indoor / Outdoor w/Networked Controls",90,100,90]
[9,"C2-40%","Gen. Indoor / Outdoor Standard","101-200",0.4,null,40,100,40,101,200,null,"Gen. Indoor / Outdoor Standard","Gen. Indoor / Outdoor Standard",80,100,80]
[10,"C2-40% w/Networked Cont","Gen. Indoor / Outdoor w/Networked Controls","101-200",0.4,null,80,100,80,101,200,null,"Gen. Indoor / Outdoor w/Networked Controls","Gen. Indoor / Outdoor w/Networked Controls",80,100,80]
[11,"C2-50%","Gen. Indoor / Outdoor Standard","101-200",0.5,null,60,100,60,101,200,null,"Gen. Indoor / Outdoor Standard","Gen. Indoor / Outdoor Standard",100,100,100]
[12,"C2-50% w/Networked Cont","Gen. Indoor / Outdoor w/Networked Controls","101-200",0.5,null,100,100,100,101,200,null,"Gen. Indoor / Outdoor w/Networked Controls","Gen. Indoor / Outdoor w/Networked Controls",100,100,100]
[13,"C2-60%","Gen. Indoor / Outdoor Standard","101-200",0.6,null,80,100,80,101,200,null,"Gen. Indoor / Outdoor Standard","Gen. Indoor / Outdoor Standard",120,100,120]
[14,"C2-60% w/Networked Cont","Gen. Indoor / Outdoor w/Networked Controls","101-200",0.6,null,120,100,120,101,200,null,"Gen. Indoor / Outdoor w/Networked Controls","Gen. Indoor / Outdoor w/Networked Controls",120,100,120]
[15,"C2-70%","Gen. Indoor / Outdoor Standard","101-200",0.7,null,100,100,100,101,200,null,"Gen. Indoor / Outdoor Standard","Gen. Indoor / Outdoor Standard",140,100,140]
[16,"C2-70% w/Networked Cont","Gen. Indoor / Outdoor w/Networked Controls","101-200",0.7,null,140,100,140,101,200,null,"Gen. Indoor / Outdoor w/Networked Controls","Gen. Indoor / Outdoor w/Networked Controls",140,100,140]
[17,"C3-40%","Gen. Indoor / Outdoor Standard",{"$f":"IF(J31=0,IF(K31=999999,\"any wattage\",\"≤\"&K31),IF(K31<>999999,J31&\"-\"&K31,\"≥\"&J31))","v":"≥201"},0.4,null,70,100,70,201,999999,null,"Gen. Indoor / Outdoor Standard","Gen. Indoor / Outdoor Standard",130,100,130]
[18,"C3-40% w/Networked Cont","Gen. Indoor / Outdoor w/Networked Controls","≥201",0.4,null,130,100,130,201,999999,null,"Gen. Indoor / Outdoor w/Networked Controls","Gen. Indoor / Outdoor w/Networked Controls",130,100,130]
[19,"C3-50%","Gen. Indoor / Outdoor Standard","≥201",0.5,null,100,100,100,201,999999,null,"Gen. Indoor / Outdoor Standard","Gen. Indoor / Outdoor Standard",160,100,160]
[20,"C3-50% w/Networked Cont","Gen. Indoor / Outdoor w/Networked Controls","≥201",0.5,null,160,100,160,201,999999,null,"Gen. Indoor / Outdoor w/Networked Controls","Gen. Indoor / Outdoor w/Networked Controls",160,100,160]
[21,"C3-60%","Gen. Indoor / Outdoor Standard","≥201",0.6,null,120,100,120,201,999999,null,"Gen. Indoor / Outdoor Standard","Gen. Indoor / Outdoor Standard",180,100,180]
[22,"C3-60% w/Networked Cont","Gen. Indoor / Outdoor w/Networked Controls","≥201",0.6,null,180,100,180,201,999999,null,"Gen. Indoor / Outdoor w/Networked Controls","Gen. Indoor / Outdoor w/Networked Controls",180,100,180]
[23,"C3-70%","Gen. Indoor / Outdoor Standard","≥201",0.7,null,140,100,140,201,999999,null,"Gen. Indoor / Outdoor Standard","Gen. Indoor / Outdoor Standard",200,100,200]
[24,"C3-70% w/Networked Cont","Gen. Indoor / Outdoor w/Networked Controls","≥201",0.7,null,200,100,200,201,999999,null,"Gen. Indoor / Outdoor w/Networked Controls","Gen. Indoor / Outdoor w/Networked Controls",200,100,200]
[]
[]
["Row ID","Measure ","Description ","Watt Baseline","Min Wattage Reduction",null,"BPA Incentive Standard","% Utility Passthrough","Utility Incentive Standard","Min Wattage","Max Wattage","Additional Criteria","Description ","User Lookup Description","BPA Incentive w/ Networked Controls","% Utility Passthrough","Utility Incentive w/ Networked Controls"]
[1,"D1-40%","LED High Bay Standard",{"$f":"IF(J42=0,IF(K42=999999,\"any wattage\",\"≤\"&K42),IF(K42<>999999,J42&\"-\"&K42,\"≥\"&J42))","v":"140-299"},0.4,null,80,100,80,140,299,null,"LED High Bay Standard","LED High Bay Standard",140,100,140]
[2,"D1-40% w/ Networked Cont","LED High Bay w/ Networked Controls","140-299",0.4,null,140,100,140,140,299,null,"LED High Bay w/ Networked Controls","LED High Bay w/ Networked Controls",140,100,140]
[3,"D1-60%","LED High Bay Standard","140-299",0.6,null,140,100,140,140,299,null,"LED High Bay Standard","LED High Bay Standard",200,100,200]
[4,"D1-60% w/ Networked Cont","LED High Bay w/ Networked Controls","140-299",0.6,null,200,100,200,140,299,null,"LED High Bay w/ Networked Controls","LED High Bay w/ Networked Controls",200,100,200]
[5,"D1-70%","LED High Bay Standard","140-299",0.7,null,200,100,200,140,299,null,"LED High Bay Standard","LED High Bay Standard",260,100,260]
[6,"D1-70% w/ Networked Cont","LED High Bay w/ Networked Controls","140-299",0.7,null,260,100,260,140,299,null,"LED High Bay w/ Networked Controls","LED High Bay w/ Networked Controls",260,100,260]
[7,"D2-40%","LED High Bay Standard","300-399",0.4,null,100,100,100,300,399,null,"LED High Bay Standard","LED High Bay Standard",160,100,160]
[8,"D2-40% w/ Networked Cont","LED High Bay w/ Networked Controls","300-399",0.4,null,160,100,160,300,399,null,"LED High Bay w/ Networked Controls","LED High Bay w/ Networked Controls",160,100,160]
[9,"D2-60%","LED High Bay Standard","300-399",0.6,null,180,100,180,300,399,null,"LED High Bay Standard","LED High Bay Standard",240,100,240]
[10,"D2-60% w/ Networked Cont","LED High Bay w/ Networked Controls","300-399",0.6,null,240,100,240,300,399,null,"LED High Bay w/ Networked Controls","LED High Bay w/ Networked Controls",240,100,240]
[11,"D2-70%","LED High Bay Standard","300-399",0.7,null,300,100,300,300,399,null,"LED High Bay Standard","LED High Bay Standard",360,100,360]
[12,"D2-70% w/ Networked Cont","LED High Bay w/ Networked Controls","300-399",0.7,null,360,100,360,300,399,null,"LED High Bay w/ Networked Controls","LED High Bay w/ Networked Controls",360,100,360]
[13,"D3-40%","LED High Bay Standard","400-499",0.4,null,140,100,140,400,499,null,"LED High Bay Standard","LED High Bay Standard",200,100,200]
[14,"D3-40% w/ Networked Cont","LED High Bay w/ Networked Controls","400-499",0.4,null,200,100,200,400,499,null,"LED High Bay w/ Networked Controls","LED High Bay w/ Networked Controls",200,100,200]
[15,"D3-60%","LED High Bay Standard","400-499",0.6,null,240,100,240,400,499,null,"LED High Bay Standard","LED High Bay Standard",300,100,300]
[16,"D3-60% w/ Networked Cont","LED High Bay w/ Networked Controls","400-499",0.6,null,300,100,300,400,499,null,"LED High Bay w/ Networked Controls","LED High Bay w/ Networked Controls",300,100,300]
[17,"D3-70%","LED High Bay Standard","400-499",0.7,null,360,100,360,400,499,null,"LED High Bay Standard","LED High Bay Standard",420,100,420]
[18,"D3-70% w/ Networked Cont","LED High Bay w/ Networked Controls","400-499",0.7,null,420,100,420,400,499,null,"LED High Bay w/ Networked Controls","LED High Bay w/ Networked Controls",420,100,420]
[19,"D4-40%","LED High Bay Standard","≥500",0.4,null,250,100,250,500,999999,null,"LED High Bay Standard","LED High Bay Standard",350,100,350]
[20,"D4-40% w/ Networked Cont","LED High Bay w/ Networked Controls","≥500",0.4,null,350,100,350,500,999999,null,"LED High Bay w/ Networked Controls","LED High Bay w/ Networked Controls",350,100,350]
[21,"D4-60%","LED High Bay Standard","≥500",0.6,null,400,100,400,500,999999,null,"LED High Bay Standard","LED High Bay Standard",500,100,500]
[22,"D4-60% w/ Networked Cont","LED High Bay w/ Networked Controls","≥500",0.6,null,500,100,500,500,999999,null,"LED High Bay w/ Networked Controls","LED High Bay w/ Networked Controls",500,100,500]
[23,"D4-70%","LED High Bay Standard","≥500",0.7,null,500,100,500,500,999999,null,"LED High Bay Standard","LED High Bay Standard",600,100,600]
[24,"D4-70% w/ Networked Cont","LED High Bay w/ Networked Controls","≥500",0.7,null,600,100,600,500,999999,null,"LED High Bay w/ Networked Controls","LED High Bay w/ Networked Controls",600,100,600]
[]
["Row ID","Measure ","Description ","Watt Baseline","Min Wattage Reduction",null,"BPA Incentive","% Utility Passthrough","Utility Incentive","Min Wattage","Max Wattage","Additional Criteria","Description ","User Lookup Description"]
[1,"E1-40%","LED Exterior",{"$f":"IF(J68=0,IF(K68=999999,\"any wattage\",\"≤\"&K68),IF(K68<>999999,J68&\"-\"&K68,\"≥\"&J68))","v":"30-99"},0.4,null,30,100,30,30,99,null,"LED Exterior","LED Exterior"]
[2,"E1-60%","LED Exterior","30-99",0.6,null,40,100,40,30,99,null,"LED Exterior","LED Exterior"]
[3,"E1-70%","LED Exterior","30-99",0.7,null,50,100,50,30,99,null,"LED Exterior","LED Exterior"]
[4,"E2-40%","LED Exterior","100-199",0.4,null,60,100,60,100,199,null,"LED Exterior","LED Exterior"]
[5,"E2-60%","LED Exterior","100-199",0.6,null,80,100,80,100,199,null,"LED Exterior","LED Exterior"]
[6,"E2-70%","LED Exterior","100-199",0.7,null,100,100,100,100,199,null,"LED Exterior","LED Exterior"]
[7,"E3-40%","LED Exterior","200-299",0.4,null,80,100,80,200,299,null,"LED Exterior","LED Exterior"]
[8,"E3-60%","LED Exterior","200-299",0.6,null,120,100,120,200,299,null,"LED Exterior","LED Exterior"]
[9,"E3-70%","LED Exterior","200-299",0.7,null,140,100,140,200,299,null,"LED Exterior","LED Exterior"]
[10,"E4-40%","LED Exterior","300-399",0.4,null,100,100,100,300,399,null,"LED Exterior","LED Exterior"]
[11,"E4-60%","LED Exterior","300-399",0.6,null,180,100,180,300,399,null,"LED Exterior","LED Exterior"]
[12,"E4-70%","LED Exterior","300-399",0.7,null,250,100,250,300,399,null,"LED Exterior","LED Exterior"]
[13,"E5-40%","LED Exterior","400-499",0.4,null,120,100,120,400,499,null,"LED Exterior","LED Exterior"]
[14,"E5-60%","LED Exterior","400-499",0.6,null,220,100,220,400,499,null,"LED Exterior","LED Exterior"]
[15,"E5-70%","LED Exterior","400-499",0.7,null,300,100,300,400,499,null,"LED Exterior","LED Exterior"]
[16,"E6-40%","LED Exterior","≥500",0.4,null,250,100,250,500,999999,null,"LED Exterior","LED Exterior"]
[17,"E6-60%","LED Exterior","≥500",0.6,null,400,100,400,500,999999,null,"LED Exterior","LED Exterior"]
[18,"E6-70%","LED Exterior","≥500",0.7,null,500,100,500,500,999999,null,"LED Exterior","LED Exterior"]
[]
["Row ID","Measure ","Description ","Watt Baseline","Min Wattage Reduction",null,"BPA Incentive","% Utility Passthrough","Utility Incentive","Min Wattage","Max Wattage",null,"Description ","User Lookup Description"]
[1,"F1-40%","HID Screw-in Replacement",{"$f":"IF(J88=0,IF(K88=999999,\"any wattage\",\"≤\"&K88),IF(K88<>999999,J88&\"-\"&K88,\"≥\"&J88))","v":"40-200"},0.4,null,20,100,20,40,200,null,"HID Screw-in Replacement","HID Screw-in Replacement"]
[2,"F2-40%","HID Screw-in Replacement",{"$f":"IF(J89=0,IF(K89=999999,\"any wattage\",\"≤\"&K89),IF(K89<>999999,J89&\"-\"&K89,\"≥\"&J89))","v":"201-300"},0.4,null,40,100,40,201,300,null,"HID Screw-in Replacement","HID Screw-in Replacement"]
[3,"F3-40%","HID Screw-in Replacement",{"$f":"IF(J90=0,IF(K90=999999,\"any wattage\",\"≤\"&K90),IF(K90<>999999,J90&\"-\"&K90,\"≥\"&J90))","v":"301-400"},0.4,null,60,100,60,301,400,null,"HID Screw-in Replacement","HID Screw-in Replacement"]
[4,"F4-40%","HID Screw-in Replacement",{"$f":"IF(J91=0,IF(K91=999999,\"any wattage\",\"≤\"&K91),IF(K91<>999999,J91&\"-\"&K91,\"≥\"&J91))","v":"401-999"},0.4,null,80,100,80,401,999,null,"HID Screw-in Replacement","HID Screw-in Replacement"]
[5,"F5-40%","HID Screw-in Replacement",{"$f":"IF(J92=0,IF(K92=999999,\"any wattage\",\"≤\"&K92),IF(K92<>999999,J92&\"-\"&K92,\"≥\"&J92))","v":"≥1000"},0.4,null,150,100,150,1000,999999,null,"HID Screw-in Replacement","HID Screw-in Replacement"]
[]
["Row ID","Measure ","Description ","Watt Baseline","Min Wattage Reduction",null,"BPA Incentive","% Utility Passthrough","Utility Incentive","Min Wattage","Max Wattage",null,"Description ","User Lookup Description"]
[1,"G1","LED Linear","N/A","N/A",null,0.17,100,0.17,0,999999,null,"LED Linear ","LED Linear "]
[]
["Row ID","Measure ","Description ","Watt Baseline","Min Wattage Reduction",null,"BPA Incentive","% Utility Passthrough","Utility Incentive","Min Wattage","Max Wattage",null,"Description ","User Lookup Description"]
[1,"H-90%","LED Exit Signs",{"$f":"IF(J98=0,IF(K98=999999,\"any wattage\",\"≤\"&K98),IF(K98<>999999,J98&\"-\"&K98,\"≥\"&J98))","v":"10-100"},0.9,null,20,100,20,10,100,null,"LED Exit Signs","LED Exit Signs"]
[]
["Row ID","Measure ","Description ","Watt Baseline","Min Wattage Reduction",null,"BPA Incentive","% Utility Passthrough","Utility Incentive","Min Wattage","Max Wattage",null,"Description ","User Lookup Description"]
[1,"I1","Signage","N/A","N/A",null,0.17,100,0.17,0,999999,null,"Signage ","Signage "]
[]
["Row ID","Measure ","Description ","Watt Baseline","Min Wattage Reduction",null,"BPA Incentive","% Utility Passthrough","Utility Incentive","Min Wattage","Max Wattage",null,"Description ","User Lookup Description"]
[1,"J1","Decommissioning","N/A","N/A",null,0.17,100,0.17,"N/A","N/A",null,"Decommissioning","Decommissioning"]
[]
["Row ID","Measure ","Description ","Watt Baseline","Min Wattage Reduction",null,"BPA Incentive","% Utility Passthrough","Utility Incentive","Min Wattage","Max Wattage",null,"Description ","User Lookup Description"]
[1,"K1","Non-Standard Measures","N/A","N/A",null,0.17,100,0.17,"N/A","N/A",null,"Non-Standard Measures","Non-Standard Measures"]
[]
["Row ID","Measure ","Description ","Watt Baseline","Min Wattage Reduction",null,"BPA Incentive","% Utility Passthrough","Utility Incentive","Min Wattage","Max Wattage",null,"Description ","User Lookup Description"]
[1,"L1","Occ. Sensor",{"$f":"IF(J110=0,IF(K110=999999,\"any wattage\",\"≤\"&K110),IF(K110<>999999,J110&\"-\"&K110,\"≥\"&J110))","v":"15-44"},0.25,null,10,100,10,15,44,null,"Occ. Sensor ","Occ. Sensor "]
[2,"L1","Occ. Sensor","45-200",0.25,null,30,100,30,45,200,null,"Occ. Sensor ","Occ. Sensor "]
[3,"L1","Occ. Sensor","≥201",0.25,null,50,100,50,201,999999,null,"Occ. Sensor ","Occ. Sensor "]
[4,"L2","Multi Function","15-44",0.25,null,15,100,15,15,44,null,"Multi Function","Multi Function"]
[5,"L2","Multi Function","45-200",0.25,null,40,100,40,45,200,null,"Multi Function","Multi Function"]
[6,"L2","Multi Function","≥201",0.25,null,50,100,50,201,999999,null,"Multi Function","Multi Function"]
[7,"L3","Other","15-44",0.25,null,10,100,10,15,44,null,"Other","Other"]
[8,"L3","Other","45-200",0.25,null,30,100,30,45,200,null,"Other","Other"]
[9,"L3","Other","≥201",0.25,null,40,100,40,201,999999,null,"Other","Other"]
[]
[]
["Row ID","Measure ","Description ","Watt Baseline","Min Wattage Reduction",null,"BPA Incentive","% Utility Passthrough","Utility Incentive","Min Wattage","Max Wattage",null,"Description ","User Lookup Description"]
[1,"NC","New Construction","N/A","N/A",null,0.13,100,0.13,"N/A","N/A",null,"New Construction","New Construction"]
[]
["Row ID","Measure ","Description ","Watt Baseline","Min Wattage Reduction",null,"BPA Incentive","% Utility Passthrough","Utility Incentive","Min Wattage","Max Wattage",null,"Description ","User Lookup Description"]
[1]
[]
["Row ID","Measure ","Description ","Watt Baseline","Min Wattage Reduction",null,"BPA Incentive","% Utility Passthrough","Utility Incentive","Min Wattage","Max Wattage",null,"Description ","User Lookup Description"]
[]
[]
["Row ID","Measure ","Description ","Watt Baseline","Min Wattage Reduction",null,"BPA Incentive","% Utility Passthrough","Utility Incentive","Min Wattage","Max Wattage",null,"Description ","User Lookup Description"]
[null,null,null,null,null,null,null,10,0.02]
[]
["Row ID","Measure ","Description ","Watt Baseline","Min Wattage Reduction",null,"BPA Incentive","% Utility Passthrough","Utility Incentive","Min Wattage","Max Wattage",null,"Description ","User Lookup Description"]
[1,"N1","Controls",{"$f":"IF(J134=0,IF(K134=999999,\"any wattage\",\"≤\"&K134),IF(K134<>999999,J134&\"-\"&K134,\"≥\"&J134))","v":"45-200"},0.25,null,35,100,35,45,200,null,"Controls","Controls"]
[2,"N2","Controls",{"$f":"IF(J135=0,IF(K135=999999,\"any wattage\",\"≤\"&K135),IF(K135<>999999,J135&\"-\"&K135,\"≥\"&J135))","v":"≥201"},0.25,null,60,100,60,201,999999,null,"Controls","Controls"]

{"sheet":"static_Tables","index":31,"n_rows":200,"n_cols":14,"rows_kept":200,"cut":false,"hidden":false,"merged":[]}
["ALL TABLES EXCEPT MASTER MEASURE LIST THAT ARE STATICALLY DEFINED PRIOR TO CONTRACTOR USE"]
["Table: Heating",null,null,null,null,null,null,null,null,null,null,null,"hours from John Wilson, Aprl 30, 2013"]
["Building Type","Electric Resistance w/ Cooling","Electric Resistance w/o Cooling","Heat Pump w/ Cooling","Heat Pump w/o Cooling","Gas, Oil, or Biomass w/ Cooling","Gas, Oil, or Biomass w/o Cooling","Cooling w/o Heat","Refrigerated Space","None/Exterior","Gas Htg Penalty\nInteraction\n(Therms/kWh ltg saved)",null,{"$f":"A3","v":"Building Type"},"New Con Hours of Operation"]
["Assembly",0.82,0.82,1,1,1.03,1.03,1,1.3,1,-8.1887999999999996E-3,null,"Assembly",2200]
["Automotive Repair",0.61,0.61,0.8,0.8,1.03,1.03,1,1.3,1,-1.7742399999999998E-2,null,"Automotive Repair",3700]
["College or University",0.53,0.53,0.76,0.76,1.1100000000000001,1.1100000000000001,1,1.3,1,-2.1381866666666666E-2,null,"College or University",6400]
["Exterior 24 Hour Operation",1,1,1,1,1,1,1,1.3,1,0,null,"Exterior 24 Hour Operation",8760]
["Hospital",0.36,0.36,0.69,0.69,0.94,0.94,1,1.3,1,-3.3027554217994394E-2,null,"Hospital",6300]
["Industrial Plant with One Shift",0.61,0.61,0.8,0.8,0.96,0.96,1,1.3,1,-1.7742399999999998E-2,null,"Industrial Plant with One Shift",3000]
["Industrial Plant with Two Shifts",0.61,0.61,0.8,0.8,0.96,0.96,1,1.3,1,-1.7742399999999998E-2,null,"Industrial Plant with Two Shifts",6500]
["Industrial Plant with Three Shifts",0.61,0.61,0.8,0.8,0.96,0.96,1,1.3,1,-1.7742399999999998E-2,null,"Industrial Plant with Three Shifts",8760]
["Library",0.53,0.53,0.76,0.76,1.03,1.03,1,1.3,1,-2.1381866666666666E-2,null,"Library",3700]
["Lodging",0.6,0.6,0.8,0.8,1.05,1.05,1,1.3,1,-1.8197333333333333E-2,null,"Lodging",8300]
["Manufacturing",0.61,0.61,0.8,0.8,0.96,0.96,1,1.3,1,-1.7742399999999998E-2,null,"Manufacturing",4380]
["Office <20,000 sf",0.69,0.69,0.85,0.85,1.1200000000000001,1.1200000000000001,1,1.3,1,-1.433746092778501E-2,null,"Office <20,000 sf",3000]
["Office >100,000 sf",0.69,0.69,0.85,0.85,1.07,1.07,1,1.3,1,-1.5556589024992637E-2,null,"Office >100,000 sf",3000]
["Office 20,000 to 100,000 sf",0.66,0.66,0.84,0.84,1.08,1.08,1,1.3,1,-1.6529198379072178E-2,null,"Office 20,000 to 100,000 sf",3000]
["Other Health, Nursing, Medical Clinic",0.81,0.81,1,1,1.08,1.08,1,1.3,1,-9.0204852038530976E-3,null,"Other Health, Nursing, Medical Clinic",4500]
["Parking Garage",1,1,1,1,1,1,1,1.3,1,0,null,"Parking Garage",8760]
["Restaurant",0.74,0.74,0.88,0.88,0.96,0.96,1,1.3,1,-1.1640621053000576E-2,null,"Restaurant",4800]
["Retail 5,000 to 50,000 sf",0.62,0.62,0.82,0.82,1.03,1.03,1,1.3,1,-1.6979429371699425E-2,null,"Retail 5,000 to 50,000 sf",3700]
["Retail Anchor Store >50,000 sf Multistory",0.62,0.62,0.82,0.82,1.1000000000000001,1.1000000000000001,1,1.3,1,-1.6979429371699425E-2,null,"Retail Anchor Store >50,000 sf Multistory",4400]
["Retail Big Box >50,000 sf One-Story",0.62,0.62,0.82,0.82,1.1200000000000001,1.1200000000000001,1,1.3,1,-1.6979429371699425E-2,null,"Retail Big Box >50,000 sf One-Story",4400]
["Retail Boutique <5,000 sf",0.54,0.54,0.78,0.78,1.04,1.04,1,1.3,1,-2.0773086816817742E-2,null,"Retail Boutique <5,000 sf",2550]
["Retail Mini Mart",0.45,0.45,0.74,0.74,1.05,1.05,1,1.3,1,-2.4865856069418713E-2,null,"Retail Mini Mart",6500]
["Retail Supermarket",0.45,0.45,0.74,0.74,1.05,1.05,1,1.3,1,-2.4865856069418713E-2,null,"Retail Supermarket",5800]
["School K-12",0.59,0.59,0.8,0.8,1,1,1,1.3,1,-2.0043281366584637E-2,null,"School K-12",2700]
["Street & Area Lighting (Photo Sensor Controlled)",1,1,1,1,1,1,1,1.3,1,0,null,"Street & Area Lighting (Photo Sensor Controlled)",4380]
["Warehouse",0.82,0.82,1,1,0.96,0.96,1,1.3,1,-8.3809589816051817E-3,null,"Warehouse",4000]
["Other",0.82,0.82,1,1,1.03,1.03,1,1.3,1,-8.1887999999999996E-3,null,"Other",3200]
["Table: Heating Type to Cooling"]
["Heating Type","Cooling Type","Space Conditioning Type","Data Column"]
["No heating","No cooling","None/Exterior",10,null,"Heating Types",null,"Cooling Types"]
["No heating","Air cond./ Heat pump","Cooling w/o Heat",8,null,"No heating",null,"No cooling"]
["No heating","Refrigerated","Refrigerated Space",9,null,"Electric resistance",null,"Air cond./ Heat pump"]
["Electric resistance","No cooling","Electric Resistance w/o Cooling",3,null,"Heat pump",null,"Refrigerated"]
["Electric resistance","Air cond./ Heat pump","Electric Resistance w/ Cooling",2,null,"Gas, oil, or biomass"]
["Electric resistance","Refrigerated","Refrigerated Space",9]
["Heat pump","No cooling","Heat Pump w/o Cooling",5]
["Heat pump","Air cond./ Heat pump","Heat Pump w/ Cooling",4]
["Heat pump","Refrigerated","Refrigerated Space",9]
["Gas, oil, or biomass","No cooling","Gas, Oil, or Biomass w/o Cooling",7]
["Gas, oil, or biomass","Air cond./ Heat pump","Gas, Oil, or Biomass w/ Cooling",6]
["Gas, oil, or biomass","Refrigerated","Refrigerated Space",9]
[]
[]
["Utility Name","Unique Customer ID"]
["Albion",10055]
["Alder",10005]
["Ashland",10057]
["Asotin PUD",10015]
["Bandon",10059]
["Bangor",10409]
["Benton Co. PUD #1",10024]
["Benton REA",10025]
["Big Bend Electric Coop.",10027]
["Blachly-Lane Electric Coop",10029]
["Blaine",10061]
["Bonners Ferry",10062]
["Bremerton",10326]
["Burley",10064]
["Canby",10044]
["Cascade Locks",10065]
["Central Electric Coop.",10046]
["Central Lincoln PUD",10047]
["Centralia",10066]
["Chelan Co. PUD #1",10050]
["Cheney",10067]
["Chewelah",10068]
["Clallam Co. PUD #1",10101]
["Clark Co. PUD #1",10103]
["Clatskanie PUD",10105]
["Clearwater Power Co.",10106]
["Columbia Basin Coop.",10109]
["Columbia Power Coop.",10111]
["Columbia REA",10113]
["Columbia River PUD",10112]
["Consolidated Irrigation District #19",10116]
["Consumers Power, Inc.",10118]
["Coos-Curry Electric Coop.",10121]
["Coulee Dam",10378]
["Cowlitz Co. PUD #1",10123]
["Declo",10070]
["Douglas Co. PUD #1",10135]
["Douglas Electric Coop.",10136]
["Drain",10071]
["East End",10142]
["Eatonville",10144]
["Ellensburg",10072]
["Elmhurst",10156]
["Emerald PUD",10157]
["Energy Northwest",10158]
["Eugene",10170]
["Everett",10408]
["Fairchild Airforce Base",10172]
["Fall River Rural Electric Coop.",10173]
["Farmers",10174]
["Ferry Co. PUD #1",10177]
["Fircrest",10073]
["Flathead Electric Coop.",10179]
["Forest Grove",10074]
["Franklin Co. PUD #1",10183]
["Glacier Electric Coop.",10186]
["Grant Co. PUD #2",10190]
["Grays Harbor Co. PUD #1",10191]
["Harney Electric Coop.",10197]
["Hermiston Energy Services",10597]
["Heyburn",10076]
["Hood River Electric Coop.",10202]
["Idaho Co. L & P Coop.",10203]
["Idaho Falls",10204]
["Inland Power & Light",10209]
["Jefferson",12026]
["Kalispel Indian Community of the Kalispel Reservation",13927]
["Kittitas Co. PUD #1",10230]
["Klickitat Co. PUD #1",10231]
["Kootenai Electric Coop.",10234]
["Lakeview L & P Co.",10235]
["Lane Electric Coop.",10236]
["Lewis Co. PUD #1",10237]
["Lincoln Electric Coop. Mont",10239]
["Lost River Electric Coop.",10242]
["Lower Valley Energy",10244]
["Mason Co. PUD #1",10246]
["Mason Co. PUD #3",10247]
["McCleary",10078]
["McMinnville",10079]
["Midstate Electric Coop.",10256]
["Milton",10080]
["Milton-Freewater",10081]
["Minidoka",10082]
["Mission Valley Power",10258]
["Missoula Electric Coop.",10259]
["Modern Electric Water",10260]
["Monmouth",10083]
["Nespelem Valley Electric",10273]
["Northern Lights, Inc.",10278]
["Northern Wasco PUD",10279]
["OHOP Mutual",10284]
["Okanogan Co. Electric Coop.",10285]
["Okanogan Co. PUD #1",10286]
["Orcas Power & Light Coop.",10288]
["Oregon Trail Electric Coop.",10291]
["Pacific Co. PUD #2",10294]
["Parkland P & L",10304]
["Pend Oreille Co. PUD #1",10306]
["Peninsula Power & Light Inc.",10307]
["Plummer",10086]
["PNGC",10298]
["Port Angeles",10087]
["Port of Seattle",10706]
["Raft River Electric Coop.",10331]
["Ravalli Electric Coop.",10333]
["Richland",10089]
["Riverside",10338]
["Rupert",10091]
["Salem Electric",10342]
["Salmon River Electric Coop.",10343]
["Seattle",10349]
["Skamania Co. PUD #1",10352]
["Snohomish Co. PUD #1",10354]
["Soda Springs",10094]
["South Side Electric",10360]
["Springfield",10363]
["Steilacoom",10379]
["Sumas",10095]
["Surprise Valley Electric Corp.",10369]
["Tacoma Power",10370]
["Tanner Electric",10371]
["Tillamook PUD",10376]
["Troy",10097]
["Umatilla Electric Coop.",10388]
["Umpqua Indian Utility Coop.",10482]
["United Electric Cooperative, Inc.",10391]
["US Bia Wapato",10399]
["US DOE National Technology Lab",10406]
["US DOE Richland",10426]
["Vera Water & Power",10434]
["Vigilante Electric Coop.",10436]
["Wahkiakum Co. PUD #1",10440]
["Wasco Electric Coop.",10442]
["Weiser",11680]
["Wells Rural Electric",10446]
["West Oregon Electric Coop.",10448]
["Whatcom",10451]
["Yakama Power",10502]
[]
["Controls Types","Reduction in watts"]
["Multi Function ↓ 100%",1]
["Multi Function ↓ 90%",0.9]
["Multi Function ↓ 80%",0.8]
["Multi Function ↓ 75%",0.75]
["Multi Function ↓ 66%",0.66]
["Multi Function ↓ 60%",0.6]
["Multi Function ↓ 50%",0.5]
["Multi Function ↓ 40%",0.4]
["Multi Function ↓ 33%",0.33]
["Multi Function ↓ 25%",0.25]
["Multi Function ↓ 20%",0.2]
["Multi Function ↓ 10%",0.1]

{"sheet":"static_Lists","index":32,"n_rows":143,"n_cols":68,"rows_kept":143,"cut":false,"hidden":false,"merged":[]}
["ALL STATIC 1D ARRAYS (LISTS)",null,null,"Worksheets Available for Special Utilities:",null,null,null,null,null,"Welcome,prntrdy_Form1"]
["Notes"]
["List Name Range","list_StateAbreviations",null,"list_Sectors",null,null,null,null,null,null,null,null,null,"list_HeatingTypes",null,"list_CoolingTypes",null,"list_MeasureSeries",null,"list_ControlsClasses",null,"list_PrintReadyTradeAllyForms",null,"list_MeasureTypes",null,"list_Titles",null,"list_States",null,"list_50States",null,"list_Sectors",null,null,null,null,null,null,null,"list_AllBuildingTypes",null,"list_ProjectTypes",null,"list_Months",null,"list_Days",null,"list_Years",null,"list_FundingSources",null,"list_NonStandardStatus",null,"list_UtilityName",null,"list_PrintReadyUtilityForms",null,"list_PrintReadyTAForms",null,"list_PrintReadyUtilityForms_NC",null,"list_PrintReadyTAForms_NC",null,"list_ProgramRequirementsDocs",null,"list_SpaceTypes",null,"list_OMSpecificationOptions"]
["Label","State Abreviations",null,"Sectors",null,null,null,null,"BPA:",null,null,null,null,"Heating Types",null,"Cooling Types",null,"Lighting Measure Types",null,"Controls Types",null,"Print-Ready Trade Ally Forms",null,"Measure Types",null,"Titles",null,"States",null,"States",null,"Sectors",null,null,null,null,null,null,null,"Building Types",null,"Project Types",null,"Months",null,"Days",null,"Year",null,"Funding Source",null,"NonStandard Meas Status",null,"Utility Name",null,"Print-Ready Utility Forms",null,"Print-Ready Trade Ally Forms",null,"Print-Ready Utility Forms (NC)",null,"Print-Ready Trade Ally Forms (NC)",null,"Program Requirements PRFs",null,"Typical Space Use Types",null,"O&M Specification Options"]
["values…","CA",null,"Commercial",null,null,null,null,"Utility:",null,null,null,null,"No heating",null,"No cooling",null,"A - LED Small Lamp / Fixture",null,"Occ. Sensor",null,"Customer Proposal",null,"Deemed",null,"Mr.",null,"CA",null,"AK",null,"Commercial",null,null,null,null,null,null,null,"Assembly",null,"Retrofit",null,"January",null,"1",null,"2012",null,"Energy Efficiency Incentive (EEI)",null,"YES",null,"Albion",null,"Utility Summary",null,"Customer Proposal",null,"Utility Summary",null,"Customer Proposal",null,"Program Requirements",null,"Assembly",null,"Default: Set to 3% of project costs"]
[null,"ID",null,"Industrial",null,null,null,null,"Approve Utility:",null,null,null,null,"Electric resistance",null,"Air cond./ Heat pump",null,"B- LED Tubes",null,"Multi Function ↓ 100%",null,"Program Offerings",null,"Controls Only",null,"Ms.",null,"ID",null,"AL",null,"Industrial",null,null,null,null,null,null,null,"Automotive Repair",null,"New Construction",null,"February",null,"2",null,"2013",null,"Utility Self-Fund",null,"NO",null,"Alder",null,"Customer Proposal",null,"Project Summary",null,"Customer Proposal",null,null,null,"BPA Lighting Formulas and Adjustments",null,"Break Room",null,"Specify O&M costs below"]
[null,"MT",null,"Agricultural",null,null,null,null,"Special Utility:",null,null,null,null,"Heat pump",null,"Refrigerated",null,"C- Gen. Indoor / Outdoor",null,"Multi Function ↓ 90%",null,null,null,"Non-standard",null,"Mrs.",null,"MT",null,"AR",null,"Agricultural",null,null,null,null,null,null,null,"College or University",null,null,null,"March",null,"3",null,"2014",null,null,null,null,null,"Ashland",null,"Project Summary",null,"Space Types",null,null,null,null,null,null,null,"Classroom",null,"Set O&M savings to $0"]
[null,"NV",null,null,null,null,null,null,null,null,null,null,null,"Gas, oil, or biomass",null,null,null,"D- LED High Bay",null,"Multi Function ↓ 80%",null,null,null,null,null,"Dr.",null,"NV",null,"AZ",null,null,null,null,null,null,null,null,null,"Exterior 24 Hour Operation",null,null,null,"April",null,"4",null,"2015",null,null,null,null,null,"Asotin PUD",null,null,null,null,null,null,null,null,null,null,null,"Computer Room"]
[null,"OR",null,null,null,null,null,null,null,null,null,null,null,null,null,null,null,"E- LED Exterior ",null,"Multi Function ↓ 75%",null,null,null,null,null,null,null,"OR",null,"CA",null,null,null,null,null,null,null,null,null,"Hospital",null,null,null,"May",null,"5",null,"2016",null,null,null,null,null,"Bandon",null,null,null,null,null,null,null,null,null,null,null,"Conference"]
[null,"UT",null,null,null,null,null,null,null,null,null,null,null,null,null,null,null,"F- HID Screw-in Replacement",null,"Multi Function ↓ 66%",null,null,null,null,null,null,null,"UT",null,"CO",null,null,null,null,null,null,null,null,null,"Industrial Plant with One Shift",null,null,null,"June",null,"6",null,"2017",null,null,null,null,null,"Bangor",null,null,null,null,null,null,null,null,null,null,null,"Dining"]
[null,"WA",null,null,null,null,null,null,null,null,null,null,null,null,null,null,null,"G- LED Linear",null,"Multi Function ↓ 60%",null,null,null,null,null,null,null,"WA",null,"CT",null,null,null,null,null,null,null,null,null,"Industrial Plant with Three Shifts",null,null,null,"July",null,"7",null,"2018",null,null,null,null,null,"Benton Co. PUD #1",null,null,null,null,null,null,null,null,null,null,null,"Gymnasium"]
[null,"WY",null,null,null,null,null,null,null,null,null,null,null,null,null,null,null,"H- LED Exit Signs",null,"Multi Function ↓ 50%",null,null,null,null,null,null,null,"WY",null,"DC",null,null,null,null,null,null,null,null,null,"Industrial Plant with Two Shifts",null,null,null,"August",null,"8",null,"2019",null,null,null,null,null,"Benton REA",null,null,null,null,null,null,null,null,null,null,null,"Hallway"]
[null,null,null,null,null,null,null,null,null,null,null,null,null,null,null,null,null,"I- Signage",null,"Multi Function ↓ 40%",null,null,null,null,null,null,null,null,null,"DE",null,null,null,null,null,null,null,null,null,"Library",null,null,null,"September",null,"9",null,"2020",null,null,null,null,null,"Big Bend Electric Coop.",null,null,null,null,null,null,null,null,null,null,null,"Hospital Room"]
[null,null,null,null,null,null,null,null,null,null,null,null,null,null,null,null,null,"J- Decommissioning",null,"Multi Function ↓ 33%",null,null,null,null,null,null,null,null,null,"FL",null,null,null,null,null,null,null,null,null,"Lodging",null,null,null,"October",null,"10",null,"2021",null,null,null,null,null,"Blachly-Lane Electric Coop",null,null,null,null,null,null,null,null,null,null,null,"Industrial"]
[null,null,null,null,null,null,null,null,null,null,null,null,null,null,null,null,null,"K- Non-Standard Measures",null,"Multi Function ↓ 25%",null,null,null,null,null,null,null,null,null,"GA",null,null,null,null,null,null,null,null,null,"Office <20,000 sf",null,null,null,"November",null,"11",null,"2022",null,null,null,null,null,"Blaine",null,null,null,null,null,null,null,null,null,null,null,"Kitchen"]
[null,null,null,null,null,null,null,null,null,null,null,null,null,null,null,null,null,"L- Controls",null,"Multi Function ↓ 20%",null,null,null,null,null,null,null,null,null,"HI",null,null,null,null,null,null,null,null,null,"Office >100,000 sf",null,null,null,"December",null,"12",null,"2023",null,null,null,null,null,"Bonners Ferry",null,null,null,null,null,null,null,null,null,null,null,"Library"]
[null,null,null,null,null,null,null,null,null,null,null,null,null,null,null,null,null,"New Construction",null,"Multi Function ↓ 10%",null,null,null,null,null,null,null,null,null,"IA",null,null,null,null,null,null,null,null,null,"Office 20,000 to 100,000 sf",null,null,null,null,null,"13",null,"2024",null,null,null,null,null,"Bremerton",null,null,null,null,null,null,null,null,null,null,null,"Lobby"]
[null,null,null,null,null,null,null,null,null,null,null,null,null,null,null,null,null,null,null,"Other",null,null,null,null,null,null,null,null,null,"ID",null,null,null,null,null,null,null,null,null,"Other Health, Nursing, Medical Clinic",null,null,null,null,null,"14",null,"2025",null,null,null,null,null,"Burley",null,null,null,null,null,null,null,null,null,null,null,"Lodging (Guest Rooms)"]
[null,null,null,null,null,null,null,null,null,null,null,null,null,null,null,null,null,null,null,null,null,null,null,null,null,null,null,null,null,"IL",null,null,null,null,null,null,null,null,null,"Parking Garage",null,null,null,null,null,"15",null,"2026",null,null,null,null,null,"Canby",null,null,null,null,null,null,null,null,null,null,null,"Open Office"]
[null,null,null,null,null,null,null,null,null,null,null,null,null,null,null,null,null,null,null,null,null,null,null,null,null,null,null,null,null,"IN",null,null,null,null,null,null,null,null,null,"Restaurant",null,null,null,null,null,"16",null,"2027",null,null,null,null,null,"Cascade Locks",null,null,null,null,null,null,null,null,null,null,null,"Parking Garage"]
[null,null,null,null,null,null,null,null,null,null,null,null,null,null,null,null,null,null,null,null,null,null,null,null,null,null,null,null,null,"KS",null,null,null,null,null,null,null,null,null,"Retail 5,000 to 50,000 sf",null,null,null,null,null,"17",null,"2028",null,null,null,null,null,"Central Electric Coop.",null,null,null,null,null,null,null,null,null,null,null,"Private Office"]
[null,null,null,null,null,null,null,null,null,null,null,null,null,null,null,null,null,null,null,null,null,null,null,null,null,null,null,null,null,"KY",null,null,null,null,null,null,null,null,null,"Retail Anchor Store >50,000 sf Multistory",null,null,null,null,null,"18",null,"2029",null,null,null,null,null,"Central Lincoln PUD",null,null,null,null,null,null,null,null,null,null,null,"Process"]
[null,null,null,null,null,null,null,null,null,null,null,null,null,null,null,null,null,null,null,null,null,null,null,null,null,null,null,null,null,"LA",null,null,null,null,null,null,null,null,null,"Retail Big Box >50,000 sf One-Story",null,null,null,null,null,"19",null,"2030",null,null,null,null,null,"Centralia",null,null,null,null,null,null,null,null,null,null,null,"Public Assembly"]
[null,null,null,null,null,null,null,null,null,null,null,null,null,null,null,null,null,null,null,null,null,null,null,null,null,null,null,null,null,"MA",null,null,null,null,null,null,null,null,null,"Retail Boutique <5,000 sf",null,null,null,null,null,"20",null,"2031",null,null,null,null,null,"Chelan Co. PUD #1",null,null,null,null,null,null,null,null,null,null,null,"Restroom"]
[null,null,null,null,null,null,null,null,null,null,null,null,null,null,null,null,null,null,null,null,null,null,null,null,null,null,null,null,null,"MD",null,null,null,null,null,null,null,null,null,"Retail Mini Mart",null,null,null,null,null,"21",null,"2032",null,null,null,null,null,"Cheney",null,null,null,null,null,null,null,null,null,null,null,"Retail"]
[null,null,null,null,null,null,null,null,null,null,null,null,null,null,null,null,null,null,null,null,null,null,null,null,null,null,null,null,null,"ME",null,null,null,null,null,null,null,null,null,"Retail Supermarket",null,null,null,null,null,"22",null,null,null,null,null,null,null,"Chewelah",null,null,null,null,null,null,null,null,null,null,null,"Stairs"]
[null,null,null,null,null,null,null,null,null,null,null,null,null,null,null,null,null,null,null,null,null,null,null,null,null,null,null,null,null,"MI",null,null,null,null,null,null,null,null,null,"School K-12",null,null,null,null,null,"23",null,null,null,null,null,null,null,"Clallam Co. PUD #1",null,null,null,null,null,null,null,null,null,null,null,"Storage"]
[null,null,null,null,null,null,null,null,null,null,null,null,null,null,null,null,null,null,null,null,null,null,null,null,null,null,null,null,null,"MN",null,null,null,null,null,null,null,null,null,"Street & Area Lighting (Photo Sensor Controlled)",null,null,null,null,null,"24",null,null,null,null,null,null,null,"Clark Co. PUD #1",null,null,null,null,null,null,null,null,null,null,null,"Technical Area"]
[null,null,null,null,null,null,null,null,null,null,null,null,null,null,null,null,null,null,null,null,null,null,null,null,null,null,null,null,null,"MO",null,null,null,null,null,null,null,null,null,"Warehouse",null,null,null,null,null,"25",null,null,null,null,null,null,null,"Clatskanie PUD",null,null,null,null,null,null,null,null,null,null,null,"Warehouse"]
[null,null,null,null,null,null,null,null,null,null,null,null,null,null,null,null,null,null,null,null,null,null,null,null,null,null,null,null,null,"MS",null,null,null,null,null,null,null,null,null,"Other",null,null,null,null,null,"26",null,null,null,null,null,null,null,"Clearwater Power Co.",null,null,null,null,null,null,null,null,null,null,null,"Other"]
[null,null,null,null,null,null,null,null,null,null,null,null,null,null,null,null,null,null,null,null,null,null,null,null,null,null,null,null,null,"MT",null,null,null,null,null,null,null,null,null,null,null,null,null,null,null,"27",null,null,null,null,null,null,null,"Columbia Basin Coop."]
[null,null,null,null,null,null,null,null,null,null,null,null,null,null,null,null,null,null,null,null,null,null,null,null,null,null,null,null,null,"NC",null,null,null,null,null,null,null,null,null,null,null,null,null,null,null,"28",null,null,null,null,null,null,null,"Columbia Power Coop."]
[null,null,null,null,null,null,null,null,null,null,null,null,null,null,null,null,null,null,null,null,null,null,null,null,null,null,null,null,null,"ND",null,null,null,null,null,null,null,null,null,null,null,null,null,null,null,"29",null,null,null,null,null,null,null,"Columbia REA"]
[null,null,null,null,null,null,null,null,null,null,null,null,null,null,null,null,null,null,null,null,null,null,null,null,null,null,null,null,null,"NE",null,null,null,null,null,null,null,null,null,null,null,null,null,null,null,"30",null,null,null,null,null,null,null,"Columbia River PUD"]
[null,null,null,null,null,null,null,null,null,null,null,null,null,null,null,null,null,null,null,null,null,null,null,null,null,null,null,null,null,"NH",null,null,null,null,null,null,null,null,null,null,null,null,null,null,null,"31",null,null,null,null,null,null,null,"Consolidated Irrigation District #19"]
[null,null,null,null,null,null,null,null,null,null,null,null,null,null,null,null,null,null,null,null,null,null,null,null,null,null,null,null,null,"NJ",null,null,null,null,null,null,null,null,null,null,null,null,null,null,null,null,null,null,null,null,null,null,null,"Consumers Power, Inc."]
[null,null,null,null,null,null,null,null,null,null,null,null,null,null,null,null,null,null,null,null,null,null,null,null,null,null,null,null,null,"NM",null,null,null,null,null,null,null,null,null,null,null,null,null,null,null,null,null,null,null,null,null,null,null,"Coos-Curry Electric Coop."]
[null,null,null,null,null,null,null,null,null,null,null,null,null,null,null,null,null,null,null,null,null,null,null,null,null,null,null,null,null,"NV",null,null,null,null,null,null,null,null,null,null,null,null,null,null,null,null,null,null,null,null,null,null,null,"Coulee Dam"]
[null,null,null,null,null,null,null,null,null,null,null,null,null,null,null,null,null,null,null,null,null,null,null,null,null,null,null,null,null,"NY",null,null,null,null,null,null,null,null,null,null,null,null,null,null,null,null,null,null,null,null,null,null,null,"Cowlitz Co. PUD #1"]
[null,null,null,null,null,null,null,null,null,null,null,null,null,null,null,null,null,null,null,null,null,null,null,null,null,null,null,null,null,"OH",null,null,null,null,null,null,null,null,null,null,null,null,null,null,null,null,null,null,null,null,null,null,null,"Declo"]
[null,null,null,null,null,null,null,null,null,null,null,null,null,null,null,null,null,null,null,null,null,null,null,null,null,null,null,null,null,"OK",null,null,null,null,null,null,null,null,null,null,null,null,null,null,null,null,null,null,null,null,null,null,null,"Douglas Co. PUD #1"]
[null,null,null,null,null,null,null,null,null,null,null,null,null,null,null,null,null,null,null,null,null,null,null,null,null,null,null,null,null,"OR",null,null,null,null,null,null,null,null,null,null,null,null,null,null,null,null,null,null,null,null,null,null,null,"Douglas Electric Coop."]
[null,null,null,null,null,null,null,null,null,null,null,null,null,null,null,null,null,null,null,null,null,null,null,null,null,null,null,null,null,"PA",null,null,null,null,null,null,null,null,null,null,null,null,null,null,null,null,null,null,null,null,null,null,null,"Drain"]
[null,null,null,null,null,null,null,null,null,null,null,null,null,null,null,null,null,null,null,null,null,null,null,null,null,null,null,null,null,"PR",null,null,null,null,null,null,null,null,null,null,null,null,null,null,null,null,null,null,null,null,null,null,null,"East End"]
[null,null,null,null,null,null,null,null,null,null,null,null,null,null,null,null,null,null,null,null,null,null,null,null,null,null,null,null,null,"RI",null,null,null,null,null,null,null,null,null,null,null,null,null,null,null,null,null,null,null,null,null,null,null,"Eatonville"]
[null,null,null,null,null,null,null,null,null,null,null,null,null,null,null,null,null,null,null,null,null,null,null,null,null,null,null,null,null,"SC",null,null,null,null,null,null,null,null,null,null,null,null,null,null,null,null,null,null,null,null,null,null,null,"Ellensburg"]
[null,null,null,null,null,null,null,null,null,null,null,null,null,null,null,null,null,null,null,null,null,null,null,null,null,null,null,null,null,"SD",null,null,null,null,null,null,null,null,null,null,null,null,null,null,null,null,null,null,null,null,null,null,null,"Elmhurst"]
[null,null,null,null,null,null,null,null,null,null,null,null,null,null,null,null,null,null,null,null,null,null,null,null,null,null,null,null,null,"TN",null,null,null,null,null,null,null,null,null,null,null,null,null,null,null,null,null,null,null,null,null,null,null,"Emerald PUD"]
[null,null,null,null,null,null,null,null,null,null,null,null,null,null,null,null,null,null,null,null,null,null,null,null,null,null,null,null,null,"TX",null,null,null,null,null,null,null,null,null,null,null,null,null,null,null,null,null,null,null,null,null,null,null,"Energy Northwest"]
[null,null,null,null,null,null,null,null,null,null,null,null,null,null,null,null,null,null,null,null,null,null,null,null,null,null,null,null,null,"UT",null,null,null,null,null,null,null,null,null,null,null,null,null,null,null,null,null,null,null,null,null,null,null,"Eugene"]
[null,null,null,null,null,null,null,null,null,null,null,null,null,null,null,null,null,null,null,null,null,null,null,null,null,null,null,null,null,"VA",null,null,null,null,null,null,null,null,null,null,null,null,null,null,null,null,null,null,null,null,null,null,null,"Everett"]
[null,null,null,null,null,null,null,null,null,null,null,null,null,null,null,null,null,null,null,null,null,null,null,null,null,null,null,null,null,"VI",null,null,null,null,null,null,null,null,null,null,null,null,null,null,null,null,null,null,null,null,null,null,null,"Fairchild Airforce Base"]
[null,null,null,null,null,null,null,null,null,null,null,null,null,null,null,null,null,null,null,null,null,null,null,null,null,null,null,null,null,"VT",null,null,null,null,null,null,null,null,null,null,null,null,null,null,null,null,null,null,null,null,null,null,null,"Fall River Rural Electric Coop."]
[null,null,null,null,null,null,null,null,null,null,null,null,null,null,null,null,null,null,null,null,null,null,null,null,null,null,null,null,null,"WA",null,null,null,null,null,null,null,null,null,null,null,null,null,null,null,null,null,null,null,null,null,null,null,"Farmers"]
[null,null,null,null,null,null,null,null,null,null,null,null,null,null,null,null,null,null,null,null,null,null,null,null,null,null,null,null,null,"WI",null,null,null,null,null,null,null,null,null,null,null,null,null,null,null,null,null,null,null,null,null,null,null,"Ferry Co. PUD #1"]
[null,null,null,null,null,null,null,null,null,null,null,null,null,null,null,null,null,null,null,null,null,null,null,null,null,null,null,null,null,"WV",null,null,null,null,null,null,null,null,null,null,null,null,null,null,null,null,null,null,null,null,null,null,null,"Fircrest"]
[null,null,null,null,null,null,null,null,null,null,null,null,null,null,null,null,null,null,null,null,null,null,null,null,null,null,null,null,null,"WY",null,null,null,null,null,null,null,null,null,null,null,null,null,null,null,null,null,null,null,null,null,null,null,"Flathead Electric Coop."]
[null,null,null,null,null,null,null,null,null,null,null,null,null,null,null,null,null,null,null,null,null,null,null,null,null,null,null,null,null,null,null,null,null,null,null,null,null,null,null,null,null,null,null,null,null,null,null,null,null,null,null,null,null,"Forest Grove"]
[null,null,null,null,null,null,null,null,null,null,null,null,null,null,null,null,null,null,null,null,null,null,null,null,null,null,null,null,null,null,null,null,null,null,null,null,null,null,null,null,null,null,null,null,null,null,null,null,null,null,null,null,null,"Franklin Co. PUD #1"]
[null,null,null,null,null,null,null,null,null,null,null,null,null,null,null,null,null,null,null,null,null,null,null,null,null,null,null,null,null,null,null,null,null,null,null,null,null,null,null,null,null,null,null,null,null,null,null,null,null,null,null,null,null,"Glacier Electric Coop."]
[null,null,null,null,null,null,null,null,null,null,null,null,null,null,null,null,null,null,null,null,null,null,null,null,null,null,null,null,null,null,null,null,null,null,null,null,null,null,null,null,null,null,null,null,null,null,null,null,null,null,null,null,null,"Grant Co. PUD #2"]
[null,null,null,null,null,null,null,null,null,null,null,null,null,null,null,null,null,null,null,null,null,null,null,null,null,null,null,null,null,null,null,null,null,null,null,null,null,null,null,null,null,null,null,null,null,null,null,null,null,null,null,null,null,"Grays Harbor Co. PUD #1"]
[null,null,null,null,null,null,null,null,null,null,null,null,null,null,null,null,null,null,null,null,null,null,null,null,null,null,null,null,null,null,null,null,null,null,null,null,null,null,null,null,null,null,null,null,null,null,null,null,null,null,null,null,null,"Harney Electric Coop."]
[null,null,null,null,null,null,null,null,null,null,null,null,null,null,null,null,null,null,null,null,null,null,null,null,null,null,null,null,null,null,null,null,null,null,null,null,null,null,null,null,null,null,null,null,null,null,null,null,null,null,null,null,null,"Hermiston Energy Services"]
[null,null,null,null,null,null,null,null,null,null,null,null,null,null,null,null,null,null,null,null,null,null,null,null,null,null,null,null,null,null,null,null,null,null,null,null,null,null,null,null,null,null,null,null,null,null,null,null,null,null,null,null,null,"Heyburn"]
[null,null,null,null,null,null,null,null,null,null,null,null,null,null,null,null,null,null,null,null,null,null,null,null,null,null,null,null,null,null,null,null,null,null,null,null,null,null,null,null,null,null,null,null,null,null,null,null,null,null,null,null,null,"Hood River Electric Coop."]
[null,null,null,null,null,null,null,null,null,null,null,null,null,null,null,null,null,null,null,null,null,null,null,null,null,null,null,null,null,null,null,null,null,null,null,null,null,null,null,null,null,null,null,null,null,null,null,null,null,null,null,null,null,"Idaho Co. L & P Coop."]
[null,null,null,null,null,null,null,null,null,null,null,null,null,null,null,null,null,null,null,null,null,null,null,null,null,null,null,null,null,null,null,null,null,null,null,null,null,null,null,null,null,null,null,null,null,null,null,null,null,null,null,null,null,"Idaho Falls"]
[null,null,null,null,null,null,null,null,null,null,null,null,null,null,null,null,null,null,null,null,null,null,null,null,null,null,null,null,null,null,null,null,null,null,null,null,null,null,null,null,null,null,null,null,null,null,null,null,null,null,null,null,null,"Inland Power & Light"]
[null,null,null,null,null,null,null,null,null,null,null,null,null,null,null,null,null,null,null,null,null,null,null,null,null,null,null,null,null,null,null,null,null,null,null,null,null,null,null,null,null,null,null,null,null,null,null,null,null,null,null,null,null,"Jefferson"]
[null,null,null,null,null,null,null,null,null,null,null,null,null,null,null,null,null,null,null,null,null,null,null,null,null,null,null,null,null,null,null,null,null,null,null,null,null,null,null,null,null,null,null,null,null,null,null,null,null,null,null,null,null,"Kalispel Indian Community of the Kalispel Reservation"]
[null,null,null,null,null,null,null,null,null,null,null,null,null,null,null,null,null,null,null,null,null,null,null,null,null,null,null,null,null,null,null,null,null,null,null,null,null,null,null,null,null,null,null,null,null,null,null,null,null,null,null,null,null,"Kittitas Co. PUD #1"]
[null,null,null,null,null,null,null,null,null,null,null,null,null,null,null,null,null,null,null,null,null,null,null,null,null,null,null,null,null,null,null,null,null,null,null,null,null,null,null,null,null,null,null,null,null,null,null,null,null,null,null,null,null,"Klickitat Co. PUD #1"]
[null,null,null,null,null,null,null,null,null,null,null,null,null,null,null,null,null,null,null,null,null,null,null,null,null,null,null,null,null,null,null,null,null,null,null,null,null,null,null,null,null,null,null,null,null,null,null,null,null,null,null,null,null,"Kootenai Electric Coop."]
[null,null,null,null,null,null,null,null,null,null,null,null,null,null,null,null,null,null,null,null,null,null,null,null,null,null,null,null,null,null,null,null,null,null,null,null,null,null,null,null,null,null,null,null,null,null,null,null,null,null,null,null,null,"Lakeview L & P Co."]
[null,null,null,null,null,null,null,null,null,null,null,null,null,null,null,null,null,null,null,null,null,null,null,null,null,null,null,null,null,null,null,null,null,null,null,null,null,null,null,null,null,null,null,null,null,null,null,null,null,null,null,null,null,"Lane Electric Coop."]
[null,null,null,null,null,null,null,null,null,null,null,null,null,null,null,null,null,null,null,null,null,null,null,null,null,null,null,null,null,null,null,null,null,null,null,null,null,null,null,null,null,null,null,null,null,null,null,null,null,null,null,null,null,"Lewis Co. PUD #1"]
[null,null,null,null,null,null,null,null,null,null,null,null,null,null,null,null,null,null,null,null,null,null,null,null,null,null,null,null,null,null,null,null,null,null,null,null,null,null,null,null,null,null,null,null,null,null,null,null,null,null,null,null,null,"Lincoln Electric Coop. Mont"]
[null,null,null,null,null,null,null,null,null,null,null,null,null,null,null,null,null,null,null,null,null,null,null,null,null,null,null,null,null,null,null,null,null,null,null,null,null,null,null,null,null,null,null,null,null,null,null,null,null,null,null,null,null,"Lost River Electric Coop."]
[null,null,null,null,null,null,null,null,null,null,null,null,null,null,null,null,null,null,null,null,null,null,null,null,null,null,null,null,null,null,null,null,null,null,null,null,null,null,null,null,null,null,null,null,null,null,null,null,null,null,null,null,null,"Lower Valley Energy"]
[null,null,null,null,null,null,null,null,null,null,null,null,null,null,null,null,null,null,null,null,null,null,null,null,null,null,null,null,null,null,null,null,null,null,null,null,null,null,null,null,null,null,null,null,null,null,null,null,null,null,null,null,null,"Mason Co. PUD #1"]
[null,null,null,null,null,null,null,null,null,null,null,null,null,null,null,null,null,null,null,null,null,null,null,null,null,null,null,null,null,null,null,null,null,null,null,null,null,null,null,null,null,null,null,null,null,null,null,null,null,null,null,null,null,"Mason Co. PUD #3"]
[null,null,null,null,null,null,null,null,null,null,null,null,null,null,null,null,null,null,null,null,null,null,null,null,null,null,null,null,null,null,null,null,null,null,null,null,null,null,null,null,null,null,null,null,null,null,null,null,null,null,null,null,null,"McCleary"]
[null,null,null,null,null,null,null,null,null,null,null,null,null,null,null,null,null,null,null,null,null,null,null,null,null,null,null,null,null,null,null,null,null,null,null,null,null,null,null,null,null,null,null,null,null,null,null,null,null,null,null,null,null,"McMinnville"]
[null,null,null,null,null,null,null,null,null,null,null,null,null,null,null,null,null,null,null,null,null,null,null,null,null,null,null,null,null,null,null,null,null,null,null,null,null,null,null,null,null,null,null,null,null,null,null,null,null,null,null,null,null,"Midstate Electric Coop."]
[null,null,null,null,null,null,null,null,null,null,null,null,null,null,null,null,null,null,null,null,null,null,null,null,null,null,null,null,null,null,null,null,null,null,null,null,null,null,null,null,null,null,null,null,null,null,null,null,null,null,null,null,null,"Milton"]
[null,null,null,null,null,null,null,null,null,null,null,null,null,null,null,null,null,null,null,null,null,null,null,null,null,null,null,null,null,null,null,null,null,null,null,null,null,null,null,null,null,null,null,null,null,null,null,null,null,null,null,null,null,"Milton-Freewater"]
[null,null,null,null,null,null,null,null,null,null,null,null,null,null,null,null,null,null,null,null,null,null,null,null,null,null,null,null,null,null,null,null,null,null,null,null,null,null,null,null,null,null,null,null,null,null,null,null,null,null,null,null,null,"Minidoka"]
[null,null,null,null,null,null,null,null,null,null,null,null,null,null,null,null,null,null,null,null,null,null,null,null,null,null,null,null,null,null,null,null,null,null,null,null,null,null,null,null,null,null,null,null,null,null,null,null,null,null,null,null,null,"Mission Valley Power"]
[null,null,null,null,null,null,null,null,null,null,null,null,null,null,null,null,null,null,null,null,null,null,null,null,null,null,null,null,null,null,null,null,null,null,null,null,null,null,null,null,null,null,null,null,null,null,null,null,null,null,null,null,null,"Missoula Electric Coop."]
[null,null,null,null,null,null,null,null,null,null,null,null,null,null,null,null,null,null,null,null,null,null,null,null,null,null,null,null,null,null,null,null,null,null,null,null,null,null,null,null,null,null,null,null,null,null,null,null,null,null,null,null,null,"Modern Electric Water"]
[null,null,null,null,null,null,null,null,null,null,null,null,null,null,null,null,null,null,null,null,null,null,null,null,null,null,null,null,null,null,null,null,null,null,null,null,null,null,null,null,null,null,null,null,null,null,null,null,null,null,null,null,null,"Monmouth"]
[null,null,null,null,null,null,null,null,null,null,null,null,null,null,null,null,null,null,null,null,null,null,null,null,null,null,null,null,null,null,null,null,null,null,null,null,null,null,null,null,null,null,null,null,null,null,null,null,null,null,null,null,null,"Nespelem Valley Electric"]
[null,null,null,null,null,null,null,null,null,null,null,null,null,null,null,null,null,null,null,null,null,null,null,null,null,null,null,null,null,null,null,null,null,null,null,null,null,null,null,null,null,null,null,null,null,null,null,null,null,null,null,null,null,"Northern Lights, Inc."]
[null,null,null,null,null,null,null,null,null,null,null,null,null,null,null,null,null,null,null,null,null,null,null,null,null,null,null,null,null,null,null,null,null,null,null,null,null,null,null,null,null,null,null,null,null,null,null,null,null,null,null,null,null,"Northern Wasco PUD"]
[null,null,null,null,null,null,null,null,null,null,null,null,null,null,null,null,null,null,null,null,null,null,null,null,null,null,null,null,null,null,null,null,null,null,null,null,null,null,null,null,null,null,null,null,null,null,null,null,null,null,null,null,null,"OHOP Mutual"]
[null,null,null,null,null,null,null,null,null,null,null,null,null,null,null,null,null,null,null,null,null,null,null,null,null,null,null,null,null,null,null,null,null,null,null,null,null,null,null,null,null,null,null,null,null,null,null,null,null,null,null,null,null,"Okanogan Co. Electric Coop."]
[null,null,null,null,null,null,null,null,null,null,null,null,null,null,null,null,null,null,null,null,null,null,null,null,null,null,null,null,null,null,null,null,null,null,null,null,null,null,null,null,null,null,null,null,null,null,null,null,null,null,null,null,null,"Okanogan Co. PUD #1"]
[null,null,null,null,null,null,null,null,null,null,null,null,null,null,null,null,null,null,null,null,null,null,null,null,null,null,null,null,null,null,null,null,null,null,null,null,null,null,null,null,null,null,null,null,null,null,null,null,null,null,null,null,null,"Orcas Power & Light Coop."]
[null,null,null,null,null,null,null,null,null,null,null,null,null,null,null,null,null,null,null,null,null,null,null,null,null,null,null,null,null,null,null,null,null,null,null,null,null,null,null,null,null,null,null,null,null,null,null,null,null,null,null,null,null,"Oregon Trail Electric Coop."]
[null,null,null,null,null,null,null,null,null,null,null,null,null,null,null,null,null,null,null,null,null,null,null,null,null,null,null,null,null,null,null,null,null,null,null,null,null,null,null,null,null,null,null,null,null,null,null,null,null,null,null,null,null,"Pacific Co. PUD #2"]
[null,null,null,null,null,null,null,null,null,null,null,null,null,null,null,null,null,null,null,null,null,null,null,null,null,null,null,null,null,null,null,null,null,null,null,null,null,null,null,null,null,null,null,null,null,null,null,null,null,null,null,null,null,"Parkland P & L"]
[null,null,null,null,null,null,null,null,null,null,null,null,null,null,null,null,null,null,null,null,null,null,null,null,null,null,null,null,null,null,null,null,null,null,null,null,null,null,null,null,null,null,null,null,null,null,null,null,null,null,null,null,null,"Pend Oreille Co. PUD #1"]
[null,null,null,null,null,null,null,null,null,null,null,null,null,null,null,null,null,null,null,null,null,null,null,null,null,null,null,null,null,null,null,null,null,null,null,null,null,null,null,null,null,null,null,null,null,null,null,null,null,null,null,null,null,"Peninsula Power & Light Inc."]
[null,null,null,null,null,null,null,null,null,null,null,null,null,null,null,null,null,null,null,null,null,null,null,null,null,null,null,null,null,null,null,null,null,null,null,null,null,null,null,null,null,null,null,null,null,null,null,null,null,null,null,null,null,"Plummer"]
[null,null,null,null,null,null,null,null,null,null,null,null,null,null,null,null,null,null,null,null,null,null,null,null,null,null,null,null,null,null,null,null,null,null,null,null,null,null,null,null,null,null,null,null,null,null,null,null,null,null,null,null,null,"PNGC"]
[null,null,null,null,null,null,null,null,null,null,null,null,null,null,null,null,null,null,null,null,null,null,null,null,null,null,null,null,null,null,null,null,null,null,null,null,null,null,null,null,null,null,null,null,null,null,null,null,null,null,null,null,null,"Port Angeles"]
[null,null,null,null,null,null,null,null,null,null,null,null,null,null,null,null,null,null,null,null,null,null,null,null,null,null,null,null,null,null,null,null,null,null,null,null,null,null,null,null,null,null,null,null,null,null,null,null,null,null,null,null,null,"Port of Seattle"]
[null,null,null,null,null,null,null,null,null,null,null,null,null,null,null,null,null,null,null,null,null,null,null,null,null,null,null,null,null,null,null,null,null,null,null,null,null,null,null,null,null,null,null,null,null,null,null,null,null,null,null,null,null,"Raft River Electric Coop."]
[null,null,null,null,null,null,null,null,null,null,null,null,null,null,null,null,null,null,null,null,null,null,null,null,null,null,null,null,null,null,null,null,null,null,null,null,null,null,null,null,null,null,null,null,null,null,null,null,null,null,null,null,null,"Ravalli Electric Coop."]
[null,null,null,null,null,null,null,null,null,null,null,null,null,null,null,null,null,null,null,null,null,null,null,null,null,null,null,null,null,null,null,null,null,null,null,null,null,null,null,null,null,null,null,null,null,null,null,null,null,null,null,null,null,"Richland"]
[null,null,null,null,null,null,null,null,null,null,null,null,null,null,null,null,null,null,null,null,null,null,null,null,null,null,null,null,null,null,null,null,null,null,null,null,null,null,null,null,null,null,null,null,null,null,null,null,null,null,null,null,null,"Riverside"]
[null,null,null,null,null,null,null,null,null,null,null,null,null,null,null,null,null,null,null,null,null,null,null,null,null,null,null,null,null,null,null,null,null,null,null,null,null,null,null,null,null,null,null,null,null,null,null,null,null,null,null,null,null,"Rupert"]
[null,null,null,null,null,null,null,null,null,null,null,null,null,null,null,null,null,null,null,null,null,null,null,null,null,null,null,null,null,null,null,null,null,null,null,null,null,null,null,null,null,null,null,null,null,null,null,null,null,null,null,null,null,"Salem Electric"]
[null,null,null,null,null,null,null,null,null,null,null,null,null,null,null,null,null,null,null,null,null,null,null,null,null,null,null,null,null,null,null,null,null,null,null,null,null,null,null,null,null,null,null,null,null,null,null,null,null,null,null,null,null,"Salmon River Electric Coop."]
[null,null,null,null,null,null,null,null,null,null,null,null,null,null,null,null,null,null,null,null,null,null,null,null,null,null,null,null,null,null,null,null,null,null,null,null,null,null,null,null,null,null,null,null,null,null,null,null,null,null,null,null,null,"Seattle"]
[null,null,null,null,null,null,null,null,null,null,null,null,null,null,null,null,null,null,null,null,null,null,null,null,null,null,null,null,null,null,null,null,null,null,null,null,null,null,null,null,null,null,null,null,null,null,null,null,null,null,null,null,null,"Skamania Co. PUD #1"]
[null,null,null,null,null,null,null,null,null,null,null,null,null,null,null,null,null,null,null,null,null,null,null,null,null,null,null,null,null,null,null,null,null,null,null,null,null,null,null,null,null,null,null,null,null,null,null,null,null,null,null,null,null,"Snohomish Co. PUD #1"]
[null,null,null,null,null,null,null,null,null,null,null,null,null,null,null,null,null,null,null,null,null,null,null,null,null,null,null,null,null,null,null,null,null,null,null,null,null,null,null,null,null,null,null,null,null,null,null,null,null,null,null,null,null,"Soda Springs"]
[null,null,null,null,null,null,null,null,null,null,null,null,null,null,null,null,null,null,null,null,null,null,null,null,null,null,null,null,null,null,null,null,null,null,null,null,null,null,null,null,null,null,null,null,null,null,null,null,null,null,null,null,null,"South Side Electric"]
[null,null,null,null,null,null,null,null,null,null,null,null,null,null,null,null,null,null,null,null,null,null,null,null,null,null,null,null,null,null,null,null,null,null,null,null,null,null,null,null,null,null,null,null,null,null,null,null,null,null,null,null,null,"Springfield"]
[null,null,null,null,null,null,null,null,null,null,null,null,null,null,null,null,null,null,null,null,null,null,null,null,null,null,null,null,null,null,null,null,null,null,null,null,null,null,null,null,null,null,null,null,null,null,null,null,null,null,null,null,null,"Steilacoom"]
[null,null,null,null,null,null,null,null,null,null,null,null,null,null,null,null,null,null,null,null,null,null,null,null,null,null,null,null,null,null,null,null,null,null,null,null,null,null,null,null,null,null,null,null,null,null,null,null,null,null,null,null,null,"Sumas"]
[null,null,null,null,null,null,null,null,null,null,null,null,null,null,null,null,null,null,null,null,null,null,null,null,null,null,null,null,null,null,null,null,null,null,null,null,null,null,null,null,null,null,null,null,null,null,null,null,null,null,null,null,null,"Surprise Valley Electric Corp."]
[null,null,null,null,null,null,null,null,null,null,null,null,null,null,null,null,null,null,null,null,null,null,null,null,null,null,null,null,null,null,null,null,null,null,null,null,null,null,null,null,null,null,null,null,null,null,null,null,null,null,null,null,null,"Tacoma Power"]
[null,null,null,null,null,null,null,null,null,null,null,null,null,null,null,null,null,null,null,null,null,null,null,null,null,null,null,null,null,null,null,null,null,null,null,null,null,null,null,null,null,null,null,null,null,null,null,null,null,null,null,null,null,"Tanner Electric"]
[null,null,null,null,null,null,null,null,null,null,null,null,null,null,null,null,null,null,null,null,null,null,null,null,null,null,null,null,null,null,null,null,null,null,null,null,null,null,null,null,null,null,null,null,null,null,null,null,null,null,null,null,null,"Tillamook PUD"]
[null,null,null,null,null,null,null,null,null,null,null,null,null,null,null,null,null,null,null,null,null,null,null,null,null,null,null,null,null,null,null,null,null,null,null,null,null,null,null,null,null,null,null,null,null,null,null,null,null,null,null,null,null,"Troy"]
[null,null,null,null,null,null,null,null,null,null,null,null,null,null,null,null,null,null,null,null,null,null,null,null,null,null,null,null,null,null,null,null,null,null,null,null,null,null,null,null,null,null,null,null,null,null,null,null,null,null,null,null,null,"Umatilla Electric Coop."]
[null,null,null,null,null,null,null,null,null,null,null,null,null,null,null,null,null,null,null,null,null,null,null,null,null,null,null,null,null,null,null,null,null,null,null,null,null,null,null,null,null,null,null,null,null,null,null,null,null,null,null,null,null,"Umpqua Indian Utility Coop."]
[null,null,null,null,null,null,null,null,null,null,null,null,null,null,null,null,null,null,null,null,null,null,null,null,null,null,null,null,null,null,null,null,null,null,null,null,null,null,null,null,null,null,null,null,null,null,null,null,null,null,null,null,null,"United Electric Cooperative, Inc."]
[null,null,null,null,null,null,null,null,null,null,null,null,null,null,null,null,null,null,null,null,null,null,null,null,null,null,null,null,null,null,null,null,null,null,null,null,null,null,null,null,null,null,null,null,null,null,null,null,null,null,null,null,null,"US Bia Wapato"]
[null,null,null,null,null,null,null,null,null,null,null,null,null,null,null,null,null,null,null,null,null,null,null,null,null,null,null,null,null,null,null,null,null,null,null,null,null,null,null,null,null,null,null,null,null,null,null,null,null,null,null,null,null,"US DOE National Technology Lab"]
[null,null,null,null,null,null,null,null,null,null,null,null,null,null,null,null,null,null,null,null,null,null,null,null,null,null,null,null,null,null,null,null,null,null,null,null,null,null,null,null,null,null,null,null,null,null,null,null,null,null,null,null,null,"US DOE Richland"]
[null,null,null,null,null,null,null,null,null,null,null,null,null,null,null,null,null,null,null,null,null,null,null,null,null,null,null,null,null,null,null,null,null,null,null,null,null,null,null,null,null,null,null,null,null,null,null,null,null,null,null,null,null,"Vera Water & Power"]
[null,null,null,null,null,null,null,null,null,null,null,null,null,null,null,null,null,null,null,null,null,null,null,null,null,null,null,null,null,null,null,null,null,null,null,null,null,null,null,null,null,null,null,null,null,null,null,null,null,null,null,null,null,"Vigilante Electric Coop."]
[null,null,null,null,null,null,null,null,null,null,null,null,null,null,null,null,null,null,null,null,null,null,null,null,null,null,null,null,null,null,null,null,null,null,null,null,null,null,null,null,null,null,null,null,null,null,null,null,null,null,null,null,null,"Wahkiakum Co. PUD #1"]
[null,null,null,null,null,null,null,null,null,null,null,null,null,null,null,null,null,null,null,null,null,null,null,null,null,null,null,null,null,null,null,null,null,null,null,null,null,null,null,null,null,null,null,null,null,null,null,null,null,null,null,null,null,"Wasco Electric Coop."]
[null,null,null,null,null,null,null,null,null,null,null,null,null,null,null,null,null,null,null,null,null,null,null,null,null,null,null,null,null,null,null,null,null,null,null,null,null,null,null,null,null,null,null,null,null,null,null,null,null,null,null,null,null,"Weiser"]
[null,null,null,null,null,null,null,null,null,null,null,null,null,null,null,null,null,null,null,null,null,null,null,null,null,null,null,null,null,null,null,null,null,null,null,null,null,null,null,null,null,null,null,null,null,null,null,null,null,null,null,null,null,"Wells Rural Electric"]
[null,null,null,null,null,null,null,null,null,null,null,null,null,null,null,null,null,null,null,null,null,null,null,null,null,null,null,null,null,null,null,null,null,null,null,null,null,null,null,null,null,null,null,null,null,null,null,null,null,null,null,null,null,"West Oregon Electric Coop."]
[null,null,null,null,null,null,null,null,null,null,null,null,null,null,null,null,null,null,null,null,null,null,null,null,null,null,null,null,null,null,null,null,null,null,null,null,null,null,null,null,null,null,null,null,null,null,null,null,null,null,null,null,null,"Whatcom"]
[null,null,null,null,null,null,null,null,null,null,null,null,null,null,null,null,null,null,null,null,null,null,null,null,null,null,null,null,null,null,null,null,null,null,null,null,null,null,null,null,null,null,null,null,null,null,null,null,null,null,null,null,null,"Yakama Power"]

{"sheet":"static_Parameters","index":33,"n_rows":37,"n_cols":6,"rows_kept":37,"cut":false,"hidden":false,"merged":[]}
["ALL STATIC POINT VALUES (NOT LISTS OR TABLES)"]
["Field","Value","Notes"]
["Calculator Version Number","5.X2","record this as text (rather than number) by including an apostrophe before the number\" e.g. '3.0 instead of 3.0"]
["Minimum Equipment Savings for Decommissioning",0.2,"If equipment savings (excluding decommissioned fixtures) is too low, don't give decomissioning incentive","Calculator Validator Version Number","LC5.1.48.V0","Contractor Measure: Fix two errors 1. Single measure control causing crash. 2. Proposed fixtures with user entered wattage switch from Deemed, to Non-standard, and back to Deemed crash."]
["Default Controls Reduction",0.25,"For Occ. Sensors"]
["Transmission and Distribution Multiplier",1.0747800000000001]
["BPA Percent of Project Cost Cap",0.7]
["Promotional Project Cost Cap",1,"project cost cap when in \"Promotional\" mode"]
["BPA Maximum Project Level $/kWh (busbar)",0.5]
["Assumed Lighting Measure Lifetime",12,"years"]
["Minimun Measure Level Savings for Incentive",0.1,"measure must save at least 10% for any incentives to be applied"]
["Natural Gas Rate",0.8]
["Minimum B/C Ratio",0.5]
["Mimimum Project Level Savings for Retrofit Project Incentive",0.25]
["Percent of Code KWH for New Construction Baseline",1]
["Exterior Hours of Operation",4380," used for New Construction projects"]
["Default $/kWh Rate",0.06,"Calculator defaults to this rate when calculator is cleared on the utility side."]
["Default $/kW Rate",6,"Calculator defaults to this rate when calculator is cleared on the utility side."]
["Minimum Interior Savings from New Construction Projects",0.2]
["Minimum Exterior Savings from New Construction Projects",0.2]
["AvoidedCost_Electricity_Retrofit",1.05,"$/kWh, from Council, for 12 year measure life"]
["AvoidedCost_Electricity_NewConstruction",1.45,"$/kWh, from Council, for 15 year measure life"]
["AvoidedCost_Gas_Retrofit",{"$f":"-1*PV(B27,parameter_lifetime,parameter_GasRate)","v":6.7070751523066612},"$0.80/therm, for 12 year measure life"]
["AvoidedCost_Gas_NewConstruction",{"$f":"-1*PV(B27,15,parameter_GasRate)","v":7.7697991901927965},"$0.80/therm, for 15 year measure life"]
["OandMMultiplier_TRC",0.03,"Assume O&M = 3% of project cost for purposes of TRC BC ratio calculation"]
["MinimumMeasureIncentive",5,"If an incentive for a single measure (e.g. decom, non-standard) is less than this amount, set the incentive value to 0."]
["AnnualDiscountRate",0.06,"Use for determining present value"]
["OandMMultiplier_TRC_PV_Retrofit",{"$f":"-1*PV(B27,12,OandMMultiplier_TRC)","v":0.25151531821149975},"Multiplier on project cost to get PV of O&M Cost, assuming O&M = 3% of project cost per year, for 12 years"]
["OandMMultiplier_TRC_PV_NewConstruction",{"$f":"-1*PV(B27,15,OandMMultiplier_TRC)","v":0.29136746963222981},"Multiplier on project cost to get PV of O&M Cost, assuming O&M = 3% of project cost per year, for 15 years"]
["PVMultiplier_Retrofit",{"$f":"-1*PV(B27,12,1)","v":8.3838439403833256},"use to determine the present value of any annual cost stream, 12 year life"]
["PVMultiplier_NewConstruction",{"$f":"-1*PV(B27,15,1)","v":9.7122489877409954},"use to determine the present value of any annual cost stream, 15 year life"]
["Default Controls Reduction Dimming",0.4,"For Occ. Sensors w/dimming"]
["Default Controls Reduction Photocell",0,"For Photocell"]
["Default Controls Reduction Timer",0.25,"For Timer"]
["Default Controls Reduction Occ. Sensor",0.25,"For Occ. Sensor"]
["Calculator Validator Version Number","5.1.TACOMA2.V1","1 frm_DataEntry | Measures Tab: Currently when \"Measure Type\" is \"Non-standard\" user is allowed to enter \"Proposed Equipment\" \"Lamp Wattage\" decimal fractional values. When user switches measure \"Measure Type\" from \"Non-standard\" to \"Deemed\" changes allows \"Proposed Equipment\" \"Lamp Wattage\" non-integer decimal fractional values to be maintained and not cleared out; this also implies that that values are not required to be cleared out if they do not match the table assigned given wattage values for that type of selected light fixture. If the user changed the \"Proposed Equipment\" \"Lamp Wattage\"  while \"Measure Type\" is \"Deemed\", user is only allowed the table assigned given wattage values for that type of selected light fixture that are set integer values. To attain the non-integer user set value, user must change \"Measure Type\" to \"Non-standard\", modify value, then change back to \"Deemed\"."]
["Large Project",false,"[Space Tab] 0 =Save every space change step, 1 =Save space values only with save button "]

{"sheet":"Logo","index":34,"n_rows":0,"n_cols":0,"rows_kept":0,"cut":false,"hidden":false,"merged":[]}

{"sheet":"Default Logo","index":35,"n_rows":0,"n_cols":0,"rows_kept":0,"cut":false,"hidden":false,"merged":[]}

{"sheet":"Formats","index":36,"n_rows":35,"n_cols":154,"rows_kept":35,"cut":false,"hidden":false,"merged":[[11,15,12,15],[11,16,12,16],[11,17,12,17],[11,18,12,18],[11,4,11,11],[11,12,11,13]]}
["USE THIS TABLE TO DEFINE FORMATS FOR CELLS AND NAME THESE CELLS"]
["THEN, IN VBA, YOU CAN COPY THIS FORMAT AND PASTE TO OTHER CELLS IN THE WORKBOOK"]
[]
["Table Heading"]
[]
["Table"]
[]
[]
[]
[]
[]
[null,null,null,null,"Daily Hours of Lighting Usage",null,null,null,null,null,null,null,"Space Conditioning",null,null,"Hours Per Year","Primary Schedule?","Primary HVAC?","Space Name"]
[null,"ID","Space Type","Space Name","Su","M","Tu","W","Th","F","Sa","Weeks Per Year","Cooling Type","Heating Type","Notes",null,null,"Primary?"]
["Normal Row",0,"[PRIMARY]","-",8,8,8,8,8,8,8,45,null,"Cooled","notes notes",6666,"-"]
["Highlighted Row",0,"[PRIMARY]","-",8,8,8,8,8,8,8,45,null,"Cooled",null,null,"-"]
["data table",0,"[PRIMARY]","-",8,8,8,8,8,8,8,45,null,"Cooled",null,null,"-"]
[]
[null,"Rate ID","Measure Name","$ / kW","$ / kWh","Notes"]
["Normal Row",1,"[Calculator default]",0.02,0.11,"These are the default rates used by the calculator."]
["Highlighted Row",1,"[Calculator default]",0.02,0.11,"These are the default rates used by the calculator."]
["data table",1,"[Calculator default]",0.02,0.11,"These are the default rates used by the calculator."]
[]
[null,"Row ID","Measure ","Description ","Watt Baseline","Required Wattage Reduction ","Efficacy","BPA Incentive","% Utility Passthrough","Utility Incentive"]
["Normal Row",1,"A1","Linear Fluorescent (4' & 8')","<100",0.35,">= 80 l/w",10,1,10]
["Highlighted Row",1,"A1","Linear Fluorescent (4' & 8')","<100",0.35,">= 80 l/w",10,1,10]
[]
[null,null,null,null,null,null,null,null,null,null,null,null,null,null,"make sure these fields are NOT text wrapped!"]
[null,"RecordNumber","Status","SpaceForTable","AnnualHoursForTable","RecordSpaceStatusForTable","ExistingForTable","ProposedForTable","ControlsForTable","SavingsHeadersForTable","KWHForTable","WattsPerFixtureForTable","IncentivesForTable","NotesForTable","BLANKCOLUMN","KWForTable","Space","ExistingQuantity","ExistingClass","ExistingType","ExistingSubtype","ExistingLampWattage","ExistingLampsPerFixture","ProposedMeasureType","ProposedQuantity","ProposedClass","ProposedType","ProposedSubtype","ProposedLampWattage","ProposedLampsPerFixture","ProposedLampModelNumber","ProposedBallastModelNumber","NoControls","ControlsQuantity","ControlsClass","ControlsPercentReduction","Notes","NumberOfErrors","ExistingMMLRow","ProposedMMLRow","ExistingBallastFactor","ProposedBallastFactor","ExistingFixtureWattage","ProposedFixtureWattage","ArithFixtureWattage","ElectricInteraction","GasInteraction","ExistingFixtureKWHBase","ArithExistingFixtureKWHBase","ProposedFixtureKWHBase","DecommissionedFixtures","PrecondDecomKWHSavings","ArithDecomKWHSavings","PrecondEquipKWHSavings","ArithEquipKWHSavings","PrecondControlsKWHSavings","ArithControlsKWHSavings","PrecondDecomAndEquipKWHSavings","ArithDecomAndEquipKWHSavings","PrecondTotalKWHSavings","ArithTotalKWHSavings","PrecondEquipAndControlsKWHSavings","ArithEquipAndControlsKWHSavings","PrecondEquipAndControlsPercentSavings","ArithEquipAndControlsPercentSavings","PrecondMeasurePercentSavings","ArithMeasurePercentSavings","PrecondMeasureKW","ArithMeasureKW","ProposedMeasureKW","PrecondKWSavings","ArithKWSavings","ExistingFixtureKWHwithHVAC","ArithExistingFixtureKWHwithHVAC","ProposedFixtureKWHwithHVAC","PrecondDecomKWHSavingswithHVAC","ArithDecomKWHSavingswithHVAC","PrecondEquipKWHSavingswithHVAC","ArithEquipKWHSavingswithHVAC","PrecondEquipAndControlsKWHSavingswithHVAC","ArithEquipAndControlsKWHSavingswithHVAC","PrecondControlsKWHSavingswithHVAC","ArithControlsKWHSavingswithHVAC","PrecondDecomAndEquipKWHSavingswithHVAC","ArithDecomAndEquipKWHSavingswithHVAC","PrecondTotalKWHSavingswithHVAC","ArithTotalKWHSavingswithHVAC","ExistingFixtureKWHwithHVAC_Busbar","ArithExistingFixtureKWHwithHVAC_Busbar","ProposedFixtureKWHwithHVAC_Busbar","PrecondDecomKWHSavingswithHVAC_Busbar","ArithDecomKWHSavingswithHVAC_Busbar","PrecondEquipKWHSavingswithHVAC_Busbar","ArithEquipKWHSavingswithHVAC_Busbar","PrecondEquipAndControlsKWHSavingswithHVAC_Busbar","ArithEquipAndControlsKWHSavingswithHVAC_Busbar","PrecondControlsKWHSavingswithHVAC_Busbar","ArithControlsKWHSavingswithHVAC_Busbar","PrecondDecomAndEquipKWHSavingswithHVAC_Busbar","ArithDecomAndEquipKWHSavingswithHVAC_Busbar","PrecondTotalKWHSavingswithHVAC_Busbar","ArithTotalKWHSavingswithHVAC_Busbar","PrecondTotalMeasureKWHwithHVAC_Busbar","ArithTotalMeasureKWHwithHVAC_Busbar","ProposedTotalMeasureKWHwithHVAC_Busbar","Therms_Increase_Precond","Therms_Increase_Arith","DecomIncentiveRates","UtilityDecomIncentiveRate","BPADecomIncentiveRate","NonstandardIncentiveRates","UtilityNonstandardIncentiveRate","BPANonstandardIncentiveRate","ControlsIncentiveQuantity","ControlsIncentiveUtility","ControlsIncentiveBPA","ControlsText","ControlsIncentiveVector","ControlsIncentive","BPAControlsIncentiveRate","UtilityControlsIncentiveRate","DecomIncentiveQuantity","DecomIncentiveUtility","DecomIncentiveBPA","EquipmentIncentiveQuantity","EquipmentIncentiveUtility","EquipmentIncentiveBPA","MeasureText","DecommissioningAndEquipmentResultsText","ControlsResultsText","PrecondTotalMeasureKWH","ArithTotalMeasureKWH","ProposedTotalMeasureKWH","PrecondTotalMeasureKWHwithHVAC","ArithTotalMeasureKWHwithHVAC","ProposedTotalMeasureKWHwithHVAC","PrecondKWPercentSavings","ArithKWPercentSavings","TotalUtilityIncentive","TotalBPAIncentive","NonStandardStatus","StatusNotes","ControlkWhSavings 'NOTE THAT THIS IS ACTUALLY A PERCENT SAVINGS (0 TO 100)\"","UtilityEquipmentIncentiveRate","DecomAndEquipmentIncentiveName","DecomAndEquipmentIncentiveDescription","ControlsIncentiveName","ControlsIncentiveDescription","ApprovedNonStandardUserFieldConcat","SpaceType","RefNo","NetControlsMessage","RetrofitMeasureDescription","NotificationMessage"]
["normal"]
["normal"]
[]
[]
[null,"Row ID","Measure ","Description ","Watt Baseline","Required Wattage Reduction ","Efficacy","BPA Incentive","% Utility Passthrough","Utility Incentive","Min Wattage","Max Wattage","Additional Criteria","Description ","User Lookup Description"]
["Normal Row",1,"A1","Linear Fluorescent (4' & 8')","<100",0.35,">= 80 l/w",10,1,10]
["Highlighted Row",1,"A1","Linear Fluorescent (4' & 8')","<100",0.35,">= 80 l/w",10,1,10]

{"sheet":"BLANK WELCOME SCREEN","index":37,"n_rows":0,"n_cols":0,"rows_kept":0,"cut":false,"hidden":false,"merged":[]}

{"sheet":"ScratchPad","index":38,"n_rows":0,"n_cols":0,"rows_kept":0,"cut":false,"hidden":false,"merged":[]}

{"sheet":"MML","index":39,"n_rows":83,"n_cols":16,"rows_kept":83,"cut":false,"hidden":false,"merged":[]}
["Row Number","Fixture Class","Fixture Category","Fixture Sub-Category","Lamp or fixture wattage","Lamps per Fixture","Ballast Factor","Arithmetic Baseline?","Existing","Retrofit","New Construction","Retrofit Measure Class","Retrofit Measure Description","REFNO_Agricultural","REFNO_Commercial","REFNO_Industrial"]
[1,"CFL","Cold Cathode","Dimmable or Flashable","3\\4\\5\\6\\7\\8\\9\\10\\12\\14\\16\\18\\20",1,1,null,"X",null,null,null,{"$f":" \"Existing Equipment: \" & C2","v":"Existing Equipment: Cold Cathode"},{"$f":"\"Exist_Eq_Agr\"","v":"Exist_Eq_Agr"},{"$f":"\"Exist_Eq_Com\"","v":"Exist_Eq_Com"},{"$f":"\"Exist_Eq_Ind\"","v":"Exist_Eq_Ind"}]
[2,"CFL","Hard-Wired or GU-24","1 to 24 W","1\\2\\3\\4\\5\\6\\7\\8\\9\\10\\11\\12\\13\\14\\15\\16\\17\\18\\19\\20\\21\\22\\23\\24","1\\2\\3\\4\\5\\6\\7\\8",1,null,"X",null,null,null,{"$f":" \"Existing Equipment: \" & C3","v":"Existing Equipment: Hard-Wired or GU-24"},{"$f":"\"Exist_Eq_Agr\"","v":"Exist_Eq_Agr"},{"$f":"\"Exist_Eq_Com\"","v":"Exist_Eq_Com"},{"$f":"\"Exist_Eq_Ind\"","v":"Exist_Eq_Ind"}]
[3,"CFL","Hard-Wired or GU-24","25 to 45 W","25\\26\\27\\28\\29\\30\\31\\32\\33\\34\\35\\36\\37\\38\\39\\40\\41\\42\\43\\44\\45","1\\2\\3\\4\\5\\6\\7\\8",1,null,"X",null,null,null,"Existing Equipment: Hard-Wired or GU-24","Exist_Eq_Agr","Exist_Eq_Com","Exist_Eq_Ind"]
[4,"CFL","Hard-Wired or GU-24",">45 W","46\\50\\55\\60\\65\\70\\75\\80\\85\\90\\95\\100\\110\\120\\130\\140\\150\\160\\170\\180\\190\\200","1\\2\\3\\4\\5\\6\\7\\8",1,null,"X",null,null,null,"Existing Equipment: Hard-Wired or GU-24","Exist_Eq_Agr","Exist_Eq_Com","Exist_Eq_Ind"]
[5,"CFL","Screw-In","1 to 24 W","1\\2\\3\\4\\5\\6\\7\\8\\9\\10\\11\\12\\13\\14\\15\\16\\17\\18\\19\\20\\21\\22\\23\\24",1,1,null,"X",null,null,null,"Existing Equipment: Screw-In","Exist_Eq_Agr","Exist_Eq_Com","Exist_Eq_Ind"]
[6,"CFL","Screw-In","25 to 45 W","25\\26\\27\\28\\29\\30\\31\\32\\33\\34\\35\\36\\37\\38\\39\\40\\41\\42\\43\\44\\45",1,1,null,"X",null,null,null,"Existing Equipment: Screw-In","Exist_Eq_Agr","Exist_Eq_Com","Exist_Eq_Ind"]
[7,"CFL","Screw-In",">45 W","46\\50\\55\\60\\65\\70\\75\\80\\85\\90\\95\\100\\110\\120\\130\\140\\150\\160\\170\\180\\190\\200",1,1,null,"X",null,null,null,"Existing Equipment: Screw-In","Exist_Eq_Agr","Exist_Eq_Com","Exist_Eq_Ind"]
[8,"Exit Signs","CFL","Screw-in or Plug-in","3\\5\\7\\9","1\\2",1.3,null,"X",null,null,null,"Existing Equipment: CFL","Exist_Eq_Agr","Exist_Eq_Com","Exist_Eq_Ind"]
[9,"Exit Signs","Incandescent","Screw-in or Plug-in","10\\15\\20\\25\\30\\35\\40","1\\2",1,null,"X",null,null,null,"Existing Equipment: Incandescent","Exist_Eq_Agr","Exist_Eq_Com","Exist_Eq_Ind"]
[10,"Exit Signs","LED","New Fixture or Retrofit kit","1.5\\3\\6\\9",1,1,null,"X","X",null,"H","LED Exit Signs","ALILB84125","CLILB82125","ILILB83125"]
[11,"Exit Signs","Lin. Fluorescent","F4T5","4","1\\2",1.3,null,"X",null,null,null,{"$f":" \"Existing Equipment: \" & C12","v":"Existing Equipment: Lin. Fluorescent"},"Exist_Eq_Agr","Exist_Eq_Com","Exist_Eq_Ind"]
[12,"Exit Signs","Lin. Fluorescent","F6T5","6","1\\2",1.3,null,"X",null,null,null,"Existing Equipment: Lin. Fluorescent","Exist_Eq_Agr","Exist_Eq_Com","Exist_Eq_Ind"]
[13,"Exit Signs","Lin. Fluorescent","F8T5","8","1\\2",1.3,null,"X",null,null,null,"Existing Equipment: Lin. Fluorescent","Exist_Eq_Agr","Exist_Eq_Com","Exist_Eq_Ind"]
[15,"HID","HPS","Magnetic Ballast","35\\50\\70\\100\\110\\150\\200\\250\\310\\400\\600\\750\\1000\\1500",1,1.1499999999999999,null,"X",null,null,null,"Existing Equipment: HPS","Exist_Eq_Agr","Exist_Eq_Com","Exist_Eq_Ind"]
[16,"HID","MH","Electronic Ballast","20\\22\\24\\26\\28\\30\\35\\40\\45\\50\\60\\70\\90\\100\\140\\150\\175\\200\\210\\250\\300\\315\\320\\350\\375\\400\\450\\575\\600\\750\\1000",1,1.06,null,"X",null,null,null,"Existing Equipment: MH","Exist_Eq_Agr","Exist_Eq_Com","Exist_Eq_Ind"]
[17,"HID","MH","Magnetic Ballast","50\\70\\100\\120\\150\\175\\250\\320\\400\\750\\1000\\1500",1,1.1499999999999999,null,"X",null,null,null,"Existing Equipment: MH","Exist_Eq_Agr","Exist_Eq_Com","Exist_Eq_Ind"]
[18,"HID","MH","Pulse-Start","50\\70\\100\\120\\150\\175\\200\\250\\300\\320\\350\\400\\450\\750\\875\\1000\\1500",1,1.1200000000000001,null,"X",null,null,null,"Existing Equipment: MH","Exist_Eq_Agr","Exist_Eq_Com","Exist_Eq_Ind"]
[19,"HID","MV","Magnetic Ballast","100\\160\\175\\250\\400\\450\\750\\1000\\1500",1,1.17,null,"X",null,null,null,"Existing Equipment: MV","Exist_Eq_Agr","Exist_Eq_Com","Exist_Eq_Ind"]
[20,"Incandescent","General Purpose","A-lamp","10\\15\\20\\25\\29\\30\\35\\40\\43\\45\\50\\53\\55\\60\\65\\70\\72\\75\\80\\85\\90\\95\\100\\125\\134\\150",1,1,"X","X",null,null,null,"Existing Equipment: General Purpose","Exist_Eq_Agr","Exist_Eq_Com","Exist_Eq_Ind"]
[21,"Incandescent","General Purpose","High Wattage","200\\250\\300\\350\\400\\450\\500\\620\\750\\1000",1,1,null,"X",null,null,null,"Existing Equipment: General Purpose","Exist_Eq_Agr","Exist_Eq_Com","Exist_Eq_Ind"]
[22,"Incandescent","Halogen","Double-Ended","100\\150\\250\\300\\500\\750\\1000\\1500",1,1,null,"X",null,null,null,"Existing Equipment: Halogen","Exist_Eq_Agr","Exist_Eq_Com","Exist_Eq_Ind"]
[23,"Incandescent","Halogen","General Service","42\\52\\62\\72\\82\\92\\102",1,1,null,"X",null,null,null,"Existing Equipment: Halogen","Exist_Eq_Agr","Exist_Eq_Com","Exist_Eq_Ind"]
[24,"Incandescent","Halogen","MR16","20\\25\\26\\27\\28\\29\\30\\35\\40\\45\\50\\55\\60\\65\\70\\75",1,1,null,"X",null,null,null,"Existing Equipment: Halogen","Exist_Eq_Agr","Exist_Eq_Com","Exist_Eq_Ind"]
[25,"Incandescent","Halogen","PAR Reflector","45\\50\\55\\60\\65\\70\\75\\80\\85\\90\\95\\100\\120\\150",1,1,null,"X",null,null,null,"Existing Equipment: Halogen","Exist_Eq_Agr","Exist_Eq_Com","Exist_Eq_Ind"]
[26,"Incandescent","Reflector","Reflector","25\\30\\35\\40\\45\\50\\55\\60\\65\\70\\75\\80\\85\\90\\95\\100\\120\\125\\150\\200\\250\\300",1,1,null,"X",null,null,null,"Existing Equipment: Reflector","Exist_Eq_Agr","Exist_Eq_Com","Exist_Eq_Ind"]
[27,"Induction","any type","any type","10\\15\\20\\25\\30\\35\\40\\45\\50\\55\\60\\65\\70\\75\\80\\85\\90\\95\\100\\120\\130\\140\\150\\160\\165\\170\\180\\190\\200\\210\\220\\230\\240\\250\\300\\400\\500","1\\2\\3",1,null,"X",null,null,null,"Existing Equipment: any type","Exist_Eq_Agr","Exist_Eq_Com","Exist_Eq_Ind"]
[28,"LED","Gen. Indoor / Outdoor","Standard\\w/Networked Controls","10\\12\\14\\16\\18\\20\\22\\24\\26\\28\\30\\32\\34\\36\\38\\40\\42\\44\\46\\48\\50\\52\\54\\56\\58\\60\\62\\64\\66\\68\\70\\72\\74\\76\\78\\80\\85\\90\\95\\100\\105\\110\\115\\120",1,1,null,"X","X","X","C","Gen. Indoor / Outdoor","ALILB84123","CLILB82123","ILILB83123"]
[29,"LED","Tube","Ballast Compatible (Type A)\\Line Voltage (Type B)\\External Driver (Type C)","10\\11\\12\\13\\14\\15\\16\\17\\18\\19\\20\\21\\22\\23\\24\\25\\26\\27\\28\\29\\30\\31\\32\\33\\34\\35\\36\\37\\38\\39\\40","1\\2\\3\\4\\6\\8",1,null,"X","X","X","B","LED Tubes","ALILB84105","CLILB82110","ILILB83104"]
[31,"LED","Exterior","Wall Pack\\Parking Lot\\Roadway\\Canopy\\Yard/Barn\\Parking Garage\\High Mast\\Other","10\\15\\20\\25\\30\\35\\40\\45\\50\\55\\60\\65\\70\\75\\80\\85\\90\\95\\100\\105\\110\\115\\120\\125\\130\\135\\140\\145\\150\\155\\160\\165\\170\\175\\180\\185\\190\\195\\200\\210\\220\\230\\240\\250\\260\\270\\280\\290\\300\\310\\320\\330\\340\\350\\360\\400\\500\\600\\700\\800\\900\\1,000\\1,100\\1,200\\1,300\\1,400\\1,500",1,1,null,"X","X","X","E","LED Exterior","ALILB84106","CLILB82111","ILILB83105"]
[32,"LED","High Bay","Standard\\w/ Networked Controls","40\\45\\50\\55\\60\\65\\70\\75\\80\\85\\90\\95\\100\\105\\110\\115\\120\\125\\130\\135\\140\\145\\150\\155\\160\\165\\170\\175\\180\\185\\190\\195\\200\\210\\220\\230\\240\\250\\260\\270\\280\\290\\300\\310\\320\\330\\340\\350\\360\\370\\380\\390\\400\\410\\420\\430\\440\\450\\460\\470\\480\\490\\500\\510\\520\\530\\540\\550\\560\\570\\580\\590\\600\\610\\620\\630\\640\\650\\660\\670\\680\\690\\700",1,1,null,"X","X","X","D","LED High Bay","ALILB84107","CLILB82112","ILILB83106"]
[33,"LED","Refrigerated Case","[Enter total wattage below]"," ",1,1,null,"X","X","X","G","LED Linear Strip","ALILB84109","CLILB82114","ILILB83108"]
[34,"LED","Linear Strip","[Enter total wattage below]"," ",1,1,null,"X","X","X","G","LED Linear Strip","ALILB84109","CLILB82114","ILILB83108"]
[35,"LED","Small Lamp / Fixture","Screw-in A-Lamp\\Screw-in Reflector\\Retrofit Can\\CFLED\\MR16\\Other","2\\3\\4\\5\\6\\7\\8\\9\\10\\12\\14\\16\\18\\20\\22\\24\\26\\28\\30\\32\\34\\36\\38\\40\\42\\44\\46\\48\\50\\52\\54\\56\\58\\60",1,1,null,"X","X","X","A","LED Small Lamp / Fixture","ALILB84104","CLILB82109","ILILB83103"]
[36,"LED","HID Screw-in Replacement","High Bay\\Wall Pack\\Parking Lot\\Parking Garage\\Roadway\\Canopy\\Yard/Barn\\High Mast\\Other","10\\15\\20\\25\\30\\35\\40\\45\\50\\55\\60\\65\\70\\75\\80\\85\\90\\95\\100\\110\\120\\130\\140\\150\\160\\170\\180\\190\\200\\210\\220\\230\\240\\250\\260\\270\\280\\290\\300\\ 310\\320\\330\\340\\350\\360\\370\\380\\390\\400\\410\\420\\430\\440\\450\\460\\470\\480\\490\\500",1,1,null,"X","X","X","F","HID Screw-in Replacement","ALILB84124","CLILB82124","ILILB83124"]
[37,"T10","6 ft","VHO Lamp/ Mag Ballast","160","1\\2\\3\\4",1.1000000000000001,null,"X",null,null,null,{"$f":" \"Existing Equipment: \" & C36","v":"Existing Equipment: 6 ft"},{"$f":"\"Exist_Eq_Agr\"","v":"Exist_Eq_Agr"},{"$f":"\"Exist_Eq_Com\"","v":"Exist_Eq_Com"},{"$f":"\"Exist_Eq_Ind\"","v":"Exist_Eq_Ind"}]
[38,"T12","2 ft","Magnetic Ballast","20","1\\2\\3\\4",1.25,null,"X",null,null,null,"Existing Equipment: 2 ft","Exist_Eq_Agr","Exist_Eq_Com","Exist_Eq_Ind"]
[39,"T12","3 ft","EE Ballast","25","1\\2\\3\\4\\6",1.32,null,"X",null,null,null,"Existing Equipment: 3 ft","Exist_Eq_Agr","Exist_Eq_Com","Exist_Eq_Ind"]
[40,"T12","3 ft","Magnetic Ballast","25\\30","1\\2\\3\\4\\6",1.38,null,"X",null,null,null,"Existing Equipment: 3 ft","Exist_Eq_Agr","Exist_Eq_Com","Exist_Eq_Ind"]
[41,"T12","4 ft","HO Lamp/ Mag Ballast","60","1\\2\\3\\4",1.2,null,"X",null,null,null,"Existing Equipment: 4 ft","Exist_Eq_Agr","Exist_Eq_Com","Exist_Eq_Ind"]
[42,"T12","4 ft","Lamp / EE Ballast","34\\40","1\\2\\3\\4\\6\\8",1.1000000000000001,null,"X",null,null,null,"Existing Equipment: 4 ft","Exist_Eq_Agr","Exist_Eq_Com","Exist_Eq_Ind"]
[43,"T12","4 ft","Lamp / Mag Ballast","34\\40","1\\2\\3\\4\\6\\8",1.2,null,"X",null,null,null,"Existing Equipment: 4 ft","Exist_Eq_Agr","Exist_Eq_Com","Exist_Eq_Ind"]
[44,"T12","4 ft","Slimline/ Mag Ballast","39","1\\2\\3\\4",1.2,null,"X",null,null,null,"Existing Equipment: 4 ft","Exist_Eq_Agr","Exist_Eq_Com","Exist_Eq_Ind"]
[45,"T12","4 ft","VHO Lamp/ Mag Ballast","115","1\\2\\3\\4",1.1000000000000001,null,"X",null,null,null,"Existing Equipment: 4 ft","Exist_Eq_Agr","Exist_Eq_Com","Exist_Eq_Ind"]
[46,"T12","5 ft","HO Lamp/ Mag Ballast","75","1\\2\\3\\4",1.2,null,"X",null,null,null,"Existing Equipment: 5 ft","Exist_Eq_Agr","Exist_Eq_Com","Exist_Eq_Ind"]
[47,"T12","5 ft","Slimline/ Mag Ballast","50","1\\2\\3\\4",1.2,null,"X",null,null,null,"Existing Equipment: 5 ft","Exist_Eq_Agr","Exist_Eq_Com","Exist_Eq_Ind"]
[48,"T12","5 ft","VHO Lamp/ Mag Ballast","135","1\\2\\3\\4",1.1000000000000001,null,"X",null,null,null,"Existing Equipment: 5 ft","Exist_Eq_Agr","Exist_Eq_Com","Exist_Eq_Ind"]
[49,"T12","5 ft 4 in","HO Lamp/ Mag Ballast","80","1\\2\\3\\4",1.2,null,"X",null,null,null,"Existing Equipment: 5 ft 4 in","Exist_Eq_Agr","Exist_Eq_Com","Exist_Eq_Ind"]
[50,"T12","5 ft 4 in","Slimline/ Mag Ballast","52","1\\2\\3\\4",1.2,null,"X",null,null,null,"Existing Equipment: 5 ft 4 in","Exist_Eq_Agr","Exist_Eq_Com","Exist_Eq_Ind"]
[51,"T12","6 ft","HO Lamp/ Mag Ballast","85","1\\2\\3\\4",1.2,null,"X",null,null,null,"Existing Equipment: 6 ft","Exist_Eq_Agr","Exist_Eq_Com","Exist_Eq_Ind"]
[52,"T12","6 ft","Slimline/ Mag Ballast","55","1\\2\\3\\4",1.2,null,"X",null,null,null,"Existing Equipment: 6 ft","Exist_Eq_Agr","Exist_Eq_Com","Exist_Eq_Ind"]
[53,"T12","6 ft","VHO Lamp/ Mag Ballast","160","1\\2\\3\\4",1.1000000000000001,null,"X",null,null,null,{"$f":" \"Existing Equipment: \" & C52","v":"Existing Equipment: 6 ft"},"Exist_Eq_Agr","Exist_Eq_Com","Exist_Eq_Ind"]
[54,"T12","7 ft","HO Lamp/ Mag Ballast","100","1\\2\\3\\4",1.2,null,"X",null,null,null,"Existing Equipment: 7 ft","Exist_Eq_Agr","Exist_Eq_Com","Exist_Eq_Ind"]
[55,"T12","7 ft","Slimline/ Mag Ballast","70","1\\2\\3\\4",1.1000000000000001,null,"X",null,null,null,"Existing Equipment: 7 ft","Exist_Eq_Agr","Exist_Eq_Com","Exist_Eq_Ind"]
[56,"T12","8 ft","HO Lamp/ EE Ballast","95\\110","1\\2\\3\\4",1.1000000000000001,null,"X",null,null,null,"Existing Equipment: 8 ft","Exist_Eq_Agr","Exist_Eq_Com","Exist_Eq_Ind"]
[57,"T12","8 ft","HO Lamp/ Mag Ballast","95\\110","1\\2\\3\\4",1.2,null,"X",null,null,null,"Existing Equipment: 8 ft","Exist_Eq_Agr","Exist_Eq_Com","Exist_Eq_Ind"]
[58,"T12","8 ft","Slimline/ Mag Ballast","60\\75","1\\2\\3\\4",1.1499999999999999,null,"X",null,null,null,"Existing Equipment: 8 ft","Exist_Eq_Agr","Exist_Eq_Com","Exist_Eq_Ind"]
[59,"T12","8 ft","VHO Lamp/ Mag Ballast","185\\215","1\\2\\3\\4",1.02,null,"X",null,null,null,"Existing Equipment: 8 ft","Exist_Eq_Agr","Exist_Eq_Com","Exist_Eq_Ind"]
[60,"T12","U-Lamp","EE Ballast","35\\40","1\\2\\3\\4",1.1000000000000001,null,"X",null,null,null,"Existing Equipment: U-Lamp","Exist_Eq_Agr","Exist_Eq_Com","Exist_Eq_Ind"]
[61,"T12","U-Lamp","Mag Ballast","35\\40","1\\2\\3\\4",1.2,null,"X",null,null,null,"Existing Equipment: U-Lamp","Exist_Eq_Agr","Exist_Eq_Com","Exist_Eq_Ind"]
[62,"T8","4 ft","NLO Ballast","25\\28\\32","1\\2\\3\\4\\5\\6\\7\\8\\9\\10",0.92,null,"X",null,null,null,"Existing Equipment: 4 ft","Exist_Eq_Agr","Exist_Eq_Com","Exist_Eq_Ind"]
[63,"T8","4 ft","LLO Ballast","25\\28\\32","1\\2\\3\\4\\5\\6\\7\\8\\9\\10",0.84,null,"X",null,null,null,"Existing Equipment: 4 ft","Exist_Eq_Agr","Exist_Eq_Com","Exist_Eq_Ind"]
[64,"T8","8 ft","NLO Ballast","54\\59","1\\2\\3\\4\\5\\6\\7\\8\\9\\10",0.92,null,"X",null,null,null,"Existing Equipment: 8 ft","Exist_Eq_Agr","Exist_Eq_Com","Exist_Eq_Ind"]
[65,"T8","8 ft","HO Ballast","86","1\\2\\3\\4\\5\\6\\7\\8\\9\\10",1,null,"X",null,null,null,"Existing Equipment: 8 ft","Exist_Eq_Agr","Exist_Eq_Com","Exist_Eq_Ind"]
[66,"T8","Irregular Size","2 ft","15\\17","1\\2\\3\\4",0.88,null,"X",null,null,null,"Linear Fluorescent","ALILB84126","CLILB82126","ILILB83126"]
[67,"T8","Irregular Size","3 ft","25","1\\2\\3\\4\\6\\8",0.96,null,"X",null,null,null,"Linear Fluorescent","ALILB84126","CLILB82126","ILILB83126"]
[68,"T8","Irregular Size","5 ft","40\\55\\58","1\\2\\3\\4",0.85,null,"X",null,null,null,"Linear Fluorescent","ALILB84126","CLILB82126","ILILB83126"]
[69,"T8","Irregular Size","6 ft","58\\65\\70","1\\2\\3\\4",0.85,null,"X",null,null,null,"Linear Fluorescent","ALILB84126","CLILB82126","ILILB83126"]
[70,"T8","Irregular Size","7 ft","70","1\\2\\3\\4",0.85,null,"X",null,null,null,"Linear Fluorescent","ALILB84126","CLILB82126","ILILB83126"]
[71,"T8","U-Lamp","NLO Ballast","25\\28\\32","1\\2\\3\\4",0.92,null,"X",null,null,null,"Linear Fluorescent","ALILB84126","CLILB82126","ILILB83126"]
[72,"T8","U-Lamp","LLO Ballast","25\\28\\32","1\\2\\3\\4",0.75,null,"X",null,null,null,"Linear Fluorescent","ALILB84126","CLILB82126","ILILB83126"]
[73,"T8 HP","4 ft","HLO Ballast","25\\28\\32","1\\2\\3\\4\\5\\6\\7\\8\\9\\10",1.1399999999999999,null,"X",null,"X",null,"Linear Fluorescent","ALILB84126","CLILB82126","ILILB83126"]
[74,"T8 HP","4 ft","HLO Ballast","25\\28\\32","1\\2\\3\\4\\5\\6\\7\\8\\9\\10",1.1399999999999999,null,"X",null,"X",null,"Linear Fluorescent","ALILB84126","CLILB82126","ILILB83126"]
[75,"T8 HP","4 ft","NLO Ballast","25\\28\\32","1\\2\\3\\4\\5\\6\\7\\8\\9\\10",0.86,null,"X",null,"X",null,"Linear Fluorescent","ALILB84126","CLILB82126","ILILB83126"]
[76,"T8 HP","4 ft","LLO Ballast","25\\28\\32","1\\2\\3\\4\\5\\6\\7\\8\\9\\10",0.75,null,"X",null,"X",null,"Linear Fluorescent","ALILB84126","CLILB82126","ILILB83126"]
[77,"T8 HP","4 ft","VLLO Ballast","25\\28\\32","1\\2\\3\\4\\5\\6\\7\\8\\9\\10",0.73,null,"X",null,"X",null,"Linear Fluorescent","ALILB84126","CLILB82126","ILILB83126"]
[78,"T8 HP","8 ft","NLO Ballast","54\\59","1\\2\\3\\4",0.92,null,"X",null,"X",null,"Linear Fluorescent","ALILB84126","CLILB82126","ILILB83126"]
[79,"T5","4 ft Hi-Bay","HO Lamp / Prog-Start Ballast","44\\47\\49\\50\\51\\54","1\\2\\3\\4\\5\\6\\8\\10\\12",1.02,null,"X",null,"X",null,"Linear Fluorescent","ALILB84126","CLILB82126","ILILB83126"]
[80,"T5","2 ft","HO Lamp / Prog-Start Ballast","21\\22\\24\\26\\28\\35\\39\\40\\50\\55","1\\2\\3\\4\\5\\6\\8\\10\\12",1.02,null,"X",null,"X",null,"Linear Fluorescent","ALILB84126","CLILB82126","ILILB83126"]
[81,"T5","4 ft ","NLO Ballast","28\\28","1\\2\\3\\4\\5\\6\\8\\10\\12",1,null,"X",null,null,null,"Linear Fluorescent","ALILB84126","CLILB82126","ILILB83126"]
[82,"Signage","LED Tube","[Enter total wattage below]"," ",1,1,null,null,"X","X","I","Signage","ALILB84127","CLILB82127","ILILB83127"]
[83,"Signage","Linear Strip","[Enter total wattage below]"," ",1,1,null,null,"X","X","I","Signage","ALILB84127","CLILB82127","ILILB83127"]
[84,"Signage","Other ","[Enter total wattage below]"," ",1,1,null,null,"X","X","I","Signage","ALILB84127","CLILB82127","ILILB83127"]

{"sheet":"ArithmeticBaseline","index":40,"n_rows":5,"n_cols":5,"rows_kept":5,"cut":false,"hidden":false,"merged":[]}
["Class","Category","Subcategory","Lamp Wattage","GSFL Market Average Baseline"]
["Incandescent","General Purpose","A-lamp",100,72]
["Incandescent","General Purpose","A-lamp",75,53]
["Incandescent","General Purpose","A-lamp",60,43]
["Incandescent","General Purpose","A-lamp",40,29]

{"sheet":"Variable and Parameter Guide","index":41,"n_rows":23,"n_cols":6,"rows_kept":23,"cut":false,"hidden":false,"merged":[]}
[]
[null,"BPA Lighting Calculator Version 5.X2 - Variable and Parameter Reference Guide"]
[]
[null," Nickname","Data Field or Range Name","Userform Location","Workbook Storage Location","Field or Range Description"]
[null,"AllowableLampWattage","AllowableLampWattage","N/A","N/A","Lookup value based on GSFL Market Averages listed on ArithmeticBaseline sheet"]
[null,"AnnualHours","label_PrimSched_AnnHrs or label_Spaces_AnnHrs, depending on whether a specific measure uses the primary schedule or a unique schedule, respectively","frm_DataEntry userform, Spaces tab","user_Space Types tab, column X","Calculated result representing annual lighting usage operating hours for a specific measure."]
[null,"BallastDraw","BallastDraw","N/A","N/A","Calculated result representing ballast power draw and based on BallastFactor_Existing, LampsPerFixture_Existing, and LampWattage_Existing."]
[null,"BallastFactor_Existing","Existing Ballast Factor\n","N/A","user_Lighting Details, column AW","Lookup value from Table_MasterMeasureList as a function of Class_Existing, Category_Existing, and Subcategory_Existing."]
[null,"Category_Existing","fld_ExistingType","frm_DataEntry userform, Measures tab","user_Lighting Details, column AB","User input defining the category of the existing fixture's lighting technology. Categories are defined in the Master Measure List (MML tab)."]
[null,"Class_Existing","fld_ExistingClass","frm_DataEntry userform, Measures tab","user_Lighting Details, column AA","User input defining the class of the existing fixture's lighting technology. Classes are defined in the Master Measure List (MML tab)."]
[null,"ExistingAnnualkWh_Arithmetic_noHVAC_noLineLoss","Existing Fixture Annual kWh w/o HVAC, Arithmetic Baseline","N/A","user_Lighting Details, column BE","Calculated result showing annual existing energy consumption adjusted for the arithmetic baseline and not including HVAC interaction and line losses."]
[null,"ExistingAnnualkWh_Precond_noHVAC_noLineLoss","Existing Fixture Annual kWh w/o HVAC","N/A","user_Lighting Details, column BD","Calculated result showing annual existing energy consumption (not adjusted for the arithmetic baseline) and not including HVAC interaction and line losses."]
[null,"FixtureWattage_Arithmetic","Existing Fixture Wattage, Arithmetic Baseline","N/A","user_Lighting Details, column BA","Calculated result showing fixture wattage adjusted for GSFL Market Average Baseline."]
[null,"FixtureWattage_Existing ","ExistingWattsPerFixture","frm_DataEntry userform, Measures tab","user_Lighting Details, column AY","Calculated result showing fixture wattage not adjusted for arithmetic baseline."]
[null,"HoursPerDay","Fourteen possiblities depending on day of week and type of schedule (primary or unique); e.g., for Monday, the two names are textbox_PrimSched_Mon and textbox_Spaces_Mon","frm_DataEntry userform, Spaces tab","user_Space Types tab, columns M through S","User input representing typical hours per day for a primary schedule and unique schedule(s) (if applicable). Hours per day are entered separately for each day of the week and for the primary schedule and each unique schedule."]
[null,"LampsPerFixture_Existing","fld_ExistingLampsPerFixture","frm_DataEntry userform, Measures tab","user_Lighting Details, column AE","User input representing number of lamps per existing fixture."]
[null,"LampWattage_Arithmetic ","LampWattage_Arithmetic ","N/A","N/A","Calculated result representing the minimum of LampWattage_Existing and LampWattage_Arithmetic_Comp."]
[null,"LampWattage_Arithmetic_Comp ","LampWattage_Arithmetic_Comp ","N/A","N/A","Calculated result based on LampsPerFixture_Existing, AllowableLampWattage, and BallastDraw."]
[null,"LampWattage_Existing ","fld_ExistingLampWattage","frm_DataEntry userform, Measures tab","user_Lighting Details, column AD","User input representing the lamp wattage of the existing measure equipment."]
[null,"NumberOfFixtures_Existing ","fld_ExistingQuantity","frm_DataEntry userform, Measures tab","user_Lighting Details, column Z","User input representing the quantity of existing fixtures."]
[null,"SpaceName ","textbox_Spaces_SpaceName","frm_DataEntry userform, Spaces tab","user_Space Types tab, column L","User input representing a unique space type, which has an associated operating schedule and HVAC type."]
[null,"Subcategory_Existing","fld_ExistingSubtype","frm_DataEntry userform, Measures tab","user_Lighting Details, column AC","User input defining the subcategory of the existing fixture's lighting technology. Subcategories are defined in the Master Measure List (MML tab)."]
[null,"WeeksPerYear ","textbox_PrimSched_WksPrYr or textbox_Spaces_WksPrYr, depending on whether a specific measure uses the primary schedule or a unique schedule, respectively","frm_DataEntry userform, Spaces tab","user_Space Types tab, column T","User input representing the number of weeks per year for which the primary operating schedule and unique operating schedule(s) hold true."]

{"sheet":"Calculator Algorithms","index":42,"n_rows":44,"n_cols":8,"rows_kept":44,"cut":false,"hidden":false,"merged":[]}
[null,"BPA Lighting Calculator Version 5.X2 - Supporting Documentation"]
[null,"Calculator Algorithms"]
[]
[null,"ExistingAnnualkWh_Precond_noHVAC_noLineLoss = FixtureWattage_Existing x NumberOfFixtures_Existing x AnnualHours"]
[null,null,"Where"]
[null,null,"·         FixtureWattage_Existing = LampWattage_Existing x LampsPerFixture_Existing x BallastFactor_Existing"]
[null,null,"Where"]
[null,null,"o   LampWattage_Existing is specified by the user"]
[null,null,"o   LampsPerFixture_Existing is specified by the user"]
[null,null,"o   BallastFactor_Existing is looked up from Table_MasterMeasureList as a function of"]
[null,null,"§  Class_Existing, which is specified by the user"]
[null,null,"§  Category_Existing, which is specified by the user"]
[null,null,"§  Subcategory_Existing, which is specified by the user"]
[null,"·         NumberOfFixtures is specified by the user"]
[null,"·         AnnualHours"]
[null,"o   [if measure is an exit sign] = 8760"]
[null,"o   [for all other measures] is looked up from the Spaces table as function of the SpaceName specified by the user for the measure."]
[null,"·         AnnualHours is computed in the CleanSpaceVector subroutine - AnnualHours = sum(HoursPerDay) x WeeksPerYear x 365/(52 x 7)"]
[null,null,null,null,"Where"]
[null,null,"o   sum(HoursPerDay) is the sum of hours specified for each of the seven days of the week."]
[null,null,"o   WeeksPerYear is looked up from the Spaces table as a function of the SpaceName specified by the user for the measure"]
[null,null,"o   365/(52 x7) is a correction factor to account for one year consisting of 52 weeks plus one day"]
[null,"ExistingAnnualkWh_Arithmetic_noHVAC_noLineLoss "]
[null,"The baseline annual energy consumption under the arithmetic baseline is computed in the same manner as the preconditions baseline (ExistingAnnualkWh_Precond_noHVAC_noLineLoss) with the following exceptions:"]
[null,"·         FixtureWattage_Existing is replaced by FixtureWattage_Arithmetic"]
[null,null,"Where"]
[null,"o   FixtureWattage_Arithmetic is computed in the same manner as FixtureWattage_Existing with the following exceptions:"]
[null,"§  LampWattage_Existing is replaced by LampWattage_Arithmetic"]
[null,null,null,null,"Where"]
[null,null,"·         LampWattage_Arithmetic ="]
[null,null,"o   [if the MasterMeasureListRow indicates that an Arithmetic baseline adjustment is called for] = minimum (LampWattage_Existing, LampWattage_Arithmetic_Comp)"]
[null,null,null,null,null,"Where"]
[null,null,null,"§  Arithmetic baseline adjustment is indicated by an “X” in the MeasureMeasureList, ArithmeticBaseline column"]
[null,null,null,"§  LampWattage_Arithmetic_Comp = ( AllowableLampWattage x LampsPerFixture_Existing ) + BallastDraw"]
[null,null,null,null,null,null,"Where"]
[null,null,null,null,"·         AllowableLampWattage is the GSFL Market Average Baseline found in the ArithmeticBaseline table"]
[null,null,null,null,"·         BallastDraw = (BallastFactor_Existing – 1) x (LampsPerFixture_Existing) x (LampWattage_Existing)"]
[null,null,null,null,null,null,null,"Where"]
[null,null,null,null,null,"o   BallastFactor_Existing is looked up in the MasterMeasureList table as a function of:"]
[null,null,null,null,null,null,"§  Class_Existing, which is specified by the user"]
[null,null,null,null,null,null,"§  Category_Existing, which is specified by the user"]
[null,null,null,null,null,null,"§  Subcategory_Existing, which is specified by the user"]
[null,null,null,null,null,"o   LampsPerFixture_Existing, which is specified by the user"]
[null,null,null,null,null,"o   LampWattage_Existing, which is specified by the user"]

{"sheet":"prntrdy_Form1","index":43,"n_rows":244,"n_cols":19,"rows_kept":244,"cut":false,"hidden":false,"merged":[[3,16,7,18],[17,11,17,12],[235,11,235,18],[238,16,238,17],[239,16,239,17],[240,16,240,17],[9,11,9,18],[13,11,13,12],[11,11,11,18],[13,15,13,17],[21,11,21,13],[23,12,23,13],[29,11,29,18],[25,15,28,18],[24,12,24,13],[25,12,25,13],[26,12,26,13],[27,12,27,13],[14,15,14,17],[16,15,16,17],[15,15,15,17],[14,11,14,12],[15,11,15,12],[19,11,19,13],[16,11,16,12],[33,12,33,14],[208,12,208,14],[209,12,209,14],[210,12,210,14],[211,12,211,14],[31,12,31,14],[32,12,32,14],[34,12,34,14],[35,12,35,14],[36,12,36,14],[37,12,37,14],[38,12,38,14],[39,12,39,14],[40,12,40,14],[41,12,41,14],[67,12,67,14],[68,12,68,14],[69,12,69,14],[70,12,70,14],[59,12,59,14],[60,12,60,14],[61,12,61,14],[62,12,62,14],[63,12,63,14],[50,12,50,14],[51,12,51,14],[52,12,52,14],[65,12,65,14],[66,12,66,14],[42,12,42,14],[43,12,43,14],[44,12,44,14],[45,12,45,14],[46,12,46,14],[47,12,47,14],[48,12,48,14],[49,12,49,14],[223,12,223,14],[224,12,224,14],[64,12,64,14],[77,12,77,14],[78,12,78,14],[79,12,79,14],[80,12,80,14],[53,12,53,14],[54,12,54,14],[55,12,55,14],[56,12,56,14],[57,12,57,14],[58,12,58,14],[212,12,212,14],[213,12,213,14],[214,12,214,14],[215,12,215,14],[216,12,216,14],[250,12,250,14],[225,12,225,14],[226,12,226,14],[227,12,227,14],[228,12,228,14],[217,12,217,14],[218,12,218,14],[219,12,219,14],[220,12,220,14],[221,12,221,14],[222,12,222,14],[264,12,264,14],[265,12,265,14],[266,12,266,14],[267,12,267,14],[268,12,268,14],[251,12,251,14],[252,12,252,14],[253,12,253,14],[254,12,254,14],[255,12,255,14],[256,12,256,14],[257,12,257,14],[258,12,258,14],[259,12,259,14],[260,12,260,14],[261,12,261,14],[262,12,262,14],[81,12,81,14],[82,12,82,14],[71,12,71,14],[72,12,72,14],[73,12,73,14],[74,12,74,14],[75,12,75,14],[76,12,76,14],[263,12,263,14],[229,12,229,14],[230,12,230,14],[231,12,231,14],[232,12,232,14],[233,12,233,14],[244,12,244,14],[242,11,242,18],[243,11,243,18],[236,16,236,17],[237,16,237,17],[245,12,245,14],[246,12,246,14],[247,12,247,14],[248,12,248,14],[249,12,249,14],[104,12,104,14],[105,12,105,14],[106,12,106,14],[83,12,83,14],[84,12,84,14],[85,12,85,14],[86,12,86,14],[87,12,87,14],[88,12,88,14],[89,12,89,14],[90,12,90,14],[91,12,91,14],[92,12,92,14],[93,12,93,14],[94,12,94,14],[95,12,95,14],[96,12,96,14],[97,12,97,14],[98,12,98,14],[99,12,99,14],[100,12,100,14],[101,12,101,14],[102,12,102,14],[103,12,103,14],[128,12,128,14],[129,12,129,14],[130,12,130,14],[107,12,107,14],[108,12,108,14],[109,12,109,14],[110,12,110,14],[111,12,111,14],[112,12,112,14],[113,12,113,14],[114,12,114,14],[115,12,115,14],[116,12,116,14],[117,12,117,14],[118,12,118,14],[119,12,119,14],[120,12,120,14],[121,12,121,14],[122,12,122,14],[123,12,123,14],[124,12,124,14],[125,12,125,14],[126,12,126,14],[127,12,127,14],[152,12,152,14],[153,12,153,14],[154,12,154,14],[131,12,131,14],[132,12,132,14],[133,12,133,14],[134,12,134,14],[135,12,135,14],[136,12,136,14],[137,12,137,14],[138,12,138,14],[139,12,139,14],[140,12,140,14],[141,12,141,14],[142,12,142,14],[143,12,143,14],[144,12,144,14],[145,12,145,14],[146,12,146,14],[147,12,147,14],[148,12,148,14],[149,12,149,14],[150,12,150,14],[151,12,151,14],[176,12,176,14],[177,12,177,14],[178,12,178,14],[155,12,155,14],[156,12,156,14],[157,12,157,14],[158,12,158,14],[159,12,159,14],[160,12,160,14],[161,12,161,14],[162,12,162,14],[163,12,163,14],[164,12,164,14],[165,12,165,14],[166,12,166,14],[195,12,195,14],[196,12,196,14],[201,12,201,14],[198,12,198,14],[197,12,197,14],[205,12,205,14],[206,12,206,14],[207,12,207,14],[3,11,3,15],[7,11,7,15],[5,11,5,15],[4,11,4,15],[199,12,199,14],[188,12,188,14],[189,12,189,14],[167,12,167,14],[168,12,168,14],[169,12,169,14],[170,12,170,14],[171,12,171,14],[172,12,172,14],[173,12,173,14],[174,12,174,14],[175,12,175,14],[236,12,236,15],[237,12,237,15],[238,12,238,15],[239,12,239,15],[240,12,240,15],[2,12,2,17],[185,12,185,14],[186,12,186,14],[187,12,187,14],[200,12,200,14],[191,12,191,14],[192,12,192,14],[190,12,190,14],[179,12,179,14],[180,12,180,14],[202,12,202,14],[181,12,181,14],[182,12,182,14],[183,12,183,14],[184,12,184,14],[203,12,203,14],[204,12,204,14],[193,12,193,14],[194,12,194,14]]}
[]
[]
[null,null,null,null,null,null,null,null,null,null,null,null,"Lighting Proposal - Attachment A"]
[null,null,null,null,null,null,null,null,null,null,null,{"$f":"IF(user_Project!N3=\"\",\"Customer Name\",user_Project!N3)","v":"Person Signing Contract"},null,null,null,null,"Estimated project costs required to determine utility incentive.  This project is pending utility approval.  All figures should be considered estimates."]
[null,null,null,null,null,null,null,null,null,null,null,{"$f":"IF(user_Project!U3=\"\",\"Customer Address\",user_Project!U3)","v":"Company Address"}]
[null,null,null,null,null,null,null,null,null,null,null,{"$f":"IF(OR(user_Project!V3=\"\",user_Project!W3=\"\",user_Project!X3=\"\"),\"Customer City/State/Zip Code\",CONCATENATE(user_Project!V3,\", \",user_Project!W3,\" \",user_Project!X3))","v":"Tacoma, WA 98402"}]
[]
[null,null,null,null,null,null,null,null,null,null,null,{"$f":"IF(user_Project!N3=\"\",\"Dear Customer\",CONCATENATE(\"Dear \",user_Project!N3,\",\"))","v":"Dear Person Signing Contract,"}]
[]
[null,null,null,null,null,null,null,null,null,null,null,{"$f":"CONCATENATE(\"Based on the lighting retrofit proposal that has been prepared by \",IF(user_TradeAlly!T3=\"\",\"'trade ally'\",user_TradeAlly!T3),IF(user_Project!AA3=\"\",\" at 'site address'\",CONCATENATE(\" at \",user_Project!AA3)),\", we have estimated the project’s energy savings and the incentives that would be available from \",IF(inp_UtilityInfo!B3=\"\",\"your utility\",inp_UtilityInfo!B3),\" for this proposed project. These are estimates only, as actual savings and incentives may vary based on final installed measures and investment costs.  The incentives provided by your local utility cover \",IF(N14=0,0,ROUND((N15/N14)*100,0)),\"% of the total installation costs of the project. The following tables display the project’s estimated energy savings, simple payback, and return on investment.\")","v":"Based on the lighting retrofit proposal that has been prepared by Company at Project Address, we have estimated the project’s energy savings and the incentives that would be available from Tacoma Power for this proposed project. These are estimates only, as actual savings and incentives may vary based on final installed measures and investment costs.  The incentives provided by your local utility cover 0% of the total installation costs of the project. The following tables display the project’s estimated energy savings, simple payback, and return on investment."}]
[]
[null,null,null,null,null,null,null,null,null,null,null,"Project Overview"]
[]
[null,null,null,null,null,null,null,null,null,null,null,"Estimated Project Cost:",null,15000,null,"Estimated Yearly Utility Savings: (from consumption and demand)",null,null,420.63082399999985]
[null,null,null,null,null,null,null,null,null,null,null,"Est. Utility Incentive: ",null,56,null,"Estimated Yearly O&M Savings**:",null,null,450]
[null,null,null,null,null,null,null,null,null,null,null,"Customer Balance: ",null,14944,null,"Estimated Simple Payback:",null,null,"17.2 years"]
[null,null,null,null,null,null,null,null,null,null,null,"Estimated kWh/Yr Saved:",null,4540.0218399999985,null,"Return On Investment (ROI):",null,null,5.8000000000000003E-2]
[null,null,null,null,null,null,null,null,null,null,null,"Estimated kW Reduction:",null,1.8960999999999997]
[]
[null,null,null,null,null,null,null,null,null,null,null,"Cost of Waiting"]
[]
[null,null,null,null,null,null,null,null,null,null,null,"The longer you wait to replace your out-of-date equipment, the more savings you miss out on. Upgrading your lighting system now will reduce your costs and energy consumption. How much money are you losing waiting to upgrade?"]
[]
[null,null,null,null,null,null,null,null,null,null,null,"Time","Costs"]
[null,null,null,null,null,null,null,null,null,null,null,"6 Months",{"$f":"IF($S$14=\"\",\"\",($S$15+$S$14)/2)","v":435.31541199999992}]
[null,null,null,null,null,null,null,null,null,null,null,"1 Year",{"$f":"IF($S$14=\"\",\"\",($S$15+$S$14))","v":870.63082399999985},null,null,{"$f":"IF(OR(S14=\"\",N16=\"\"),\"How quickly will you recoup your investment in energy efficient lighting? With an estimated monthly savings of _________, it would take approximately _____ months to pay off your investment.\",CONCATENATE(\"How quickly will you recoup your investment in energy efficient lighting? With an estimated monthly savings of $\",ROUND((S15+S14)/12,0),\", it would take approximately \",ROUND(12*(N16/SUM(S15,S14)),0),\" months to pay off your investment with a utility incentive.\"))","v":"How quickly will you recoup your investment in energy efficient lighting? With an estimated monthly savings of $73, it would take approximately 206 months to pay off your investment with a utility incentive."}]
[null,null,null,null,null,null,null,null,null,null,null,"3 Years",{"$f":"IF($S$14=\"\",\"\",($S$15+$S$14)*3)","v":2611.8924719999995}]
[null,null,null,null,null,null,null,null,null,null,null,"5 Years",{"$f":"IF($S$14=\"\",\"\",($S$15+$S$14)*5)","v":4353.1541199999992}]
[]
[null,null,null,null,null,null,null,null,null,null,null,"Project Detail Summary*"]
[]
[null,null,null,null,null,null,null,null,null,null,null,"Measure","Measure Description",null,null,"Quantity***","Units","Incentive per Unit","Total\n Incentive"]
[null,null,null,null,null,null,null,null,null,null,null,"B1-30%","LED Tubes",null,null,28,"lamp(s)","$2",56]
[]
[]
[]
[]
[]
[]
[]
[]
[]
[]
[]
[]
[]
[]
[]
[]
[]
[]
[]
[]
[]
[]
[]
[]
[]
[]
[]
[]
[]
[]
[]
[]
[]
[]
[]
[]
[]
[]
[]
[]
[]
[]
[]
[]
[]
[]
[]
[]
[]
[]
[]
[]
[]
[]
[]
[]
[]
[]
[]
[]
[]
[]
[]
[]
[]
[]
[]
[]
[]
[]
[]
[]
[]
[]
[]
[]
[]
[]
[]
[]
[]
[]
[]
[]
[]
[]
[]
[]
[]
[]
[]
[]
[]
[]
[]
[]
[]
[]
[]
[]
[]
[]
[]
[]
[]
[]
[]
[]
[]
[]
[]
[]
[]
[]
[]
[]
[]
[]
[]
[]
[]
[]
[]
[]
[]
[]
[]
[]
[]
[]
[]
[]
[]
[]
[]
[]
[]
[]
[]
[]
[]
[]
[]
[]
[]
[]
[]
[]
[]
[]
[]
[]
[]
[]
[]
[]
[]
[]
[]
[]
[]
[]
[]
[]
[]
[]
[]
[]
[]
[]
[]
[]
[]
[]
[]
[]
[]
[]
[]
[]
[]
[]
[]
[]
[]
[]
[]
[]
[]
[]
[]
[]
[]
[]
[]
[]
[]
[]
[]
[]
[null,null,null,null,null,null,null,null,null,null,null,null,null,null,null,null,null,"Total",{"$f":"SUM(S33:S233)","v":56}]
[]
[null,null,null,null,null,null,null,null,null,null,null,"Explanation of Utility Incentive"]
[null,null,null,null,null,null,null,null,null,null,null,null,"A. Itemized Incentive Total:",null,null,null,56]
[null,null,null,null,null,null,null,null,null,null,null,null,"B. Total Estimated Project Costs:",null,null,null,15000]
[null,null,null,null,null,null,null,null,null,null,null,null,{"$f":"IF(inp_Incentives!$A$3=\"\",\"C. 70% of Estimated Project Costs\nIncentive Cap:\",CONCATENATE(\"C. \",ROUND(inp_Incentives!$A$3,1),\"% of Estimated Project Costs\nIncentive Cap:\"))","v":"C. 100% of Estimated Project Costs\nIncentive Cap:"},null,null,null,"N/A"]
[null,null,null,null,null,null,null,null,null,null,null,null,{"$f":"IF(inp_Incentives!$B$3=\"\",\"D. Maximum $0.50 per kWh (Project Level) Incentive Cap:\",CONCATENATE(\"D. Maximum \",TEXT(ROUND(inp_Incentives!$B$3,2),\"$0.00\"),\" per kWh (Project Level) Incentive Cap:\"))","v":"D. Maximum $0.19 per kWh (Project Level) Incentive Cap:"},null,null,null,"N/A"]
[null,null,null,null,null,null,null,null,null,null,null,null,"E. Total Incentive = \nLesser of \"A\", \"C\", and \"D\" above:",null,null,null,56]
[]
[null,null,null,null,null,null,null,null,null,null,null,"          EXIT SIGNS AND TLED TUBE INCENTIVES ARE AVAILABLE ONLY AS DEEMED MEASURES              *Actual incentives paid are based on DEEMED measures.  ANY non-standard and advanced control measures must be approved by TPU. Utility incentives may be capped based on a predetermined maximum incentive per project.\n** The default value for annual O&M savings is 3% of the project cost.  Your utility can override this value."]
[null,null,null,null,null,null,null,null,null,null,null,"***kWh savings reported in the Project Overview are estimated on-site savings that a customer may realize, while savings figures in the Project Detail Summary have been adjusted for federal standards and BPA busbar."]

{"sheet":"prntrdy_Form2","index":44,"n_rows":240,"n_cols":17,"rows_kept":240,"cut":false,"hidden":false,"merged":[[243,11,243,16],[213,12,215,12],[216,13,218,14],[219,13,221,14],[239,11,239,16],[228,11,228,16],[187,11,187,16],[182,11,182,16],[216,12,218,12],[210,11,210,16],[223,11,223,16],[212,13,212,14],[219,12,221,12],[206,11,206,16],[191,11,191,16],[213,13,215,14],[201,11,201,16],[2,13,2,16],[22,11,22,16],[3,11,3,16],[15,11,15,16],[130,11,130,16],[66,11,66,16],[96,11,96,16],[7,11,7,16],[125,11,125,16],[164,11,164,16],[196,11,196,16],[19,11,19,16],[28,11,28,16],[62,11,62,16],[101,11,101,16],[154,11,154,16],[149,11,150,16],[32,11,32,16],[144,11,144,16],[139,11,139,16],[177,11,177,16],[159,11,159,16]]}
[]
[]
[]
[null,null,null,null,null,null,null,null,null,null,null,"Lighting Calculator 5.X2 Program Offerings"]
[]
[null,null,null,null,null,null,null,null,null,null,null,"Measure Series A: LED Small Lamp / Fixture"]
[]
[null,null,null,null,null,null,null,null,null,null,null,"Measure Series A is intended for interior and exterior LED small lamps and fixtures. This measure series includes: reflectors, PAR, BR, A-lamps, MR-16s, CFLEDs, recessed cans/kits, and other medium base LED screw-in or small fixture variations. "]
[]
[]
[]
[null,null,null,null,null,null,null,null,null,null,null,null,"Measure ","Watt Baseline","Required Wattage Reduction ","Incentive per lamp"]
[null,null,null,null,null,null,null,null,null,null,null,null,{"$f":"inp_Incentives!B6","v":"A1-40%"},{"$f":"inp_Incentives!D6","v":"≤100"},{"$f":"IF(OR(inp_Incentives!E6=0,inp_Incentives!E6=\"\"),\"N/A\",CONCATENATE(\"≥\",TEXT(inp_Incentives!E6,\"0%\")))","v":"≥40%"},{"$f":"inp_Incentives!I6","v":0}]
[null,null,null,null,null,null,null,null,null,null,null,null,{"$f":"inp_Incentives!B7","v":"A2-40%"},{"$f":"inp_Incentives!D7","v":"≥101"},{"$f":"IF(OR(inp_Incentives!E7=0,inp_Incentives!E7=\"\"),\"N/A\",CONCATENATE(\"≥\",TEXT(inp_Incentives!E7,\"0%\")))","v":"≥40%"},{"$f":"inp_Incentives!I7","v":0}]
[]
[null,null,null,null,null,null,null,null,null,null,null,"Notes:\n• Please refer to Measure Series F for screw-in LEDs replacing HIDs. "]
[]
[null,null,null,null,null,null,null,null,null,null,null,"Measure Series B: LED Tubes"]
[]
[null,null,null,null,null,null,null,null,null,null,null,"Measure Series B covers all sizes, shapes, and configurations (Types A, B, C) of LED Tubes (TLEDs), including, 4’, 8’, irregular lengths, and U-bend."]
[]
[]
[]
[null,null,null,null,null,null,null,null,null,null,null,null,"Measure ","Watt Baseline","Required Wattage Reduction ","Incentive per tube"]
[null,null,null,null,null,null,null,null,null,null,null,null,{"$f":"inp_Incentives!B10","v":"B1-30%"},{"$f":"\"≥1\"","v":"≥1"},{"$f":"IF(OR(inp_Incentives!E10=0,inp_Incentives!E10=\"\"),\"N/A\",CONCATENATE(\"≥\",TEXT(inp_Incentives!E10,\"0%\")))","v":"≥30%"},{"$f":"inp_Incentives!I10","v":2}]
[]
[]
[]
[]
[]
[null,null,null,null,null,null,null,null,null,null,null,"Measure Series C: LED General Indoor / Outdoor"]
[]
[null,null,null,null,null,null,null,null,null,null,null,"The General Indoor / Outdoor category includes a variety of fixtures typically installed under 15’ including recessed troffers, surface mounted wraps, vapor tights, other similar linear fixtures.* Measure Series C excludes exterior applications such as parking lots, wall packs, roadways, etc. For these applications Measure Series E: LED Exterior shall be used."]
[]
[]
[]
[null,null,null,null,null,null,null,null,null,null,null,null,"Measure ","Watt Baseline","Required Wattage Reduction ","Incentive per standard fixture"]
[null,null,null,null,null,null,null,null,null,null,null,null,{"$f":"inp_Incentives!B15","v":"C1-40%"},{"$f":"inp_Incentives!D15","v":"≤100"},{"$f":"IF(OR(inp_Incentives!E15=0,inp_Incentives!E15=\"\"),\"N/A\",CONCATENATE(\"≥\",TEXT(inp_Incentives!E15,\"0%\")))","v":"≥40%"},{"$f":"inp_Incentives!I15","v":20}]
[null,null,null,null,null,null,null,null,null,null,null,null,{"$f":"inp_Incentives!B16","v":"C1-40% w/Networked Cont"},{"$f":"inp_Incentives!D16","v":"≤100"},{"$f":"IF(OR(inp_Incentives!E16=0,inp_Incentives!E16=\"\"),\"N/A\",CONCATENATE(\"≥\",TEXT(inp_Incentives!E16,\"0%\")))","v":"≥40%"},{"$f":"inp_Incentives!I16","v":60}]
[null,null,null,null,null,null,null,null,null,null,null,null,{"$f":"inp_Incentives!B17","v":"C1-50%"},{"$f":"inp_Incentives!D17","v":"≤100"},{"$f":"IF(OR(inp_Incentives!E17=0,inp_Incentives!E17=\"\"),\"N/A\",CONCATENATE(\"≥\",TEXT(inp_Incentives!E17,\"0%\")))","v":"≥50%"},{"$f":"inp_Incentives!I17","v":30}]
[null,null,null,null,null,null,null,null,null,null,null,null,{"$f":"inp_Incentives!B18","v":"C1-50% w/Networked Cont"},{"$f":"inp_Incentives!D18","v":"≤100"},{"$f":"IF(OR(inp_Incentives!E18=0,inp_Incentives!E18=\"\"),\"N/A\",CONCATENATE(\"≥\",TEXT(inp_Incentives!E18,\"0%\")))","v":"≥50%"},{"$f":"inp_Incentives!I18","v":70}]
[null,null,null,null,null,null,null,null,null,null,null,null,{"$f":"inp_Incentives!B19","v":"C1-60%"},{"$f":"inp_Incentives!D19","v":"≤100"},{"$f":"IF(OR(inp_Incentives!E19=0,inp_Incentives!E19=\"\"),\"N/A\",CONCATENATE(\"≥\",TEXT(inp_Incentives!E19,\"0%\")))","v":"≥60%"},{"$f":"inp_Incentives!I19","v":40}]
[null,null,null,null,null,null,null,null,null,null,null,null,{"$f":"inp_Incentives!B20","v":"C1-60% w/Networked Cont"},{"$f":"inp_Incentives!D20","v":"≤100"},{"$f":"IF(OR(inp_Incentives!E20=0,inp_Incentives!E20=\"\"),\"N/A\",CONCATENATE(\"≥\",TEXT(inp_Incentives!E20,\"0%\")))","v":"≥60%"},{"$f":"inp_Incentives!I20","v":80}]
[null,null,null,null,null,null,null,null,null,null,null,null,{"$f":"inp_Incentives!B21","v":"C1-70%"},{"$f":"inp_Incentives!D21","v":"≤100"},{"$f":"IF(OR(inp_Incentives!E21=0,inp_Incentives!E21=\"\"),\"N/A\",CONCATENATE(\"≥\",TEXT(inp_Incentives!E21,\"0%\")))","v":"≥70%"},{"$f":"inp_Incentives!I21","v":50}]
[null,null,null,null,null,null,null,null,null,null,null,null,{"$f":"inp_Incentives!B22","v":"C1-70% w/Networked Cont"},{"$f":"inp_Incentives!D22","v":"≤100"},{"$f":"IF(OR(inp_Incentives!E22=0,inp_Incentives!E22=\"\"),\"N/A\",CONCATENATE(\"≥\",TEXT(inp_Incentives!E22,\"0%\")))","v":"≥70%"},{"$f":"inp_Incentives!I22","v":90}]
[null,null,null,null,null,null,null,null,null,null,null,null,{"$f":"inp_Incentives!B23","v":"C2-40%"},{"$f":"inp_Incentives!D23","v":"101-200"},{"$f":"IF(OR(inp_Incentives!E23=0,inp_Incentives!E23=\"\"),\"N/A\",CONCATENATE(\"≥\",TEXT(inp_Incentives!E23,\"0%\")))","v":"≥40%"},{"$f":"inp_Incentives!I23","v":40}]
[null,null,null,null,null,null,null,null,null,null,null,null,{"$f":"inp_Incentives!B24","v":"C2-40% w/Networked Cont"},{"$f":"inp_Incentives!D24","v":"101-200"},{"$f":"IF(OR(inp_Incentives!E24=0,inp_Incentives!E24=\"\"),\"N/A\",CONCATENATE(\"≥\",TEXT(inp_Incentives!E24,\"0%\")))","v":"≥40%"},{"$f":"inp_Incentives!I24","v":80}]
[null,null,null,null,null,null,null,null,null,null,null,null,{"$f":"inp_Incentives!B25","v":"C2-50%"},{"$f":"inp_Incentives!D25","v":"101-200"},{"$f":"IF(OR(inp_Incentives!E25=0,inp_Incentives!E25=\"\"),\"N/A\",CONCATENATE(\"≥\",TEXT(inp_Incentives!E25,\"0%\")))","v":"≥50%"},{"$f":"inp_Incentives!I25","v":60}]
[null,null,null,null,null,null,null,null,null,null,null,null,{"$f":"inp_Incentives!B26","v":"C2-50% w/Networked Cont"},{"$f":"inp_Incentives!D26","v":"101-200"},{"$f":"IF(OR(inp_Incentives!E26=0,inp_Incentives!E26=\"\"),\"N/A\",CONCATENATE(\"≥\",TEXT(inp_Incentives!E26,\"0%\")))","v":"≥50%"},{"$f":"inp_Incentives!I26","v":100}]
[null,null,null,null,null,null,null,null,null,null,null,null,{"$f":"inp_Incentives!B27","v":"C2-60%"},{"$f":"inp_Incentives!D27","v":"101-200"},{"$f":"IF(OR(inp_Incentives!E27=0,inp_Incentives!E27=\"\"),\"N/A\",CONCATENATE(\"≥\",TEXT(inp_Incentives!E27,\"0%\")))","v":"≥60%"},{"$f":"inp_Incentives!I27","v":80}]
[null,null,null,null,null,null,null,null,null,null,null,null,{"$f":"inp_Incentives!B28","v":"C2-60% w/Networked Cont"},{"$f":"inp_Incentives!D28","v":"101-200"},{"$f":"IF(OR(inp_Incentives!E28=0,inp_Incentives!E28=\"\"),\"N/A\",CONCATENATE(\"≥\",TEXT(inp_Incentives!E28,\"0%\")))","v":"≥60%"},{"$f":"inp_Incentives!I28","v":120}]
[null,null,null,null,null,null,null,null,null,null,null,null,{"$f":"inp_Incentives!B29","v":"C2-70%"},{"$f":"inp_Incentives!D29","v":"101-200"},{"$f":"IF(OR(inp_Incentives!E29=0,inp_Incentives!E29=\"\"),\"N/A\",CONCATENATE(\"≥\",TEXT(inp_Incentives!E29,\"0%\")))","v":"≥70%"},{"$f":"inp_Incentives!I29","v":100}]
[null,null,null,null,null,null,null,null,null,null,null,null,{"$f":"inp_Incentives!B30","v":"C2-70% w/Networked Cont"},{"$f":"inp_Incentives!D30","v":"101-200"},{"$f":"IF(OR(inp_Incentives!E30=0,inp_Incentives!E30=\"\"),\"N/A\",CONCATENATE(\"≥\",TEXT(inp_Incentives!E30,\"0%\")))","v":"≥70%"},{"$f":"inp_Incentives!I30","v":140}]
[null,null,null,null,null,null,null,null,null,null,null,null,{"$f":"inp_Incentives!B31","v":"C3-40%"},{"$f":"inp_Incentives!D31","v":"≥201"},{"$f":"IF(OR(inp_Incentives!E31=0,inp_Incentives!E31=\"\"),\"N/A\",CONCATENATE(\"≥\",TEXT(inp_Incentives!E31,\"0%\")))","v":"≥40%"},{"$f":"inp_Incentives!I31","v":70}]
[null,null,null,null,null,null,null,null,null,null,null,null,{"$f":"inp_Incentives!B32","v":"C3-40% w/Networked Cont"},{"$f":"inp_Incentives!D32","v":"≥201"},{"$f":"IF(OR(inp_Incentives!E32=0,inp_Incentives!E32=\"\"),\"N/A\",CONCATENATE(\"≥\",TEXT(inp_Incentives!E32,\"0%\")))","v":"≥40%"},{"$f":"inp_Incentives!I32","v":130}]
[null,null,null,null,null,null,null,null,null,null,null,null,{"$f":"inp_Incentives!B33","v":"C3-50%"},{"$f":"inp_Incentives!D33","v":"≥201"},{"$f":"IF(OR(inp_Incentives!E33=0,inp_Incentives!E33=\"\"),\"N/A\",CONCATENATE(\"≥\",TEXT(inp_Incentives!E33,\"0%\")))","v":"≥50%"},{"$f":"inp_Incentives!I33","v":100}]
[null,null,null,null,null,null,null,null,null,null,null,null,{"$f":"inp_Incentives!B34","v":"C3-50% w/Networked Cont"},{"$f":"inp_Incentives!D34","v":"≥201"},{"$f":"IF(OR(inp_Incentives!E34=0,inp_Incentives!E34=\"\"),\"N/A\",CONCATENATE(\"≥\",TEXT(inp_Incentives!E34,\"0%\")))","v":"≥50%"},{"$f":"inp_Incentives!I34","v":160}]
[null,null,null,null,null,null,null,null,null,null,null,null,{"$f":"inp_Incentives!B35","v":"C3-60%"},{"$f":"inp_Incentives!D35","v":"≥201"},{"$f":"IF(OR(inp_Incentives!E35=0,inp_Incentives!E35=\"\"),\"N/A\",CONCATENATE(\"≥\",TEXT(inp_Incentives!E35,\"0%\")))","v":"≥60%"},{"$f":"inp_Incentives!I35","v":120}]
[null,null,null,null,null,null,null,null,null,null,null,null,{"$f":"inp_Incentives!B36","v":"C3-60% w/Networked Cont"},{"$f":"inp_Incentives!D36","v":"≥201"},{"$f":"IF(OR(inp_Incentives!E36=0,inp_Incentives!E36=\"\"),\"N/A\",CONCATENATE(\"≥\",TEXT(inp_Incentives!E36,\"0%\")))","v":"≥60%"},{"$f":"inp_Incentives!I36","v":180}]
[null,null,null,null,null,null,null,null,null,null,null,null,{"$f":"inp_Incentives!B37","v":"C3-70%"},{"$f":"inp_Incentives!D37","v":"≥201"},{"$f":"IF(OR(inp_Incentives!E37=0,inp_Incentives!E37=\"\"),\"N/A\",CONCATENATE(\"≥\",TEXT(inp_Incentives!E37,\"0%\")))","v":"≥70%"},{"$f":"inp_Incentives!I37","v":140}]
[null,null,null,null,null,null,null,null,null,null,null,null,{"$f":"inp_Incentives!B38","v":"C3-70% w/Networked Cont"},{"$f":"inp_Incentives!D38","v":"≥201"},{"$f":"IF(OR(inp_Incentives!E38=0,inp_Incentives!E38=\"\"),\"N/A\",CONCATENATE(\"≥\",TEXT(inp_Incentives!E38,\"0%\")))","v":"≥70%"},{"$f":"inp_Incentives!I38","v":200}]
[]
[null,null,null,null,null,null,null,null,null,null,null,"Notes:\n* Hard-wired recessed can fixtures may be entered under Measure Series C: General Indoor/Outdoor.\n• Standard Fixtures are not required to be listed on the DLC Qualified Products List\n• Fixtures with Networked Controls must be listed on the DLC Networked Lighting Controls Qualified Products List and the model / product number must be included in the Notes Section of the lighting calculator.\n"]
[]
[null,null,null,null,null,null,null,null,null,null,null,"Measure Series D: LED High Bay "]
[]
[null,null,null,null,null,null,null,null,null,null,null,"Measure Series D is intended for interior LED High Bay fixtures."]
[]
[]
[]
[null,null,null,null,null,null,null,null,null,null,null,null,"Measure ","Watt Baseline","Required Wattage Reduction ","Incentive per fixture"]
[null,null,null,null,null,null,null,null,null,null,null,null,{"$f":"inp_Incentives!B42","v":"D1-40%"},{"$f":"inp_Incentives!D42","v":"140-299"},{"$f":"IF(OR(inp_Incentives!E42=0,inp_Incentives!E42=\"\"),\"N/A\",CONCATENATE(\"≥\",TEXT(inp_Incentives!E42,\"0%\")))","v":"≥40%"},{"$f":"inp_Incentives!I42","v":80}]
[null,null,null,null,null,null,null,null,null,null,null,null,{"$f":"inp_Incentives!B43","v":"D1-40% w/ Networked Cont"},{"$f":"inp_Incentives!D43","v":"140-299"},{"$f":"IF(OR(inp_Incentives!E43=0,inp_Incentives!E43=\"\"),\"N/A\",CONCATENATE(\"≥\",TEXT(inp_Incentives!E43,\"0%\")))","v":"≥40%"},{"$f":"inp_Incentives!I43","v":140}]
[null,null,null,null,null,null,null,null,null,null,null,null,{"$f":"inp_Incentives!B44","v":"D1-60%"},{"$f":"inp_Incentives!D44","v":"140-299"},{"$f":"IF(OR(inp_Incentives!E44=0,inp_Incentives!E44=\"\"),\"N/A\",CONCATENATE(\"≥\",TEXT(inp_Incentives!E44,\"0%\")))","v":"≥60%"},{"$f":"inp_Incentives!I44","v":140}]
[null,null,null,null,null,null,null,null,null,null,null,null,{"$f":"inp_Incentives!B45","v":"D1-60% w/ Networked Cont"},{"$f":"inp_Incentives!D45","v":"140-299"},{"$f":"IF(OR(inp_Incentives!E45=0,inp_Incentives!E45=\"\"),\"N/A\",CONCATENATE(\"≥\",TEXT(inp_Incentives!E45,\"0%\")))","v":"≥60%"},{"$f":"inp_Incentives!I45","v":200}]
[null,null,null,null,null,null,null,null,null,null,null,null,{"$f":"inp_Incentives!B46","v":"D1-70%"},{"$f":"inp_Incentives!D46","v":"140-299"},{"$f":"IF(OR(inp_Incentives!E46=0,inp_Incentives!E46=\"\"),\"N/A\",CONCATENATE(\"≥\",TEXT(inp_Incentives!E46,\"0%\")))","v":"≥70%"},{"$f":"inp_Incentives!I46","v":200}]
[null,null,null,null,null,null,null,null,null,null,null,null,{"$f":"inp_Incentives!B47","v":"D1-70% w/ Networked Cont"},{"$f":"inp_Incentives!D47","v":"140-299"},{"$f":"IF(OR(inp_Incentives!E47=0,inp_Incentives!E47=\"\"),\"N/A\",CONCATENATE(\"≥\",TEXT(inp_Incentives!E47,\"0%\")))","v":"≥70%"},{"$f":"inp_Incentives!I47","v":260}]
[null,null,null,null,null,null,null,null,null,null,null,null,{"$f":"inp_Incentives!B48","v":"D2-40%"},{"$f":"inp_Incentives!D48","v":"300-399"},{"$f":"IF(OR(inp_Incentives!E48=0,inp_Incentives!E48=\"\"),\"N/A\",CONCATENATE(\"≥\",TEXT(inp_Incentives!E48,\"0%\")))","v":"≥40%"},{"$f":"inp_Incentives!I48","v":100}]
[null,null,null,null,null,null,null,null,null,null,null,null,{"$f":"inp_Incentives!B49","v":"D2-40% w/ Networked Cont"},{"$f":"inp_Incentives!D49","v":"300-399"},{"$f":"IF(OR(inp_Incentives!E49=0,inp_Incentives!E49=\"\"),\"N/A\",CONCATENATE(\"≥\",TEXT(inp_Incentives!E49,\"0%\")))","v":"≥40%"},{"$f":"inp_Incentives!I49","v":160}]
[null,null,null,null,null,null,null,null,null,null,null,null,{"$f":"inp_Incentives!B50","v":"D2-60%"},{"$f":"inp_Incentives!D50","v":"300-399"},{"$f":"IF(OR(inp_Incentives!E50=0,inp_Incentives!E50=\"\"),\"N/A\",CONCATENATE(\"≥\",TEXT(inp_Incentives!E50,\"0%\")))","v":"≥60%"},{"$f":"inp_Incentives!I50","v":180}]
[null,null,null,null,null,null,null,null,null,null,null,null,{"$f":"inp_Incentives!B51","v":"D2-60% w/ Networked Cont"},{"$f":"inp_Incentives!D51","v":"300-399"},{"$f":"IF(OR(inp_Incentives!E51=0,inp_Incentives!E51=\"\"),\"N/A\",CONCATENATE(\"≥\",TEXT(inp_Incentives!E51,\"0%\")))","v":"≥60%"},{"$f":"inp_Incentives!I51","v":240}]
[null,null,null,null,null,null,null,null,null,null,null,null,{"$f":"inp_Incentives!B52","v":"D2-70%"},{"$f":"inp_Incentives!D52","v":"300-399"},{"$f":"IF(OR(inp_Incentives!E52=0,inp_Incentives!E52=\"\"),\"N/A\",CONCATENATE(\"≥\",TEXT(inp_Incentives!E52,\"0%\")))","v":"≥70%"},{"$f":"inp_Incentives!I52","v":300}]
[null,null,null,null,null,null,null,null,null,null,null,null,{"$f":"inp_Incentives!B53","v":"D2-70% w/ Networked Cont"},{"$f":"inp_Incentives!D53","v":"300-399"},{"$f":"IF(OR(inp_Incentives!E53=0,inp_Incentives!E53=\"\"),\"N/A\",CONCATENATE(\"≥\",TEXT(inp_Incentives!E53,\"0%\")))","v":"≥70%"},{"$f":"inp_Incentives!I53","v":360}]
[null,null,null,null,null,null,null,null,null,null,null,null,{"$f":"inp_Incentives!B54","v":"D3-40%"},{"$f":"inp_Incentives!D54","v":"400-499"},{"$f":"IF(OR(inp_Incentives!E54=0,inp_Incentives!E54=\"\"),\"N/A\",CONCATENATE(\"≥\",TEXT(inp_Incentives!E54,\"0%\")))","v":"≥40%"},{"$f":"inp_Incentives!I54","v":140}]
[null,null,null,null,null,null,null,null,null,null,null,null,{"$f":"inp_Incentives!B55","v":"D3-40% w/ Networked Cont"},{"$f":"inp_Incentives!D55","v":"400-499"},{"$f":"IF(OR(inp_Incentives!E55=0,inp_Incentives!E55=\"\"),\"N/A\",CONCATENATE(\"≥\",TEXT(inp_Incentives!E55,\"0%\")))","v":"≥40%"},{"$f":"inp_Incentives!I55","v":200}]
[null,null,null,null,null,null,null,null,null,null,null,null,{"$f":"inp_Incentives!B56","v":"D3-60%"},{"$f":"inp_Incentives!D56","v":"400-499"},{"$f":"IF(OR(inp_Incentives!E56=0,inp_Incentives!E56=\"\"),\"N/A\",CONCATENATE(\"≥\",TEXT(inp_Incentives!E56,\"0%\")))","v":"≥60%"},{"$f":"inp_Incentives!I56","v":240}]
[null,null,null,null,null,null,null,null,null,null,null,null,{"$f":"inp_Incentives!B57","v":"D3-60% w/ Networked Cont"},{"$f":"inp_Incentives!D57","v":"400-499"},{"$f":"IF(OR(inp_Incentives!E57=0,inp_Incentives!E57=\"\"),\"N/A\",CONCATENATE(\"≥\",TEXT(inp_Incentives!E57,\"0%\")))","v":"≥60%"},{"$f":"inp_Incentives!I57","v":300}]
[null,null,null,null,null,null,null,null,null,null,null,null,{"$f":"inp_Incentives!B58","v":"D3-70%"},{"$f":"inp_Incentives!D58","v":"400-499"},{"$f":"IF(OR(inp_Incentives!E58=0,inp_Incentives!E58=\"\"),\"N/A\",CONCATENATE(\"≥\",TEXT(inp_Incentives!E58,\"0%\")))","v":"≥70%"},{"$f":"inp_Incentives!I58","v":360}]
[null,null,null,null,null,null,null,null,null,null,null,null,{"$f":"inp_Incentives!B59","v":"D3-70% w/ Networked Cont"},{"$f":"inp_Incentives!D59","v":"400-499"},{"$f":"IF(OR(inp_Incentives!E59=0,inp_Incentives!E59=\"\"),\"N/A\",CONCATENATE(\"≥\",TEXT(inp_Incentives!E59,\"0%\")))","v":"≥70%"},{"$f":"inp_Incentives!I59","v":420}]
[null,null,null,null,null,null,null,null,null,null,null,null,{"$f":"inp_Incentives!B60","v":"D4-40%"},{"$f":"inp_Incentives!D60","v":"≥500"},{"$f":"IF(OR(inp_Incentives!E60=0,inp_Incentives!E60=\"\"),\"N/A\",CONCATENATE(\"≥\",TEXT(inp_Incentives!E60,\"0%\")))","v":"≥40%"},{"$f":"inp_Incentives!I60","v":250}]
[null,null,null,null,null,null,null,null,null,null,null,null,{"$f":"inp_Incentives!B61","v":"D4-40% w/ Networked Cont"},{"$f":"inp_Incentives!D61","v":"≥500"},{"$f":"IF(OR(inp_Incentives!E61=0,inp_Incentives!E61=\"\"),\"N/A\",CONCATENATE(\"≥\",TEXT(inp_Incentives!E61,\"0%\")))","v":"≥40%"},{"$f":"inp_Incentives!I61","v":350}]
[null,null,null,null,null,null,null,null,null,null,null,null,{"$f":"inp_Incentives!B62","v":"D4-60%"},{"$f":"inp_Incentives!D62","v":"≥500"},{"$f":"IF(OR(inp_Incentives!E62=0,inp_Incentives!E62=\"\"),\"N/A\",CONCATENATE(\"≥\",TEXT(inp_Incentives!E62,\"0%\")))","v":"≥60%"},{"$f":"inp_Incentives!I62","v":400}]
[null,null,null,null,null,null,null,null,null,null,null,null,{"$f":"inp_Incentives!B63","v":"D4-60% w/ Networked Cont"},{"$f":"inp_Incentives!D63","v":"≥500"},{"$f":"IF(OR(inp_Incentives!E63=0,inp_Incentives!E63=\"\"),\"N/A\",CONCATENATE(\"≥\",TEXT(inp_Incentives!E63,\"0%\")))","v":"≥60%"},{"$f":"inp_Incentives!I63","v":500}]
[null,null,null,null,null,null,null,null,null,null,null,null,{"$f":"inp_Incentives!B64","v":"D4-70%"},{"$f":"inp_Incentives!D64","v":"≥500"},{"$f":"IF(OR(inp_Incentives!E64=0,inp_Incentives!E64=\"\"),\"N/A\",CONCATENATE(\"≥\",TEXT(inp_Incentives!E64,\"0%\")))","v":"≥70%"},{"$f":"inp_Incentives!I64","v":500}]
[null,null,null,null,null,null,null,null,null,null,null,null,{"$f":"inp_Incentives!B65","v":"D4-70% w/ Networked Cont"},{"$f":"inp_Incentives!D65","v":"≥500"},{"$f":"IF(OR(inp_Incentives!E65=0,inp_Incentives!E65=\"\"),\"N/A\",CONCATENATE(\"≥\",TEXT(inp_Incentives!E65,\"0%\")))","v":"≥70%"},{"$f":"inp_Incentives!I65","v":600}]
[]
[null,null,null,null,null,null,null,null,null,null,null,"Notes:\n• LED Screw-in products replacing HID are not eligible for the High Bay category and must be entered in Measure Series F: HID Replacement Screw-in.\n• Standard Fixtures are not required to be listed on the DLC Qualified Products List\n• High Bay Fixtures with Networked Controls must be listed on the DLC’s Networked Lighting Controls qualified products list and the model / product number must be included in the Notes Section of the lighting calculator. \n"]
[]
[]
[null,null,null,null,null,null,null,null,null,null,null,"Measure Series E: LED Exterior"]
[]
[null,null,null,null,null,null,null,null,null,null,null,"Measure Series E is intended for the following types of exterior LED applications: \nparking lot, parking garage, roadway, wall packs, bollards, floods, barn/yard, pole lamps, canopy, and high mast."]
[]
[]
[]
[null,null,null,null,null,null,null,null,null,null,null,null,"Measure ","Watt Baseline","Required Wattage Reduction ","Incentive per fixture"]
[null,null,null,null,null,null,null,null,null,null,null,null,{"$f":"inp_Incentives!B68","v":"E1-40%"},{"$f":"inp_Incentives!D68","v":"30-99"},{"$f":"IF(OR(inp_Incentives!E68=0,inp_Incentives!E68=\"\"),\"N/A\",CONCATENATE(\"≥\",TEXT(inp_Incentives!E68,\"0%\")))","v":"≥40%"},{"$f":"inp_Incentives!I68","v":30}]
[null,null,null,null,null,null,null,null,null,null,null,null,{"$f":"inp_Incentives!B69","v":"E1-60%"},{"$f":"inp_Incentives!D69","v":"30-99"},{"$f":"IF(OR(inp_Incentives!E69=0,inp_Incentives!E69=\"\"),\"N/A\",CONCATENATE(\"≥\",TEXT(inp_Incentives!E69,\"0%\")))","v":"≥60%"},{"$f":"inp_Incentives!I69","v":40}]
[null,null,null,null,null,null,null,null,null,null,null,null,{"$f":"inp_Incentives!B70","v":"E1-70%"},{"$f":"inp_Incentives!D70","v":"30-99"},{"$f":"IF(OR(inp_Incentives!E70=0,inp_Incentives!E70=\"\"),\"N/A\",CONCATENATE(\"≥\",TEXT(inp_Incentives!E70,\"0%\")))","v":"≥70%"},{"$f":"inp_Incentives!I70","v":50}]
[null,null,null,null,null,null,null,null,null,null,null,null,{"$f":"inp_Incentives!B71","v":"E2-40%"},{"$f":"inp_Incentives!D71","v":"100-199"},{"$f":"IF(OR(inp_Incentives!E71=0,inp_Incentives!E71=\"\"),\"N/A\",CONCATENATE(\"≥\",TEXT(inp_Incentives!E71,\"0%\")))","v":"≥40%"},{"$f":"inp_Incentives!I71","v":60}]
[null,null,null,null,null,null,null,null,null,null,null,null,{"$f":"inp_Incentives!B72","v":"E2-60%"},{"$f":"inp_Incentives!D72","v":"100-199"},{"$f":"IF(OR(inp_Incentives!E72=0,inp_Incentives!E72=\"\"),\"N/A\",CONCATENATE(\"≥\",TEXT(inp_Incentives!E72,\"0%\")))","v":"≥60%"},{"$f":"inp_Incentives!I72","v":80}]
[null,null,null,null,null,null,null,null,null,null,null,null,{"$f":"inp_Incentives!B73","v":"E2-70%"},{"$f":"inp_Incentives!D73","v":"100-199"},{"$f":"IF(OR(inp_Incentives!E73=0,inp_Incentives!E73=\"\"),\"N/A\",CONCATENATE(\"≥\",TEXT(inp_Incentives!E73,\"0%\")))","v":"≥70%"},{"$f":"inp_Incentives!I73","v":100}]
[null,null,null,null,null,null,null,null,null,null,null,null,{"$f":"inp_Incentives!B74","v":"E3-40%"},{"$f":"inp_Incentives!D74","v":"200-299"},{"$f":"IF(OR(inp_Incentives!E74=0,inp_Incentives!E74=\"\"),\"N/A\",CONCATENATE(\"≥\",TEXT(inp_Incentives!E74,\"0%\")))","v":"≥40%"},{"$f":"inp_Incentives!I74","v":80}]
[null,null,null,null,null,null,null,null,null,null,null,null,{"$f":"inp_Incentives!B75","v":"E3-60%"},{"$f":"inp_Incentives!D75","v":"200-299"},{"$f":"IF(OR(inp_Incentives!E75=0,inp_Incentives!E75=\"\"),\"N/A\",CONCATENATE(\"≥\",TEXT(inp_Incentives!E75,\"0%\")))","v":"≥60%"},{"$f":"inp_Incentives!I75","v":120}]
[null,null,null,null,null,null,null,null,null,null,null,null,{"$f":"inp_Incentives!B76","v":"E3-70%"},{"$f":"inp_Incentives!D76","v":"200-299"},{"$f":"IF(OR(inp_Incentives!E76=0,inp_Incentives!E76=\"\"),\"N/A\",CONCATENATE(\"≥\",TEXT(inp_Incentives!E76,\"0%\")))","v":"≥70%"},{"$f":"inp_Incentives!I76","v":140}]
[null,null,null,null,null,null,null,null,null,null,null,null,{"$f":"inp_Incentives!B77","v":"E4-40%"},{"$f":"inp_Incentives!D77","v":"300-399"},{"$f":"IF(OR(inp_Incentives!E77=0,inp_Incentives!E77=\"\"),\"N/A\",CONCATENATE(\"≥\",TEXT(inp_Incentives!E77,\"0%\")))","v":"≥40%"},{"$f":"inp_Incentives!I77","v":100}]
[null,null,null,null,null,null,null,null,null,null,null,null,{"$f":"inp_Incentives!B78","v":"E4-60%"},{"$f":"inp_Incentives!D78","v":"300-399"},{"$f":"IF(OR(inp_Incentives!E78=0,inp_Incentives!E78=\"\"),\"N/A\",CONCATENATE(\"≥\",TEXT(inp_Incentives!E78,\"0%\")))","v":"≥60%"},{"$f":"inp_Incentives!I78","v":180}]
[null,null,null,null,null,null,null,null,null,null,null,null,{"$f":"inp_Incentives!B79","v":"E4-70%"},{"$f":"inp_Incentives!D79","v":"300-399"},{"$f":"IF(OR(inp_Incentives!E79=0,inp_Incentives!E79=\"\"),\"N/A\",CONCATENATE(\"≥\",TEXT(inp_Incentives!E79,\"0%\")))","v":"≥70%"},{"$f":"inp_Incentives!I79","v":250}]
[null,null,null,null,null,null,null,null,null,null,null,null,{"$f":"inp_Incentives!B80","v":"E5-40%"},{"$f":"inp_Incentives!D80","v":"400-499"},{"$f":"IF(OR(inp_Incentives!E80=0,inp_Incentives!E80=\"\"),\"N/A\",CONCATENATE(\"≥\",TEXT(inp_Incentives!E80,\"0%\")))","v":"≥40%"},{"$f":"inp_Incentives!I80","v":120}]
[null,null,null,null,null,null,null,null,null,null,null,null,{"$f":"inp_Incentives!B81","v":"E5-60%"},{"$f":"inp_Incentives!D81","v":"400-499"},{"$f":"IF(OR(inp_Incentives!E81=0,inp_Incentives!E81=\"\"),\"N/A\",CONCATENATE(\"≥\",TEXT(inp_Incentives!E81,\"0%\")))","v":"≥60%"},{"$f":"inp_Incentives!I81","v":220}]
[null,null,null,null,null,null,null,null,null,null,null,null,{"$f":"inp_Incentives!B82","v":"E5-70%"},{"$f":"inp_Incentives!D82","v":"400-499"},{"$f":"IF(OR(inp_Incentives!E82=0,inp_Incentives!E82=\"\"),\"N/A\",CONCATENATE(\"≥\",TEXT(inp_Incentives!E82,\"0%\")))","v":"≥70%"},{"$f":"inp_Incentives!I82","v":300}]
[null,null,null,null,null,null,null,null,null,null,null,null,{"$f":"inp_Incentives!B83","v":"E6-40%"},{"$f":"inp_Incentives!D83","v":"≥500"},{"$f":"IF(OR(inp_Incentives!E83=0,inp_Incentives!E83=\"\"),\"N/A\",CONCATENATE(\"≥\",TEXT(inp_Incentives!E83,\"0%\")))","v":"≥40%"},{"$f":"inp_Incentives!I83","v":250}]
[null,null,null,null,null,null,null,null,null,null,null,null,{"$f":"inp_Incentives!B84","v":"E6-60%"},{"$f":"inp_Incentives!D84","v":"≥500"},{"$f":"IF(OR(inp_Incentives!E84=0,inp_Incentives!E84=\"\"),\"N/A\",CONCATENATE(\"≥\",TEXT(inp_Incentives!E84,\"0%\")))","v":"≥60%"},{"$f":"inp_Incentives!I84","v":400}]
[null,null,null,null,null,null,null,null,null,null,null,null,{"$f":"inp_Incentives!B85","v":"E6-70%"},{"$f":"inp_Incentives!D85","v":"≥500"},{"$f":"IF(OR(inp_Incentives!E85=0,inp_Incentives!E85=\"\"),\"N/A\",CONCATENATE(\"≥\",TEXT(inp_Incentives!E85,\"0%\")))","v":"≥70%"},{"$f":"inp_Incentives!I85","v":500}]
[]
[null,null,null,null,null,null,null,null,null,null,null,"Note:\n• Please refer to Measure Series F for screw-in LEDs replacing existing HID lamps.\n• General service fixtures such as vapor tights or surface mounted wraps installed in exterior applications should be entered using Measure Series C General Indoor / Outdoor."]
[]
[]
[null,null,null,null,null,null,null,null,null,null,null,"Measure Series F: HID Screw-in Replacement"]
[]
[null,null,null,null,null,null,null,null,null,null,null,"The HID Screw-in Replacement Measure Series covers all mogul and medium base LED products which are replacing existing HID lamps. This measure series shall be selected whenever a screw-in LED product is replacing an HID. "]
[]
[null,null,null,null,null,null,null,null,null,null,null,null,"Measure ","Watt Baseline","Required Wattage Reduction ","Incentive per  lamp"]
[null,null,null,null,null,null,null,null,null,null,null,null,{"$f":"inp_Incentives!B88","v":"F1-40%"},{"$f":"inp_Incentives!D88","v":"40-200"},{"$f":"IF(OR(inp_Incentives!E88=0,inp_Incentives!E88=\"\"),\"N/A\",CONCATENATE(\"≥\",TEXT(inp_Incentives!E88,\"0%\")))","v":"≥40%"},{"$f":"inp_Incentives!I88","v":20}]
[null,null,null,null,null,null,null,null,null,null,null,null,{"$f":"inp_Incentives!B89","v":"F2-40%"},{"$f":"inp_Incentives!D89","v":"201-300"},{"$f":"IF(OR(inp_Incentives!E89=0,inp_Incentives!E89=\"\"),\"N/A\",CONCATENATE(\"≥\",TEXT(inp_Incentives!E89,\"0%\")))","v":"≥40%"},{"$f":"inp_Incentives!I89","v":40}]
[null,null,null,null,null,null,null,null,null,null,null,null,{"$f":"inp_Incentives!B90","v":"F3-40%"},{"$f":"inp_Incentives!D90","v":"301-400"},{"$f":"IF(OR(inp_Incentives!E90=0,inp_Incentives!E90=\"\"),\"N/A\",CONCATENATE(\"≥\",TEXT(inp_Incentives!E90,\"0%\")))","v":"≥40%"},{"$f":"inp_Incentives!I90","v":60}]
[null,null,null,null,null,null,null,null,null,null,null,null,{"$f":"inp_Incentives!B91","v":"F4-40%"},{"$f":"inp_Incentives!D91","v":"401-999"},{"$f":"IF(OR(inp_Incentives!E91=0,inp_Incentives!E91=\"\"),\"N/A\",CONCATENATE(\"≥\",TEXT(inp_Incentives!E91,\"0%\")))","v":"≥40%"},{"$f":"inp_Incentives!I91","v":80}]
[null,null,null,null,null,null,null,null,null,null,null,null,{"$f":"inp_Incentives!B92","v":"F5-40%"},{"$f":"inp_Incentives!D92","v":"≥1000"},{"$f":"IF(OR(inp_Incentives!E92=0,inp_Incentives!E92=\"\"),\"N/A\",CONCATENATE(\"≥\",TEXT(inp_Incentives!E92,\"0%\")))","v":"≥40%"},{"$f":"inp_Incentives!I92","v":150}]
[]
[null,null,null,null,null,null,null,null,null,null,null,"Note:\n• Measure Series F applies to both mogul and medium base screw-in products whenever they are replacing existing HID lamps."]
[]
[]
[null,null,null,null,null,null,null,null,null,null,null,"Measure Series G: LED Linear"]
[]
[null,null,null,null,null,null,null,null,null,null,null,"Measure Series G is intended for interior and exterior linear LED applications and includes refrigerator case lights and accent / cove lighting. "]
[]
[null,null,null,null,null,null,null,null,null,null,null,null,"Measure ","Watt Baseline","Required Wattage Reduction ","Incentive per kWh saved"]
[null,null,null,null,null,null,null,null,null,null,null,null,{"$f":"inp_Incentives!B95","v":"G1"},{"$f":"inp_Incentives!D95","v":"N/A"},{"$f":"IF(OR(inp_Incentives!E95=0,inp_Incentives!E95=\"\",inp_Incentives!E95=\"N/A\"),\"N/A\",CONCATENATE(\"≥\",TEXT(inp_Incentives!E95,\"0%\")))","v":"N/A"},{"$f":"inp_Incentives!I95","v":0.17}]
[]
[null,null,null,null,null,null,null,null,null,null,null,"Notes:\n• Measure Series G is a calculated incentive and does not require pre-approval\n\n• Please refer to Measure Series J for sign applications "]
[]
[]
[null,null,null,null,null,null,null,null,null,null,null,"Measure Series H: LED Exit Signs"]
[]
[null,null,null,null,null,null,null,null,null,null,null,"Measure Series H is intended for all LED exit signs."]
[]
[null,null,null,null,null,null,null,null,null,null,null,null,"Measure ","Watt Baseline","Required Wattage Reduction ","Incentive per installed fixture"]
[null,null,null,null,null,null,null,null,null,null,null,null,{"$f":"inp_Incentives!B98","v":"H-90%"},{"$f":"inp_Incentives!D98","v":"10-100"},{"$f":"IF(OR(inp_Incentives!E98=0,inp_Incentives!E98=\"\"),\"N/A\",CONCATENATE(\"≥\",TEXT(inp_Incentives!E98,\"0%\")))","v":"≥90%"},{"$f":"inp_Incentives!I98","v":20}]
[]
[null,null,null,null,null,null,null,null,null,null,null,"Note:\n• When selecting LED exit signs the annual hours of operation are automatically set to 8,760"]
[]
[]
[]
[]
[]
[]
[]
[]
[]
[]
[]
[]
[]
[]
[]
[]
[]
[]
[]
[]
[null,null,null,null,null,null,null,null,null,null,null,"Measure Series I: Signage"]
[]
[null,null,null,null,null,null,null,null,null,null,null,"Measure Series I is intended for all exterior sign applications. "]
[]
[null,null,null,null,null,null,null,null,null,null,null,null,"Measure ","Watt Baseline","Required Wattage Reduction ","Incentive per kWh saved"]
[null,null,null,null,null,null,null,null,null,null,null,null,{"$f":"inp_Incentives!B101","v":"I1"},{"$f":"inp_Incentives!D101","v":"N/A"},{"$f":"IF(OR(inp_Incentives!E101=0,inp_Incentives!E101=\"\",inp_Incentives!E101=\"N/A\"),\"N/A\",CONCATENATE(\"≥\",TEXT(inp_Incentives!E101,\"0%\")))","v":"N/A"},{"$f":"inp_Incentives!I101","v":0.17}]
[]
[null,null,null,null,null,null,null,null,null,null,null,"Notes:\n• Measure Series I is a calculated incentive and does not require pre-approval"]
[]
[null,null,null,null,null,null,null,null,null,null,null,"Measure Series J: Decommissioning & Fixture Increase"]
[]
[null,null,null,null,null,null,null,null,null,null,null,"The lighting calculator automatically recognizes both decommissioning fixture increases and applies a calculated incentive. Decommissioning measures must achieve energy savings of at least 10% and merit an incentive of at least $5.00 to be eligible for an incentive payout. To qualify for a decommissioning, a fixture must be completely removed, not just disconnected. BPA does not require conduit leading up to the fixture to be removed."]
[]
[null,null,null,null,null,null,null,null,null,null,null,null,"Measure ","Watt Baseline","Required Wattage Reduction ","Incentive per kWh saved"]
[null,null,null,null,null,null,null,null,null,null,null,null,{"$f":"inp_Incentives!B104","v":"J1"},{"$f":"inp_Incentives!D104","v":"N/A"},{"$f":"IF(OR(inp_Incentives!E104=0,inp_Incentives!E104=\"\",inp_Incentives!E104=\"N/A\"),\"N/A\",CONCATENATE(\"≥\",TEXT(inp_Incentives!E104,\"0%\")))","v":"N/A"},{"$f":"inp_Incentives!I104","v":0.17}]
[]
[null,null,null,null,null,null,null,null,null,null,null,"Note:\n• Measure Series J is a calculated incentive and does not require pre-approval"]
[]
[]
[null,null,null,null,null,null,null,null,null,null,null,"Measure Series K: Non-Standard Measures"]
[]
[null,null,null,null,null,null,null,null,null,null,null,"When lighting calculator users are not able to select the desired existing or proposed equipment from the available drop down options, or when otherwise prompted by the lighting calculator, users may enter the information as a non-standard measure to receive a calculated incentive.  Non-standard measures must achieve a net energy savings of at least 10% and merit an incentive of at least $5.00 to be eligible for an incentive payout. "]
[]
[null,null,null,null,null,null,null,null,null,null,null,null,"Measure ","Watt Baseline","Required Wattage Reduction ","Incentive per kWh saved"]
[null,null,null,null,null,null,null,null,null,null,null,null,{"$f":"inp_Incentives!B107","v":"K1"},{"$f":"inp_Incentives!D107","v":"N/A"},{"$f":"IF(OR(inp_Incentives!E107=0,inp_Incentives!E107=\"\",inp_Incentives!E107=\"N/A\"),\"N/A\",CONCATENATE(\"≥\",TEXT(inp_Incentives!E107,\"0%\")))","v":"N/A"},{"$f":"inp_Incentives!I107","v":0.17}]
[]
[null,null,null,null,null,null,null,null,null,null,null,"Required: Non-standard measures must be submitted to the utility for approval. "]
[]
[null,null,null,null,null,null,null,null,null,null,null,"Measure Series L: Controls"]
[]
[null,null,null,null,null,null,null,null,null,null,null,"Measure Series L covers Occupancy Sensors and Multi-Functional controls. Multi-Functional controls are defined as controls which can operate and are commissioned beyond a simple binary function."]
[]
[null,null,null,null,null,null,null,null,null,null,null,null,"Measure ","Default Controls Savings Fraction\n(Can be manually adjusted)",null,"Wattage Range","Incentive per control"]
[null,null,null,null,null,null,null,null,null,null,null,null,{"$f":"inp_Incentives!B110 & \"-\" & inp_Incentives!C110","v":"L1-Occ. Sensor"},{"$f":"inp_Incentives!E110","v":0.25},null,{"$f":"IF(OR(inp_Incentives!D110=0,inp_Incentives!D110=\"\",inp_Incentives!D110=\"N/A\"),\"N/A\",TEXT(inp_Incentives!D110,\"0%\"))","v":"15-44"},{"$f":"inp_Incentives!I110","v":10}]
[null,null,null,null,null,null,null,null,null,null,null,null,null,null,null,{"$f":"IF(OR(inp_Incentives!D111=0,inp_Incentives!D111=\"\",inp_Incentives!D111=\"N/A\"),\"N/A\",TEXT(inp_Incentives!D111,\"0%\"))","v":"45-200"},{"$f":"inp_Incentives!I111","v":30}]
[null,null,null,null,null,null,null,null,null,null,null,null,null,null,null,{"$f":"IF(OR(inp_Incentives!D112=0,inp_Incentives!D112=\"\",inp_Incentives!D112=\"N/A\"),\"N/A\",TEXT(inp_Incentives!D112,\"0%\"))","v":"≥201"},{"$f":"inp_Incentives!I112","v":50}]
[null,null,null,null,null,null,null,null,null,null,null,null,{"$f":"inp_Incentives!B113 & \"-\" & inp_Incentives!C113","v":"L2-Multi Function"},{"$f":"inp_Incentives!E113","v":0.25},null,{"$f":"IF(OR(inp_Incentives!D113=0,inp_Incentives!D113=\"\",inp_Incentives!D113=\"N/A\"),\"N/A\",TEXT(inp_Incentives!D113,\"0%\"))","v":"15-44"},{"$f":"inp_Incentives!I113","v":15}]
[null,null,null,null,null,null,null,null,null,null,null,null,null,null,null,{"$f":"IF(OR(inp_Incentives!D114=0,inp_Incentives!D114=\"\",inp_Incentives!D114=\"N/A\"),\"N/A\",TEXT(inp_Incentives!D114,\"0%\"))","v":"45-200"},{"$f":"inp_Incentives!I114","v":40}]
[null,null,null,null,null,null,null,null,null,null,null,null,null,null,null,{"$f":"IF(OR(inp_Incentives!D115=0,inp_Incentives!D115=\"\",inp_Incentives!D115=\"N/A\"),\"N/A\",TEXT(inp_Incentives!D115,\"0%\"))","v":"≥201"},{"$f":"inp_Incentives!I115","v":50}]
[null,null,null,null,null,null,null,null,null,null,null,null,{"$f":"inp_Incentives!B116 & \"-\" & inp_Incentives!C116","v":"L3-Other"},{"$f":"inp_Incentives!E116","v":0.25},null,{"$f":"IF(OR(inp_Incentives!D116=0,inp_Incentives!D116=\"\",inp_Incentives!D116=\"N/A\"),\"N/A\",TEXT(inp_Incentives!D116,\"0%\"))","v":"15-44"},{"$f":"inp_Incentives!I116","v":10}]
[null,null,null,null,null,null,null,null,null,null,null,null,null,null,null,{"$f":"IF(OR(inp_Incentives!D117=0,inp_Incentives!D117=\"\",inp_Incentives!D117=\"N/A\"),\"N/A\",TEXT(inp_Incentives!D117,\"0%\"))","v":"45-200"},{"$f":"inp_Incentives!I117","v":30}]
[null,null,null,null,null,null,null,null,null,null,null,null,null,null,null,{"$f":"IF(OR(inp_Incentives!D118=0,inp_Incentives!D118=\"\",inp_Incentives!D118=\"N/A\"),\"N/A\",TEXT(inp_Incentives!D118,\"0%\"))","v":"≥201"},{"$f":"inp_Incentives!I118","v":40}]
[]
[null,null,null,null,null,null,null,null,null,null,null,"Note:\n• Controls in Measure Series L receive an automatic 25% reduction in operating hours. Users may adjust this number with utility consent."]
[]
[]
[null,null,null,null,null,null,null,null,null,null,null,"New Construction"]
[]
[]
[]
[null,null,null,null,null,null,null,null,null,null,null,null,"Measure ","Watt Baseline","Required Wattage Reduction ","Incentive per kWh saved"]
[null,null,null,null,null,null,null,null,null,null,null,null,{"$f":"inp_Incentives!B122","v":"NC"},{"$f":"inp_Incentives!D122","v":"N/A"},{"$f":"IF(OR(inp_Incentives!E122=0,inp_Incentives!E122=\"\",inp_Incentives!E122=\"N/A\"),\"N/A\",CONCATENATE(\"≥\",TEXT(inp_Incentives!E122,\"0%\")))","v":"N/A"},{"$f":"inp_Incentives!I122","v":0.13}]
[]
[]
[]
[]
[]
[]
[]
[null,null,null,null,null,null,null,null,null,null,null,"Required: New construction projects must achieve an energy savings of at least 20% to receive an incentive.  "]

{"sheet":"prntrdy_Form3","index":45,"n_rows":0,"n_cols":0,"rows_kept":0,"cut":false,"hidden":false,"merged":[]}

{"sheet":"prntrdy_Form4","index":46,"n_rows":67,"n_cols":16,"rows_kept":67,"cut":false,"hidden":false,"merged":[[63,11,63,16],[66,11,66,16],[39,14,40,16],[54,12,54,13],[29,15,29,16],[29,13,30,14],[3,11,3,16],[51,14,51,15],[43,14,44,16],[47,14,47,16],[23,13,23,14],[23,15,23,16],[25,13,25,14],[37,14,38,16],[25,15,25,16],[27,15,27,16],[7,15,10,16],[11,15,12,16],[21,13,21,14],[21,15,21,16],[33,11,33,16],[56,12,56,13],[58,12,58,13],[56,14,56,15],[58,14,58,15],[51,12,51,13],[52,12,52,13],[52,14,52,15],[54,14,54,15],[13,15,14,16],[17,13,18,16],[27,13,27,14],[19,13,19,14],[19,15,19,16]]}
[]
[]
[]
[null,null,null,null,null,null,null,null,null,null,null,{"$f":"IF(inp_UtilityInfo!B3=\"\",\"Utility Project Report*\",CONCATENATE(inp_UtilityInfo!B3,\" Project Report\"))","v":"Tacoma Power Project Report"}]
[]
[null,null,null,null,null,null,null,null,null,null,null,"Customer / Mailing Information:",null,null,"Project / Site Information:"]
[]
[null,null,null,null,null,null,null,null,null,null,null,"Project Name: ",{"$f":"IF(user_Project!Y3=\"\",\"[Enter in data entry form]\",user_Project!Y3)","v":"Project Name"},null,"Project/Site Address:",{"$f":"IF(user_Project!AA3=\"\",\"[Enter in data entry form]\",CONCATENATE(user_Project!AA3))","v":"Project Address"}]
[]
[null,null,null,null,null,null,null,null,null,null,null,"Customer Contact: ",{"$f":"IF(user_Project!N3=\"\",\"[Enter in data entry form]\",user_Project!N3)","v":"Person Signing Contract"}]
[]
[null,null,null,null,null,null,null,null,null,null,null,"Mailing Address: ",{"$f":"IF(user_Project!U3=\"\",\"[Enter in data entry form]\",CONCATENATE(user_Project!U3))","v":"Company Address"},null,"City/State/Zip Code:",{"$f":"IF(user_Project!AB3=\"\",\"[Enter in data entry form]\",CONCATENATE(user_Project!AB3,\", \",user_Project!AC3,\" \",user_Project!AD3))","v":"Project Address, WA 98402"}]
[]
[null,null,null,null,null,null,null,null,null,null,null,"City/State/Zip Code:",{"$f":"IF(user_Project!V3=\"\",\"[Enter in data entry form]\",CONCATENATE(user_Project!V3,\", \",user_Project!W3,\" \",user_Project!X3))","v":"Tacoma, WA 98402"},null,"Trade Ally:",{"$f":"user_TradeAlly!L5","v":"Person Submitting Project"}]
[]
[null,null,null,null,null,null,null,null,null,null,null,"Phone:",{"$f":"IF(user_Project!P3=\"\",\"[Enter in data entry form]\",IF(user_Project!R3=\"\",CONCATENATE(user_Project!O3,\"-\",user_Project!P3,\"-\",user_Project!Q3),CONCATENATE(user_Project!O3,\"-\",user_Project!P3,\"-\",user_Project!Q3,\" Ext. \",user_Project!R3)))","v":"253-123-4567"}]
[]
[null,null,null,null,null,null,null,null,null,null,null,"Utility Project Information:",null,"Invoice Summary"]
[]
[null,null,null,null,null,null,null,null,null,null,null,"Utility Contact: ",{"$f":"IF(inp_UtilityInfo!G3=\"\",\"[Enter in data entry form]\",inp_UtilityInfo!G3)","v":"Kerry Cameron"},"Willingness to Pay:",null,0]
[]
[null,null,null,null,null,null,null,null,null,null,null,"Sector: ",{"$f":"IF(inp_UtilityReview!B3=\"\",\"[Enter in data entry form]\",inp_UtilityReview!B3)","v":"[Enter in data entry form]"},"Utility Willingness to Pay:",null,0]
[]
[null,null,null,null,null,null,null,null,null,null,null,"Building Type:",{"$f":"IF(user_Project!AE3=\"\",\"[Enter in data entry form]\",user_Project!AE3)","v":"Assembly"},"Customer Incentive: ",null,0]
[]
[null,null,null,null,null,null,null,null,null,null,null,"Unique Site ID:",{"$f":"IF(inp_UtilityReview!A3=\"\",\"[Enter in data entry form]\",inp_UtilityReview!A3)","v":"[Enter in data entry form]"},"Incentive % of Project Cost: ",null,0]
[]
[null,null,null,null,null,null,null,null,null,null,null,"Completion Date: ",{"$f":"IF(inp_UtilityReview!B3=\"\",\"[Enter in data entry form]\",CONCATENATE(inp_UtilityReview!C3,\" \",inp_UtilityReview!D3,\", \",inp_UtilityReview!E3))","v":"[Enter in data entry form]"},"Benefit/Cost Ratio:",null,0.25151531821149981]
[]
[null,null,null,null,null,null,null,null,null,null,null,"Total Project Cost*: ",{"$f":"IF(inp_UtilityReview!O3<>\"\",inp_UtilityReview!O3,IF(user_Project!AJ3<>\"\",user_Project!AJ3,\"[Enter in data entry form]\"))","v":1},"Project Level Incentive Cost per kWh",null,0]
[]
[null,null,null,null,null,null,null,null,null,null,null,"Project Type:",{"$f":"IF(user_Project!AF3=\"\",\"[Enter in data entry form]\",user_Project!AF3)","v":"Retrofit"}]
[null,null,null,null,null,null,null,null,null,null,null,"Funding Source:",{"$f":"IF(fld_UtilityReview_FundingSource=\"\",\"[Enter in data entry form]\",fld_UtilityReview_FundingSource)","v":"[Enter in data entry form]"}]
[null,null,null,null,null,null,null,null,null,null,null,"* For Retrofit projects cost equal total project cost. For New Construction projects cost equal estimated incremental cost. "]
[]
[null,null,null,null,null,null,null,null,null,null,null,"Project Savings Information: "]
[]
[null,null,null,null,null,null,null,null,null,null,null,"Unadjusted Site Savings:",0,"kWh","Note: This is a kWh savings calculation without adjusting for HVAC, codes & standards, or busbar."]
[]
[null,null,null,null,null,null,null,null,null,null,null,"Site Savings adjusted for HVAC interaction: ",0,"kWh","Note: Adjusts kWh savings for Heating and Cooling interactions  (This is the kWh savings figure provided on the customer proposal form.) "]
[]
[]
[]
[null,null,null,null,null,null,null,null,null,null,null,"Site Savings Adjusted for Federal Standards: ",0,"kWh","Note: For more informations see Formulas and Adjustments form"]
[]
[]
[]
[null,null,null,null,null,null,null,null,null,null,null,"Busbar Savings: (Savings X 1.07478) ",0,"kWh","Note: This is the final savings number."]
[]
[]
[null,null,null,null,null,null,null,null,null,null,null,"Project Measure Detail (Retrofit Projects Only): "]
[null,null,null,null,null,null,null,null,null,null,null,"Measure","Unadjusted Site Savings ",null,"Savings Reported"]
[null,null,null,null,null,null,null,null,null,null,null,"Decommissioning",0,null,0]
[]
[null,null,null,null,null,null,null,null,null,null,null,"Equipment",0,null,0]
[]
[null,null,null,null,null,null,null,null,null,null,null,"Controls",0,null,0]
[]
[null,null,null,null,null,null,null,null,null,null,null,"Total",{"$f":"IF(AND(M53=\"\",M55=\"\",M57=\"\"),\"\",SUM(M53:N57))","v":0},null,{"$f":"IF(AND(O53=\"\",O55=\"\",O57=\"\"),\"\",SUM(O53:O57))","v":0}]
[]
[]
[null,null,null,null,null,null,null,null,null,null,null,"User-Defined Fields"]
[null,null,null,null,null,null,null,null,null,null,null,{"$f":"IF(fld1_Title=\"\",\"\",fld1_Title)","v":""}]
[null,null,null,null,null,null,null,null,null,null,null,{"$f":"IF(fld1_Content=\"\",\"\",fld1_Content)","v":""}]
[]
[null,null,null,null,null,null,null,null,null,null,null,{"$f":"IF(fld2_Title=\"\",\"\",fld2_Title)","v":""}]
[null,null,null,null,null,null,null,null,null,null,null,{"$f":"IF(fld2_Content=\"\",\"\",fld2_Content)","v":""}]

{"sheet":"prntrdy_Form5","index":47,"n_rows":22,"n_cols":17,"rows_kept":22,"cut":false,"hidden":false,"merged":[[2,13,2,15],[17,12,17,16],[3,11,3,17],[12,11,12,13],[13,11,13,13],[14,11,14,13],[10,16,11,17],[12,16,12,17],[13,16,13,17],[5,16,5,17],[14,16,14,17],[15,16,15,17],[6,15,14,15],[8,14,9,14],[8,16,9,17],[5,11,5,13],[6,11,6,13],[7,11,7,13],[8,11,9,13],[10,11,11,13],[22,12,22,16],[6,16,6,17],[7,16,7,17],[16,13,16,16],[21,15,21,16],[20,12,20,14],[21,12,21,14],[20,15,20,16],[19,12,19,14],[15,11,15,13],[10,14,11,14],[19,15,19,16]]}
[]
[]
[null,null,null,null,null,null,null,null,null,null,null,null,null,"Non-Residential Lighting \nLED Quick Reference Guide"]
[null,null,null,null,null,null,null,null,null,null,null,"Trade Allies are encouraged to check with utilities for applicable LED requirements"]
[]
[null,null,null,null,null,null,null,null,null,null,null,"LEDs by \nApplication",null,null,"Minimum Required Wattage Reduction for Deemed Measures","Qualified Product List Recommended","Measure"]
[null,null,null,null,null,null,null,null,null,null,null,"Screw-in/Small LED Fixtures\nIncludes: Reflectors, PAR, BR, A-lamps, MR-16s and Small LED Fixtures including: recessed cans (retrofit included) and track fixtures",null,null,">50% minimum\n\nMeasure F1 requires a 20% wattage reduction","Yes","F1 – F5"]
[null,null,null,null,null,null,null,null,null,null,null,"LED Tubes & Troffers\nIncludes all sizes of LED tubes and troffers",null,null,">40% minimum",null,"G1- G3"]
[null,null,null,null,null,null,null,null,null,null,null,"Exterior General Area\nIncludes: Parking Lot, Street, Wall Packs, Bollards, Floods, Barn/Yard, Pole Lamps, and Canopy.",null,null,">40% minimum",null,"H1- H6"]
[]
[null,null,null,null,null,null,null,null,null,null,null,"High Bay",null,null,">40% minimum",null,"I1 – I4"]
[]
[null,null,null,null,null,null,null,null,null,null,null,"Parking Garage",null,null,">40% minimum",null,"J1 – J5"]
[null,null,null,null,null,null,null,null,null,null,null,"Loading Dock",null,null,">70% minimum",null,"K"]
[null,null,null,null,null,null,null,null,null,null,null,"Linear LED Applications\nIncludes: refrigerator case lights and accent / cove lighting.",null,null,"N/A",null,"M"]
[null,null,null,null,null,null,null,null,null,null,null,"Exit Signs",null,null,"N/A","No","L"]
[]
[null,null,null,null,null,null,null,null,null,null,null,null,"A Qualified Product List (QPL) is a third-party-compiled list that validates a product’s lab test results (i.e. LM-79). Web links to these QPLs can be accessed on the \"Links\" tab of the lighting calculator input form. "]
[]
[null,null,null,null,null,null,null,null,null,null,null,null,"Medium base screw in lighting fixtures and lamps",null,null,"- Energy Star"]
[null,null,null,null,null,null,null,null,null,null,null,null,"Lighting fixtures / luminares",null,null,"- DLC (Design Lights Consortium)"]
[null,null,null,null,null,null,null,null,null,null,null,null,"Miscellaneous lighting fixtures and lamps",null,null,"- LDL (Lighting Design Lab)"]

{"sheet":"prntrdy_Form6","index":48,"n_rows":0,"n_cols":0,"rows_kept":0,"cut":false,"hidden":false,"merged":[]}

{"sheet":"prntrdy_Form7","index":49,"n_rows":91,"n_cols":20,"rows_kept":91,"cut":false,"hidden":false,"merged":[[2,13,2,20],[66,19,66,20],[71,19,71,20],[72,19,72,20],[73,19,73,20],[72,22,72,23],[68,19,68,20],[73,22,73,23],[13,11,13,24],[14,11,14,24],[15,11,15,24],[16,11,16,24],[74,22,74,23],[69,19,69,20],[74,19,74,20],[70,19,70,20],[59,19,59,20],[60,19,60,20],[61,19,61,20],[62,19,62,20],[68,22,68,23],[69,22,69,23],[65,19,65,20],[78,22,78,23],[79,22,79,23],[75,19,75,20],[75,22,75,23],[70,22,70,23],[71,22,71,23],[77,19,77,20],[76,22,76,23],[77,22,77,23],[3,11,3,24],[22,11,22,24],[4,11,4,24],[5,11,5,24],[6,11,6,24],[7,11,7,24],[40,12,41,14],[42,12,43,14],[44,12,45,14],[42,17,42,19],[9,11,9,24],[10,11,10,24],[24,11,24,24],[27,11,27,24],[25,11,25,24],[26,11,26,24],[31,11,31,24],[32,11,32,24],[38,20,38,23],[39,20,39,23],[30,11,30,24],[38,12,38,19],[39,15,39,16],[39,17,39,19],[20,11,20,24],[21,11,21,24],[19,11,19,24],[8,11,8,24],[81,12,81,23],[62,22,62,23],[63,22,63,23],[64,22,64,23],[65,22,65,23],[66,22,66,23],[17,11,17,24],[18,11,18,24],[11,11,11,24],[12,11,12,24],[39,12,39,14],[57,22,57,23],[36,11,36,24],[37,11,37,24],[46,12,46,14],[46,17,46,19],[40,15,41,16],[51,19,51,23],[51,12,51,14],[50,12,50,14],[68,12,68,14],[69,12,69,14],[70,12,70,14],[66,16,66,17],[67,16,67,17],[63,16,63,17],[65,16,65,17],[78,16,78,17],[79,16,79,17],[70,16,70,17],[71,16,71,17],[72,16,72,17],[73,16,73,17],[23,11,23,24],[29,11,29,24],[48,11,48,24],[49,19,49,23],[43,17,43,19],[44,17,44,19],[49,15,49,18],[33,11,33,24],[34,11,34,24],[35,11,35,24],[61,12,61,14],[62,12,62,14],[52,19,52,23],[58,16,58,17],[53,19,53,23],[49,12,49,14],[50,15,50,18],[59,16,59,17],[57,12,57,14],[61,22,61,23],[61,16,61,17],[52,12,52,14],[53,12,53,14],[52,15,52,18],[53,15,53,18],[57,19,57,20],[58,12,58,14],[59,12,59,14],[58,22,58,23],[59,22,59,23],[60,16,60,17],[57,16,57,17],[60,22,60,23],[77,12,77,14],[78,12,78,14],[79,12,79,14],[80,12,80,14],[40,20,41,23],[40,17,40,19],[41,17,41,19],[80,16,80,17],[80,19,80,20],[78,19,78,20],[71,12,71,14],[72,12,72,14],[73,12,73,14],[74,12,74,14],[75,12,75,14],[76,12,76,14],[63,12,63,14],[64,12,64,14],[65,12,65,14],[66,12,66,14],[67,12,67,14],[50,19,50,23],[56,11,56,24],[60,12,60,14],[42,20,43,23],[42,15,43,16],[80,22,80,23],[58,19,58,20],[77,16,77,17],[46,20,46,23],[45,17,45,19],[44,20,45,23],[44,15,45,16],[51,15,51,18],[62,16,62,17],[64,16,64,17],[46,15,46,16],[76,16,76,17],[68,16,68,17],[69,16,69,17],[74,16,74,17],[75,16,75,17],[63,19,63,20],[79,19,79,20],[64,19,64,20],[67,19,67,20],[76,19,76,20],[67,22,67,23]]}
[]
[]
[]
[null,null,null,null,null,null,null,null,null,null,null,"Lighting Calculator Methods, Formulas, & Adjustments"]
[null,null,null,null,null,null,null,null,null,null,null,"This form outlines the methods and formulas used in the lighting calculator to determine cost effectiveness and realized energy savings values.  The wording and equations are simplified in order to make them more understandable.  "]
[null,null,null,null,null,null,null,null,null,null,null,"B/C ratio: Equals the total benefits over the life of the project divided by the installation costs.  Generally speaking, a project‘s benefits should exceed the costs.  Since energy efficiency projects are cost shared between the end user and Northwest utilities, a B/C ratio less than 1.0 is reasonable.  Lighting projects with B/C ratios above 0.5 are eligible for incentives.  "]
[null,null,null,null,null,null,null,null,null,null,null,"Background: The Northwest Power Planning and Conservation Act requires Northwest utilities to take B/C ratio into account when determining cost effectiveness.  A basic version of the equation is shown below:  "]
[null,null,null,null,null,null,null,null,null,null,null,"TRC B/C ratio = PV_Benefits / PV_Costs ,  where"]
[null,null,null,null,null,null,null,null,null,null,null,"• PV_Benefits = \nPresentValue_KWH_TRC \n+ PresentValue_KW_TRC \n+ PresentValue_OM_TRC \n- PresentValue_THERMS_TRC\nWhere"]
[null,null,null,null,null,null,null,null,null,null,null,"• PresentValue_KWH_TRC = present value avoided electricity cost of each annual kWh savings. These values are provided by the Northwest Power and Conservation Council as a function of measure life."]
[null,null,null,null,null,null,null,null,null,null,null,"• $1.05/kWh for retrofit (assumes 12 year measure life)\n• $1.45/kWh for new construction (assumes 15 year measure life) "]
[null,null,null,null,null,null,null,null,null,null,null,"• PresentValue_KW_TRC  = present value avoided capacity cost of each kW reduction. "]
[null,null,null,null,null,null,null,null,null,null,null,"• These values are currently set to zero."]
[null,null,null,null,null,null,null,null,null,null,null,"• PresentValue_OM_TRC = present value benefit of avoided/reduced O&M costs."]
[null,null,null,null,null,null,null,null,null,null,null,"• For the TRC calculation, annual O&M savings are assumed to be 3% of the project cost (incremental project cost for new construction projects). This number can be manually overridden by the utility.\n• 12 year measure life for retrofit, 15 year measure life for new construction\n• 6% annual discount rate"]
[null,null,null,null,null,null,null,null,null,null,null,"• PresentValue_THERMS_TRC = present value natural gas cost of each annual therm increase."]
[null,null,null,null,null,null,null,null,null,null,null,"• Annual value of $0.80/therm\n• 12 year measure life for retrofit, 15 year measure life for new construction\n• 6% annual discount rate  "]
[null,null,null,null,null,null,null,null,null,null,null,"• PV_Costs = the project capital cost (retrofit) or incremental cost (new construction)."]
[null,null,null,null,null,null,null,null,null,null,null,"• When a project cost has been specified by the utility in the “Utility Review” userform, this cost is used, regardless of what the Trade Ally has entered as the project cost. \n• When a project cost has not been specified by the utility in the “Utility Review” userform and the Trade Ally has specified a project cost, the trade ally cost is used here.\n• When neither the Utility nor the Trade Ally has specified a project cost, the BC ratio is not computed and is set to zero."]
[null,null,null,null,null,null,null,null,null,null,null,"Non energy benefits per year include demand savings and maintenance savings.  Demand savings assumes the savings accrue for each month of the year.  Maintenance savings is a flat 3% of the installed cost per year.  \n\nDemand savings = ( watts before – watts after ) x $/kW x 12 months  \n                                                    1000 "]
[null,null,null,null,null,null,null,null,null,null,null,"HVAC Interaction Adjustment: This adjustment adds or subtracts any changes in heating and cooling system electrical usage. When energy usage of a lighting system is removed from an interior space, the heating system typically has to work more and the cooling system works less. The resulting savings is considered to be the realized “site savings”. This is the savings value reported to the building owner."]
[null,null,null,null,null,null,null,null,null,null,null,"Background: The Northwest Regional Technical Forum (RTF) encourages utilities to adjust energy savings values for heating, ventilating, & air conditioning (HVAC) interaction. Adjusting for HVAC interactions with the lighting system produces more accurate reported savings. Also, a more accurate savings value provides more accurate payback and rate of return (RoR) estimates to the end user. A basic version of the equation is shown below:"]
[null,null,null,null,null,null,null,null,null,null,null,"kWh savings adjusted for HVAC = simple kWh savings x HVAC interaction factor\n(see HVAC Interaction Factors table)"]
[null,null,null,null,null,null,null,null,null,null,null,"Lighting Calculator Methods, Formulas, & Adjustments"]
[null,null,null,null,null,null,null,null,null,null,null,"Busbar Savings Adjustment: This adjustment adds in the grid’s transmission and distribution (T&D) losses. BPA has a good idea of how much the overall T&D system energy losses are per year. So, these losses can be taken into account."]
[null,null,null,null,null,null,null,null,null,null,null,"Background: The energy saved at the site of the project is only part of what is saved. The busbar adjustment tries to take into account all of the savings to the grid up to the generation substation busbar. A basic version of the equation is shown below:"]
[null,null,null,null,null,null,null,null,null,null,null,"Busbar savings adjustment = site kWh savings adjusted for HVAC x 1.07478"]
[]
[]
[]
[null,null,null,null,null,null,null,null,null,null,null,"Occupancy Sensor and Timer control savings: Savings from occupancy sensors and timers are calculated the same way. The unadjusted proposed kWh usage is multiplied by the percentage of time the lights are on. Then, as with all measures, the proposed kWh usage is subtracted from the existing usage to show energy savings."]
[null,null,null,null,null,null,null,null,null,null,null,"Background: Occupancy sensor controls turn lights off when nobody is in a space. Simple wall mounted timers turn lights on for a specified period of time. For exterior areas, photocells with timers are considered Occ. Sensor.  A basic version of the equation is shown below:  "]
[null,null,null,null,null,null,null,null,null,null,null,"Proposed kWh = [existing kWh] x [(1 – ( % reduction in hours )]\n                                                                                100 "]
[null,null,null,null,null,null,null,null,null,null,null,"Occ. Sensor control savings: The unadjusted proposed kWh usage is adjusted for Occ. Sensor controls (see formula below). Then, as with all measures, the proposed kWh usage is subtracted from the existing usage to show energy savings."]
[null,null,null,null,null,null,null,null,null,null,null,"Background: Typically, Occ. Sensor controls reduce the fixture wattage for a specified percentage of time. For instance; a 100 watt fixture is dropped to 50 watts for 50% of the evening. A basic version of the equation is shown below:"]
[null,null,null,null,null,null,null,null,null,null,null,"Proposed kWh = [existing kWh] x [1 – ( % Watt reduction  x  % hours reduction )]  \n                                                                            100                               100  "]
[null,null,null,null,null,null,null,null,null,null,null,"Baseline for affected Incandescent Lamps"]
[]
[]
[]
[]
[]
[]
[]
[]
[]
[]
[]
[null,null,null,null,null,null,null,null,null,null,null,"Table 2: EISA standard maximum allowable wattage baselines for incandescent lamps  "]
[null,null,null,null,null,null,null,null,null,null,null,null,"Today’s A-lamp",null,null,"After the Standard",null,null,null,"Effective Date"]
[null,null,null,null,null,null,null,null,null,null,null,null,"100 Watt",null,null,"< 72 Watts",null,null,null,"2012-01-01"]
[null,null,null,null,null,null,null,null,null,null,null,null,"75 Watt",null,null,"< 53 Watts",null,null,null,"2013-01-01"]
[null,null,null,null,null,null,null,null,null,null,null,null,"60 Watt",null,null,"< 43 Watts",null,null,null,"2014-01-01"]
[null,null,null,null,null,null,null,null,null,null,null,null,"40 Watt",null,null,"< 29 Watts",null,null,null,"2014-01-01"]
[]
[]
[]
[]
[]
[]
[]
[]
[]
[]
[]
[]
[]
[]
[]
[]
[]
[]
[]
[]
[]
[]
[]
[]
[]
[]
[]
[]
[null,null,null,null,null,null,null,null,null,null,null,null,"Links to State Energy Code Webpages: "]
[null,null,null,null,null,null,null,null,null,null,null,null,"State of Oregon Energy Code:"]
[null,null,null,null,null,null,null,null,null,null,null,null,"http://www.bcd.oregon.gov/programs/energy.html"]
[null,null,null,null,null,null,null,null,null,null,null,null,"State of Washington Energy Code:"]
[null,null,null,null,null,null,null,null,null,null,null,null,"https://fortress.wa.gov/ga/apps/sbcc/default.aspx"]
[null,null,null,null,null,null,null,null,null,null,null,null,"State of Montana Energy Code:"]
[null,null,null,null,null,null,null,null,null,null,null,null,"http://www.deq.mt.gov/Energy/conservation/homes/NewHomes/BuildingCodes.mcpx"]
[null,null,null,null,null,null,null,null,null,null,null,null,"State of Idaho Energy Code:"]
[null,null,null,null,null,null,null,null,null,null,null,null,"http://www.energy.idaho.gov/"]

{"sheet":"prntrdy_Form8","index":50,"n_rows":59,"n_cols":15,"rows_kept":59,"cut":false,"hidden":false,"merged":[[44,12,49,12],[44,13,49,13],[18,14,19,14],[2,11,2,14],[4,11,36,11],[4,12,10,12],[5,14,10,14],[11,12,19,12],[11,14,17,14],[20,12,28,12],[30,12,31,12],[20,14,27,14],[30,14,31,14],[44,14,49,14],[53,13,56,13],[53,12,58,12],[52,11,58,11],[53,14,56,14],[50,12,51,12],[50,13,51,13],[50,14,51,14],[32,12,36,12],[32,14,36,14],[37,11,43,11],[37,12,42,12],[37,14,43,14],[41,13,42,13],[44,11,51,11]]}
[]
[]
[null,null,null,null,null,null,null,null,null,null,null,"BPA Lighting Calculator 5.X2 Rules & Requirements"]
[null,null,null,null,null,null,null,null,null,null,null,"Area of Calculator","Calculator Inputs / Outputs / Rules / Assumptions","Collected by Lighting Calculator 5.X1","Required by Lighting Calculator 5.X2"]
[null,null,null,null,null,null,null,null,null,null,null,"Project Input","Utility Customize             This is where the utility customizes unique functions and caps","Utility Name / Utility ID","Required"]
[null,null,null,null,null,null,null,null,null,null,null,null,null,"Unique Utility Name","Optional"]
[null,null,null,null,null,null,null,null,null,null,null,null,null,"Utility Calculator Name"]
[null,null,null,null,null,null,null,null,null,null,null,null,null,"Utility Logo"]
[null,null,null,null,null,null,null,null,null,null,null,null,null,"Utility Website"]
[null,null,null,null,null,null,null,null,null,null,null,null,null,"Utility Contact Information (name, phone, email)"]
[null,null,null,null,null,null,null,null,null,null,null,null,null,"Utility Rates (kWh & kW)"]
[null,null,null,null,null,null,null,null,null,null,null,null,"Utility Review                          Information input by utility representative – usually when a project has been completed and received utility oversight.","Unique Site ID","Required"]
[null,null,null,null,null,null,null,null,null,null,null,null,null,"Project Sector"]
[null,null,null,null,null,null,null,null,null,null,null,null,null,"Completion Date"]
[null,null,null,null,null,null,null,null,null,null,null,null,null,"Funding Source"]
[null,null,null,null,null,null,null,null,null,null,null,null,null,"Final project cost"]
[null,null,null,null,null,null,null,null,null,null,null,null,null,"Pass through / Utility Pass through"]
[null,null,null,null,null,null,null,null,null,null,null,null,null,"Federal Project Status?"]
[null,null,null,null,null,null,null,null,null,null,null,null,null,"Project approval status","Optional"]
[null,null,null,null,null,null,null,null,null,null,null,null,null,"Manually add O&M"]
[null,null,null,null,null,null,null,null,null,null,null,null,"Basic Project Data / Customer Information","Baseline Eligibility Checklist","Required"]
[null,null,null,null,null,null,null,null,null,null,null,null,null,"Company Name"]
[null,null,null,null,null,null,null,null,null,null,null,null,null,"Project Address / Site Address (street, state, zip)"]
[null,null,null,null,null,null,null,null,null,null,null,null,null,"Utility Rate class"]
[null,null,null,null,null,null,null,null,null,null,null,null,null,"Project Name"]
[null,null,null,null,null,null,null,null,null,null,null,null,null,"Building Type "]
[null,null,null,null,null,null,null,null,null,null,null,null,null,"Estimated Project Cost"]
[null,null,null,null,null,null,null,null,null,null,null,null,null,"Customer / Mailing Address (name, phone)"]
[null,null,null,null,null,null,null,null,null,null,null,null,null,"Customer Email","Optional"]
[null,null,null,null,null,null,null,null,null,null,null,null,"Trade Ally Information","Trade Ally name and company","Optional"]
[null,null,null,null,null,null,null,null,null,null,null,null,"\n\nSpaces","Primary Building Operating Schedule with heating and cooling type and weeks per year","Required"]
[null,null,null,null,null,null,null,null,null,null,null,null,null,"Unique Building Spaces Operating Schedule with heating and cooling type and weeks per year"]
[null,null,null,null,null,null,null,null,null,null,null,null,"Measures           ","Select relevant space (provides HOU)","Required"]
[null,null,null,null,null,null,null,null,null,null,null,null,null,"Existing equipment"]
[null,null,null,null,null,null,null,null,null,null,null,null,null,"Proposed equipment"]
[null,null,null,null,null,null,null,null,null,null,null,null,null,"Proposed controls"]
[]
[null,null,null,null,null,null,null,null,null,null,null,"Project Rules & Caps","Project Level Rules & Caps                     ","New construction projects must achieve energy savings of at least 20%","Required"]
[null,null,null,null,null,null,null,null,null,null,null,null,null,"Retrofit projects must achieve energy savings of at least 25%"]
[null,null,null,null,null,null,null,null,null,null,null,null,null,"Project BC ratio must be greater than 0.5"]
[null,null,null,null,null,null,null,null,null,null,null,null,null,"Incentive cap max 70% (100% in Promotional mode)"]
[null,null,null,null,null,null,null,null,null,null,null,null,null,"max $ / kWh = $0.50"]
[]
[null,null,null,null,null,null,null,null,null,null,null,null,"Measure Level Rules","All calculated measures must save at least 10% and must generate an incentive of at least $5 to be eligible for an incentive"]
[null,null,null,null,null,null,null,null,null,null,null,"Controls Assumptions","Controls Assumptions                For all control types in all space types (except high bay and general indoor/outdoor fixtures w/networked lighting controls)","25% default (but manually adjustable) Occ. Sensor, Multi-Functional, Other\n","Optional"]
[]
[]
[]
[]
[]
[null,null,null,null,null,null,null,null,null,null,null,null,"High Bay and General Indoor/Outdoor w/Networked Lighting Controls              ","Applies a default 40% reduction in hours that cannot be adjusted","Required"]
[]
[null,null,null,null,null,null,null,null,null,null,null,"Baselines & Planning ","Preconditions Baseline:","Applies to everything except medium-base incandescent  A-lamps.","Required"]
[null,null,null,null,null,null,null,null,null,null,null,null,"Baselines other than Precondition                   Codes and Standards","EISA - effects 100, 75, 60, & 40 watt standard incandescent lamps","Required / See  Formulas & Reference Tables PRF for specifics"]
[]
[]
[]
[null,null,null,null,null,null,null,null,null,null,null,null,null,"HVAC Interaction is applied to all projects as applicable and is determined by building type and selected HVAC method","Required"]
[null,null,null,null,null,null,null,null,null,null,null,null,null,"New construction projects follow local codes and standards as applicable","Required"]

{"sheet":"Sheet2","index":51,"n_rows":10,"n_cols":208,"rows_kept":10,"cut":false,"hidden":false,"merged":[[3,34,3,35],[4,5,4,6],[4,24,4,26]]}
["THIS IS THE STRUCTURE OF SAVINGS REPORTING IN THE POWER COUNCIL LIGHTING PROTOCOL CALCULATOR"]
[null,null,null,null,null,null,null,null,null,null,null,null,null,null,"* Note: lighting power allowances may be expressed in different units (e.g., watts per lineal feet) for exterior lighting",null,null,null,null,null,null,null,"Fixture Qtyee",null,null,null,null,"Total kWbase","Total kWee",null,null,null,"Total kWhbase","Total kWhee",null,null,"Total kWh Svgs","Total kW Reduction"]
[null,null,null,null,null,null,null,null,null,null,null,null,null,null,null,null,null,null,null,null,null,null,5,null,null,null,null,0.47499999999999998,0.26500000000000001,null,null,null,1368,526.60800000000006,null,null,841.39199999999994,0.20999999999999996]
[null,null,null,null,null,null,null,"Baseline Determination",null,null,null,null,null,null,null,null,null,null,null,null,null,"As-Built (Efficient Condition)",null,null,null,null,null,"Energy Use",null,null,null,null,null,null,"Energy Savings",null,null,null,"LPD Comparison"]
[null,null,null,null,null,"Operating Hours",null,"Pre-Retrofit Lighting Fixtures",null,null,null,null,null,null,null,null,null,null,null,null,"Baseline LPD","Fixture Description",null,null,"Controls"]
["ID#","Building Type (for op hrs, HVAC IE effects)","Space Type (for controls)","Area","HVAC Type","Input","Default","Lighting Fixture Category","Lookup1","Lighting Fixture Sub-Category","Lookup2","Lamp Wattage","Concat#1","Lookup3","Lamp Quantity","Concat#2","Fixture Quantity","Fixture Wattage","LPD calc (W/Sq Ft)","Code LPA* (W/ Sq Ft)","LPD\n(W/Sq Ft)","Fixture Lamp & Ballast Descriptionee","Quantityee","Wattageee","Control Typeee","Op Hr Reduction (OHR)","Operating Hours (OHc)","kW baseline","kW efficient","Op Hrs baseline","Op Hrs efficient","HVACf","kWh baseline","kWh efficient","Capacity Reduction Savings (kWh)","Controls Savings (kWh)","Total Savings (kWh)","Total kW Reduction","LPA (W/sf) baseline","LPD (W/sf) ee"]
[1,"Warehouse","Warehouses",500,"Gas, Oil, or Biomass w/o Cooling",null,3000,"T12 4ft ",9,"Slimline Lamp, w/Magnetic Ballast",152,39,"ExistingFixtures-T12 4ft -Slimline Lamp, w/Magnetic Ballast-39",1234,2,"ExistingFixtures-T12 4ft -Slimline Lamp, w/Magnetic Ballast-39-2",5,95,0.95,1,0.95,"2L 4' HPT8",5,53,"\nOccupancy Sensor",0.31,2070,0.47499999999999998,0.26500000000000001,3000,2070,0.96,1368,526.60800000000006,604.79999999999984,236.5920000000001,841.39199999999994,0.20999999999999996,0.95,0.53]
[]
[]
["RecordNumber","Status","SpaceForTable","AnnualHoursForTable","RecordSpaceStatusForTable","ExistingForTable","ProposedForTable","ControlsForTable","SavingsHeadersForTable","KWHForTable","WattsPerFixtureForTable","IncentivesForTable","NotesForTable","BLANK COLUMN","KWForTable","Space","ExistingQuantity","ExistingClass","ExistingType","ExistingSubtype","ExistingLampWattage","ExistingLampsPerFixture","ProposedMeasureType","ProposedQuantity","ProposedClass","ProposedType","ProposedSubtype","ProposedLampWattage","ProposedLampsPerFixture","ProposedLampModelNumber","ProposedBallastModelNumber","NoControls","ControlsQuantity","ControlsClass","ControlsPercentReduction","Notes","NumberOfErrors","ExistingMMLRow","ProposedMMLRow","ExistingBallastFactor","ProposedBallastFactor","ExistingFixtureWattage","ProposedFixtureWattage","ArithFixtureWattage","ElectricInteraction","GasInteraction","ExistingFixtureKWHBase","ArithExistingFixtureKWHBase","ProposedFixtureKWHBase","DecommissionedFixtures","PrecondDecomKWHSavings","ArithDecomKWHSavings","PrecondEquipKWHSavings","ArithEquipKWHSavings","PrecondControlsKWHSavings","ArithControlsKWHSavings","PrecondDecomAndEquipKWHSavings","ArithDecomAndEquipKWHSavings","PrecondTotalKWHSavings","ArithTotalKWHSavings","PrecondEquipAndControlsKWHSavings","ArithEquipAndControlsKWHSavings","PrecondEquipAndControlsPercentSavings","ArithEquipAndControlsPercentSavings","PrecondMeasurePercentSavings","ArithMeasurePercentSavings","PrecondMeasureKW","ArithMeasureKW","ProposedMeasureKW","PrecondKWSavings","ArithKWSavings","ExistingFixtureKWHwithHVAC","ArithExistingFixtureKWHwithHVAC","ProposedFixtureKWHwithHVAC","PrecondDecomKWHSavingswithHVAC","ArithDecomKWHSavingswithHVAC","PrecondEquipKWHSavingswithHVAC","ArithEquipKWHSavingswithHVAC","PrecondEquipAndControlsKWHSavingswithHVAC","ArithEquipAndControlsKWHSavingswithHVAC","PrecondControlsKWHSavingswithHVAC","ArithControlsKWHSavingswithHVAC","PrecondDecomAndEquipKWHSavingswithHVAC","ArithDecomAndEquipKWHSavingswithHVAC","PrecondTotalKWHSavingswithHVAC","ArithTotalKWHSavingswithHVAC","ExistingFixtureKWHwithHVAC_Busbar","ArithExistingFixtureKWHwithHVAC_Busbar","ProposedFixtureKWHwithHVAC_Busbar","PrecondDecomKWHSavingswithHVAC_Busbar","ArithDecomKWHSavingswithHVAC_Busbar","PrecondEquipKWHSavingswithHVAC_Busbar","ArithEquipKWHSavingswithHVAC_Busbar","PrecondEquipAndControlsKWHSavingswithHVAC_Busbar","ArithEquipAndControlsKWHSavingswithHVAC_Busbar","PrecondControlsKWHSavingswithHVAC_Busbar","ArithControlsKWHSavingswithHVAC_Busbar","PrecondDecomAndEquipKWHSavingswithHVAC_Busbar","ArithDecomAndEquipKWHSavingswithHVAC_Busbar","PrecondTotalKWHSavingswithHVAC_Busbar","ArithTotalKWHSavingswithHVAC_Busbar","PrecondTotalMeasureKWHwithHVAC_Busbar","ArithTotalMeasureKWHwithHVAC_Busbar","ProposedTotalMeasureKWHwithHVAC_Busbar","Therms_Increase_Precond","Therms_Increase_Arith","DecomIncentiveRates","UtilityDecomIncentiveRate","BPADecomIncentiveRate","NonstandardIncentiveRates","UtilityNonstandardIncentiveRate","BPANonstandardIncentiveRate","ControlsIncentiveQuantity","ControlsIncentiveUtility","ControlsIncentiveBPA","ControlsText","ControlsIncentiveVector","ControlsIncentive","BPAControlsIncentiveRate","UtilityControlsIncentiveRate","DecomIncentiveQuantity","DecomIncentiveUtility","DecomIncentiveBPA","EquipmentIncentiveQuantity","EquipmentIncentiveUtility","EquipmentIncentiveBPA","MeasureText","DecommissioningAndEquipmentResultsText","ControlsResultsText","PrecondTotalMeasureKWH","ArithTotalMeasureKWH","ProposedTotalMeasureKWH","PrecondTotalMeasureKWHwithHVAC","ArithTotalMeasureKWHwithHVAC","ProposedTotalMeasureKWHwithHVAC","PrecondKWPercentSavings","ArithKWPercentSavings","TotalUtilityIncentive","TotalBPAIncentive","NonStandardStatus","StatusNotes","ControlkWhSavings","UtilityEquipmentIncentiveRate","DecomAndEquipmentIncentiveName","DecomAndEquipmentIncentiveDescription","ControlsIncentiveName","ControlsIncentiveDescription","ApprovedNonStandardUserFieldConcat","SpaceType","SIZE",null,null,null,null,null,null,null,null,null,null,null,null,null,null,null,null,null,null,null,null,null,null,null,null,null,null,null,null,null,null,null,null,null,null,null,null,null,null,null,null,null,null,null,null,null,null,null,null,null,null,{"$error":"#N/A"},{"$error":"#N/A"},{"$error":"#N/A"},{"$error":"#N/A"},{"$error":"#N/A"},{"$error":"#N/A"},{"$error":"#N/A"},{"$error":"#N/A"}]

{"sheet":"ProjectLevelResults","index":52,"n_rows":149,"n_cols":2,"rows_kept":149,"cut":false,"hidden":false,"merged":[]}
["ProjectCost",89765]
["KWH_Site_Decom_Precond_NoHVAC",0]
["KWH_Site_Equipment_Precond_NoHVAC",30695.039999999997]
["KWH_Site_Controls_Precond_NoHVAC",1681.92]
["KWH_Site_Total_Precond_NoHVAC",32376.959999999999]
["KWH_Site_Decom_Precond",0]
["KWH_Site_Equipment_Precond",30695.039999999997]
["KWH_Site_Controls_Precond",1681.92]
["KWH_Site_DecomAndEquipment_Precond",30695.039999999997]
["KWH_Site_Total_Precond",32376.959999999999]
["KWH_Busbar_Total_Precond",35309.017497599998]
["KWH_Site_Baseline_Precond",37632.959999999992]
["PercentSavings_Precond",0.86033519553072646]
["KW_Site_Baseline_Precond",8.5920000000000005]
["KW_Site_Baseline_Arith",8.3879999999999999]
["KW_Site_Reduction_Precond",7.0079999999999991]
["KW_Site_Reduction_Arith",6.8039999999999994]
["KW_Site_Total_Precond",7.0079999999999991]
["KW_Busbar_Total_Precond",7.6426444799999986]
["KWH_Site_Decom_Arith",0]
["KWH_Site_Equipment_Arith",29801.519999999997]
["KWH_Site_Controls_Arith",1681.92]
["KWH_Site_DecomAndEquipment_Arith",29801.519999999997]
["KWH_Site_Total_Arith",31483.439999999995]
["KWH_Busbar_Total_Arith",34334.580326399991]
["KWH_Site_Baseline_Arith",36739.439999999995]
["PercentSavings_Arith",0.85693848354792557]
["KW_Site_Total_Arith",6.8039999999999994]
["KW_Busbar_Total_Arith",7.4201702399999991]
["KW_PercentSavings_Precond",0.81564245810055847]
["KW_PercentSavings_Arith",0.81115879828326176]
["Incentive_DecomAndEquipment_Utility",1080]
["Incentive_Controls_Utility",280]
["Incentive_Total_Uncapped_Utility",1360]
["Incentive_Total_Capped_Utility",1360]
["Incentive_DecomAndEquipment_BPA",1080]
["Incentive_Controls_BPA",280]
["Incentive_Total_Uncapped_BPA",1360]
["Incentive_Total_Capped_BPA",1360]
["Incentive_DollarsPerKWH_Uncapped_BPA",3.9610211835159399E-2]
["Incentive_DollarsPerKWH_Uncapped_Utility",3.9610211835159399E-2]
["Incentive_DollarsPerKWH_Capped_BPA",3.8517072872176095E-2]
["Incentive_DollarsPerKWH_Capped_Utility",3.8517072872176095E-2]
["Incentive_Percentage_Uncapped_BPA",1.5150671197014427E-2]
["Incentive_Percentage_Uncapped_Utility",1.5150671197014427E-2]
["Incentive_Percentage_Capped_BPA",1.5150671197014427E-2]
["Incentive_Percentage_Capped_Utility",1.5150671197014427E-2]
["ProjectLevel_BCratio",0.68714669637386505]
["Therms_Increase_Precond",0]
["Therms_Increase_Arith",0]
["AnnualValue_KWH_Customer",1942.6176]
["AnnualValue_KW_Customer",504.57599999999991]
["AnnualValue_THERMS_Customer",0]
["AnnualValue_THERMS_Customer"]
["AnnualValue_OandM_Customer",2692.95]
["AnnualBenefit_Customer",5140.1435999999994]
["LifetimeBenefit_Customer",61681.723199999993]
["Flag_MissingActualCost",true]
["Flag_MissingActualAndEstimatedCost",false]
["Flag_ExceedsPercentageCap_Utility",false]
["Flag_ExceedsPercentageCap_BPA",false]
["Flag_ExceedsDollarPerKWHCap_Utility",false]
["Flag_ExceedsDollarPerKWHCap_BPA",false]
["Flag_BCRatioTooLow",false]
["Flag_ProjectSavingsTooLow",false]
["WarningMessage","This project is pending utility approval. All figures should be considered estimates."]
["TRC_BC",0.65313409326547389]
["WarningMessageForItemized","This project is pending utility approval. All figures should be considered estimates."]
["UtilityIncentiveForItemizedForm",1360]
[{"$error":"#N/A"},{"$error":"#N/A"}]
[{"$error":"#N/A"},{"$error":"#N/A"}]
[{"$error":"#N/A"},{"$error":"#N/A"}]
[{"$error":"#N/A"},{"$error":"#N/A"}]
[{"$error":"#N/A"},{"$error":"#N/A"}]
[{"$error":"#N/A"},{"$error":"#N/A"}]
[{"$error":"#N/A"},{"$error":"#N/A"}]
[{"$error":"#N/A"},{"$error":"#N/A"}]
[{"$error":"#N/A"},{"$error":"#N/A"}]
[{"$error":"#N/A"},{"$error":"#N/A"}]
[{"$error":"#N/A"},{"$error":"#N/A"}]
[{"$error":"#N/A"},{"$error":"#N/A"}]
[{"$error":"#N/A"},{"$error":"#N/A"}]
[{"$error":"#N/A"},{"$error":"#N/A"}]
[{"$error":"#N/A"},{"$error":"#N/A"}]
[{"$error":"#N/A"},{"$error":"#N/A"}]
[{"$error":"#N/A"},{"$error":"#N/A"}]
[{"$error":"#N/A"},{"$error":"#N/A"}]
[{"$error":"#N/A"},{"$error":"#N/A"}]
[{"$error":"#N/A"},{"$error":"#N/A"}]
[{"$error":"#N/A"},{"$error":"#N/A"}]
[{"$error":"#N/A"},{"$error":"#N/A"}]
[{"$error":"#N/A"},{"$error":"#N/A"}]
[{"$error":"#N/A"},{"$error":"#N/A"}]
[{"$error":"#N/A"},{"$error":"#N/A"}]
[{"$error":"#N/A"},{"$error":"#N/A"}]
[{"$error":"#N/A"},{"$error":"#N/A"}]
[{"$error":"#N/A"},{"$error":"#N/A"}]
[{"$error":"#N/A"},{"$error":"#N/A"}]
[{"$error":"#N/A"},{"$error":"#N/A"}]
[{"$error":"#N/A"},{"$error":"#N/A"}]
[{"$error":"#N/A"},{"$error":"#N/A"}]
[{"$error":"#N/A"},{"$error":"#N/A"}]
[{"$error":"#N/A"},{"$error":"#N/A"}]
[{"$error":"#N/A"},{"$error":"#N/A"}]
[{"$error":"#N/A"},{"$error":"#N/A"}]
[{"$error":"#N/A"},{"$error":"#N/A"}]
[{"$error":"#N/A"},{"$error":"#N/A"}]
[{"$error":"#N/A"},{"$error":"#N/A"}]
[{"$error":"#N/A"},{"$error":"#N/A"}]
[{"$error":"#N/A"},{"$error":"#N/A"}]
[{"$error":"#N/A"},{"$error":"#N/A"}]
[{"$error":"#N/A"},{"$error":"#N/A"}]
[{"$error":"#N/A"},{"$error":"#N/A"}]
[{"$error":"#N/A"},{"$error":"#N/A"}]
[{"$error":"#N/A"},{"$error":"#N/A"}]
[{"$error":"#N/A"},{"$error":"#N/A"}]
[{"$error":"#N/A"},{"$error":"#N/A"}]
[{"$error":"#N/A"},{"$error":"#N/A"}]
[{"$error":"#N/A"},{"$error":"#N/A"}]
[{"$error":"#N/A"},{"$error":"#N/A"}]
[{"$error":"#N/A"},{"$error":"#N/A"}]
[{"$error":"#N/A"},{"$error":"#N/A"}]
[{"$error":"#N/A"},{"$error":"#N/A"}]
[{"$error":"#N/A"},{"$error":"#N/A"}]
[{"$error":"#N/A"},{"$error":"#N/A"}]
[{"$error":"#N/A"},{"$error":"#N/A"}]
[{"$error":"#N/A"},{"$error":"#N/A"}]
[{"$error":"#N/A"},{"$error":"#N/A"}]
[{"$error":"#N/A"},{"$error":"#N/A"}]
[{"$error":"#N/A"},{"$error":"#N/A"}]
[{"$error":"#N/A"},{"$error":"#N/A"}]
[{"$error":"#N/A"},{"$error":"#N/A"}]
[{"$error":"#N/A"},{"$error":"#N/A"}]
[{"$error":"#N/A"},{"$error":"#N/A"}]
[{"$error":"#N/A"},{"$error":"#N/A"}]
[{"$error":"#N/A"},{"$error":"#N/A"}]
[{"$error":"#N/A"},{"$error":"#N/A"}]
[{"$error":"#N/A"},{"$error":"#N/A"}]
[{"$error":"#N/A"},{"$error":"#N/A"}]
[{"$error":"#N/A"},{"$error":"#N/A"}]
[{"$error":"#N/A"},{"$error":"#N/A"}]
[{"$error":"#N/A"},{"$error":"#N/A"}]
[{"$error":"#N/A"},{"$error":"#N/A"}]
[{"$error":"#N/A"},{"$error":"#N/A"}]
[{"$error":"#N/A"},{"$error":"#N/A"}]
[{"$error":"#N/A"},{"$error":"#N/A"}]
[{"$error":"#N/A"},{"$error":"#N/A"}]
[{"$error":"#N/A"},{"$error":"#N/A"}]
[{"$error":"#N/A"},{"$error":"#N/A"}]

{"sheet":"IncentivesSummary","index":53,"n_rows":2,"n_cols":6,"rows_kept":2,"cut":false,"hidden":false,"merged":[]}
["Name","Description","Quantity","Units","Incentive per Unit","Total Incentive"]
["B1-30%","LED Tubes",28,"lamp(s)","$2",56]

{"sheet":"zzChange_LogOld","index":54,"n_rows":38,"n_cols":4,"rows_kept":38,"cut":false,"hidden":false,"merged":[[0,0,0,2]]}
["OLD CHANGE LOG.  DO NOT USE"]
["Date","Who","Action"]
["2017-04-17","gjo8227","Update Static_Parameters tab.  Item 23.  Cells B3, B6, A14"]
["2017-04-17","gjo8227","Removed \"Other 24 Hour Interior\" option.  Item 2.  delete cell AN31 on Tab Static_Lists.  Edit named range list_AllBuildingTypes to =static_Lists!$AN$5:$AN$30"]
["2017-04-17","gjo8227","Update Static_Tables tab.  Item 21."]
["2017-04-17","gjo8227","Made Misc text edits.  Item 6.  edited frm_Welcome2, update links on frm_UtilityCustom and corresponding field code, deleted text, command button for Fluorescent Check tool from forms frm_UtilityCustom, frm_UtilityReview, frm_BPAReview.  Deleted tool (frm_LumensperWattTool.)  Removed \"% reduction in hours from frm_utilityReview and commented out references to the control from code.  textbox_UtilityReview_kWhControlSavings"]
["2017-04-17","gjo8227","Removed Measure Description Field.  Item 7.  Frm_UtilityCustom,frm_BPAReview, control textbox_UtilityCustom_Incentives_MeasDesc.  Commented out references to the control."]
["2017-04-17","gjo8227","Updated Busbar Calculations (displayed).  Item 8.  Value changed on parameter tab.  Updated text on forms prntrdy_Form7, prntrdy_Form4."]
["2017-04-18","gjo8227","Deleted Arithmetic Baseline rows.  Item 10a.  Deleted rows 2 to 17 on Arithmeticbaseline tab.  "]
["2017-04-18","gjo8227","Changed text on form prntrdy_Form4.  Item 10c.   From “Site Savings Adjusted for Market Average Baseline and Federal Standards” to “Site Savings Adjusted for Federal Standards:”. "]
["2017-04-18","gjo8227","Updated MML tab.  Item 9, 10b.  Does not include code changes for special cases."]
["2017-04-18","gjo8227","Updated List_ControlClasses on Static_Lists tab.  Item 9. Also resulted in change to named range List_ControlClasses"]
["2017-04-19","gjo8227","Added code to ChangeParentFieldEvent() function to handle multiple default Control % reductions.","NOTE: if time allows need to replace If statements with table lookup, reorder table so Control % Reductions are contiguous."]
["2017-04-19","gjo8227","Added code to AdjustMeasuresVectorToMeasureType() function to allow user entry for lampwattage if so defined in MML."]
["2017-04-19","gjo8227","Updated Static_List tab.  Item 22.  Updated named range list_MeasureSeries from static_Lists!$R$5:$R$21 to=static_Lists!$R$5:$R$18.  Updated list_ProgramRequirementsDocs from static_Lists!$BL$5:$BL$7 to static_Lists!$BL$5:$BL$6."]
["2017-04-20","gjo8227","Updated code for fields fld_ExistingSubtypet and fld_ProposedSubtype to split text string from MML on \\ character."]
["2017-04-20","gjo8227","Updated code fto functions GetLampWattageList() and GetLampsPerFixtureList() to modified the \"Row Finder\" loop to match selected subcat to any text in the MML column per version 4.0 requirements"]
["2017-04-20","gjo8227","Updated inp_incentives tab.  Updated named ranges to match new inp_incentives tab."]
["2017-04-20","gjo8227","updated user_ProgramOffering tables.  Step 13"]
["2017-04-21","gjo8227","UpdatedStatic tables tab.  Refrigerated column for Exterior 24 hour operation, Parking Garage, and Street and Area Lighting  updated to 130% "]
["2017-04-21","gjo8227","Updated Static links so displayed text is also the link.  frm_UtilityCustom,frm_Utilityreview and  frm_BPAReview."]
["2017-04-21","gjo8227","Updated GetMMLRow() function to deal with Subcat now containing multiple items per cell."]
["2017-04-22","gjo8227","Updated User_ProgramOfferings tab to restore lookups on Inp_incentive tabs.  Note Control section (M) uses Index/Match combination on multiple columns.  After editing cell(s) use Shift-Control-Enter to enable functions to work properly."]
["2017-04-22","gjo8227","Updated prntrdy_Form2 tab  (Item 120).  To match tab in Supporting Docs.xls.  Note Measure M has merged cells which may cause problems."]
["2017-04-25","gjo8227","Edited sub WriteProjectLevelInfoToItemizedSheet_Static().  Item 28.  fixed typo in Phone4 assignment.   Was Phone4 = phone1 = CustomerDataVector... This makes phone4 evaluate to true or false.  Changed to Phone4 = CustomerDataVector..."]
["2017-04-25","gjo8227","Edited function  ConcatMeasureUserFields().  Item 1A.  Concatenated user input used to identify changes in Non-Standard measures after approval.  Commented out quantity fields as version 4.0 allows quantity to change without requiring re-approval."]
["4/252/2017","gjo8227","Edited function  AdjustMeasuresVectorForApproval.  Item 1B.  Commented out \"MeasuresVector(1, MVNumbers.ControlsPercentReduction) = 0\",MeasuresVector(1, MVNumbers.ControlkWhSavings) = 0."]
["2017-04-25","gjo8227","Edited function ChangeParentFieldEvent.  Item 1C.  Changed  \"If NewValue <> OldValue And NewValue <> \"Non-standard\" Then\" To \"If NewValue <> OldValue And (OldValue = \"Controls Only\" or NewValue = \"Controls Only\") Then\" so users can change from Deemed to Non-Standard and back again without losing measure data."]
["2017-04-25","gjo8227","Added * to Contact Name and Company Name fields in the Trade Ally tab.  Item 25A.  Required fields.  Delted he Additional Trade Ally Information section (25C)."]
["2017-04-26","gjo8227","Edited user_TradeAlly tab to remove additional TA info and add NWTan & Training.  Item 25D"]
["2017-04-26","gjo8227","Edited subs to remove additional TA info and add NWTan & Training.  Item 25D.  Function GetTAVN(), Function GetTradeAllyData_UserForm(), Sub SetTradeAllyData_UserForm(), Sub SetTradeAllyData_DataTable(),  UserForm_Initialize().  Added UpdateNWTAradioButtions()  which is called on button_click."]
["2017-04-26","gjo8227","Added required checks for Contact and Company names on TradeAlly tab of dataEntry form.  Item 25A.  Function ValidateForm(0 and Function ValidateFrame()"]
["2017-04-27","gjo8227","Trimming the MML Existing and proposed row vectors to only hold the selected Watts.  In Function ComputeSavingsAndIncentives(MeasuresVector).  New large wattage Selection lists in the MML seem to be causing the Write to UserLightingDetails tab fail."]
["2017-04-27","gjo8227","Cleaned up trailing spaces on MML tab desriptions.  This was causing failed matches on the Measures form."]
["2019-02-07","Dorian and Ryan","1. Incentives changed for):\n1.1. LED Tubes ($4 change to $2)\n1.2. LED Exit Sign ($40 change to $20)\n1.3. Calculated Incentives ($.18 change to $.13)\n2. Removed Linear Fluorescent (Measure Series \"I\")\n3. Changed LC Version from 4.0 to 5.0"]
["2020-03-03","Dorian and Ryan","\"Space Type\" report created"]
["2020-03-26","Dorian and Ryan","\"Space\" Tab optimization: This functionality has been majorly redone from before by:\n1. One click control to enter Primary Space or Unique Space editing; with locking out other control areas  until end of editing\n2. Ability to cancel Primary Space or Unique space editing\n3. Changes are saved only at end of editing\n4. Current displayed Unique Space values are updated to Save of Primary Space changes \n5. Canceling edits reverts back to pre-editing state of Primary or Unique Space changes\n6. When saving Primary Space, the Unique Spaces that are affected by the Primary time or control changes are changed including re-calculation of all the Measures affected by the Unique Space change.  A list of only affected Measures is created before Method recalculation occurs \n7. A Measure Progress Update Bar is inclueded for any Measure re-calculation do to Unique Space changes; includes display of total Measure count to recalculate, Measure count left to recalculate with each Progress Bar update, time estimate to end of Measure Updates, current Measure ID number being re-calculated. While progress bar is running all controls are inactivated. ","LC5.1.69.V00"]
["2020-04-16","None","DO NOT WRITE LOG ON THIS TAB. Go to \"Change Log\" tab"]

{"sheet":"Holding","index":55,"n_rows":24,"n_cols":210,"rows_kept":24,"cut":false,"hidden":false,"merged":[[15,0,15,12],[16,0,16,12]]}
["Version 5.0.0.0"]
[]
[]
[]
[]
[]
[]
[]
[]
[]
[]
[]
[]
[]
[]
["Copy header row back to user_Lighting_Details worksheet"]
["    Worksheets(\"Holding\").Range(\"A21:IP21\").Copy Worksheets(\"user_Lighting Details\").Range(\"A21:IP21\")"]
[]
[]
[null,null,null,null,null,null,null,null,null,null,1,{"$f":"K20+1","v":2},{"$f":"L20+1","v":3},4,5,6,7,8,9,10,11,12,13,14,15,16,17,18,19,20,21,22,23,24,25,26,27,28,29,30,31,32,33,34,35,36,37,38,39,40,41,42,43,44,45,46,47,48,49,50,51,52,53,54,55,56,57,58,59,60,61,62,63,64,65,66,{"$f":"BX20+1","v":67},68,69,70,71,72,73,74,75,76,77,78,79,80,81,82,83,84,85,86,87,88,89,90,91,92,93,94,95,96,97,98,99,100,101,102,103,104,105,106,107,108,109,110,111,112,113,114,115,116,117,118,119,120,121,122,123,124,125,126,127,128,129,130,{"$f":"EJ20+1","v":131},132,133,134,135,136,137,138,139,140,141,142,143,144,145,146,147,148,149,150,151,152,153,154,155,156,157,158,159,160,161,162,163,164,165,166,167,168,169,170,171,172,173,174,175,176,177,178,179,180,181,182,183,184,185,186,187,188,189,190,191,192,193,194,{"$f":"GV20+1","v":195},196,197,198,199,200]
[null,null,null,null,null,null,null,null,null,null,"Measure #","Status","Space","Annual Hours","Measure #\nSpace\nStatus","Existing","Proposed","Controls",null,"kWh/year","Watts per Fixture","Incentives","Notes","Measure Details>>","KWForTable","Space","ExistingQuantity","ExistingClass","ExistingType","ExistingSubtype","ExistingLampWattage","ExistingLampsPerFixture","ProposedMeasureType","ProposedQuantity","ProposedClass","ProposedType","ProposedSubtype","ProposedLampWattage","ProposedLampsPerFixture","ProposedLampModelNumber","ProposedBallastModelNumber","NoControls","ControlsQuantity","ControlsClass","ControlsPercentReduction","Notes","NumberOfErrors","ExistingMMLRow","ProposedMMLRow","ExistingBallastFactor","ProposedBallastFactor","ExistingFixtureWattage","ProposedFixtureWattage","ArithFixtureWattage","ElectricInteraction","GasInteraction","ExistingFixtureKWHBase","ArithExistingFixtureKWHBase","ProposedFixtureKWHBase","DecommissionedFixtures","PrecondDecomKWHSavings","ArithDecomKWHSavings","PrecondEquipKWHSavings","ArithEquipKWHSavings","PrecondControlsKWHSavings","ArithControlsKWHSavings","PrecondDecomAndEquipKWHSavings","ArithDecomAndEquipKWHSavings","PrecondTotalKWHSavings","ArithTotalKWHSavings","PrecondEquipAndControlsKWHSavings","ArithEquipAndControlsKWHSavings","PrecondEquipAndControlsPercentSavings","ArithEquipAndControlsPercentSavings","PrecondMeasurePercentSavings","ArithMeasurePercentSavings","PrecondMeasureKW","ArithMeasureKW","ProposedMeasureKW","PrecondKWSavings","ArithKWSavings","ExistingFixtureKWHwithHVAC","ArithExistingFixtureKWHwithHVAC","ProposedFixtureKWHwithHVAC","PrecondDecomKWHSavingswithHVAC","ArithDecomKWHSavingswithHVAC","PrecondEquipKWHSavingswithHVAC","ArithEquipKWHSavingswithHVAC","PrecondEquipAndControlsKWHSavingswithHVAC","ArithEquipAndControlsKWHSavingswithHVAC","PrecondControlsKWHSavingswithHVAC","ArithControlsKWHSavingswithHVAC","PrecondDecomAndEquipKWHSavingswithHVAC","ArithDecomAndEquipKWHSavingswithHVAC","PrecondTotalKWHSavingswithHVAC","ArithTotalKWHSavingswithHVAC","ExistingFixtureKWHwithHVAC_Busbar","ArithExistingFixtureKWHwithHVAC_Busbar","ProposedFixtureKWHwithHVAC_Busbar","PrecondDecomKWHSavingswithHVAC_Busbar","ArithDecomKWHSavingswithHVAC_Busbar","PrecondEquipKWHSavingswithHVAC_Busbar","ArithEquipKWHSavingswithHVAC_Busbar","PrecondEquipAndControlsKWHSavingswithHVAC_Busbar","ArithEquipAndControlsKWHSavingswithHVAC_Busbar","PrecondControlsKWHSavingswithHVAC_Busbar","ArithControlsKWHSavingswithHVAC_Busbar","PrecondDecomAndEquipKWHSavingswithHVAC_Busbar","ArithDecomAndEquipKWHSavingswithHVAC_Busbar","PrecondTotalKWHSavingswithHVAC_Busbar","ArithTotalKWHSavingswithHVAC_Busbar","PrecondTotalMeasureKWHwithHVAC_Busbar","ArithTotalMeasureKWHwithHVAC_Busbar","ProposedTotalMeasureKWHwithHVAC_Busbar","Therms_Increase_Precond","Therms_Increase_Arith","DecomIncentiveRates","UtilityDecomIncentiveRate","BPADecomIncentiveRate","NonstandardIncentiveRates","UtilityNonstandardIncentiveRate","BPANonstandardIncentiveRate","ControlsIncentiveQuantity","ControlsIncentiveUtility","ControlsIncentiveBPA","ControlsText","ControlsIncentiveVector","ControlsIncentive","BPAControlsIncentiveRate","UtilityControlsIncentiveRate","DecomIncentiveQuantity","DecomIncentiveUtility","DecomIncentiveBPA","EquipmentIncentiveQuantity","EquipmentIncentiveUtility","EquipmentIncentiveBPA","MeasureText","DecommissioningAndEquipmentResultsText","ControlsResultsText","PrecondTotalMeasureKWH","ArithTotalMeasureKWH","ProposedTotalMeasureKWH","PrecondTotalMeasureKWHwithHVAC","ArithTotalMeasureKWHwithHVAC","ProposedTotalMeasureKWHwithHVAC","PrecondKWPercentSavings","ArithKWPercentSavings","TotalUtilityIncentive","TotalBPAIncentive","NonStandardStatus","StatusNotes","ControlkWhSavings","UtilityEquipmentIncentiveRate","DecomAndEquipmentIncentiveName","DecomAndEquipmentIncentiveDescription","ControlsIncentiveName","ControlsIncentiveDescription","ApprovedNonStandardUserFieldConcat","SpaceType"]
[]
[]
["    Worksheets(\"Holding\").Range(\"A21:IP21\").Copy Worksheets(\"user_Lighting Details\").Range(\"A21:IP21\")"]

{"sheet":"Change Log","index":56,"n_rows":482,"n_cols":8,"rows_kept":482,"cut":false,"hidden":false,"merged":[]}
["#","Bug/ Change #","Version","Date","Modified By","Location","Action","Comments"]
[1,null,"LC4.0.20180110_1.xls","2018-01-10","Ryan LeBaron/Dorian Salcz","Report \"Customer Proposal Letter\"  - Tab \"prntrdy_Form1\" / cell L243","Removed \"and advanced lighting controls\" from description in the fine print at button of report"]
[{"$f":"A2+1+IF(LEN(C3)=0,\"\",A2-1)","v":2},null,"LC4.0.20180110_1.xls","2018-01-10","Ryan LeBaron/Dorian Salcz","Form Utility/Incentives/Customization Tab - % Pass Through text entry","Capped max value to 100% - If value entered is greater than 100 then value is replaced with 100","Existing behavior of negative sign key press not entered"]
[{"$f":"IF(LEN(C4)=0,\"\",A3+1)","v":3},null,"LC4.0.20180112_1.xls","2018-01-12","Ryan LeBaron/Dorian Salcz","Form Utility Customization/Save and Close - \"Save and Close\" button","Save and  close button should not ask user if they want to exit program without saving after the save operation occurs; this is because the workbook is loosing a boolean variable bAllowToClose set to true from the save and close button click.  Solution is to also save a 1 to a cell, after the save occurs, and then in  \"Workbook_BeforeClose()\" event handler to check \"bAllowToClose = False\" and then do a secondary check in it to see if the cell value was set for a close;  this is a double check.  Note that Form Utiliy Review/Save and Close works properly and has same exact code as the  Form Utility Customization/Save and Close so there must be some hidden part event handler or property that reinitializes the workbook and forces us to do this patch.  The offending method is \"Sub cmd_UtilityCustom_SaveAndClose_Click()\" that has the new added line of \"ThisWorkbook.Sheets(\"Welcome\").Range(\"AA1\").Value = \"1\"\""]
[{"$f":"IF(LEN(C5)=0,\"\",A4+1)","v":4},null,"LC4.0.20180112_2.xls","2018-01-12","Ryan LeBaron/Dorian Salcz","4 Forms in tab \"Links\" for \"\"frm_Utility Customization\", \"\"frm_Utility Review\", \"\"frm_BPARewiew\", \"frm_DataEntry\"","Changed the Lighting Calculator Tutorials link in four places to this: https://www.bpa.gov/EE/Sectors/Commercial/Pages/Lighting-Calculators.aspx"]
[5,null,"LC4.0.20180116_1.xls","2018-01-16","Ryan LeBaron/Dorian Salcz","Form frm_DataEntry, tab \"Spaces\" and \"Measures\"","Fix to:  On \"Spaces\" tab the \"Space Type\" and \"Unique Space Name\" form a space name used in \"Measures\" tab. If a Measure has that name that is deleted or modified to a differing one, delete the name from that measure, thus causing the measure to show Incentive as \"MEASURE IS NOT FULLY SPECIFIED. SEE HIGHLIGHTED FIELDS\""]
[6,null,"LC4.0.20180117_1.xls","2018-01-17","Ryan LeBaron/Dorian Salcz","Form frm_DataEntry, tab \"Spaces\" and \"Measures\"","Fix to:  Yellow highlight each missing information on measure to cause highlighting yellow of measure record on tab. If a Measure has that space name that is deleted or modified to a differing one, delete the name from that measure, thus causing the measure to show Incentive as \"MEASURE IS NOT FULLY SPECIFIED. SEE HIGHLIGHTED FIELDS\" - Had to also erase space name from each measure on a secondary column.\n"]
[7,null,"LC4.0.20180117_1.xls","2018-01-17","Ryan LeBaron/Dorian Salcz","Form frm_DataEntry, tab \"Spaces\" and \"Measures\"","Fix to above #5.  When the \"Unique Space Name\" is blank and the \"Space Type\" is deleted the space name to find in the indiviual measure cannot contain the separating space between the \"Space Type\" and \"Unique Space Name\"; Since the \"Unique Space Name\" is blank the separating space must also be removed from the end of the complete space name or a match will not occur to the individual meaures"]
[8,null,"LC4.0.20180118_2.xls","2018-01-18","Ryan LeBaron/Dorian Salcz","Form frm_DataEntry and all other containing tab \"Save And Close\""," Button \"Save and Close\" to save, exit, and not ask user if wants to exit. Button \"Close Without Saving\" to ask user if wants to exit without saving."]
[9,null,"LC4.0.20180126_1.xls","2018-01-26","Ryan LeBaron/Dorian Salcz","Form frm_DataEntry tabs \"Customer\" and \"Trade Ally\"","Phone numbers and zip codes to allow a leading zero; save as text, not number in cells","Note the physical address can't have a leading zero because the location has to be from the BPA allowed areas"]
[10,null,"LC4.0.20180126_1.xls","2018-01-26","Ryan LeBaron/Dorian Salcz",null,"Recompute project calculation in all cases; general savings and incentive. This was previously computed only on saving and not on change of individual space or individual measure change."]
[11,null,"LC4.0.20180126_2.xls","2018-01-26","Ryan LeBaron/Dorian Salcz","Form frm_DataEntry, \"Spaces\" tab; resulting in \"Measures\" tab data","Changing a space name by rename or delete will cause \"Measures\" tab indiviual measures to clear out incentives and Enegy Savings from form data. Simple solution to just clear out most measure data for measure loosing space it is set to; because of a space deletion or space name change","Form frm_DataEntry, tab \"Spaces\" and \"Measures\""]
[12,null,"LC4.0.20180130_2.xls","2018-01-30","Dorian Salcz","Form frm_BPAReview, \"Save & Close\" tab, buttons \"COMPARE LC WORKBOOK\" and \"COMPARE LC DIRECTORY\"","Brings data in from external workbook and reruns calculations. Compares external workbook power saved and total incentive to new calculated values. Shows values and notifies if match or external error "]
[13,null,"LC4.0.20180131_3.xls","2018-01-31","Dorian Salcz","Module MeasuresRoutines, method CaluclateMeauser, line \"Call SetUploadData\" containing code turning on menu.","In method SetUploadData rem out line \"Call BringExcelBackToNormal\" that contains code \"Application.DisplayFormulaBar = True\" "]
[14,null,"LC4.0.20180131_3.xls","2018-01-31","Dorian Salcz","Form frm_BPAReview, \"Save & Close\" tab, buttons \"COMPARE LC WORKBOOK\" and \"COMPARE LC DIRECTORY\"","Add functionlity to handle LC 3.3 data import"]
[15,null,"LC4.0.20180131_4.xls","2018-01-31","Dorian Salcz","Tab ProjectUpload does not get proper value from tab UploadData for cell L2 of colum \"Unique Site ID\"","Tab ProjectUpload does not get proper value from tab UploadData for cell L2 of colum \"Unique Site ID\". Improper \"0\" returned on blank string; this error is called \"Returning Zero when a Referenced Cell is Blank\".  Solution   \"=IF(ISBLANK(UploadData!L2),\"\",UploadData!L2)\" "]
[16,null,"LC4.0.20180201_1.xls","2018-02-01","Dorian Salcz","\"Links\" tab, link \"BPA Lighting Calculator Trainings\", on Forms \"frm_BPAReview\", \"frm_DataEntry\", \"frm_UtilityCustom\", \"frm_UtilityReview\"","Modify link to: https://www.bpa.gov/EE/Sectors/Commercial/Pages/Commercial-Industrial-Lighting.aspx"]
[17,null,"LC4.0.20180201_2.xls","2018-02-01","Ryan LeBaron/Dorian Salcz","Excel Options/save","Uncheck save every 2 or more minutes "]
[18,null,"LC4.0.20180207_1.xls","2018-02-02","Ryan LeBaron/Dorian Salcz","VBA Code","Unlock VBA code - Remove password"]
[19,null,"LC4.0.20180207_1.xls","2018-02-02","Ryan LeBaron/Dorian Salcz","Tab \"user_Lighting Details\"","Remove extra cell bourndary lines below last current measure"]
[20,null,"LC4.0.20180221_2.xls","2018-02-21","Ryan LeBaron/Dorian Salcz","Tab \"ProjectUpload\"","Copy data from tab \"UploadData\". Show spaces and not substitue zero values; keep format on dates and % else just copy number or string"]
[21,null,"LC4.0.20180221_3.xls","2018-02-21","Ryan LeBaron/Dorian Salcz","Tab \"MeasureUpload\"","Fix inserting a measure above selected measure to create proper cell reference"]
[22,null,"LC4.0.20180222_1.xls","2018-02-22","Ryan LeBaron/Dorian Salcz","Tab \"UploadData\", \"user_LightingDetails\" are modified with latest selected utilty sector","Tab \"UploadData\", \"user_LightingDetails\" are modified with latest selected utilty sector selected on utility fomr \"MeasureRoutines\"; indirectly tab \"MeasureUpload\" updates its REFNO and measure descripton because of its fomulas referencing tab \"user_LightingDetails\""]
[{"$f":"IF(LEN(C24)=0,\"\",A23+1)","v":23},null,"LC4.0.20180226_6.xls","2018-02-26","Ryan LeBaron/Dorian Salcz","Tab \"UploadData\" are modified with latest selected utilty sector","Prior logic to modify new REFNO was in error wher the vector was not provided and just the vector's column numbers."]
[{"$f":"IF(LEN(C25)=0,\"\",A24+1)","v":24},null,"LC4.0.20180226_6.xls","2018-02-26","Ryan LeBaron/Dorian Salcz","Form \"user_LightingDetails\" recaluculate button","Make button not visible"]
[{"$f":"IF(LEN(C26)=0,\"\",A25+1)","v":25},null,"LC4.0.20180226_6.xls","2018-02-26","Ryan LeBaron/Dorian Salcz","Form \"user_LightingDetails\" controls and % reductiuction not correct or non enambled lighting controls on various measures  ","Vector data not being read and user form data read instead in engine location; solved.  Added logic to module1 to reanable controls."]
[26,null,"LC4.0.20180306_6.xls","2018-03-06","Ryan LeBaron/Dorian Salcz","Forms \"user_Space Types\" changes not apply to \"user_LightingDetails\" (measures tab) not reflecting changes of optional unique name change.  This includes includes HVAC or hour changes.  This includes a measure based on primary mearure with primary measure hour or HVAC changes. ","Improper vector data reading and missing functionality"]
[27,null,"LC4.0.20180306_6.xls","2018-03-06","Ryan LeBaron/Dorian Salcz","Table \"ArithmeticBaseline\" has workng 45 W incandescent wattage."," Change to 40W"]
[28,null,"LC4.0.20180306_6.xls","2018-03-06","Ryan LeBaron/Dorian Salcz","Forms \"user_LightingDetails\" (measures tab) not pasting exception.","Method call with imporper parameter fix."]
[29,null,"LC4.0.20180316_1.xls","2018-03-16","Ryan LeBaron/Dorian Salcz","Form \"frm_UtilityCustom\", \"Incentives tab\". Modifying Incentive passthorugh % does not update meausre values","Modify Incentive Passthorug % event event handler \"textbox_UtilityCustom_Incentives_Passthru_Change()\" to recaluculate all methods if a valid new passthrough % is provided "]
[{"$f":"IF(LEN(C31)=0,\"\",A30+1)","v":30},null,"LC4.0.xls    Version 20180322_1","2018-03-22","Dorian Salcz","Teble Tab \"ProjoectUpload\"  mdify version cell to accept decimal points","Changed cell from \"General\" to \"Number\" with decimal "]
[31,null,"LC4.0V0.8.xls    VALIDATOR","2018-04-19","Dorian Salcz",null,"VALIDATOR for LC 4","Initial Release"]
[32,null,"from LC4.0V0.27 to LC5.0.08","2019-02-08","Dorian and Ryan","1. Incentives changed for):\n1.1. LED Tubes ($4 change to $2)\n1.2. LED Exit Sign ($40 change to $20)\n1.3. Calculated Incentives ($.18 change to $.13)\n2. Removed Linear Fluorescent (Measure Series \"I\")\n3. Changed LC Version from 4.0 to 5.0"]
[33,null,"To LC 5.0.10","2019-02-13","Dorian","1.1.  Measures tab cells border on empty 5 last records cleaned up to no borders\n1.2.  Hide Measure tab columns not to be diplayed to user\n2.  Utility reset data on calculator"]
[34,null,"LC5.0.10.V4","2019-02-15","Dorian","Validation upgrade to V5\nNon Deemed approved and non approved fix"]
[{"$f":"IF(LEN(C36)=0,\"\",A35+1)","v":35},null,"LC5.0.10.V6","2019-02-15","Dorian","Non Standard Measurs column to reflect row found (was on less than #) fix\nDecomission Measurs column to reflect row found (was on less than #) fix"]
[36,null,"LC5.0.14.V6","2019-03-24","Dorian","Report \"Customer Proposal Letter\" Fixed the controlls L1, L2, L3 to be found also by KW used "]
[null,null,"LC5.1.46.V00","2020-01-17","Dorian","1. All UI Forms\n2. Measure Tab","1. The handling of 4K monitors and other monitors of other sizes.  The functionality has been changed:\n  A. On a 4K screen: When LC is started to quarter screen size what it starts and then the user can change it to full screen or any window size; this window size stays constant until the user exits the application.\n  B. b. On any screens of QHD (2960 x 1440 pixel) or less like HD (1920 x 1080 pixel) : When LC is started is behaves the same way as before by maximizing to full screen size.  If the user decides to change screen size then the Lighting Calculator maintains that screens size until app is exited.\n  C.  Note: When changing LC tabs, the form will follow the excel tab location and size\n2.  The number pad fix with the “Measures” tab number of control issue surpassing the new light fixture when the numbers from the number pad are pushed instead of the numbers above the letter keys."]
[{"$f":"IF(LEN(C39)=0,\"\",A37+1)","v":37},null,"LC5.1.47.V0","2020-02-03","Dorian","1. Workbook Importer (form frm_BPAReview, method ImportAndCompareFile)\n2. \"Trade Ally\" tab: change link to : \"Trade Ally NW Memger?\"; Word \"Trade Ally Network NW Memger?\"\n3. \"Link\" tabs: \"BPA Lighting Calculator Information\"; Word \"Trainings\" changed to \"Information\" \n4. Validator \"Bus Bar\" value error","1.  Step to CalculateMeasure() for all measures might fail to calculate if other prior errors are found; for example if mismatched table data fail.  If the workbook is not recalculated the Busbar value remainds the same as previous workbook; this causes the user to think there is also a busbar error when there is not.  Solution is to remove the \"If (AllowMeasureRecalculation) Then\" conditions not allowing to recalculate workbook.\n4. Validator “Bus Bar” value error; old prior import value showing"]
[38,null,"LC5.1.49.V00","2020-02-28",null,"1. Workbook Contractor Measures: Single (not more than one) measure containing control causes crash\n2. Workbook Contractor Measure: Proposed measure containing Subcategory=\"[Enter total wattage below]\" (for signage, refrigeration, any user hand entered wattage) that is switched back to Deemed crash","1. Fix: A Workbook containing only 1 measure causes error on controls because of the code path differing between 1 measure and many measures. In previous measure code was added to handle controls that has been fixed to differ in looking up controls values based on 1 measure or many measures\n2. Fix: A Workbook containing only 1 measure causes error on controls because of the code path differing between 1 measure and many measures. In previous measure code was added to handle controls that has been fixed to differ in looking up controls values based on 1 measure or many measures\n"]
[39,null,"LC5.1.51.V00","2020-03-03","Dorian","\"Space Types\" report created","frm_DataEntry | Reports Tab"]
[40,null,"LC5.1.53.V00","2020-03-04","Dorian","BPA Review \"Save & Close\" tab, button \"Compare LC Workbook\".  Frm_DataEntry, Space tab","BPA import workbook to clear format for any existing \"Space Types\" tab. At \"Space Tab\" fromat all space records; places border.  "]
[41,null,"LC5.1.54.V00","2020-03-04","Dorian","Frm_DataEntry, Space tab","Space tab scroll down does not clear previous row formatting"]
[42,null,"LC5.1.64.V00","2020-03-20","Dorian","Frm_DataEntry, Space tab","Space Optimization including progress bar"]
[43,null,"LC5.1.69.V00","2020-03-26","Dorian","Frm_DataEntry, Space tab","\"Space\" Tab optimization: This functionality has been majorly redone from before by:\n1. One click control to enter Primary Space or Unique Space editing; with locking out other control areas  until end of editing\n2. Ability to cancel Primary Space or Unique space editing\n3. Changes are saved only at end of editing\n4. Current displayed Unique Space values are updated to Save of Primary Space changes \n5. Canceling edits reverts back to pre-editing state of Primary or Unique Space changes\n6. When saving Primary Space, the Unique Spaces that are affected by the Primary time or control changes are changed including re-calculation of all the Measures affected by the Unique Space change.  A list of only affected Measures is created before Method recalculation occurs \n7. A Measure Progress Update Bar is inclueded for any Measure re-calculation do to Unique Space changes; includes display of total Measure count to recalculate, Measure count left to recalculate with each Progress Bar update, time estimate to end of Measure Updates, current Measure ID number being re-calculated. While progress bar is running all controls are inactivated. "]
[{"$f":"A45+1","v":44},null,"LC5.1.73.V00","2020-04-16","Dorian","Frm_DataEntry, Space tab","Space record movement(boundary 2 to max record) and selected record highlighting. Fast continuous button movement of highlighted record jumping to several recods previous."]
[45,null,"LC5.1.83.V00","2020-04-20","Dorian","Frm_DataEntry, Space tab","Space tab to handle both large data mode and quick instant update; \"Large Calculator?\" functionality. Many different bugs solved because of the dule functionality.   The following previous issues solved: \n1. New space and then cancel \n2. Delete a blank space; no need to check measure names\n3. Do not allow a measure space selection of a blank space name\n4. Message box when switching from space editing to other tabs"]
[46,null,"LC5.1.83.V01","2020-04-20","Dorian","Frm_DataEntry, Space tab, Measure tab","Space tab changing Primary Space and then moving to other space record lockup solved.  Measure tab list unique list of spaces for measure selection solved. Measure tab current measure tab clearing out when coming pack to tab issue solved."]
[47,null,"LC5.1.85.V00","2020-04-21","Dorian","Frm_DataEntry, Space tab, Measure tab","Space Tab Name change to remove and recalculate affected measures by removing the measure space name of affected measures"]
[48,null,"LC5.1.88.V00","2020-04-29","Dorian","Frm_DataEntry, Space tab, Measure tab","1. Color fix for Measure Tab when Space Tab Name change to remove and recalculate affected measures by removing the measure space name of affected measures. \n2. Optimization of Measure tab measure changes and Measure tab enty.  \n3. Click Measure tab cell changes the selected measure to that record"]
[49,null,"LC5.1.92.V00","2020-05-12","Dorian","Frm_DataEntry, Space tab, Measure tab","1.  [Space Tab] space value change other than Space Type and Space Name does not remove measure [Measure Tab] Space Name from measure. 2. Measure Tab delete measure deactivated and other controls deactivated when deleting - Deactivation of all other controls, including more delete press changed to occur at start of delete to end."]
[50,null,"LC5.1.94.V00","2020-06-01","Dorian","frm_utilityCustom, frm_utilityReview","Utility side validation crashes because changes from customer/user side fix."]
[51,null,"LC5.1.95.V00","2020-06-01","Dorian","Frm_DataEntry, Space tab, Measure tab","1. Initial save of Primary Space record 2. Do not enter measures until primary space is complete"]
[{"$f":"IF(LEN(C54)=0,\"\",A53+1)","v":52},null,"LC5.1.96.V00","2020-06-09","Dorian","Frm_DataEntry, Space tab","1. Bug Fix: Contractor Space Tab left arrow decrease selected space should not be allowed to decrease past space number 2 fix; space 1 causes severe space issues."]
[53,null,"LC5.1.97.V00","2020-06-09","Dorian","Frm_DataEntry, Space tab","1. Bug Fix: Contractor Space tab, Large Project NOT checked, adding new unique space with default time values causes eroneous Large Project editing buttons to appear.  2. New S[pace with same space name as existing space, changing the name to make unique enables day Sunday for editing when not not allowed to edit because use primary day values cheked.  3. Change \"Large Calculator ?\" Space chekbox to \"Large Project?\" display to user. "]
[54,null,"LC5.1.98.V00","2020-06-22","Dorian","Frm_DataEntry, Space tab","1. Bug Fix: Reduce Space Tab, Space Name change causing flickering; caused by excessive Do Eveints and frm_Progress enabling on no measures to modify. Bug Fix: Space Tab Large project Unique Schedule controlls enabling Primary Schedule Cancle and Modify buttons instead of Unique Space."]
[55,null,"LC5.1.100.V00","2020-07-08","Dorian","Frm_DataEntry, Space tab, Measure tab","1. Bug Fix: Space Tab delete button code not same path as new code that deletes measure spaces that are match deleted sp.  2. Compile Error of \"Dim MeasureToRecalculate() As Boolean\" to delete.  3. Space Large Progject button name change. 4. Customer Tab, tab stop order fix. 5. Measure tab, first measure when one measure exists or multiple measures to highlight space name field yellow if missing"]
[56,null,"LC5.1.102.V00","2020-07-09","Dorian","Frm_DataEntry, Space tab, Measure tab","1. Bug Fix: Space Tab delete button for incomplete space shows validation error"]
[57,null,"LC5.1.105.V00","2020-07-16","Dorian","Frm_DataEntry, Space tab; functionality interacts with Measure tab","1. Bug Fix: Space delete error in not deleting measure space name. 2. Bug Fix: Space change name error in not deleting measure space name.  3. Space name character space trip in various places used for space name comparison. 4. Space addition or type/name change collision with other existing space type/name to only show error to user only when ready to save with no errors; error warns user to change space name or space is not saved"]
[{"$f":"IF(LEN(C60)=0,\"\",A59+1)","v":58},null,"LC5.1.108.V00","2020-07-17","Dorian","Frm_DataEntry, Space tab; functionality interacts with Measure tab","1. Large Scale Project setting to true causes delete and other unique space buttons to activate Space Type event first time set; setting copy button as selected control solve. in Large Project Space Name dropdown activates validation error.  Space Tab Processing Measure form is shown when no measure to process on delete and space type or name selection . 2. More finds of space trim of [space Name] and trim of [Space Type] & \" \" & [Space Name] 3. Adding new space should not trigger measure calculation form for same measures space name. 4. In Large Scale Project, Unique Space Name triggers calculation and measure with same space name processing form.  This should not happen until clicking \"Save Space Inputs\" button. to solve this modify Sub textbox_Spaces_SpaceName_KeyDown(), line \"modifyUniqueOperatingSchedule = emableUniqueOperatingSchedule(modifyUniqueOperatingSchedule)\" to \"modifyUniqueOperatingSchedule = emableUniqueOperatingSchedule(True)\" . 5. Project Offerings | Program Offerings: Change various text items. 6. Program Requirements: Project Requirements: Change various text items."]
[59,null,"LC5.1.111.V00","2020-07-22","Dorian","Frm_DataEntry (Space tab and Measure tab), Summary Report, Preposal Report","1. Program Offering form language edited. 2. Customer Summary Report and Customer Proposal Report stop double clicking from causing Excel error \"The cell or chart you're trying to change is on a protected sheet. To make ….\" and then causing a tab change to non user allowed tab.  3. Utility Summary Report, Total Project Cost to not have deimal cent; show only dollars. 4. space delete or space name change to zero out measures using those spaces."]
[60,null,"LC5.1.112.V00","2020-07-28","Dorian","Frm_DataEntry (Measure tab)","1. Fix for: Measure Tab for new fixtures of Sinage, LED.Refrigerated, LED.Linear, when existing is count of 1 causes incentives of \"Non-Standard\" instead of \"Sinage\" or \"LED Linear\"; this error is in cases of only existing count of 1, otherwise this works.  2. Fix for: Measure Tab when adding a measure after or before measure currently on, the first measure shows on Measure Form for .5 seconds before data is cleared out in controls."]
[61,null,"LC5.1.114.V00","2020-07-30","Dorian","Frm_DataEntry (Measure tab)","A1.  Rebuilt and optimization of  loading Contractor Measure Tab: 1. Make tab validate each measure color on gird only once when user selects contractor data button (Project Input Button); this is not done anymore every time user switches from Measures Tab to other tab and back.  2. When entering the Measure tab, the first measure user is on is loaded to the form into controls showing data. Events have been turned off so measure is not recalculated every load of control on window form.  The only code run is to highlight each control yellow if the data loaded is an error; calling the reaclculate measure on each of the control data load is supressed. \nA2. (Fix) Project Reports Tab: When a report is selected and then user clicks on back button, the tab does not change back to \"user_PrintReadyTA\" tab that the user is presented when they click on the Project Reports Tab"]
[62,null,"LC5.1.117.V00","2020-08-03","Dorian","Frm_DataEntry (Measure tab)","1. Fix: Measure Tab, if total measures count of 1, entering tab causes meaures controls to be yellow error with no measure control."]
[63,null,"LC5.1.120.V00","2020-08-05","Dorian","Frm_DataEntry (Measure tab)","1. Fix: frm_BPAReview, Review Project Tab: Issues loading because tab code accidentaly invokes frm_dataEntry, form invocation and Measures tab code. Other issues invlove changing measure records and trying ot change approval status of non-standard measure. 2. Fix: frm_dataEntry, Measure Tab: when movign bacvk between Project Summary Report and Measure Tab and then changing Measure status from Deemed to Non-Standard there is a code error crash occuring because the array of status is not loaded properly and code to handle that is not dimentioned properly allowing to check values. 3. Fix: BPA side, Poject Review Report does not regenerate from Utility side and might be in error is contractor did not review the report before BPA views report.  4. Fix: frm_dataEntry, Customer Tab , Estimated Project Cost changes after measures have been entered is not updating all mesure calculations and total project costs/values.   5. Fix: frm_dataEntry, Customer Tab , Building Type changes after measures have been entered is not updating all mesure calculations and total project costs/values associated with differing heating and cooling rations of a new building type. "]
[{"$f":"IF(LEN(C66)=0,\"\",A65+1)","v":64},null,"LC5.1.125.V00","2020-08-07","Dorian","Frm_DataEntry (Measure tab)","1. Fix: frm_BPAReview, Review Project Tab: Selecting a measure (up, down, measure # text box) causes controlls to zero out and save data. 2. Fix: frm_dataEntry, Measure Tab: Selecting a measure (up, down, measure # text box,  or click) causes controlls to zero out and save data.  3. Fix: frm_dataEntry, Measure Tab:  Changing a measure to Non-Standard that has an existing fixture of T5, 4ft, NLO, 28W causes a crash. Technical reason is because the function  method that returns the light fixutre array of data contains one dimension for the wattage instead of two.   4. Fix: frm_BPAReview, Review Project Tab: Selecting a measure by ckicking does not work. 5. Fix: frm_UtilityReview, Review Project Tab: Selecting a measure by ckicking does not work. "]
[65,null,"LC5.1.127.V00","2020-08-10","Dorian","Frm_DataEntry (Measure tab)","1. Fix: frm_BPAReview, Review Project Tab: Reduce tab movement up and down on load of tab and changing records 2. Fix: frm_dataEntry, Measure Tab: Reduce tab movement up and down on load of tab and changing records.  3. Fix: frm_dataEntry:  Deletion of Rem code in menu tab change sub, reduction of menu tab change sub for Measure Tab code.  3. Fix: frm_dataEntry, Space Tab: Pasting existing space that has same name as another existing space causes message box error of existing space name to flash three times. fix so no message box error occurs, not even once, because user is copying space to create a new one. When paste occurs all pasted fields are yellow because of no save condition untill space name becomes unique. "]
[66,null,"LC5.1.128.V00","2020-08-10","Dorian","Frm_DataEntry (Measure tab)","1. Fix: frm_dataEntry, Measure Tab: When user enters measure tab the controls are error colored yellow even when No-Contols checked. 2. Fix: frm_dataEntry, frm_BPAReview, and frm_UtilityReview momentarly slightly shift up and down vertical position when each tab is entered; this is not noticable on some systems because they operate at a fast speed."]
[67,null,"LC5.1.130.V","2020-08-10","Dorian","Frm_DataEntry (Measure tab)","1. Fix: frm_dataEntry, Space Tab: Prior and after Progress bar call, code added diabling and re-enabling of primary and unique space hours and heating type areas so user is diabled from entering data while progress bar runs."]
[68,null,"LC5.1.131.V","2020-08-13","Dorian","Frm_DataEntry (Measure tab)","1. Fix: frm_dataEntry, Measure Tab: Control count blanks out and error color of control when proposed fixture count changes.  This controls should only blank if they are more than proposed fixture count.  2. frm_dataEntry, Measure Tab/BPA (Measure) Review Project Tab: Meausers with \"NS-N\" not approved have shown wrong measure number while located in their correct. Only the string showning \"Measure # Space Status\" column shows the wrong measure #. User only noticed this on BPA side and the proper measure # was displayed in the cell when approved the Non-Standard measure.  I suspect that the code erroed on the contractor side when the measure was copied because of a slow process that caused the measure number text box not to be updated; this error only would happen on very rare ocasions. I fixed this by adding a DoEvents on the method called by the copy event. "]
[69,null,"LC5.1.132.V","2020-08-13","Dorian","Frm_DataEntry (Measure tab)","1. frm_dataEntry, Measure Tab/BPA (Measure) Review Project Tab: Meausers with \"NS-N\" not approved have shown wrong measure number while located in their correct. Only the string showning \"Measure # Space Status\" column shows the wrong measure #. User only noticed this on BPA side and the proper measure # was displayed in the cell when approved the Non-Standard measure.  I suspect that the code erroed on the contractor side when the measure was copied because of a slow process that caused the measure number text box not to be updated; this error only would happen on very rare ocasions. I fixed this by adding a DoEvents on the method called by the copy event. Also disabling all contorols associated with copy, new record, paste, delete when those controlls are clicked and the row change methods are clicked."]
[{"$f":"IF(LEN(C72)=0,\"\",A71+1)","v":70},null,"LC5.1.134.V","2020-08-20","Dorian","Frm_DataEntry (Measure tab)","1. frm_dataEntry, Measure Tab: Do not clear out control count if proposed fixture count is blanked out; eliminates the user from retyping control count when user re-types count digit while still providing error condition in proposed fixture blancked out error state. Add message box telling user error 2. frm_dataEntry, Measure Tab: Allow more than equal control count to proposed fixture count in case where proposed fixture is a \"Sinage\", \"Refrigerated Case\", or \"Linear Strip\"; in all these cases the proposed fixture count is forced to 1 and the contractor can install multiple controls to control parts of the fixture.  "]
[71,null,"LC5.1.135.V","2020-08-25","Dorian","Frm_DataEntry (Space tab)","1. frm_dataEntry, Space Tab: Change Large Scale Project Checkmark to retain memory traveling anywhere in program and when program is closed. Large Project cell called \"Large Project\" (cell B37) added in static_Parameters tab to retain memory 2. frm_dataEntry, Space Tab Bug Fix: When in large project mode, modifying a unique space that is initially using primary hour value and primary heating values.  Uncheck primay hour check mark. Modify Wendesay to 0 hours. Uncheck primary heating vlue. Modify space heat to no heat. Press the cancel button to cancel this change; while large scale project is chekced.  The hours for Wednesday stay at zero; this is also true from other hours not changing back to the primary setting.  Cancel button code modificaiton added to copy primary hour values if use primary hour values is checked. This bug has nothing to do with the actual values saved in the tab, so just updating the hours form primary is sufficient."]
[72,null,"LC5.1.136.V","2020-08-26","Dorian","Frm_DataEntry (Space Tab)","1. frm_dataEntry, Space Tab Bug Fix: Canceling a uniue Large Scale space change does not recalculate hours back to unedited hours state 2. frm_dataEntry, Space Tab Bug Fix: When changing records, unique spaace hours or HVAC VB controls are not disabled if using Primary Space."]
[73,null,"LC5.1.139.V","2020-09-22","Dorian","Frm_DataEntry (Space Tab)","1. Change Contractor Space Tab button naming. 2. Change passwords. 3. Program Offerings updated text for measure series \"A\" and \"C\""]
[74,null,"LC5.1.140.V","2020-09-23","Dorian","Frm_DataEntry (Space Tab)","1. Bug fix:  Contactor \"Space\" tab \"Large Scale Project\" Unique space cancel setting not resetting properly."]
[75,null,"LC5.1.142.V","2020-09-23","Dorian","Frm_DataEntry (Space Tab)","1. Wording change:  Contactor \"Space\" tab \"Unique Space Name Error\" Change wording to [Unique Space Name] and sentence to : Enter a different [Unique Space Name] to save this space.  Space has NOT been saved."]
[{"$f":"IF(LEN(C78)=0,\"\",A77+1)","v":76},null,"LC5.1.143.V","2020-09-29","Dorian","Frm_DataEntry (Space Tab)","1. Wording change:  Program Offerings, Measure C"]
[{"$f":"IF(LEN(C79)=0,\"\",A78+1)","v":77},null,"LC5.1.TACOMA2.V1","2021-01-28","Dorian","Frm_DataEntry (Measure tab)","1 frm_DataEntry | Measures Tab: Currently when \"Measure Type\" is \"Non-standard\" user is allowed to enter \"Proposed Equipment\" \"Lamp Wattage\" decimal fractional values. When user switches measure \"Measure Type\" from \"Non-standard\" to \"Deemed\" changes allows \"Proposed Equipment\" \"Lamp Wattage\" non-integer decimal fractional values to be maintained and not cleared out; this also implies that that values are not required to be cleared out if they do not match the table assigned given wattage values for that type of selected light fixture. If the user changed the \"Proposed Equipment\" \"Lamp Wattage\"  while \"Measure Type\" is \"Deemed\", user is only allowed the table assigned given wattage values for that type of selected light fixture that are set integer values. To attain the non-integer user set value, user must change \"Measure Type\" to \"Non-standard\", modify value, then change back to \"Deemed\"."]
[{"$f":"IF(LEN(C80)=0,\"\",A79+1)","v":""}]
[""]
[""]
[""]
[""]
[""]
[""]
[""]
[""]
[""]
[""]
[""]
[""]
[""]
[""]
[""]
[""]
[""]
[""]
[""]
[""]
[""]
[""]
[""]
[""]
[""]
[""]
[""]
[""]
[""]
[""]
[""]
[""]
[""]
[""]
[""]
[""]
[""]
[""]
[""]
[""]
[""]
[""]
[""]
[""]
[""]
[""]
[""]
[""]
[""]
[""]
[""]
[""]
[""]
[{"$f":"IF(LEN(C134)=0,\"\",A133+1)","v":""}]
[""]
[""]
[""]
[""]
[""]
[""]
[""]
[""]
[""]
[""]
[""]
[""]
[""]
[""]
[""]
[""]
[""]
[""]
[""]
[""]
[""]
[""]
[""]
[""]
[""]
[""]
[""]
[""]
[""]
[""]
[""]
[""]
[""]
[""]
[""]
[""]
[""]
[""]
[""]
[""]
[""]
[""]
[""]
[""]
[""]
[""]
[""]
[""]
[""]
[""]
[""]
[""]
[""]
[""]
[""]
[""]
[""]
[""]
[""]
[""]
[""]
[""]
[""]
[{"$f":"IF(LEN(C198)=0,\"\",A197+1)","v":""}]
[""]
[""]
[""]
[""]
[""]
[""]
[""]
[""]
[""]
[""]
[""]
[""]
[""]
[""]
[""]
[""]
[""]
[""]
[""]
[""]
[""]
[""]
[""]
[""]
[""]
[""]
[""]
[""]
[""]
[""]
[""]
[""]
[""]
[""]
[""]
[""]
[""]
[""]
[""]
[""]
[""]
[""]
[""]
[""]
[""]
[""]
[""]
[""]
[""]
[""]
[""]
[""]
[""]
[""]
[""]
[""]
[""]
[""]
[""]
[""]
[""]
[""]
[""]
[{"$f":"IF(LEN(C262)=0,\"\",A261+1)","v":""}]
[""]
[""]
[""]
[""]
[""]
[""]
[""]
[""]
[""]
[""]
[""]
[""]
[""]
[""]
[""]
[""]
[""]
[""]
[""]
[""]
[""]
[""]
[""]
[""]
[""]
[""]
[""]
[""]
[""]
[""]
[""]
[""]
[""]
[""]
[""]
[""]
[""]
[""]
[""]
[""]
[""]
[""]
[""]
[""]
[""]
[""]
[""]
[""]
[""]
[""]
[""]
[""]
[""]
[""]
[""]
[""]
[""]
[""]
[""]
[""]
[""]
[""]
[""]
[{"$f":"IF(LEN(C326)=0,\"\",A325+1)","v":""}]
[""]
[""]
[""]
[""]
[""]
[""]
[""]
[""]
[""]
[""]
[""]
[""]
[""]
[""]
[""]
[""]
[""]
[""]
[""]
[""]
[""]
[""]
[""]
[""]
[""]
[""]
[""]
[""]
[""]
[""]
[""]
[""]
[""]
[""]
[""]
[""]
[""]
[""]
[""]
[""]
[""]
[""]
[""]
[""]
[""]
[""]
[""]
[""]
[""]
[""]
[""]
[""]
[""]
[""]
[""]
[""]
[""]
[""]
[""]
[""]
[""]
[""]
[""]
[{"$f":"IF(LEN(C390)=0,\"\",A389+1)","v":""}]
[""]
[""]
[""]
[""]
[""]
[""]
[""]
[""]
[""]
[""]
[""]
[""]
[""]
[""]
[""]
[""]
[""]
[""]
[""]
[""]
[""]
[""]
[""]
[""]
[""]
[""]
[""]
[""]
[""]
[""]
[""]
[""]
[""]
[""]
[""]
[""]
[""]
[""]
[""]
[""]
[""]
[""]
[""]
[""]
[""]
[""]
[""]
[""]
[""]
[""]
[""]
[""]
[""]
[""]
[""]
[""]
[""]
[""]
[""]
[""]
[""]
[""]
[""]
[{"$f":"IF(LEN(C454)=0,\"\",A453+1)","v":""}]
[""]
[""]
[""]
[""]
[""]
[""]
[""]
[""]
[""]
[""]
[""]
[""]
[""]
[""]
[""]
[""]
[""]
[""]
[""]
[""]
[""]
[""]
[""]
[""]
[""]
[""]
[""]
[""]

{"sheet":"ValidatorResults","index":57,"n_rows":5,"n_cols":112,"rows_kept":5,"cut":false,"hidden":false,"merged":[]}
[null,null,1,"Evaluations",null,null,"Column: 5",null,null,null,null,"Column: 10",null,null,null,null,"Column: 15",null,null,null,null,"Column: 20",null,null,null,null,"Column: 25",null,null,null,null,"Column: 30",null,null,null,null,"Column: 35",null,null,null,null,"Column: 40",null,null,null,null,"Column: 45",null,null,null,null,"Column: 50",null,null,null,null,"Column: 55",null,null,null,null,"Column: 60",null,null,null,null,"Column: 65",null,null,null,null,"Column: 70",null,null,null,null,"Column: 75",null,null,null,null,"Column: 80",null,null,null,null,"Column: 85",null,null,null,null,"Column: 90",null,null,null,null,"Column: 95",null,null,null,null,"Column: 100",null,null,null,null,"Column: 105"]
[null,null,null,"General Status ID","Version","General Test Results","File Name","Version","Status","Calculator Type","File Path","Utility Short Name","Invoice Number","Savings Comparison","Total Incentives Comparison","Row Count","Standard Measure Count","Contains Non-Standard","Non-Standard Measure Count","Non-Standard Measures","Contains Decommission","Decommission Measure Count","Decommission Measures","Savings Error","Incentives Error","BPA Busbar KW","Contractor Busbar KW","Busbar KW BPA Minus Contractor","BPA Incentive","Contractor Incentive","Incentive BPA Minus Contractor","Utility ID","Is New Construction","Version","Is Version 5","Is Version 4","Is Version Other","Payment Function ID","Payment Function Status","Utility Status ID","Utility Status","BPA Percent Proj Cost","Contractor Percent Proj Cost","BPA Dollars Per KWh Project","Contractor Dollars Per KWh Project","BPA Utility Min B Per C","Contractor Utility Min B Per C","Utility Status Error","Utility Status Description","Decommissioning Incentive Rate Error","Non-Standard Measure Incentive Rate Error","New Construction Incentive Rate Error","Decommissioning Incentive Rate Error Description","BPA Decommissioning BPA Incentive","Contractor Decommissioning BPA Incentive","BPA Decommissioning Percent Utility Pass-Through","Contractor Decommissioning Percent Utility Pass-Through","BPA Decommissioning Utility Incentive","Contractor Decommissioning Utility Incentive","Non-Standard Measure Incentive Rate Error Description","BPA Non-Standard Measure BPAIncentive","Contractor Non-Standard Measure BPA Incentive","BPA Non-Standard Measure Percent Utility Pass-Through","Contractor Non-Standard Measure Percent Utility Pass-Through","BPA Non-Standard Measure Utility Incentive","Contractor Non-Standard Measure Utility Incentive","New Construction Incentive Rate Error Description","BPA New Construction BPA Incentive","Contractor New Construction BPA Incentive","BPA New Construction Percent Utility Pass Through","Contractor New Construction Percent Utility Pass Through","BPA New Construction Utility Incentive","Contractor New Construction Utility Incentive","Max Dif BPA Incentive","Max util Percent Passthrough","Max Dif Utility Incentive","Error Incentives","MML Table Differences Critical Data Error","MML Table Differences","MML Table Difference Summary Values","MML Table Difference Values","Static_Tables Table Differences Critical Data Error","Static_Tables Table Differences","Static_Tables Table Difference Values","Static_Tables Controls Table Differences Critical Data Error","Static_Tables Controls Table Differences","Static_Tables Controls Table Difference Values","Static_Parameters Table Differences Critical Data Error","Static_Parameters Table Differences","Static_Parameters Table DifferencesValues","Primary Space Type","Primary Space Building Type Row Number Used","PrimarySpace Building Type Used Error Occured","Space Type Value Errors Occured","space Type Value Errors","Existing Measure Possible Error","Existing Mesure Number Possible Error","Proposed Measure Possible Error","Proposed Mesure Number Possible Error","Exsiting And Proposed Measure Error Data Used","Existing Measure Value Errors Summary","Proposed Measure Value Errors Summary","Existing and Proposed Measure Value Errors","Missing Selected Rate Added","Calculation Rate Non-Standard","Calculation Rate Non-Standard Warning","Calculation Rate Name Used","Calculation Rate $/KWh Used","Calculation Rate $/KW Used","Calculated Incentive","Time Comparison","Validator Version"]
[null,null,1,"5","5.1","FAIL - Deemed value measure error [col 98-101]- FAIL - Unauthorized modification (MML table value differences found [col 76-79 94-102])(column shown are possible locations)","LC5.1.41.V00 Optimization Testl Data 01 LC_ECA-19-175.xls","5.1","FAIL - Deemed value measure error [col 98-101]- FAIL - Unauthorized modification - Pass CALCULATION - Payment and kWh = BPA:(MML table value differences found [col 76-79 94-102])","Retrofit","\\\\bud.bpa.gov\\usr\\hhome\\d\\DLS9052\\PROJECTS\\EE-IS2\\Lighting Calculator 5\\Test Files\\From Mike\\","Yakama Power",null,"Busbar Match","Incentives Match","136","133","Non-Standard: Yes","3","3:62:66","Decommissioning: Yes","2","1:3","Pass","Pass","258464.97","258464.97","0.00","11865.00","11865.00","0.00","10502","0","5.1","1","0","1","1","BPA Default Incentive",null,null,"70","70","$0.50","$0.50","0.5","0.5","1","ERROR UTILITY Rate Differing Values: [Tab inp_UtilityRatesRow(C4) KwhRate value above BPA(0.0600): 0.0871 ][Tab inp_UtilityRatesRow(D5) KwRate value above BPA(6.00): 7.60 ][Tab inp_UtilityRatesRow(D6) KwRate value above BPA(6.00): 7.25 ]","0","0","0","valid","0.13","0.13","100","100","0.13","0.13","valid","0.13","0.13","100","100","0.13","0.13","valid","0.13","0.13","100","100","0.13","0.13","0","100","0","100%:0% ","0","1",null,"Row 81.Signage.LED Tube.[Enter total wattage below] [Existing (BPA=: Con=X)] | Row 82.Signage.Linear Strip.[Enter total wattage below] [Existing (BPA=: Con=X)] | Row 83.Signage.Other .[Enter total wattage below] [Existing (BPA=: Con=X)]","0","0",null,"0","0",null,"0","0",null,"Retail 5000 to 50000 sf","21","0","0",null,"0",null,"0",null,"1","27",null,"[Measure(6)(Existing Type=LED.Tube.Ballast Compatible (Type A)) Errors = (Deemed EXISTING fixture MML Measure NOT found - Wattage=78)]","0","1","Non-standard calculation rate named [Rate Schedule 4] used with valued of 0.09 $/KWh and 0 $/KWh (instead of BPA 0.06 $/KWh and 6 $/KWh","Rate Schedule 4","0.09","0","0","2020/03/04 13:45:59","5.1.53.V0"]
[null,null,null,null,null,"Total Evaluations: 1 "]
[null,null,null,null,null,"Last Evaluation PATH: \\\\bud.bpa.gov\\usr\\hhome\\d\\DLS9052\\PROJECTS\\EE-IS2\\Lighting Calculator 5\\Test Files\\From Mike\\    FILE: LC5.1.41.V00 Optimization Testl Data 01 LC_ECA-19-175.xls"]

{"sheet":"Previous_Validator_Results","index":58,"n_rows":41,"n_cols":112,"rows_kept":41,"cut":false,"hidden":false,"merged":[]}
[null,null,37,"Evaluations",null,null,"Column: 5",null,null,null,null,"Column: 10",null,null,null,null,"Column: 15",null,null,null,null,"Column: 20",null,null,null,null,"Column: 25",null,null,null,null,"Column: 30",null,null,null,null,"Column: 35",null,null,null,null,"Column: 40",null,null,null,null,"Column: 45",null,null,null,null,"Column: 50",null,null,null,null,"Column: 55",null,null,null,null,"Column: 60",null,null,null,null,"Column: 65",null,null,null,null,"Column: 70",null,null,null,null,"Column: 75",null,null,null,null,"Column: 80",null,null,null,null,"Column: 85",null,null,null,null,"Column: 90",null,null,null,null,"Column: 95",null,null,null,null,"Column: 100",null,null,null,null,"Column: 105"]
[null,null,null,"General Status ID","Version","General Test Results","File Name","Version","Status","Calculator Type","File Path","Utility Short Name","Invoice Number","Savings Comparison","Total Incentives Comparison","Row Count","Standard Measure Count","Contains Non-Standard","Non-Standard Measure Count","Non-Standard Measures","Contains Decommission","Decommission Measure Count","Decommission Measures","Savings Error","Incentives Error","BPA Busbar KW","Contractor Busbar KW","Busbar KW BPA Minus Contractor","BPA Incentive","Contractor Incentive","Incentive BPA Minus Contractor","Utility ID","Is New Construction","Version","Is Version 3","Is Version 4","Is Version Other","Payment Function ID","Payment Function Status","Utility Status ID","Utility Status","BPA Percent Proj Cost","Contractor Percent Proj Cost","BPA Dollars Per KWh Project","Contractor Dollars Per KWh Project","BPA Utility Min B Per C","Contractor Utility Min B Per C","Utility Status Error","Utility Status Description","Decommissioning Incentive Rate Error","Non-Standard Measure Incentive Rate Error","New Construction Incentive Rate Error","Decommissioning Incentive Rate Error Description","BPA Decommissioning BPA Incentive","Contractor Decommissioning BPA Incentive","BPA Decommissioning Percent Utility Pass-Through","Contractor Decommissioning Percent Utility Pass-Through","BPA Decommissioning Utility Incentive","Contractor Decommissioning Utility Incentive","Non-Standard Measure Incentive Rate Error Description","BPA Non-Standard Measure BPAIncentive","Contractor Non-Standard Measure BPA Incentive","BPA Non-Standard Measure Percent Utility Pass-Through","Contractor Non-Standard Measure Percent Utility Pass-Through","BPA Non-Standard Measure Utility Incentive","Contractor Non-Standard Measure Utility Incentive","New Construction Incentive Rate Error Description","BPA New Construction BPA Incentive","Contractor New Construction BPA Incentive","BPA New Construction Percent Utility Pass Through","Contractor New Construction Percent Utility Pass Through","BPA New Construction Utility Incentive","Contractor New Construction Utility Incentive","Max Dif BPA Incentive","Max util Percent Passthrough","Max Dif Utility Incentive","Error Incentives","MML Table Differences Critical Data Error","MML Table Differences","MML Table Difference Summary Values","MML Table Difference Values","Static_Tables Table Differences Critical Data Error","Static_Tables Table Differences","Static_Tables Table Difference Values","Static_Tables Controls Table Differences Critical Data Error","Static_Tables Controls Table Differences","Static_Tables Controls Table Difference Values","Static_Parameters Table Differences Critical Data Error","Static_Parameters Table Differences","Static_Parameters Table DifferencesValues","Primary Space Type","Primary Space Building Type Row Number Used","PrimarySpace Building Type Used Error Occured","Space Type Value Errors Occured","space Type Value Errors","Existing Measure Possible Error","Existing Mesure Number Possible Error","Proposed Measure Possible Error","Proposed Mesure Number Possible Error","Exsiting And Proposed Measure Error Data Used","Existing Measure Value Errors Summary","Proposed Measure Value Errors Summary","Existing and Proposed Measure Value Errors","Missing Selected Rate Added","Calculation Rate Non-Standard","Calculation Rate Non-Standard Warning","Calculation Rate Name Used","Calculation Rate $/KWh Used","Calculation Rate $/KW Used","Calculated Incentive","Time Comparison","Validator Version"]
[null,null,1,"0","4.0","Pass - Payment and kWh = BPA","LC_EEI_07232018_Solid Rock Ventures LLC  RETRO ERR  imp_utilityRates UtiltykWRate lower than default.xls","4.0","Pass CALCULATION - Payment and kWh = BPA:","Retrofit","\\\\BUD\\wrkgrp\\PEK\\Non-residential lighting\\lc oversight\\zzzzzz Test V4 Val\\Test Cases V4\\","Flathead Electric Coop.",null,"Busbar Match","Incentives Match","6","0","Standard","0","","Standard","0","","Pass","Pass","7696.66","7696.66","0.00","1064.00","1064.00","0.00","10179","0","4.0","0","1","0","1","BPA Default Incentive","0","Valid utility values","70","70","$0.50","$0.50","0.5","0.5","1","ERROR UTILITY Rate Differing Values: [Tab inp_UtilityRatesRow(C4) KwhRate value above BPA(0.0600): 0.0871 ]","0","0","0","valid","0.18","0.18","100","100","0.18","0.18","valid","0.18","0.18","100","100","0.18","0.18","valid","0.18","0.18","100","100","0.18","0.18","0","100","0","100%:0% ","0","0",null,null,"0","0",null,"0","0",null,"0","0",null,"Warehouse","29","0","0",null,"0",null,"0",null,"0",null,null,null,"0","1","Non-standard calculation rate named [SGS01] used with valued of 0.0597 $/KWh and 0 $/KWh (instead of BPA 0.06 $/KWh and 6 $/KWh","SGS01","0.0597","0","0","2018/09/19 15:15:42","4.25"]
[null,null,2,"0","4.0","Pass - Payment and kWh = BPA","LC_EEI_07232018_Solid Rock Ventures LLC   RETROFIT no errors.xls","4.0","Pass CALCULATION - Payment and kWh = BPA:","Retrofit","\\\\BUD\\wrkgrp\\PEK\\Non-residential lighting\\lc oversight\\zzzzzz Test V4 Val\\Test Cases V4\\","Flathead Electric Coop.",null,"Busbar Match","Incentives Match","6","0","Standard","0","","Standard","0","","Pass","Pass","7696.66","7696.66","0.00","1064.00","1064.00","0.00","10179","0","4.0","0","1","0","1","BPA Default Incentive","0","Valid utility values","70","70","$0.50","$0.50","0.5","0.5","1","ERROR UTILITY Rate Differing Values: [Tab inp_UtilityRatesRow(C4) KwhRate value above BPA(0.0600): 0.0871 ]","0","0","0","valid","0.18","0.18","100","100","0.18","0.18","valid","0.18","0.18","100","100","0.18","0.18","valid","0.18","0.18","100","100","0.18","0.18","0","100","0","100%:0% ","0","0",null,null,"0","0",null,"0","0",null,"0","0",null,"Warehouse","29","0","0",null,"0",null,"0",null,"0",null,null,null,"0","1","Non-standard calculation rate named [SGS01] used with valued of 0.0597 $/KWh and 0 $/KWh (instead of BPA 0.06 $/KWh and 6 $/KWh","SGS01","0.0597","0","0","2018/09/19 15:15:45","4.25"]
[null,null,3,"-3","-3","Version 3 - LC_3.0Dorian New Construction Demo 001 NOT PROCESSED Version 3 .xlsx.xls","LC_3.0Dorian New Construction Demo 001 NOT PROCESSED Version 3 .xlsx.xls","-3","NOT Processed V3",null,"\\\\bud\\wrkgrp\\PEK\\Non-residential lighting\\lc oversight\\zzzzzz Test V4 Val\\Test Cases V4\\09ES-11083-FY2010-0004\\",null,"09ES-11083-FY2010-0004",null,null,"-3",null,null,"-3","",null,"-3","",null,null,null,null,null,null,null,null,null,"0","-3",null,null,null,null,null,null,null,null,null,null,null,null,null,"1",null,null,null,null,"ERROR DECOMMISSIONING",null,null,null,null,null,null,"ERROR NON-STANDARD MEASURE",null,null,null,null,null,null,"ERROR NEW CONSTRUCTION",null,null,null,null,null,null,null,null,null,null,"0","0",null,null,"0","0",null,"0","0",null,"0","0",null,null,"0","0","0",null,"0",null,"0",null,"0",null,null,null,"0","0",null,null,"0","0","0","2018/09/19 15:15:48","4.25"]
[null,null,4,"-1","-1","CRITICAL DATA ERROR: Missing Data Cells","LC_BADDATA.xlsx","-1","Can't open file (this is an Excel file but cell values are missing)",null,"\\\\bud\\wrkgrp\\PEK\\Non-residential lighting\\lc oversight\\zzzzzz Test V4 Val\\Test Cases V4\\09ES-11083-FY2010-0004\\",null,"09ES-11083-FY2010-0004",null,null,"-1",null,null,"-1","",null,"-1","",null,null,null,null,null,null,null,null,null,"0","-1",null,null,null,null,null,null,null,null,null,null,null,null,null,"1",null,null,null,null,"ERROR DECOMMISSIONING",null,null,null,null,null,null,"ERROR NON-STANDARD MEASURE",null,null,null,null,null,null,"ERROR NEW CONSTRUCTION",null,null,null,null,null,null,null,null,null,null,"0","0",null,null,"0","0",null,"0","0",null,"0","0",null,null,"0","0","0",null,"0",null,"0",null,"0",null,null,null,"0","0",null,null,"0","0","0","2018/09/19 15:15:49","4.25"]
[null,null,5,"1","4.0","ALERT - Underpayment / kWh < BPA","LC_EEI_07232018_Solid Rock Ventures LLC   RETRO ERR  imp_incentives A3 Percent Project Cost Less.xls","4.0","ALERT CALCULATION - Underpayment / kWh < BPA:(Utility value rate error [col 38-47]) (differing under values busbar or incentive [col 24-29])","Retrofit","\\\\bud\\wrkgrp\\PEK\\Non-residential lighting\\lc oversight\\zzzzzz Test V4 Val\\Test Cases V4\\09ES-11083-FY2010-0004\\","Flathead Electric Coop.","09ES-11083-FY2010-0004","Busbar Match","ALERT-Incentives Comparison [Contractor: $776.40] $287.60","6","0","Standard","0","","Standard","0","","Pass","ALERT","7696.66","7696.66","0.00","1064.00","776.40","287.60","10179","0","4.0","0","1","0","1","BPA Default Incentive","1","ERROR of UTILITY VALUES","70","20","$0.50","$0.50","0.5","0.5","1","ERROR UTILITY Rate Differing Values: [Tab inp_UtilityRatesRow(C4) KwhRate value above BPA(0.0600): 0.0871 ][Percent Proj Cost]","0","0","0","valid","0.18","0.18","100","100","0.18","0.18","valid","0.18","0.18","100","100","0.18","0.18","valid","0.18","0.18","100","100","0.18","0.18","0","100","0","100%:0% ","0","0",null,null,"0","0",null,"0","0",null,"0","0",null,"Warehouse","29","0","0",null,"0",null,"0",null,"0",null,null,null,"0","1","Non-standard calculation rate named [SGS01] used with valued of 0.0597 $/KWh and 0 $/KWh (instead of BPA 0.06 $/KWh and 6 $/KWh","SGS01","0.0597","0","0","2018/09/19 15:15:53","4.25"]
[null,null,6,"0","4.0","Pass - Payment and kWh = BPA","LC_EEI_07232018_Solid Rock Ventures LLC   RETRO ERR  imp_incentives A3 Percent Project Cost More.xls","4.0","Pass CALCULATION - Payment and kWh = BPA:(Utility value rate error [col 38-47])","Retrofit","\\\\bud\\wrkgrp\\PEK\\Non-residential lighting\\lc oversight\\zzzzzz Test V4 Val\\Test Cases V4\\09ES-11083-FY2010-0004\\","Flathead Electric Coop.","09ES-11083-FY2010-0004","Busbar Match","Incentives Match","6","0","Standard","0","","Standard","0","","Pass","Pass","7696.66","7696.66","0.00","1064.00","1064.00","0.00","10179","0","4.0","0","1","0","1","BPA Default Incentive","1","ERROR of UTILITY VALUES","70","110","$0.50","$0.50","0.5","0.5","1","ERROR UTILITY Rate Differing Values: [Tab inp_UtilityRatesRow(C4) KwhRate value above BPA(0.0600): 0.0871 ][Percent Proj Cost]","0","0","0","valid","0.18","0.18","100","100","0.18","0.18","valid","0.18","0.18","100","100","0.18","0.18","valid","0.18","0.18","100","100","0.18","0.18","0","100","0","100%:0% ","0","0",null,null,"0","0",null,"0","0",null,"0","0",null,"Warehouse","29","0","0",null,"0",null,"0",null,"0",null,null,null,"0","1","Non-standard calculation rate named [SGS01] used with valued of 0.0597 $/KWh and 0 $/KWh (instead of BPA 0.06 $/KWh and 6 $/KWh","SGS01","0.0597","0","0","2018/09/19 15:15:58","4.25"]
[null,null,7,"0","4.0","Pass - Payment and kWh = BPA","LC_EEI_07232018_Solid Rock Ventures LLC   RETRO ERR  imp_incentives B3 KWH Less.xls","4.0","Pass CALCULATION - Payment and kWh = BPA:(Utility value rate error [col 38-47])","Retrofit","\\\\bud\\wrkgrp\\PEK\\Non-residential lighting\\lc oversight\\zzzzzz Test V4 Val\\Test Cases V4\\09ES-11083-FY2010-0004\\","Flathead Electric Coop.","09ES-11083-FY2010-0004","Busbar Match","Incentives Match","6","0","Standard","0","","Standard","0","","Pass","Pass","7696.66","7696.66","0.00","1064.00","1064.00","0.00","10179","0","4.0","0","1","0","1","BPA Default Incentive","1","ERROR of UTILITY VALUES","70","70","$0.50","$0.20","0.5","0.5","1","ERROR UTILITY Rate Differing Values: [Tab inp_UtilityRatesRow(C4) KwhRate value above BPA(0.0600): 0.0871 ][Dollars Per KWh Project]","0","0","0","valid","0.18","0.18","100","100","0.18","0.18","valid","0.18","0.18","100","100","0.18","0.18","valid","0.18","0.18","100","100","0.18","0.18","0","100","0","100%:0% ","0","0",null,null,"0","0",null,"0","0",null,"0","0",null,"Warehouse","29","0","0",null,"0",null,"0",null,"0",null,null,null,"0","1","Non-standard calculation rate named [SGS01] used with valued of 0.0597 $/KWh and 0 $/KWh (instead of BPA 0.06 $/KWh and 6 $/KWh","SGS01","0.0597","0","0","2018/09/19 15:16:02","4.25"]
[null,null,8,"0","4.0","Pass - Payment and kWh = BPA","LC_EEI_07232018_Solid Rock Ventures LLC   RETRO ERR  imp_incentives B3 KWH More.xls","4.0","Pass CALCULATION - Payment and kWh = BPA:(Utility value rate error [col 38-47])","Retrofit","\\\\bud\\wrkgrp\\PEK\\Non-residential lighting\\lc oversight\\zzzzzz Test V4 Val\\Test Cases V4\\09ES-11083-FY2010-0004\\","Flathead Electric Coop.","09ES-11083-FY2010-0004","Busbar Match","Incentives Match","6","0","Standard","0","","Standard","0","","Pass","Pass","7696.66","7696.66","0.00","1064.00","1064.00","0.00","10179","0","4.0","0","1","0","1","BPA Default Incentive","1","ERROR of UTILITY VALUES","70","70","$0.50","$0.80","0.5","0.5","1","ERROR UTILITY Rate Differing Values: [Tab inp_UtilityRatesRow(C4) KwhRate value above BPA(0.0600): 0.0871 ][Dollars Per KWh Project]","0","0","0","valid","0.18","0.18","100","100","0.18","0.18","valid","0.18","0.18","100","100","0.18","0.18","valid","0.18","0.18","100","100","0.18","0.18","0","100","0","100%:0% ","0","0",null,null,"0","0",null,"0","0",null,"0","0",null,"Warehouse","29","0","0",null,"0",null,"0",null,"0",null,null,null,"0","1","Non-standard calculation rate named [SGS01] used with valued of 0.0597 $/KWh and 0 $/KWh (instead of BPA 0.06 $/KWh and 6 $/KWh","SGS01","0.0597","0","0","2018/09/19 15:16:06","4.25"]
[null,null,9,"0","4.0","Pass - Payment and kWh = BPA","LC_EEI_07232018_Solid Rock Ventures LLC   RETRO ERR  imp_incentives C3 Utility min BC.xls","4.0","Pass CALCULATION - Payment and kWh = BPA:(Utility value rate error [col 38-47])","Retrofit","\\\\bud\\wrkgrp\\PEK\\Non-residential lighting\\lc oversight\\zzzzzz Test V4 Val\\Test Cases V4\\09ES-11083-FY2010-0004\\","Flathead Electric Coop.","09ES-11083-FY2010-0004","Busbar Match","Incentives Match","6","0","Standard","0","","Standard","0","","Pass","Pass","7696.66","7696.66","0.00","1064.00","1064.00","0.00","10179","0","4.0","0","1","0","1","BPA Default Incentive","1","ERROR of UTILITY VALUES","70","70","$0.50","$0.50","0.5","0.55","1","ERROR UTILITY Rate Differing Values: [Tab inp_UtilityRatesRow(C4) KwhRate value above BPA(0.0600): 0.0871 ][Utility Min B Per C]","0","0","0","valid","0.18","0.18","100","100","0.18","0.18","valid","0.18","0.18","100","100","0.18","0.18","valid","0.18","0.18","100","100","0.18","0.18","0","100","0","100%:0% ","0","0",null,null,"0","0",null,"0","0",null,"0","0",null,"Warehouse","29","0","0",null,"0",null,"0",null,"0",null,null,null,"0","1","Non-standard calculation rate named [SGS01] used with valued of 0.0597 $/KWh and 0 $/KWh (instead of BPA 0.06 $/KWh and 6 $/KWh","SGS01","0.0597","0","0","2018/09/19 15:16:10","4.25"]
[null,null,10,"0","4.0","Pass - Payment and kWh = BPA","LC_EEI_07232018_Solid Rock Ventures LLC   RETRO ERR  imp_incentives Decomm BPA Incentive.xls","4.0","Pass CALCULATION - Payment and kWh = BPA:","Retrofit","\\\\bud\\wrkgrp\\PEK\\Non-residential lighting\\lc oversight\\zzzzzz Test V4 Val\\Test Cases V4\\09ES-11083-FY2010-0004\\","Flathead Electric Coop.","09ES-11083-FY2010-0004","Busbar Match","Incentives Match","6","0","Standard","0","","Standard","0","","Pass","Pass","7696.66","7696.66","0.00","1064.00","1064.00","0.00","10179","0","4.0","0","1","0","1","BPA Default Incentive","0","Valid utility values","70","70","$0.50","$0.50","0.5","0.5","1","ERROR UTILITY Rate Differing Values: [Tab inp_UtilityRatesRow(C4) KwhRate value above BPA(0.0600): 0.0871 ][Decommissioning Utility Incentive]","1","0","0","ERROR DECOMMISSIONING","0.18","0.2","100","100","0.18","0.18","valid","0.18","0.18","100","100","0.18","0.18","valid","0.18","0.18","100","100","0.18","0.18","0","100","0","100%:0% ","0","0",null,null,"0","0",null,"0","0",null,"0","0",null,"Warehouse","29","0","0",null,"0",null,"0",null,"0",null,null,null,"0","1","Non-standard calculation rate named [SGS01] used with valued of 0.0597 $/KWh and 0 $/KWh (instead of BPA 0.06 $/KWh and 6 $/KWh","SGS01","0.0597","0","0","2018/09/19 15:16:14","4.25"]
[null,null,11,"0","4.0","Pass - Payment and kWh = BPA","LC_EEI_07232018_Solid Rock Ventures LLC   RETRO ERR  imp_incentives Decomm BPA Util Incentive.xls","4.0","Pass CALCULATION - Payment and kWh = BPA:","Retrofit","\\\\bud\\wrkgrp\\PEK\\Non-residential lighting\\lc oversight\\zzzzzz Test V4 Val\\Test Cases V4\\09ES-11083-FY2010-0004\\","Flathead Electric Coop.","09ES-11083-FY2010-0004","Busbar Match","Incentives Match","6","0","Standard","0","","Standard","0","","Pass","Pass","7696.66","7696.66","0.00","1064.00","1064.00","0.00","10179","0","4.0","0","1","0","1","BPA Default Incentive","0","Valid utility values","70","70","$0.50","$0.50","0.5","0.5","1","ERROR UTILITY Rate Differing Values: [Tab inp_UtilityRatesRow(C4) KwhRate value above BPA(0.0600): 0.0871 ][Decommissioning Utility Incentive]","1","0","0","ERROR DECOMMISSIONING","0.18","0.185","100","100","0.18","0.18","valid","0.18","0.18","100","100","0.18","0.18","valid","0.18","0.18","100","100","0.18","0.18","0","100","0","100%:0% ","0","0",null,null,"0","0",null,"0","0",null,"0","0",null,"Warehouse","29","0","0",null,"0",null,"0",null,"0",null,null,null,"0","1","Non-standard calculation rate named [SGS01] used with valued of 0.0597 $/KWh and 0 $/KWh (instead of BPA 0.06 $/KWh and 6 $/KWh","SGS01","0.0597","0","0","2018/09/19 15:16:18","4.25"]
[null,null,12,"4","4.0","FAIL - Unauthorized modification  (contractor UTILITY PASS-THROUGH values found as high as 110% )(column shown are possible locations)","LC_EEI_07232018_Solid Rock Ventures LLC   RETRO ERR  imp_incentives Decomm BPA Util Passthrough A.xls","4.0","FAIL - Unauthorized modification - Pass CALCULATION - Payment and kWh = BPA: (contractor UTILITY PASS-THROUGH values found as high as 110% )","Retrofit","\\\\bud\\wrkgrp\\PEK\\Non-residential lighting\\lc oversight\\zzzzzz Test V4 Val\\Test Cases V4\\09ES-11083-FY2010-0004\\","Flathead Electric Coop.","09ES-11083-FY2010-0004","Busbar Match","Incentives Match","6","0","Standard","0","","Standard","0","","Pass","Pass","7696.66","7696.66","0.00","1064.00","1064.00","0.00","10179","0","4.0","0","1","0","1","BPA Default Incentive","0","Valid utility values","70","70","$0.50","$0.50","0.5","0.5","1","ERROR UTILITY Rate Differing Values: [Tab inp_UtilityRatesRow(C4) KwhRate value above BPA(0.0600): 0.0871 ][Decommissioning Utility Incentive]","1","0","0","ERROR DECOMMISSIONING","0.18","0.18","100","110","0.18","0.18","valid","0.18","0.18","100","100","0.18","0.18","valid","0.18","0.18","100","100","0.18","0.18","0","110","0","100%:110%  [K:0:110%:110%:0] ","0","0",null,null,"0","0",null,"0","0",null,"0","0",null,"Warehouse","29","0","0",null,"0",null,"0",null,"0",null,null,null,"0","1","Non-standard calculation rate named [SGS01] used with valued of 0.0597 $/KWh and 0 $/KWh (instead of BPA 0.06 $/KWh and 6 $/KWh","SGS01","0.0597","0","0","2018/09/19 15:16:22","4.25"]
[null,null,13,"0","4.0","Pass - Payment and kWh = BPA (Util.Passthrough: 90%)","LC_EEI_07232018_Solid Rock Ventures LLC   RETRO ERR  imp_incentives Decomm BPA Util Passthrough B.xls","4.0","Pass CALCULATION - Payment and kWh = BPA:","Retrofit","\\\\bud\\wrkgrp\\PEK\\Non-residential lighting\\lc oversight\\zzzzzz Test V4 Val\\Test Cases V4\\09ES-11083-FY2010-0004\\","Flathead Electric Coop.","09ES-11083-FY2010-0004","Busbar Match","Incentives Match","6","0","Standard","0","","Standard","0","","Pass","Pass","7696.66","7696.66","0.00","1064.00","1064.00","0.00","10179","0","4.0","0","1","0","1","BPA Default Incentive","0","Valid utility values","70","70","$0.50","$0.50","0.5","0.5","1","ERROR UTILITY Rate Differing Values: [Tab inp_UtilityRatesRow(C4) KwhRate value above BPA(0.0600): 0.0871 ][Decommissioning Utility Incentive]","1","0","0","ERROR DECOMMISSIONING","0.18","0.18","100","90","0.18","0.18","valid","0.18","0.18","100","100","0.18","0.18","valid","0.18","0.18","100","100","0.18","0.18","0","90","0","90%:90%  [K:0:90%:90%:0] ","0","0",null,null,"0","0",null,"0","0",null,"0","0",null,"Warehouse","29","0","0",null,"0",null,"0",null,"0",null,null,null,"0","1","Non-standard calculation rate named [SGS01] used with valued of 0.0597 $/KWh and 0 $/KWh (instead of BPA 0.06 $/KWh and 6 $/KWh","SGS01","0.0597","0","0","2018/09/19 15:16:26","4.25"]
[null,null,14,"4","4.0","FAIL - Unauthorized modification  (contractor UTILITY PASS-THROUGH values found as high as 36 incentive)(column shown are possible locations)","LC_EEI_07232018_Solid Rock Ventures LLC   RETRO ERR  imp_incentives Meas C1-50% ut Incent St.xls","4.0","FAIL - Unauthorized modification - Pass CALCULATION - Payment and kWh = BPA: (contractor UTILITY PASS-THROUGH values found as high as 36 incentive)","Retrofit","\\\\bud\\wrkgrp\\PEK\\Non-residential lighting\\lc oversight\\zzzzzz Test V4 Val\\Test Cases V4\\09ES-11083-FY2010-0004\\","Flathead Electric Coop.","09ES-11083-FY2010-0004","Busbar Match","Incentives Match","6","0","Standard","0","","Standard","0","","Pass","Pass","7696.66","7696.66","0.00","1064.00","1064.00","0.00","10179","0","4.0","0","1","0","1","BPA Default Incentive","0","Valid utility values","70","70","$0.50","$0.50","0.5","0.5","1","ERROR UTILITY Rate Differing Values: [Tab inp_UtilityRatesRow(C4) KwhRate value above BPA(0.0600): 0.0871 ]","0","0","0","valid","0.18","0.18","100","100","0.18","0.18","valid","0.18","0.18","100","100","0.18","0.18","valid","0.18","0.18","100","100","0.18","0.18","0","100","-6","100%:100%  [C:0:100%:100%:-6] ","0","0",null,null,"0","0",null,"0","0",null,"0","0",null,"Warehouse","29","0","0",null,"0",null,"0",null,"0",null,null,null,"0","1","Non-standard calculation rate named [SGS01] used with valued of 0.0597 $/KWh and 0 $/KWh (instead of BPA 0.06 $/KWh and 6 $/KWh","SGS01","0.0597","0","0","2018/09/19 15:16:30","4.25"]
[null,null,15,"4","4.0","FAIL - Unauthorized modification  (contractor UTILITY PASS-THROUGH values found as high as 101 incentive)(column shown are possible locations)","LC_EEI_07232018_Solid Rock Ventures LLC   RETRO ERR  imp_incentives Meas C2-70% ut Incent BPA Inc St.xls","4.0","FAIL - Unauthorized modification - Pass CALCULATION - Payment and kWh = BPA: (contractor UTILITY PASS-THROUGH values found as high as 101 incentive)","Retrofit","\\\\bud\\wrkgrp\\PEK\\Non-residential lighting\\lc oversight\\zzzzzz Test V4 Val\\Test Cases V4\\09ES-11083-FY2010-0004\\","Flathead Electric Coop.","09ES-11083-FY2010-0004","Busbar Match","Incentives Match","6","0","Standard","0","","Standard","0","","Pass","Pass","7696.66","7696.66","0.00","1064.00","1064.00","0.00","10179","0","4.0","0","1","0","1","BPA Default Incentive","0","Valid utility values","70","70","$0.50","$0.50","0.5","0.5","1","ERROR UTILITY Rate Differing Values: [Tab inp_UtilityRatesRow(C4) KwhRate value above BPA(0.0600): 0.0871 ]","0","0","0","valid","0.18","0.18","100","100","0.18","0.18","valid","0.18","0.18","100","100","0.18","0.18","valid","0.18","0.18","100","100","0.18","0.18","-2","100","-1","100%:100%  [C:-2:100%:100%:-1] ","0","0",null,null,"0","0",null,"0","0",null,"0","0",null,"Warehouse","29","0","0",null,"0",null,"0",null,"0",null,null,null,"0","1","Non-standard calculation rate named [SGS01] used with valued of 0.0597 $/KWh and 0 $/KWh (instead of BPA 0.06 $/KWh and 6 $/KWh","SGS01","0.0597","0","0","2018/09/19 15:16:34","4.25"]
[null,null,16,"0","4.0","Pass - Payment and kWh = BPA","LC_EEI_07232018_Solid Rock Ventures LLC   RETRO ERR  imp_incentives New-Construction BPA Incentive.xls","4.0","Pass CALCULATION - Payment and kWh = BPA:","Retrofit","\\\\bud\\wrkgrp\\PEK\\Non-residential lighting\\lc oversight\\zzzzzz Test V4 Val\\Test Cases V4\\09ES-11083-FY2010-0004\\","Flathead Electric Coop.","09ES-11083-FY2010-0004","Busbar Match","Incentives Match","6","0","Standard","0","","Standard","0","","Pass","Pass","7696.66","7696.66","0.00","1064.00","1064.00","0.00","10179","0","4.0","0","1","0","1","BPA Default Incentive","0","Valid utility values","70","70","$0.50","$0.50","0.5","0.5","1","ERROR UTILITY Rate Differing Values: [Tab inp_UtilityRatesRow(C4) KwhRate value above BPA(0.0600): 0.0871 ][New Construction Utility Incentive]","0","0","1","valid","0.18","0.18","100","100","0.18","0.18","valid","0.18","0.18","100","100","0.18","0.18","ERROR NEW CONSTRUCTION","0.18","0.19","100","100","0.18","0.18","0","100","0","100%:0% ","0","0",null,null,"0","0",null,"0","0",null,"0","0",null,"Warehouse","29","0","0",null,"0",null,"0",null,"0",null,null,null,"0","1","Non-standard calculation rate named [SGS01] used with valued of 0.0597 $/KWh and 0 $/KWh (instead of BPA 0.06 $/KWh and 6 $/KWh","SGS01","0.0597","0","0","2018/09/19 15:16:38","4.25"]
[null,null,17,"0","4.0","Pass - Payment and kWh = BPA","LC_EEI_07232018_Solid Rock Ventures LLC   RETRO ERR  imp_incentives New-Construction BPA Utility Incentive.xls","4.0","Pass CALCULATION - Payment and kWh = BPA:","Retrofit","\\\\bud\\wrkgrp\\PEK\\Non-residential lighting\\lc oversight\\zzzzzz Test V4 Val\\Test Cases V4\\09ES-11083-FY2010-0004\\","Flathead Electric Coop.","09ES-11083-FY2010-0004","Busbar Match","Incentives Match","6","0","Standard","0","","Standard","0","","Pass","Pass","7696.66","7696.66","0.00","1064.00","1064.00","0.00","10179","0","4.0","0","1","0","1","BPA Default Incentive","0","Valid utility values","70","70","$0.50","$0.50","0.5","0.5","1","ERROR UTILITY Rate Differing Values: [Tab inp_UtilityRatesRow(C4) KwhRate value above BPA(0.0600): 0.0871 ][New Construction Utility Incentive]","0","0","1","valid","0.18","0.18","100","100","0.18","0.18","valid","0.18","0.18","100","100","0.18","0.18","ERROR NEW CONSTRUCTION","0.18","0.18","100","100","0.18","0.17","0","100","0","100%:0% ","0","0",null,null,"0","0",null,"0","0",null,"0","0",null,"Warehouse","29","0","0",null,"0",null,"0",null,"0",null,null,null,"0","1","Non-standard calculation rate named [SGS01] used with valued of 0.0597 $/KWh and 0 $/KWh (instead of BPA 0.06 $/KWh and 6 $/KWh","SGS01","0.0597","0","0","2018/09/19 15:16:42","4.25"]
[null,null,18,"-1","-1","CRITICAL DATA ERROR: Missing Data Cells","lc_PTR_1457_Betty Lou's Compressed Air NOT PROCESSED Very Error File.xls","-1","Can't open file (this is an Excel file but cell values are missing)",null,"\\\\bud\\wrkgrp\\PEK\\Non-residential lighting\\lc oversight\\zzzzzz Test V4 Val\\Test Cases V4\\09ES-11083-FY2010-0004\\",null,"09ES-11083-FY2010-0004",null,null,"-1",null,null,"-1","",null,"-1","",null,null,null,null,null,null,null,null,null,"0","-1",null,null,null,null,null,null,null,null,null,null,null,null,null,"1",null,null,null,null,"ERROR DECOMMISSIONING",null,null,null,null,null,null,"ERROR NON-STANDARD MEASURE",null,null,null,null,null,null,"ERROR NEW CONSTRUCTION",null,null,null,null,null,null,null,null,null,null,"0","0",null,null,"0","0",null,"0","0",null,"0","0",null,null,"0","0","0",null,"0",null,"0",null,"0",null,null,null,"0","0",null,null,"0","0","0","2018/09/19 15:16:42","4.25"]
[null,null,19,"-3","-3","Version 3 - LC_Tesoro_09112014 Modified.xls","LC_Tesoro_09112014 Modified.xls","-3","NOT Processed V3",null,"\\\\bud\\wrkgrp\\PEK\\Non-residential lighting\\lc oversight\\zzzzzz Test V4 Val\\Test Cases V4\\09ES-11083-FY2010-0004\\",null,"09ES-11083-FY2010-0004",null,null,"-3",null,null,"-3","",null,"-3","",null,null,null,null,null,null,null,null,null,"0","-3",null,null,null,null,null,null,null,null,null,null,null,null,null,"1",null,null,null,null,"ERROR DECOMMISSIONING",null,null,null,null,null,null,"ERROR NON-STANDARD MEASURE",null,null,null,null,null,null,"ERROR NEW CONSTRUCTION",null,null,null,null,null,null,null,null,null,null,"0","0",null,null,"0","0",null,"0","0",null,"0","0",null,null,"0","0","0",null,"0",null,"0",null,"0",null,null,null,"0","0",null,null,"0","0","0","2018/09/19 15:16:45","4.25"]
[null,null,20,"4","4.0","FAIL - Unauthorized modification  (contractor UTILITY PASS-THROUGH values found as high as 110% )(column shown are possible locations)","LC_EEI_07232018_Solid Rock Ventures LLC   RETRO ERR  imp_incentives New-Construction BPA Utility Passthrough.xls","4.0","FAIL - Unauthorized modification - Pass CALCULATION - Payment and kWh = BPA: (contractor UTILITY PASS-THROUGH values found as high as 110% )","Retrofit","\\\\bud\\wrkgrp\\PEK\\Non-residential lighting\\lc oversight\\zzzzzz Test V4 Val\\Test Cases V4\\09ES-11083-FY2017-0010\\","Flathead Electric Coop.","09ES-11083-FY2017-0010","Busbar Match","Incentives Match","6","0","Standard","0","","Standard","0","","Pass","Pass","7696.66","7696.66","0.00","1064.00","1064.00","0.00","10179","0","4.0","0","1","0","1","BPA Default Incentive","0","Valid utility values","70","70","$0.50","$0.50","0.5","0.5","1","ERROR UTILITY Rate Differing Values: [Tab inp_UtilityRatesRow(C4) KwhRate value above BPA(0.0600): 0.0871 ][New Construction Utility Incentive]","0","0","1","valid","0.18","0.18","100","100","0.18","0.18","valid","0.18","0.18","100","100","0.18","0.18","ERROR NEW CONSTRUCTION","0.18","0.18","100","110","0.18","0.18","0","110","0","100%:110%  [N:0:110%:110%:0] ","0","0",null,null,"0","0",null,"0","0",null,"0","0",null,"Warehouse","29","0","0",null,"0",null,"0",null,"0",null,null,null,"0","1","Non-standard calculation rate named [SGS01] used with valued of 0.0597 $/KWh and 0 $/KWh (instead of BPA 0.06 $/KWh and 6 $/KWh","SGS01","0.0597","0","0","2018/09/19 15:16:50","4.25"]
[null,null,21,"0","4.0","Pass - Payment and kWh = BPA","LC_EEI_07232018_Solid Rock Ventures LLC   RETRO ERR  imp_incentives Non-Standard BPA Incentive.xls","4.0","Pass CALCULATION - Payment and kWh = BPA:","Retrofit","\\\\bud\\wrkgrp\\PEK\\Non-residential lighting\\lc oversight\\zzzzzz Test V4 Val\\Test Cases V4\\09ES-11083-FY2017-0010\\","Flathead Electric Coop.","09ES-11083-FY2017-0010","Busbar Match","Incentives Match","6","0","Standard","0","","Standard","0","","Pass","Pass","7696.66","7696.66","0.00","1064.00","1064.00","0.00","10179","0","4.0","0","1","0","1","BPA Default Incentive","0","Valid utility values","70","70","$0.50","$0.50","0.5","0.5","1","ERROR UTILITY Rate Differing Values: [Tab inp_UtilityRatesRow(C4) KwhRate value above BPA(0.0600): 0.0871 ][Non-Standard Measure Utility Incentive]","0","1","0","valid","0.18","0.18","100","100","0.18","0.18","ERROR NON-STANDARD MEASURE","0.18","0.16","100","100","0.18","0.18","valid","0.18","0.18","100","100","0.18","0.18","0","100","0","100%:0% ","0","0",null,null,"0","0",null,"0","0",null,"0","0",null,"Warehouse","29","0","0",null,"0",null,"0",null,"0",null,null,null,"0","1","Non-standard calculation rate named [SGS01] used with valued of 0.0597 $/KWh and 0 $/KWh (instead of BPA 0.06 $/KWh and 6 $/KWh","SGS01","0.0597","0","0","2018/09/19 15:16:54","4.25"]
[null,null,22,"0","4.0","Pass - Payment and kWh = BPA","LC_EEI_07232018_Solid Rock Ventures LLC   RETRO ERR  imp_incentives Non-Standard BPA Utility Incentive.xls","4.0","Pass CALCULATION - Payment and kWh = BPA:","Retrofit","\\\\bud\\wrkgrp\\PEK\\Non-residential lighting\\lc oversight\\zzzzzz Test V4 Val\\Test Cases V4\\09ES-11083-FY2017-0010\\","Flathead Electric Coop.","09ES-11083-FY2017-0010","Busbar Match","Incentives Match","6","0","Standard","0","","Standard","0","","Pass","Pass","7696.66","7696.66","0.00","1064.00","1064.00","0.00","10179","0","4.0","0","1","0","1","BPA Default Incentive","0","Valid utility values","70","70","$0.50","$0.50","0.5","0.5","1","ERROR UTILITY Rate Differing Values: [Tab inp_UtilityRatesRow(C4) KwhRate value above BPA(0.0600): 0.0871 ][Non-Standard Measure Utility Incentive]","0","1","0","valid","0.18","0.18","100","100","0.18","0.18","ERROR NON-STANDARD MEASURE","0.18","0.21","100","100","0.18","0.18","valid","0.18","0.18","100","100","0.18","0.18","0","100","0","100%:0% ","0","0",null,null,"0","0",null,"0","0",null,"0","0",null,"Warehouse","29","0","0",null,"0",null,"0",null,"0",null,null,null,"0","1","Non-standard calculation rate named [SGS01] used with valued of 0.0597 $/KWh and 0 $/KWh (instead of BPA 0.06 $/KWh and 6 $/KWh","SGS01","0.0597","0","0","2018/09/19 15:16:58","4.25"]
[null,null,23,"4","4.0","FAIL - Unauthorized modification  (contractor UTILITY PASS-THROUGH values found as high as 107% )(column shown are possible locations)","LC_EEI_07232018_Solid Rock Ventures LLC   RETRO ERR  imp_incentives Non-Standard BPA Utility Passthrough.xls","4.0","FAIL - Unauthorized modification - Pass CALCULATION - Payment and kWh = BPA: (contractor UTILITY PASS-THROUGH values found as high as 107% )","Retrofit","\\\\bud\\wrkgrp\\PEK\\Non-residential lighting\\lc oversight\\zzzzzz Test V4 Val\\Test Cases V4\\09ES-11083-FY2017-0010\\","Flathead Electric Coop.","09ES-11083-FY2017-0010","Busbar Match","Incentives Match","6","0","Standard","0","","Standard","0","","Pass","Pass","7696.66","7696.66","0.00","1064.00","1064.00","0.00","10179","0","4.0","0","1","0","1","BPA Default Incentive","0","Valid utility values","70","70","$0.50","$0.50","0.5","0.5","1","ERROR UTILITY Rate Differing Values: [Tab inp_UtilityRatesRow(C4) KwhRate value above BPA(0.0600): 0.0871 ][Non-Standard Measure Utility Incentive]","0","1","0","valid","0.18","0.18","100","100","0.18","0.18","ERROR NON-STANDARD MEASURE","0.18","0.18","100","107","0.18","0.18","valid","0.18","0.18","100","100","0.18","0.18","0","107","0","100%:107%  [L:0:107%:107%:0] ","0","0",null,null,"0","0",null,"0","0",null,"0","0",null,"Warehouse","29","0","0",null,"0",null,"0",null,"0",null,null,null,"0","1","Non-standard calculation rate named [SGS01] used with valued of 0.0597 $/KWh and 0 $/KWh (instead of BPA 0.06 $/KWh and 6 $/KWh","SGS01","0.0597","0","0","2018/09/19 15:17:02","4.25"]
[null,null,24,"4","4.0","FAIL - Unauthorized modification (MML table value differences found [col 76-79 94-102])(column shown are possible locations)","LC_EEI_07232018_Solid Rock Ventures LLC   RETRO ERR  imp_MML Lamp Fixture for T12 6ft HO.xls","4.0","FAIL - Unauthorized modification - Pass CALCULATION - Payment and kWh = BPA:(MML table value differences found [col 76-79 94-102])","Retrofit","\\\\bud\\wrkgrp\\PEK\\Non-residential lighting\\lc oversight\\zzzzzz Test V4 Val\\Test Cases V4\\09ES-11083-FY2017-0010\\","Flathead Electric Coop.","09ES-11083-FY2017-0010","Busbar Match","Incentives Match","6","0","Standard","0","","Standard","0","","Pass","Pass","7696.66","7696.66","0.00","1064.00","1064.00","0.00","10179","0","4.0","0","1","0","1","BPA Default Incentive","0","Valid utility values","70","70","$0.50","$0.50","0.5","0.5","1","ERROR UTILITY Rate Differing Values: [Tab inp_UtilityRatesRow(C4) KwhRate value above BPA(0.0600): 0.0871 ]","0","0","0","valid","0.18","0.18","100","100","0.18","0.18","valid","0.18","0.18","100","100","0.18","0.18","valid","0.18","0.18","100","100","0.18","0.18","0","100","0","100%:0% ","0","1","Row 51.T12.6 ft.HO Lamp/ Mag Ballast [Wattage(Missing= BPA: 55 Con: 85)][Lamp Number(Missing= BPA: 5)]","Row 51.T12.6 ft.HO Lamp/ Mag Ballast [Wattage(Missing= BPA: 55 Con: 85) (BPA=85: Con=55)][Lamp Number(Missing= BPA: 5) (BPA=1\\2\\3\\4: Con=1\\2\\3\\4\\5)]","0","0",null,"0","0",null,"0","0",null,"Warehouse","29","0","0",null,"0",null,"0",null,"0",null,null,null,"0","1","Non-standard calculation rate named [SGS01] used with valued of 0.0597 $/KWh and 0 $/KWh (instead of BPA 0.06 $/KWh and 6 $/KWh","SGS01","0.0597","0","0","2018/09/19 15:17:06","4.25"]
[null,null,25,"4","4.0","FAIL - Unauthorized modification (MML table value differences found [col 76-79 94-102])(column shown are possible locations)","LC_EEI_07232018_Solid Rock Ventures LLC   RETRO ERR  imp_MML Lamp Fixture Wattage for LED Tube.xls","4.0","FAIL - Unauthorized modification - Pass CALCULATION - Payment and kWh = BPA:(MML table value differences found [col 76-79 94-102])","Retrofit","\\\\bud\\wrkgrp\\PEK\\Non-residential lighting\\lc oversight\\zzzzzz Test V4 Val\\Test Cases V4\\09ES-11083-FY2017-0010\\","Flathead Electric Coop.","09ES-11083-FY2017-0010","Busbar Match","Incentives Match","6","0","Standard","0","","Standard","0","","Pass","Pass","7696.66","7696.66","0.00","1064.00","1064.00","0.00","10179","0","4.0","0","1","0","1","BPA Default Incentive","0","Valid utility values","70","70","$0.50","$0.50","0.5","0.5","1","ERROR UTILITY Rate Differing Values: [Tab inp_UtilityRatesRow(C4) KwhRate value above BPA(0.0600): 0.0871 ]","0","0","0","valid","0.18","0.18","100","100","0.18","0.18","valid","0.18","0.18","100","100","0.18","0.18","valid","0.18","0.18","100","100","0.18","0.18","0","100","0","100%:0% ","0","1","Row 28.LED.Gen. Indoor / Outdoor.Standard\\w/Networked Controls [Wattage(Missing= BPA: 23 Con: 24)]","Row 28.LED.Gen. Indoor / Outdoor.Standard\\w/Networked Controls [Wattage(Missing= BPA: 23 Con: 24) (BPA=10\\12\\14\\16\\18\\20\\22\\24\\26\\28\\30\\32\\34\\36\\38\\40\\42\\44\\46\\48\\50\\52\\54\\56\\58\\60\\62\\64\\66\\68\\70\\72\\74\\76\\78\\80\\85\\90\\95\\100\\105\\110\\115\\120: Con=10\\12\\14\\16\\18\\20\\22\\23\\26\\28\\30\\32\\34\\36\\38\\40\\42\\44\\46\\48\\50\\52\\54\\56\\58\\60\\62\\64\\66\\68\\70\\72\\74\\76\\78\\80\\85\\90\\95\\100\\105\\110\\115\\120)]","0","0",null,"0","0",null,"0","0",null,"Warehouse","29","0","0",null,"0",null,"0",null,"0",null,null,null,"0","1","Non-standard calculation rate named [SGS01] used with valued of 0.0597 $/KWh and 0 $/KWh (instead of BPA 0.06 $/KWh and 6 $/KWh","SGS01","0.0597","0","0","2018/09/19 15:17:10","4.25"]
[null,null,26,"0","4.0","Pass - Payment and kWh = BPA","LC_EEI_07232018_Solid Rock Ventures LLC   RETRO ERR  imp_utilityRates UtiltykWhRate  UtiltykWRate higher than default.xls","4.0","Pass CALCULATION - Payment and kWh = BPA:","Retrofit","\\\\bud\\wrkgrp\\PEK\\Non-residential lighting\\lc oversight\\zzzzzz Test V4 Val\\Test Cases V4\\09ES-11083-FY2017-0010\\","Flathead Electric Coop.","09ES-11083-FY2017-0010","Busbar Match","Incentives Match","6","0","Standard","0","","Standard","0","","Pass","Pass","7696.66","7696.66","0.00","1064.00","1064.00","0.00","10179","0","4.0","0","1","0","1","BPA Default Incentive","0","Valid utility values","70","70","$0.50","$0.50","0.5","0.5","1","ERROR UTILITY Rate Differing Values: [Tab inp_UtilityRatesRow(C4) KwhRate value above BPA(0.0600): 0.1871 ][Tab inp_UtilityRatesRow(D4) KwRate value above BPA(6.00): 6.23 ][Tab inp_UtilityRatesRow(C5) KwhRate value above BPA(0.0600): 0.1597 ][Tab inp_UtilityRatesRow(C6) KwhRate value above BPA(0.0600): 0.1511 ][Tab inp_UtilityRatesRow(C7) KwhRate value above BPA(0.0600): 0.1432 ][Tab inp_UtilityRatesRow(C8) KwhRate value above BPA(0.0600): 0.1520 ]","0","0","0","valid","0.18","0.18","100","100","0.18","0.18","valid","0.18","0.18","100","100","0.18","0.18","valid","0.18","0.18","100","100","0.18","0.18","0","100","0","100%:0% ","0","0",null,null,"0","0",null,"0","0",null,"0","0",null,"Warehouse","29","0","0",null,"0",null,"0",null,"0",null,null,null,"0","1","Non-standard calculation rate named [SGS01] used with valued of 0.0597 $/KWh and 0 $/KWh (instead of BPA 0.06 $/KWh and 6 $/KWh","SGS01","0.0597","0","0","2018/09/19 15:17:14","4.25"]
[null,null,27,"5","4.0","FAIL - Deemed value measure error [col 98-101]- Pass - Payment and kWh = BPA","LC_Schauermann Law Office - CLIP rebate.xls","4.0","FAIL - Deemed value measure error [col 98-101]- Pass CALCULATION - Payment and kWh = BPA:(Utility value rate error [col 38-47])","Retrofit","\\\\bud\\wrkgrp\\PEK\\Non-residential lighting\\lc oversight\\zzzzzz Test V4 Val\\Test Cases V4\\09ES-11083-FY2017-0010\\","Clark Co. PUD #1","09ES-11083-FY2017-0010","Busbar Match","Incentives Match","4","0","Non-Standard: Yes","1","1","Standard","0","","Pass","Pass","12196.06","12196.06","0.00","0.00","0.00","0.00","10103","0","4.0","0","1","0","1","BPA Default Incentive","1","ERROR of UTILITY VALUES","70","50","$0.50","$0.25","0.5","1","1","ERROR UTILITY Rate Differing Values: [Tab inp_UtilityRatesRow(D3) KwRate value above BPA(6.00): 6.77 ][Percent Proj Cost][Dollars Per KWh Project][Utility Min B Per C]","0","0","0","valid","0.18","0.18","100","100","0.18","0.18","valid","0.18","0.18","100","100","0.18","0.18","valid","0.18","0.18","100","100","0.18","0.18","0","100","0","100%:0% ","0","0",null,null,"0","0",null,"0","0",null,"0","0",null,"Office <20000 sf","15","0","0",null,"0",null,"1",null,"1",null,"2:3","[Measure(2)(Proposed Type=LED.Gen. Indoor / Outdoor.Standard) Errors = (Deemed NEW fixture MML Measure NOT found - Wattage=37)][Measure(3)(Proposed Type=LED.Gen. Indoor / Outdoor.Standard) Errors = (Deemed NEW fixture MML Measure NOT found - Wattage=37)]","0","1","Non-standard calculation rate named [Clark Commercial / Industrial ] used with valued of 0.049 $/KWh and 6.77 $/KWh (instead of BPA 0.06 $/KWh and 6 $/KWh","Clark Commercial / Industrial ","0.049","6.77","0","2018/09/19 15:17:41","4.25"]
[null,null,28,"1","4.0","ALERT - Underpayment / kWh < BPA","LC_EEI_07232018_Solid Rock Ventures LLC   RETRO ERR  Incentives Less.xls","4.0","ALERT CALCULATION - Underpayment / kWh < BPA: (differing under values busbar or incentive [col 24-29])","Retrofit","\\\\bud\\wrkgrp\\PEK\\Non-residential lighting\\lc oversight\\zzzzzz Test V4 Val\\Test Cases V4\\09ES-11083-FY2017-0010\\","Flathead Electric Coop.","09ES-11083-FY2017-0010","Busbar Match","ALERT-Incentives Comparison [Contractor: $864.00] $200.00","6","0","Standard","0","","Standard","0","","Pass","ALERT","7696.66","7696.66","0.00","1064.00","864.00","200.00","10179","0","4.0","0","1","0","1","BPA Default Incentive","0","Valid utility values","70","70","$0.50","$0.50","0.5","0.5","1","ERROR UTILITY Rate Differing Values: [Tab inp_UtilityRatesRow(C4) KwhRate value above BPA(0.0600): 0.0871 ]","0","0","0","valid","0.18","0.18","100","100","0.18","0.18","valid","0.18","0.18","100","100","0.18","0.18","valid","0.18","0.18","100","100","0.18","0.18","0","100","0","100%:0% ","0","0",null,null,"0","0",null,"0","0",null,"0","0",null,"Warehouse","29","0","0",null,"0",null,"0",null,"0",null,null,null,"0","1","Non-standard calculation rate named [SGS01] used with valued of 0.0597 $/KWh and 0 $/KWh (instead of BPA 0.06 $/KWh and 6 $/KWh","SGS01","0.0597","0","0","2018/09/19 15:17:46","4.25"]
[null,null,29,"1","4.0","ALERT - Underpayment / kWh < BPA","LC_EEI_07232018_Solid Rock Ventures LLC   RETRO ERR  Savings Less.xls","4.0","ALERT CALCULATION - Underpayment / kWh < BPA: (differing under values busbar or incentive [col 24-29])","Retrofit","\\\\bud\\wrkgrp\\PEK\\Non-residential lighting\\lc oversight\\zzzzzz Test V4 Val\\Test Cases V4\\09ES-11083-FY2017-0010\\","Flathead Electric Coop.","09ES-11083-FY2017-0010","ALERT-Busbar Match [Contractor: 7596.66KW] 100.00KW","Incentives Match","6","0","Standard","0","","Standard","0","","ALERT","Pass","7696.66","7596.66","100.00","1064.00","1064.00","0.00","10179","0","4.0","0","1","0","1","BPA Default Incentive","0","Valid utility values","70","70","$0.50","$0.50","0.5","0.5","1","ERROR UTILITY Rate Differing Values: [Tab inp_UtilityRatesRow(C4) KwhRate value above BPA(0.0600): 0.0871 ]","0","0","0","valid","0.18","0.18","100","100","0.18","0.18","valid","0.18","0.18","100","100","0.18","0.18","valid","0.18","0.18","100","100","0.18","0.18","0","100","0","100%:0% ","0","0",null,null,"0","0",null,"0","0",null,"0","0",null,"Warehouse","29","0","0",null,"0",null,"0",null,"0",null,null,null,"0","1","Non-standard calculation rate named [SGS01] used with valued of 0.0597 $/KWh and 0 $/KWh (instead of BPA 0.06 $/KWh and 6 $/KWh","SGS01","0.0597","0","0","2018/09/19 15:17:51","4.25"]
[null,null,30,"0","4.0","Pass - Payment and kWh = BPA","LC_EEI_07232018_Solid Rock Ventures LLC   RETRO ERR  Savings More.xls","4.0","Pass CALCULATION - Payment and kWh = BPA:","Retrofit","\\\\bud\\wrkgrp\\PEK\\Non-residential lighting\\lc oversight\\zzzzzz Test V4 Val\\Test Cases V4\\09ES-11083-FY2017-0010\\","Flathead Electric Coop.","09ES-11083-FY2017-0010","FAIL-Busbar Match [Contractor: 77769.66KW] -70073.00KW","Incentives Match","6","0","Standard","0","","Standard","0","","FAIL","Pass","7696.66","77769.66","-70073.00","1064.00","1064.00","0.00","10179","0","4.0","0","1","0","1","BPA Default Incentive","0","Valid utility values","70","70","$0.50","$0.50","0.5","0.5","1","ERROR UTILITY Rate Differing Values: [Tab inp_UtilityRatesRow(C4) KwhRate value above BPA(0.0600): 0.0871 ]","0","0","0","valid","0.18","0.18","100","100","0.18","0.18","valid","0.18","0.18","100","100","0.18","0.18","valid","0.18","0.18","100","100","0.18","0.18","0","100","0","100%:0% ","0","0",null,null,"0","0",null,"0","0",null,"0","0",null,"Warehouse","29","0","0",null,"0",null,"0",null,"0",null,null,null,"0","1","Non-standard calculation rate named [SGS01] used with valued of 0.0597 $/KWh and 0 $/KWh (instead of BPA 0.06 $/KWh and 6 $/KWh","SGS01","0.0597","0","0","2018/09/19 15:17:55","4.25"]
[null,null,31,"4","4.0","FAIL - Unauthorized modification (Static_Parameters table value differences found [col 80-88])(column shown are possible locations)","LC_EEI_07232018_Solid Rock Ventures LLC   RETRO ERR  static_Parameters OandMMultiplier_TRC_PV_Retrofit Value.xls","4.0","FAIL - Unauthorized modification - Pass CALCULATION - Payment and kWh = BPA:(Static_Parameters table value differences found [col 80-88])","Retrofit","\\\\bud\\wrkgrp\\PEK\\Non-residential lighting\\lc oversight\\zzzzzz Test V4 Val\\Test Cases V4\\09ES-11083-FY2017-0010\\","Flathead Electric Coop.","09ES-11083-FY2017-0010","Busbar Match","Incentives Match","6","0","Standard","0","","Standard","0","","Pass","Pass","7696.66","7696.66","0.00","1064.00","1064.00","0.00","10179","0","4.0","0","1","0","1","BPA Default Incentive","0","Valid utility values","70","70","$0.50","$0.50","0.5","0.5","1","ERROR UTILITY Rate Differing Values: [Tab inp_UtilityRatesRow(C4) KwhRate value above BPA(0.0600): 0.0871 ]","0","0","0","valid","0.18","0.18","100","100","0.18","0.18","valid","0.18","0.18","100","100","0.18","0.18","valid","0.18","0.18","100","100","0.18","0.18","0","100","0","100%:0% ","0","0",null,null,"0","0",null,"0","0",null,"0","1","Field Row(25) = OandMMultiplier_TRC [Class (BPA=0.03: Con=0.31)]|Field Row(28) = OandMMultiplier_TRC_PV_Retrofit [Class (BPA=0.2515153182115: Con=2.59899162151883)]|Field Row(29) = OandMMultiplier_TRC_PV_NewConstruction [Class (BPA=0.29136746963223: Con=3.01079718619971)]","Warehouse","29","0","0",null,"0",null,"0",null,"0",null,null,null,"0","1","Non-standard calculation rate named [SGS01] used with valued of 0.0597 $/KWh and 0 $/KWh (instead of BPA 0.06 $/KWh and 6 $/KWh","SGS01","0.0597","0","0","2018/09/19 15:18:00","4.25"]
[null,null,32,"4","4.0","FAIL - Unauthorized modification (Static_Tables table value table differences found [col 80-88])(column shown are possible locations)","LC_EEI_07232018_Solid Rock Ventures LLC   RETRO ERR  static_Tables Building Type Library Heat Pump w Cooling.xls","4.0","FAIL - Unauthorized modification - Pass CALCULATION - Payment and kWh = BPA:(Static_Tables table value differences found [col 80-88])","Retrofit","\\\\bud\\wrkgrp\\PEK\\Non-residential lighting\\lc oversight\\zzzzzz Test V4 Val\\Test Cases V4\\09ES-11083-FY2017-0010\\","Flathead Electric Coop.","09ES-11083-FY2017-0010","Busbar Match","Incentives Match","6","0","Standard","0","","Standard","0","","Pass","Pass","7696.66","7696.66","0.00","1064.00","1064.00","0.00","10179","0","4.0","0","1","0","1","BPA Default Incentive","0","Valid utility values","70","70","$0.50","$0.50","0.5","0.5","1","ERROR UTILITY Rate Differing Values: [Tab inp_UtilityRatesRow(C4) KwhRate value above BPA(0.0600): 0.0871 ]","0","0","0","valid","0.18","0.18","100","100","0.18","0.18","valid","0.18","0.18","100","100","0.18","0.18","valid","0.18","0.18","100","100","0.18","0.18","0","100","0","100%:0% ","0","0",null,null,"0","1","[Table Heating (D12) Library - H Pump w Cool  (BPA=0.76: Con=0.77)]","0","0",null,"0","0",null,"Warehouse","29","0","0",null,"0",null,"0",null,"0",null,null,null,"0","1","Non-standard calculation rate named [SGS01] used with valued of 0.0597 $/KWh and 0 $/KWh (instead of BPA 0.06 $/KWh and 6 $/KWh","SGS01","0.0597","0","0","2018/09/19 15:18:04","4.25"]
[null,null,33,"4","4.0","FAIL - Unauthorized modification (Static_Tables table value table differences found [col 80-88])(column shown are possible locations)","LC_EEI_07232018_Solid Rock Ventures LLC   RETRO ERR  static_Tables Building Type Restaurant Refrigerated Space.xls","4.0","FAIL - Unauthorized modification - Pass CALCULATION - Payment and kWh = BPA:(Static_Tables table value differences found [col 80-88])","Retrofit","\\\\bud\\wrkgrp\\PEK\\Non-residential lighting\\lc oversight\\zzzzzz Test V4 Val\\Test Cases V4\\09ES-11083-FY2017-0010\\","Flathead Electric Coop.","09ES-11083-FY2017-0010","Busbar Match","Incentives Match","6","0","Standard","0","","Standard","0","","Pass","Pass","7696.66","7696.66","0.00","1064.00","1064.00","0.00","10179","0","4.0","0","1","0","1","BPA Default Incentive","0","Valid utility values","70","70","$0.50","$0.50","0.5","0.5","1","ERROR UTILITY Rate Differing Values: [Tab inp_UtilityRatesRow(C4) KwhRate value above BPA(0.0600): 0.0871 ]","0","0","0","valid","0.18","0.18","100","100","0.18","0.18","valid","0.18","0.18","100","100","0.18","0.18","valid","0.18","0.18","100","100","0.18","0.18","0","100","0","100%:0% ","0","0",null,null,"0","1","[Table Heating (I20) Restaurant - Refrig Space (BPA=1.3: Con=1.35)]","0","0",null,"0","0",null,"Warehouse","29","0","0",null,"0",null,"0",null,"0",null,null,null,"0","1","Non-standard calculation rate named [SGS01] used with valued of 0.0597 $/KWh and 0 $/KWh (instead of BPA 0.06 $/KWh and 6 $/KWh","SGS01","0.0597","0","0","2018/09/19 15:18:08","4.25"]
[null,null,34,"4","4.0","FAIL - Unauthorized modification (Static_Tables Controls table value table differences found [col 83-85])(column shown are possible locations)","LC_EEI_07232018_Solid Rock Ventures LLC   RETRO ERR  static_Tables Controls Type 40% Reduction in watts .xls","4.0","FAIL - Unauthorized modification - Pass CALCULATION - Payment and kWh = BPA:(Static_Tables Controls table value differences found [col 83-85])","Retrofit","\\\\bud\\wrkgrp\\PEK\\Non-residential lighting\\lc oversight\\zzzzzz Test V4 Val\\Test Cases V4\\09ES-11083-FY2017-0010\\","Flathead Electric Coop.","09ES-11083-FY2017-0010","Busbar Match","Incentives Match","6","0","Standard","0","","Standard","0","","Pass","Pass","7696.66","7696.66","0.00","1064.00","1064.00","0.00","10179","0","4.0","0","1","0","1","BPA Default Incentive","0","Valid utility values","70","70","$0.50","$0.50","0.5","0.5","1","ERROR UTILITY Rate Differing Values: [Tab inp_UtilityRatesRow(C4) KwhRate value above BPA(0.0600): 0.0871 ]","0","0","0","valid","0.18","0.18","100","100","0.18","0.18","valid","0.18","0.18","100","100","0.18","0.18","valid","0.18","0.18","100","100","0.18","0.18","0","100","0","100%:0% ","0","0",null,null,"0","0",null,"0","1","Field Row(196) = Multi Function ↓ 40% [Redictopm Watts (BPA=0.4: Con=0.31)]","0","0",null,"Warehouse","29","0","0",null,"0",null,"0",null,"0",null,null,null,"0","1","Non-standard calculation rate named [SGS01] used with valued of 0.0597 $/KWh and 0 $/KWh (instead of BPA 0.06 $/KWh and 6 $/KWh","SGS01","0.0597","0","0","2018/09/19 15:18:12","4.25"]
[null,null,35,"4","4.0","FAIL - Unauthorized modification (Static_Tables table value table differences found [col 80-88])(column shown are possible locations)","LC_EEI_07232018_Solid Rock Ventures LLC   RETRO ERR  static_Tables Heating Type Heat pump Air cond Data Column.xls","4.0","FAIL - Unauthorized modification - Pass CALCULATION - Payment and kWh = BPA:(Static_Tables table value differences found [col 80-88])","Retrofit","\\\\bud\\wrkgrp\\PEK\\Non-residential lighting\\lc oversight\\zzzzzz Test V4 Val\\Test Cases V4\\09ES-11083-FY2017-0010\\","Flathead Electric Coop.","09ES-11083-FY2017-0010","FAIL-Busbar Match [Contractor: 7854.56KW] -157.90KW","Incentives Match","6","0","Standard","0","","Standard","0","","FAIL","Pass","7696.66","7854.56","-157.90","1064.00","1064.00","0.00","10179","0","4.0","0","1","0","1","BPA Default Incentive","0","Valid utility values","70","70","$0.50","$0.50","0.5","0.5","1","ERROR UTILITY Rate Differing Values: [Tab inp_UtilityRatesRow(C4) KwhRate value above BPA(0.0600): 0.0871 ]","0","0","0","valid","0.18","0.18","100","100","0.18","0.18","valid","0.18","0.18","100","100","0.18","0.18","valid","0.18","0.18","100","100","0.18","0.18","0","100","0","100%:0% ","0","0",null,null,"0","1","[Table Heating (B22) Retail Anchor Store >50000 sf Multistory - E Resist w Cool (BPA=0.62: Con=0.63)][Table Heating Type to Cooling data error: (cell D40)BPA= 4 con= 10 | (cell D42)BPA= 7 con= 8]","0","0",null,"0","0",null,"Warehouse","29","0","1","[Tab static_Tables (cell D42) Table Heating Type to Cooling pointing to wrong Data Column(BPA= 7 con= 8) of table Heating] | [Measure( Row = 23 BPA Col = 7 Con Wrong Col = 8) Space Type=Warehouse : cooling=No cooling : heat=Gas- oil- or biomass (BPA=0.96:Con=1)][Tab static_Tables (cell D42) Table Heating Type to Cooling pointing to wrong Data Column(BPA= 7 con= 8) of table Heating] | [Measure( Row = 24 BPA Col = 7 Con Wrong Col = 8) Space Type=Private Office : cooling=No cooling : heat=Gas- oil- or biomass (BPA=0.96:Con=1)][Tab static_Tables (cell D42) Table Heating Type to Cooling pointing to wrong Data Column(BPA= 7 con= 8) of table Heating] | [Measure( Row = 25 BPA Col = 7 Con Wrong Col = 8) Space Type=Hallway : cooling=No cooling : heat=Gas- oil- or biomass (BPA=0.96:Con=1)][Tab static_Tables (cell D42) Table Heating Type to Cooling pointing to wrong Data Column(BPA= 7 con= 8) of table Heating] | [Measure( Row = 26 BPA Col = 7 Con Wrong Col = 8) Space Type=Restroom : cooling=No cooling : heat=Gas- oil- or biomass (BPA=0.96:Con=1)]","0",null,"0",null,"0",null,null,null,"0","1","Non-standard calculation rate named [SGS01] used with valued of 0.0597 $/KWh and 0 $/KWh (instead of BPA 0.06 $/KWh and 6 $/KWh","SGS01","0.0597","0","0","2018/09/19 15:18:16","4.25"]
[null,null,36,"0","4.0","Pass - Payment and kWh = BPA","LC_EEI_07232018_Solid Rock Ventures LLC   RETRO ERR  Incentives More.xls","4.0","Pass CALCULATION - Payment and kWh = BPA:","Retrofit","\\\\bud\\wrkgrp\\PEK\\Non-residential lighting\\lc oversight\\zzzzzz Test V4 Val\\Test Cases V4\\09ES-11083-FY2017-0010\\","Flathead Electric Coop.","09ES-11083-FY2017-0010","Busbar Match","FAIL-Incentives Comparison [Contractor: $1154.00] -$90.00","6","0","Standard","0","","Standard","0","","Pass","FAIL","7696.66","7696.66","0.00","1064.00","1154.00","-90.00","10179","0","4.0","0","1","0","1","BPA Default Incentive","0","Valid utility values","70","70","$0.50","$0.50","0.5","0.5","1","ERROR UTILITY Rate Differing Values: [Tab inp_UtilityRatesRow(C4) KwhRate value above BPA(0.0600): 0.0871 ]","0","0","0","valid","0.18","0.18","100","100","0.18","0.18","valid","0.18","0.18","100","100","0.18","0.18","valid","0.18","0.18","100","100","0.18","0.18","0","100","0","100%:0% ","0","0",null,null,"0","0",null,"0","0",null,"0","0",null,"Warehouse","29","0","0",null,"0",null,"0",null,"0",null,null,null,"0","1","Non-standard calculation rate named [SGS01] used with valued of 0.0597 $/KWh and 0 $/KWh (instead of BPA 0.06 $/KWh and 6 $/KWh","SGS01","0.0597","0","0","2018/09/19 15:18:20","4.25"]
[null,null,37,"-6",null,"...............No files to process in this directory",null,null,"No files to process in this directory",null,"\\\\bud\\wrkgrp\\PEK\\Non-residential lighting\\lc oversight\\zzzzzz Test V4 Val\\Test Cases V4\\09ES-11083-FY2017-0012\\",null,null,null,null,"-6",null,null,"-6",null,null,"-6",null,null,null,null,null,null,null,null,null,null,null,"-6",null,null,null,null,null,null,null,null,null,null,null,null,null,null,null,null,null,null,null,null,null,null,null,null,null,null,null,null,null,null,null,null,null,null,null,null,null,null,null,null,null,null,null,null,null,null,null,null,null,null,null,null,null,null,null,null,null,null,null,null,null,null,null,null,null,null,null,null,null,null,null,null,null,null,null,null,"2018/09/19 15:18:20","4.25"]
[null,null,null,null,null,"Total Evaluations: 37 "]
[null,null,null,null,null,"Last Evaluation PATH: \\\\bud\\wrkgrp\\PEK\\Non-residential lighting\\lc oversight\\zzzzzz Test V4 Val\\Test Cases V4\\09ES-11083-FY2017-0012\\    FILE: "]